Workbook

Sheet Aux. (hidden)
D1: MOD. COMPOS. | E1: COMPOSIÇÕES/ LISTA AUXILIAR | F1: INDEXADO | G1: ORÇAMENTO | H1: Unidades Planilha Auxiliar | I1: BDI Desonerado | J1: BDI Não desonerado
B2: material | C2: SINAPI | D2: SINAPI | E2: SINAPI | F2: SINAPI | G2: SINAPI | H2: H | I2: =BDI!C21 -> 0.2267 | J2: =BDI!C22 -> 0.2267
B3: mão de obra | C3: SICRO | D3: SICRO | E3: SICRO | F3: SICRO | G3: SICRO | H3: KM | I3: =BDI!D21 -> 0 | J3: =BDI!D22 -> -0.0001
B4: insumo | C4: SICRO EQUIP. | D4: SMOV | E4: SICRO EQUIP. | F4: SICRO EQUIP. | G4: MERCADO | H4: L | I4: =BDI!E21 -> 0.1419 | J4: =BDI!E22 -> 0.1418
B5: equipamento | C5: SMOV | D5: DAER | E5: MERCADO | F5: MERCADO | G5: CCU | H5: M | I5: =BDI!F21 -> 0 | J5: =BDI!F22 -> 0
C6: MERCADO | D6: TCPO | E6: INDEXADO | F6: CCU | G6: - | H6: M2 | I6: =BDI!C43 -> 0 | J6: =BDI!C43 -> 0
B7: Concorrência | C7: DAER | D7: PLEO | E7: CCU | F7: - | G7: INDEXADO | H7: M2XMES | I7: =BDI!E43 -> 0 | J7: =BDI!E43 -> 0
B8: Pregão Eletrônico | C8: CCU | D8: ORSE | E8: - | F8: ANP | G8: ANP | H8: M3 | I8: - | J8: =I8 -> -
B9: Tomada de Preços | D9: SEINFRA | E9: ANP | F9: DAER | G9: DAER | H9: M3XKM
C10: INDEXADO | D10: CEHOP | E10: DAER | F10: CONSULTORIA DNIT | G10: CONSULTORIA DNIT | H10: MES
B11: CPF: | D11: SUDECAP | E11: CONSULTORIA DNIT | F11: PREGÃO ELETRÔNICO | G11: PREGÃO ELETRÔNICO | H11: MXMES
B12: CREA/RS | D12: DER-PR | E12: PREGÃO ELETRÔNICO | F12: DMLU | G12: DMLU | H12: T
B13: CAU/RS | D13: SIURB | E13: DMLU | F13: DMAE | G13: DMAE | H13: TXKM
B14: RG: | D14: - | E14: DMAE | F14: CEEE | G14: CEEE | H14: UN
E15: CEEE | F15: EPTC | G15: EPTC | H15: ADES
B16: Tabela Desonerada | E16: EPTC | F16: CREA | G16: CREA | H16: AMP
B17: Tabela Não Desonerada | E17: CREA | F17: CAU | G17: CAU | H17: ANO
E18: CAU | F18: ORSE | G18: ORSE | H18: BAND
E19: ORSE | F19: SEINFRA | G19: SEINFRA | H19: BAST
B20: nº ART: | E20: SEINFRA | F20: CEHOP | G20: CEHOP | H20: BG
B21: nº RRT: | E21: CEHOP | F21: SUDECAP | G21: SUDECAP | H21: BL
E22: SUDECAP | F22: DER-PR | G22: DER-PR | H22: BLD
E23: DER-PR | F23: SIURB | G23: SIURB | H23: BLI
E24: SIURB | F24: =E25 -> COMPOSICAO_PROPRIA | G24: =E25 -> COMPOSICAO_PROPRIA | H24: BLS
E25: COMPOSICAO_PROPRIA | F25: SICFER | G25: SICFER | H25: BOB
E26: SICFER | H26: BOMB
H27: BOT
H28: BRR
H29: CAP
H30: CARR
H31: CART
H32: CENTO
H33: CH
H34: CHI
H35: CHP
H36: CIL
H37: CJ
H38: CM
H39: CMCOL
H40: CN
H41: COL
H42: COM
H43: CR
H44: CRG
H45: CX
H46: DIA
H47: DOSE
H48: DRG
H49: DZ
H50: EIXO
H51: EMB
H52: ENV
H53: ES
H54: FA
H55: FD
H56: FITA
H57: FL
H58: FLAC
H59: FR
H60: FX
H61: FXMES
H62: G
H63: GAL
H64: GFA
H65: HA
H66: JG
H67: KCAL
H68: KG
H69: KIT
H70: KM2
H71: KMROD
H72: KWH
H73: KWP
H74: LB
H75: LDIL
H76: LT
H77: MB
H78: MC
H79: MD
H80: MG
H81: MIL
H82: MIN
H83: ML
H84: MOL
H85: MWH
H86: NOV
H87: PAC
H88: PAR
H89: PAS
H90: PC
H91: PF
H92: PG
H93: POS
H94: POT
H95: PT
H96: RD
H97: REF
H98: RL
H99: RLT
H100: RM
H101: SC
H102: SCH
H103: SECAO
H104: SEM
H105: SEMAN
H106: SER
H107: SUP
H108: TB
H109: TBT
H110: TIRA
H111: TL
H112: TM
H113: TO
H114: TRN
H115: TST
H116: TX
H117: UNXMES
H118: UST
H119: VD
H120: VG
H121: KGXKM
H122: UNXKM
H123: M2XKM
H124: LXKM

Sheet Comparativo (hidden)
A2: Tipo de Orçamento | B2: Valor
A3: orçamento não desonerado | B3: ='Orçamento Base'!$S$1671 -> 1399036.02 | C3: =A3 -> orçamento não desonerado | E3: Tabela Não Desonerada
A4: orçamento desonerado | B4: =B3 -> 1399036.02 | C4: orçamento desonerado | E4: Tabela Desonerada
A6: =CONCATENATE("Valor adotado: ",VLOOKUP(B6,B3:C4,2,FALSE)) -> Valor adotado: orçamento não desonerado | B6: =SMALL(B3:B4,1) -> 1399036.02 | E6: =VLOOKUP(B6,B3:E4,4,FALSE) -> Tabela Não Desonerada

Sheet Identificação-TCE (hidden)
A1: IDENTIFICAÇÃO
A2: Modalidade* | D2: N° * | F2: Ano *
A3: Descrição do Objeto | B3: =Dados!C5 -> Reforma CECORES
A4: Órgão | B4: =Dados!C3 -> Secretaria Municipal de Esporte, Lazer e Juventude | F4: CNPJ *
A5: Tipo de Objeto* | C5: N° CENTRAL DE COMPRAS
A6: Preço Total Estimado | B6: ='Orçamento-TCE'!C6 -> 1399036.02
A7: Preço Total Proposto | B7: ='Proposta-TCE'!C6 -> 1399036.02
A8: Qtd. Itens Orçamento | B8: =COUNTIF('Orçamento-TCE'!$H$12:$H$1687,"<>0") -> 44
A9: Atenção! Para incluir mais de 50 lotes, selecione as células A62 a G62 e arraste as fórmulas para baixo, de acordo com o número de lotes necessário.
A10: *Campos de preenchimento obrigatório | C10: **Campos de preenchimento obrigatório para licitação composta por lotes
A11: Nº do lote** | B11: Descrição do Lote** | C11: Estimativa | G11: Proposta
C12: Valor do lote (R$) | G12: Valor do lote (R$)
A13: 1 | B13: =B3 -> Reforma CECORES | C13: =B6 -> 1399036.02 | G13: =B7 -> 1399036.02
C14: 0 | G14: 0
C15: 0 | G15: 0
C16: 0 | G16: 0
C17: 0 | G17: 0
C18: 0 | G18: 0
C19: 0 | G19: 0
C20: 0 | G20: 0
C21: 0 | G21: 0
C22: 0 | G22: 0
C23: 0 | G23: 0
C24: 0 | G24: 0
C25: 0 | G25: 0
C26: 0 | G26: 0
C27: 0 | G27: 0
C28: 0 | G28: 0
C29: 0 | G29: 0
C30: 0 | G30: 0
C31: 0 | G31: 0
C32: 0 | G32: 0
C33: 0 | G33: 0
C34: 0 | G34: 0
C35: 0 | G35: 0
C36: 0 | G36: 0
C37: 0 | G37: 0
C38: 0 | G38: 0
C39: 0 | G39: 0
C40: 0 | G40: 0
C41: 0 | G41: 0
C42: 0 | G42: 0
C43: 0 | G43: 0
C44: 0 | G44: 0
C45: 0 | G45: 0
C46: 0 | G46: 0
C47: 0 | G47: 0
C48: 0 | G48: 0
C49: 0 | G49: 0
C50: 0 | G50: 0
C51: 0 | G51: 0
C52: 0 | G52: 0
C53: 0 | G53: 0
C54: 0 | G54: 0
C55: 0 | G55: 0
C56: 0 | G56: 0
C57: 0 | G57: 0
C58: 0 | G58: 0
C59: 0 | G59: 0
C60: 0 | G60: 0
C61: 0 | G61: 0
C62: 0 | G62: 0

Sheet Orçamento-TCE (hidden)
A1: ORÇAMENTO
A2: Modalidade | H2: N° | J2: Ano
A3: Descrição do Objeto | C3: =Dados!C5 -> Reforma CECORES
A4: Órgão | C4: =Dados!C3 -> Secretaria Municipal de Esporte, Lazer e Juventude | J4: CNPJ
A5: Tipo de Objeto
A6: Preço T. Estimado | C6: =SUM(K12:K1147) -> 1399036.02
A8: Atenção! Para incluir mais de 100 linhas de itens, selecione as células A113 a R113 e arraste as fórmulas para baixo, de acordo com o número de itens necessário.
A9: *Preenchimento obrigatório | F9: **Obrigatório só para Obras e Serviços de Engenharia | H9: ***Obrigatório só para licitação composta por Lotes
A10: Nº do Lote*** | B10: N° Ordem | C10: Nº Item* | D10: Fonte de Referência** | E10: Código de Referência** | F10: Data de Referência** | G10: Descrição do item* | H10: Estimativa | N10: Família | P10: Subfamília | R10: Tipo de Orçamento | S10: Pr. Unit. Material | T10: Pr. Unit. Mão de obra
H11: Qtd.* | I11: Unid.* | J11: Preço unitário (R$)* | K11: Preço Total (R$) | L11: % BDI** | M11: % Encargos Sociais** | N11: Código | O11: Descrição | P11: Código | Q11: Descrição
A12: ='Identificação-TCE'!$A$13 -> 1 | B12: =IF(AND(G12<>"",H12>0,I12<>"",J12<>0,K12<>0),COUNT($B$11:B11)+1,"") -> 1 | C12: =IF('Orçamento Base'!$M11=0,0,'Orçamento Base'!$D11) -> 1.1 | D12: =IF('Orçamento Base'!$F11=Aux.!$G$11,"CONTRATACAO_PUBLICA",IF(VLOOKUP($C12,'Orçamento Base'!$D$11:$G$2116,3,FALSE)="INDEXADO",VLOOKUP(VLOOKUP($C11,'Orçamento Base'!$D$11:$G$2116,2,FALSE),'Index N_DESON.'!$A$9:$B$604,2),VLOOKUP($C12,'Orçamento Base'!$D$11:$G$2116,3,FALSE))) -> SINAPI | E12: =VLOOKUP($C12,'Orçamento Base'!$D$11:$S$1673,2,FALSE) -> 90779 | F12: =Dados!$C$7 -> 2022-04-01 | G12: =VLOOKUP($C12,'Orçamento Base'!$D$11:$S$1673,4,FALSE) -> ENGENHEIRO CIVIL DE OBRA SENIOR COM ENCARGOS COMPLEMENTARES | H12: =IFERROR(VLOOKUP($C12,'Orçamento Base'!$D$11:$S$1673,6,FALSE),0) -> 184 | I12: =VLOOKUP($C12,'Orçamento Base'!$D$11:$S$1673,5,FALSE) -> H | J12: =IF(Comparativo!$E$6="Tabela Não Desonerada",VLOOKUP($C12,'Orçamento Base'!$D$11:$S$1673,12,FALSE),VLOOKUP($C12,#REF!,12,FALSE)) -> 191.4 | K12: =IFERROR(IF(Comparativo!$E$6="Tabela Não Desonerada",VLOOKUP($C12,'Orçamento Base'!$D$11:$S$1673,16,FALSE),VLOOKUP($C12,#REF!,16,FALSE)),0) -> 35217.6 | L12: =IF(AND($D12="COMPOSICAO_PROPRIA",'Orçamento Base'!$N12="-"),"14,18%",IF(AND($D12="MERCADO",'Orçamento Base'!$N12="-"),"15,38%",IF(Comparativo!$E$6="Tabela Não Desonerada",VLOOKUP($C12,'Orçamento Base'!$D$11:$S$1673,11,FALSE),VLOOKUP($C12,#REF!,11,FALSE)))) -> 0.2267 | M12: =IF(Comparativo!$E$6="Tabela Não Desonerada",Encargos!$F$44,Encargos!$D$44) -> 1.1122
A13: ='Identificação-TCE'!$A$13 -> 1 | B13: =IF(AND(G13<>"",H13>0,I13<>"",J13<>0,K13<>0),COUNT($B$11:B12)+1,"") -> 2 | C13: =IF('Orçamento Base'!$M12=0,0,'Orçamento Base'!$D12) -> 1.2 | D13: =IF('Orçamento Base'!$F12=Aux.!$G$11,"CONTRATACAO_PUBLICA",IF(VLOOKUP($C13,'Orçamento Base'!$D$11:$G$2116,3,FALSE)="INDEXADO",VLOOKUP(VLOOKUP($C12,'Orçamento Base'!$D$11:$G$2116,2,FALSE),'Index N_DESON.'!$A$9:$B$604,2),VLOOKUP($C13,'Orçamento Base'!$D$11:$G$2116,3,FALSE))) -> SINAPI | E13: =VLOOKUP($C13,'Orçamento Base'!$D$11:$S$1673,2,FALSE) -> 90776 | F13: =Dados!$C$7 -> 2022-04-01 | G13: =VLOOKUP($C13,'Orçamento Base'!$D$11:$S$1673,4,FALSE) -> ENCARREGADO GERAL COM ENCARGOS COMPLEMENTARES | H13: =IFERROR(VLOOKUP($C13,'Orçamento Base'!$D$11:$S$1673,6,FALSE),0) -> 792 | I13: =VLOOKUP($C13,'Orçamento Base'!$D$11:$S$1673,5,FALSE) -> H | J13: =IF(Comparativo!$E$6="Tabela Não Desonerada",VLOOKUP($C13,'Orçamento Base'!$D$11:$S$1673,12,FALSE),VLOOKUP($C13,#REF!,12,FALSE)) -> 60.07 | K13: =IFERROR(IF(Comparativo!$E$6="Tabela Não Desonerada",VLOOKUP($C13,'Orçamento Base'!$D$11:$S$1673,16,FALSE),VLOOKUP($C13,#REF!,16,FALSE)),0) -> 47575.44 | L13: =IF(AND($D13="COMPOSICAO_PROPRIA",'Orçamento Base'!$N13="-"),"14,18%",IF(AND($D13="MERCADO",'Orçamento Base'!$N13="-"),"15,38%",IF(Comparativo!$E$6="Tabela Não Desonerada",VLOOKUP($C13,'Orçamento Base'!$D$11:$S$1673,11,FALSE),VLOOKUP($C13,#REF!,11,FALSE)))) -> 0.2267 | M13: =IF(Comparativo!$E$6="Tabela Não Desonerada",Encargos!$F$44,Encargos!$D$44) -> 1.1122
A14: ='Identificação-TCE'!$A$13 -> 1 | B14: =IF(AND(G14<>"",H14>0,I14<>"",J14<>0,K14<>0),COUNT($B$11:B13)+1,"") -> 3 | C14: =IF('Orçamento Base'!$M13=0,0,'Orçamento Base'!$D13) -> 1.3 | D14: =IF('Orçamento Base'!$F13=Aux.!$G$11,"CONTRATACAO_PUBLICA",IF(VLOOKUP($C14,'Orçamento Base'!$D$11:$G$2116,3,FALSE)="INDEXADO",VLOOKUP(VLOOKUP($C13,'Orçamento Base'!$D$11:$G$2116,2,FALSE),'Index N_DESON.'!$A$9:$B$604,2),VLOOKUP($C14,'Orçamento Base'!$D$11:$G$2116,3,FALSE))) -> SINAPI | E14: =VLOOKUP($C14,'Orçamento Base'!$D$11:$S$1673,2,FALSE) -> 100309 | F14: =Dados!$C$7 -> 2022-04-01 | G14: =VLOOKUP($C14,'Orçamento Base'!$D$11:$S$1673,4,FALSE) -> TÉCNICO EM SEGURANÇA DO TRABALHO COM ENCARGOS COMPLEMENTARES | H14: =IFERROR(VLOOKUP($C14,'Orçamento Base'!$D$11:$S$1673,6,FALSE),0) -> 90 | I14: =VLOOKUP($C14,'Orçamento Base'!$D$11:$S$1673,5,FALSE) -> H | J14: =IF(Comparativo!$E$6="Tabela Não Desonerada",VLOOKUP($C14,'Orçamento Base'!$D$11:$S$1673,12,FALSE),VLOOKUP($C14,#REF!,12,FALSE)) -> 41.86 | K14: =IFERROR(IF(Comparativo!$E$6="Tabela Não Desonerada",VLOOKUP($C14,'Orçamento Base'!$D$11:$S$1673,16,FALSE),VLOOKUP($C14,#REF!,16,FALSE)),0) -> 3767.4 | L14: =IF(AND($D14="COMPOSICAO_PROPRIA",'Orçamento Base'!$N14="-"),"14,18%",IF(AND($D14="MERCADO",'Orçamento Base'!$N14="-"),"15,38%",IF(Comparativo!$E$6="Tabela Não Desonerada",VLOOKUP($C14,'Orçamento Base'!$D$11:$S$1673,11,FALSE),VLOOKUP($C14,#REF!,11,FALSE)))) -> 0.2267 | M14: =IF(Comparativo!$E$6="Tabela Não Desonerada",Encargos!$F$44,Encargos!$D$44) -> 1.1122
A15: ='Identificação-TCE'!$A$13 -> 1 | B15: =IF(AND(G15<>"",H15>0,I15<>"",J15<>0,K15<>0),COUNT($B$11:B14)+1,"") ->  | C15: =IF('Orçamento Base'!$M14=0,0,'Orçamento Base'!$D14) -> 0 | D15: =IF('Orçamento Base'!$F14=Aux.!$G$11,"CONTRATACAO_PUBLICA",IF(VLOOKUP($C15,'Orçamento Base'!$D$11:$G$2116,3,FALSE)="INDEXADO",VLOOKUP(VLOOKUP($C14,'Orçamento Base'!$D$11:$G$2116,2,FALSE),'Index N_DESON.'!$A$9:$B$604,2),VLOOKUP($C15,'Orçamento Base'!$D$11:$G$2116,3,FALSE))) ->  | E15: =VLOOKUP($C15,'Orçamento Base'!$D$11:$S$1673,2,FALSE) ->  | F15: =Dados!$C$7 -> 2022-04-01 | G15: =VLOOKUP($C15,'Orçamento Base'!$D$11:$S$1673,4,FALSE) ->  | H15: =IFERROR(VLOOKUP($C15,'Orçamento Base'!$D$11:$S$1673,6,FALSE),0) -> 0 | I15: =VLOOKUP($C15,'Orçamento Base'!$D$11:$S$1673,5,FALSE) ->  | J15: =IF(Comparativo!$E$6="Tabela Não Desonerada",VLOOKUP($C15,'Orçamento Base'!$D$11:$S$1673,12,FALSE),VLOOKUP($C15,#REF!,12,FALSE)) ->  | K15: =IFERROR(IF(Comparativo!$E$6="Tabela Não Desonerada",VLOOKUP($C15,'Orçamento Base'!$D$11:$S$1673,16,FALSE),VLOOKUP($C15,#REF!,16,FALSE)),0) -> 0 | L15: =IF(AND($D15="COMPOSICAO_PROPRIA",'Orçamento Base'!$N15="-"),"14,18%",IF(AND($D15="MERCADO",'Orçamento Base'!$N15="-"),"15,38%",IF(Comparativo!$E$6="Tabela Não Desonerada",VLOOKUP($C15,'Orçamento Base'!$D$11:$S$1673,11,FALSE),VLOOKUP($C15,#REF!,11,FALSE)))) ->  | M15: =IF(Comparativo!$E$6="Tabela Não Desonerada",Encargos!$F$44,Encargos!$D$44) -> 1.1122
A16: ='Identificação-TCE'!$A$13 -> 1 | B16: =IF(AND(G16<>"",H16>0,I16<>"",J16<>0,K16<>0),COUNT($B$11:B15)+1,"") ->  | C16: =IF('Orçamento Base'!$M15=0,0,'Orçamento Base'!$D15) -> 0 | D16: =IF('Orçamento Base'!$F15=Aux.!$G$11,"CONTRATACAO_PUBLICA",IF(VLOOKUP($C16,'Orçamento Base'!$D$11:$G$2116,3,FALSE)="INDEXADO",VLOOKUP(VLOOKUP($C15,'Orçamento Base'!$D$11:$G$2116,2,FALSE),'Index N_DESON.'!$A$9:$B$604,2),VLOOKUP($C16,'Orçamento Base'!$D$11:$G$2116,3,FALSE))) ->  | E16: =VLOOKUP($C16,'Orçamento Base'!$D$11:$S$1673,2,FALSE) ->  | F16: =Dados!$C$7 -> 2022-04-01 | G16: =VLOOKUP($C16,'Orçamento Base'!$D$11:$S$1673,4,FALSE) ->  | H16: =IFERROR(VLOOKUP($C16,'Orçamento Base'!$D$11:$S$1673,6,FALSE),0) -> 0 | I16: =VLOOKUP($C16,'Orçamento Base'!$D$11:$S$1673,5,FALSE) ->  | J16: =IF(Comparativo!$E$6="Tabela Não Desonerada",VLOOKUP($C16,'Orçamento Base'!$D$11:$S$1673,12,FALSE),VLOOKUP($C16,#REF!,12,FALSE)) ->  | K16: =IFERROR(IF(Comparativo!$E$6="Tabela Não Desonerada",VLOOKUP($C16,'Orçamento Base'!$D$11:$S$1673,16,FALSE),VLOOKUP($C16,#REF!,16,FALSE)),0) -> 0 | L16: =IF(AND($D16="COMPOSICAO_PROPRIA",'Orçamento Base'!$N16="-"),"14,18%",IF(AND($D16="MERCADO",'Orçamento Base'!$N16="-"),"15,38%",IF(Comparativo!$E$6="Tabela Não Desonerada",VLOOKUP($C16,'Orçamento Base'!$D$11:$S$1673,11,FALSE),VLOOKUP($C16,#REF!,11,FALSE)))) ->  | M16: =IF(Comparativo!$E$6="Tabela Não Desonerada",Encargos!$F$44,Encargos!$D$44) -> 1.1122
A17: ='Identificação-TCE'!$A$13 -> 1 | B17: =IF(AND(G17<>"",H17>0,I17<>"",J17<>0,K17<>0),COUNT($B$11:B16)+1,"") ->  | C17: =IF('Orçamento Base'!$M16=0,0,'Orçamento Base'!$D16) -> 0 | D17: =IF('Orçamento Base'!$F16=Aux.!$G$11,"CONTRATACAO_PUBLICA",IF(VLOOKUP($C17,'Orçamento Base'!$D$11:$G$2116,3,FALSE)="INDEXADO",VLOOKUP(VLOOKUP($C16,'Orçamento Base'!$D$11:$G$2116,2,FALSE),'Index N_DESON.'!$A$9:$B$604,2),VLOOKUP($C17,'Orçamento Base'!$D$11:$G$2116,3,FALSE))) ->  | E17: =VLOOKUP($C17,'Orçamento Base'!$D$11:$S$1673,2,FALSE) ->  | F17: =Dados!$C$7 -> 2022-04-01 | G17: =VLOOKUP($C17,'Orçamento Base'!$D$11:$S$1673,4,FALSE) ->  | H17: =IFERROR(VLOOKUP($C17,'Orçamento Base'!$D$11:$S$1673,6,FALSE),0) -> 0 | I17: =VLOOKUP($C17,'Orçamento Base'!$D$11:$S$1673,5,FALSE) ->  | J17: =IF(Comparativo!$E$6="Tabela Não Desonerada",VLOOKUP($C17,'Orçamento Base'!$D$11:$S$1673,12,FALSE),VLOOKUP($C17,#REF!,12,FALSE)) ->  | K17: =IFERROR(IF(Comparativo!$E$6="Tabela Não Desonerada",VLOOKUP($C17,'Orçamento Base'!$D$11:$S$1673,16,FALSE),VLOOKUP($C17,#REF!,16,FALSE)),0) -> 0 | L17: =IF(AND($D17="COMPOSICAO_PROPRIA",'Orçamento Base'!$N17="-"),"14,18%",IF(AND($D17="MERCADO",'Orçamento Base'!$N17="-"),"15,38%",IF(Comparativo!$E$6="Tabela Não Desonerada",VLOOKUP($C17,'Orçamento Base'!$D$11:$S$1673,11,FALSE),VLOOKUP($C17,#REF!,11,FALSE)))) ->  | M17: =IF(Comparativo!$E$6="Tabela Não Desonerada",Encargos!$F$44,Encargos!$D$44) -> 1.1122
A18: ='Identificação-TCE'!$A$13 -> 1 | B18: =IF(AND(G18<>"",H18>0,I18<>"",J18<>0,K18<>0),COUNT($B$11:B17)+1,"") ->  | C18: =IF('Orçamento Base'!$M17=0,0,'Orçamento Base'!$D17) -> 0 | D18: =IF('Orçamento Base'!$F17=Aux.!$G$11,"CONTRATACAO_PUBLICA",IF(VLOOKUP($C18,'Orçamento Base'!$D$11:$G$2116,3,FALSE)="INDEXADO",VLOOKUP(VLOOKUP($C17,'Orçamento Base'!$D$11:$G$2116,2,FALSE),'Index N_DESON.'!$A$9:$B$604,2),VLOOKUP($C18,'Orçamento Base'!$D$11:$G$2116,3,FALSE))) ->  | E18: =VLOOKUP($C18,'Orçamento Base'!$D$11:$S$1673,2,FALSE) ->  | F18: =Dados!$C$7 -> 2022-04-01 | G18: =VLOOKUP($C18,'Orçamento Base'!$D$11:$S$1673,4,FALSE) ->  | H18: =IFERROR(VLOOKUP($C18,'Orçamento Base'!$D$11:$S$1673,6,FALSE),0) -> 0 | I18: =VLOOKUP($C18,'Orçamento Base'!$D$11:$S$1673,5,FALSE) ->  | J18: =IF(Comparativo!$E$6="Tabela Não Desonerada",VLOOKUP($C18,'Orçamento Base'!$D$11:$S$1673,12,FALSE),VLOOKUP($C18,#REF!,12,FALSE)) ->  | K18: =IFERROR(IF(Comparativo!$E$6="Tabela Não Desonerada",VLOOKUP($C18,'Orçamento Base'!$D$11:$S$1673,16,FALSE),VLOOKUP($C18,#REF!,16,FALSE)),0) -> 0 | L18: =IF(AND($D18="COMPOSICAO_PROPRIA",'Orçamento Base'!$N18="-"),"14,18%",IF(AND($D18="MERCADO",'Orçamento Base'!$N18="-"),"15,38%",IF(Comparativo!$E$6="Tabela Não Desonerada",VLOOKUP($C18,'Orçamento Base'!$D$11:$S$1673,11,FALSE),VLOOKUP($C18,#REF!,11,FALSE)))) ->  | M18: =IF(Comparativo!$E$6="Tabela Não Desonerada",Encargos!$F$44,Encargos!$D$44) -> 1.1122
A19: ='Identificação-TCE'!$A$13 -> 1 | B19: =IF(AND(G19<>"",H19>0,I19<>"",J19<>0,K19<>0),COUNT($B$11:B18)+1,"") ->  | C19: =IF('Orçamento Base'!$M18=0,0,'Orçamento Base'!$D18) -> 0 | D19: =IF('Orçamento Base'!$F18=Aux.!$G$11,"CONTRATACAO_PUBLICA",IF(VLOOKUP($C19,'Orçamento Base'!$D$11:$G$2116,3,FALSE)="INDEXADO",VLOOKUP(VLOOKUP($C18,'Orçamento Base'!$D$11:$G$2116,2,FALSE),'Index N_DESON.'!$A$9:$B$604,2),VLOOKUP($C19,'Orçamento Base'!$D$11:$G$2116,3,FALSE))) ->  | E19: =VLOOKUP($C19,'Orçamento Base'!$D$11:$S$1673,2,FALSE) ->  | F19: =Dados!$C$7 -> 2022-04-01 | G19: =VLOOKUP($C19,'Orçamento Base'!$D$11:$S$1673,4,FALSE) ->  | H19: =IFERROR(VLOOKUP($C19,'Orçamento Base'!$D$11:$S$1673,6,FALSE),0) -> 0 | I19: =VLOOKUP($C19,'Orçamento Base'!$D$11:$S$1673,5,FALSE) ->  | J19: =IF(Comparativo!$E$6="Tabela Não Desonerada",VLOOKUP($C19,'Orçamento Base'!$D$11:$S$1673,12,FALSE),VLOOKUP($C19,#REF!,12,FALSE)) ->  | K19: =IFERROR(IF(Comparativo!$E$6="Tabela Não Desonerada",VLOOKUP($C19,'Orçamento Base'!$D$11:$S$1673,16,FALSE),VLOOKUP($C19,#REF!,16,FALSE)),0) -> 0 | L19: =IF(AND($D19="COMPOSICAO_PROPRIA",'Orçamento Base'!$N19="-"),"14,18%",IF(AND($D19="MERCADO",'Orçamento Base'!$N19="-"),"15,38%",IF(Comparativo!$E$6="Tabela Não Desonerada",VLOOKUP($C19,'Orçamento Base'!$D$11:$S$1673,11,FALSE),VLOOKUP($C19,#REF!,11,FALSE)))) ->  | M19: =IF(Comparativo!$E$6="Tabela Não Desonerada",Encargos!$F$44,Encargos!$D$44) -> 1.1122
A20: ='Identificação-TCE'!$A$13 -> 1 | B20: =IF(AND(G20<>"",H20>0,I20<>"",J20<>0,K20<>0),COUNT($B$11:B19)+1,"") ->  | C20: =IF('Orçamento Base'!$M19=0,0,'Orçamento Base'!$D19) -> 0 | D20: =IF('Orçamento Base'!$F19=Aux.!$G$11,"CONTRATACAO_PUBLICA",IF(VLOOKUP($C20,'Orçamento Base'!$D$11:$G$2116,3,FALSE)="INDEXADO",VLOOKUP(VLOOKUP($C19,'Orçamento Base'!$D$11:$G$2116,2,FALSE),'Index N_DESON.'!$A$9:$B$604,2),VLOOKUP($C20,'Orçamento Base'!$D$11:$G$2116,3,FALSE))) ->  | E20: =VLOOKUP($C20,'Orçamento Base'!$D$11:$S$1673,2,FALSE) ->  | F20: =Dados!$C$7 -> 2022-04-01 | G20: =VLOOKUP($C20,'Orçamento Base'!$D$11:$S$1673,4,FALSE) ->  | H20: =IFERROR(VLOOKUP($C20,'Orçamento Base'!$D$11:$S$1673,6,FALSE),0) -> 0 | I20: =VLOOKUP($C20,'Orçamento Base'!$D$11:$S$1673,5,FALSE) ->  | J20: =IF(Comparativo!$E$6="Tabela Não Desonerada",VLOOKUP($C20,'Orçamento Base'!$D$11:$S$1673,12,FALSE),VLOOKUP($C20,#REF!,12,FALSE)) ->  | K20: =IFERROR(IF(Comparativo!$E$6="Tabela Não Desonerada",VLOOKUP($C20,'Orçamento Base'!$D$11:$S$1673,16,FALSE),VLOOKUP($C20,#REF!,16,FALSE)),0) -> 0 | L20: =IF(AND($D20="COMPOSICAO_PROPRIA",'Orçamento Base'!$N20="-"),"14,18%",IF(AND($D20="MERCADO",'Orçamento Base'!$N20="-"),"15,38%",IF(Comparativo!$E$6="Tabela Não Desonerada",VLOOKUP($C20,'Orçamento Base'!$D$11:$S$1673,11,FALSE),VLOOKUP($C20,#REF!,11,FALSE)))) ->  | M20: =IF(Comparativo!$E$6="Tabela Não Desonerada",Encargos!$F$44,Encargos!$D$44) -> 1.1122
A21: ='Identificação-TCE'!$A$13 -> 1 | B21: =IF(AND(G21<>"",H21>0,I21<>"",J21<>0,K21<>0),COUNT($B$11:B20)+1,"") ->  | C21: =IF('Orçamento Base'!$M20=0,0,'Orçamento Base'!$D20) -> 0 | D21: =IF('Orçamento Base'!$F20=Aux.!$G$11,"CONTRATACAO_PUBLICA",IF(VLOOKUP($C21,'Orçamento Base'!$D$11:$G$2116,3,FALSE)="INDEXADO",VLOOKUP(VLOOKUP($C20,'Orçamento Base'!$D$11:$G$2116,2,FALSE),'Index N_DESON.'!$A$9:$B$604,2),VLOOKUP($C21,'Orçamento Base'!$D$11:$G$2116,3,FALSE))) ->  | E21: =VLOOKUP($C21,'Orçamento Base'!$D$11:$S$1673,2,FALSE) ->  | F21: =Dados!$C$7 -> 2022-04-01 | G21: =VLOOKUP($C21,'Orçamento Base'!$D$11:$S$1673,4,FALSE) ->  | H21: =IFERROR(VLOOKUP($C21,'Orçamento Base'!$D$11:$S$1673,6,FALSE),0) -> 0 | I21: =VLOOKUP($C21,'Orçamento Base'!$D$11:$S$1673,5,FALSE) ->  | J21: =IF(Comparativo!$E$6="Tabela Não Desonerada",VLOOKUP($C21,'Orçamento Base'!$D$11:$S$1673,12,FALSE),VLOOKUP($C21,#REF!,12,FALSE)) ->  | K21: =IFERROR(IF(Comparativo!$E$6="Tabela Não Desonerada",VLOOKUP($C21,'Orçamento Base'!$D$11:$S$1673,16,FALSE),VLOOKUP($C21,#REF!,16,FALSE)),0) -> 0 | L21: =IF(AND($D21="COMPOSICAO_PROPRIA",'Orçamento Base'!$N21="-"),"14,18%",IF(AND($D21="MERCADO",'Orçamento Base'!$N21="-"),"15,38%",IF(Comparativo!$E$6="Tabela Não Desonerada",VLOOKUP($C21,'Orçamento Base'!$D$11:$S$1673,11,FALSE),VLOOKUP($C21,#REF!,11,FALSE)))) ->  | M21: =IF(Comparativo!$E$6="Tabela Não Desonerada",Encargos!$F$44,Encargos!$D$44) -> 1.1122
A22: ='Identificação-TCE'!$A$13 -> 1 | B22: =IF(AND(G22<>"",H22>0,I22<>"",J22<>0,K22<>0),COUNT($B$11:B21)+1,"") ->  | C22: =IF('Orçamento Base'!$M21=0,0,'Orçamento Base'!$D21) -> 0 | D22: =IF('Orçamento Base'!$F21=Aux.!$G$11,"CONTRATACAO_PUBLICA",IF(VLOOKUP($C22,'Orçamento Base'!$D$11:$G$2116,3,FALSE)="INDEXADO",VLOOKUP(VLOOKUP($C21,'Orçamento Base'!$D$11:$G$2116,2,FALSE),'Index N_DESON.'!$A$9:$B$604,2),VLOOKUP($C22,'Orçamento Base'!$D$11:$G$2116,3,FALSE))) ->  | E22: =VLOOKUP($C22,'Orçamento Base'!$D$11:$S$1673,2,FALSE) ->  | F22: =Dados!$C$7 -> 2022-04-01 | G22: =VLOOKUP($C22,'Orçamento Base'!$D$11:$S$1673,4,FALSE) ->  | H22: =IFERROR(VLOOKUP($C22,'Orçamento Base'!$D$11:$S$1673,6,FALSE),0) -> 0 | I22: =VLOOKUP($C22,'Orçamento Base'!$D$11:$S$1673,5,FALSE) ->  | J22: =IF(Comparativo!$E$6="Tabela Não Desonerada",VLOOKUP($C22,'Orçamento Base'!$D$11:$S$1673,12,FALSE),VLOOKUP($C22,#REF!,12,FALSE)) ->  | K22: =IFERROR(IF(Comparativo!$E$6="Tabela Não Desonerada",VLOOKUP($C22,'Orçamento Base'!$D$11:$S$1673,16,FALSE),VLOOKUP($C22,#REF!,16,FALSE)),0) -> 0 | L22: =IF(AND($D22="COMPOSICAO_PROPRIA",'Orçamento Base'!$N22="-"),"14,18%",IF(AND($D22="MERCADO",'Orçamento Base'!$N22="-"),"15,38%",IF(Comparativo!$E$6="Tabela Não Desonerada",VLOOKUP($C22,'Orçamento Base'!$D$11:$S$1673,11,FALSE),VLOOKUP($C22,#REF!,11,FALSE)))) ->  | M22: =IF(Comparativo!$E$6="Tabela Não Desonerada",Encargos!$F$44,Encargos!$D$44) -> 1.1122
A23: ='Identificação-TCE'!$A$13 -> 1 | B23: =IF(AND(G23<>"",H23>0,I23<>"",J23<>0,K23<>0),COUNT($B$11:B22)+1,"") ->  | C23: =IF('Orçamento Base'!$M22=0,0,'Orçamento Base'!$D22) -> 0 | D23: =IF('Orçamento Base'!$F22=Aux.!$G$11,"CONTRATACAO_PUBLICA",IF(VLOOKUP($C23,'Orçamento Base'!$D$11:$G$2116,3,FALSE)="INDEXADO",VLOOKUP(VLOOKUP($C22,'Orçamento Base'!$D$11:$G$2116,2,FALSE),'Index N_DESON.'!$A$9:$B$604,2),VLOOKUP($C23,'Orçamento Base'!$D$11:$G$2116,3,FALSE))) ->  | E23: =VLOOKUP($C23,'Orçamento Base'!$D$11:$S$1673,2,FALSE) ->  | F23: =Dados!$C$7 -> 2022-04-01 | G23: =VLOOKUP($C23,'Orçamento Base'!$D$11:$S$1673,4,FALSE) ->  | H23: =IFERROR(VLOOKUP($C23,'Orçamento Base'!$D$11:$S$1673,6,FALSE),0) -> 0 | I23: =VLOOKUP($C23,'Orçamento Base'!$D$11:$S$1673,5,FALSE) ->  | J23: =IF(Comparativo!$E$6="Tabela Não Desonerada",VLOOKUP($C23,'Orçamento Base'!$D$11:$S$1673,12,FALSE),VLOOKUP($C23,#REF!,12,FALSE)) ->  | K23: =IFERROR(IF(Comparativo!$E$6="Tabela Não Desonerada",VLOOKUP($C23,'Orçamento Base'!$D$11:$S$1673,16,FALSE),VLOOKUP($C23,#REF!,16,FALSE)),0) -> 0 | L23: =IF(AND($D23="COMPOSICAO_PROPRIA",'Orçamento Base'!$N23="-"),"14,18%",IF(AND($D23="MERCADO",'Orçamento Base'!$N23="-"),"15,38%",IF(Comparativo!$E$6="Tabela Não Desonerada",VLOOKUP($C23,'Orçamento Base'!$D$11:$S$1673,11,FALSE),VLOOKUP($C23,#REF!,11,FALSE)))) ->  | M23: =IF(Comparativo!$E$6="Tabela Não Desonerada",Encargos!$F$44,Encargos!$D$44) -> 1.1122
A24: ='Identificação-TCE'!$A$13 -> 1 | B24: =IF(AND(G24<>"",H24>0,I24<>"",J24<>0,K24<>0),COUNT($B$11:B23)+1,"") ->  | C24: =IF('Orçamento Base'!$M23=0,0,'Orçamento Base'!$D23) -> 0 | D24: =IF('Orçamento Base'!$F23=Aux.!$G$11,"CONTRATACAO_PUBLICA",IF(VLOOKUP($C24,'Orçamento Base'!$D$11:$G$2116,3,FALSE)="INDEXADO",VLOOKUP(VLOOKUP($C23,'Orçamento Base'!$D$11:$G$2116,2,FALSE),'Index N_DESON.'!$A$9:$B$604,2),VLOOKUP($C24,'Orçamento Base'!$D$11:$G$2116,3,FALSE))) ->  | E24: =VLOOKUP($C24,'Orçamento Base'!$D$11:$S$1673,2,FALSE) ->  | F24: =Dados!$C$7 -> 2022-04-01 | G24: =VLOOKUP($C24,'Orçamento Base'!$D$11:$S$1673,4,FALSE) ->  | H24: =IFERROR(VLOOKUP($C24,'Orçamento Base'!$D$11:$S$1673,6,FALSE),0) -> 0 | I24: =VLOOKUP($C24,'Orçamento Base'!$D$11:$S$1673,5,FALSE) ->  | J24: =IF(Comparativo!$E$6="Tabela Não Desonerada",VLOOKUP($C24,'Orçamento Base'!$D$11:$S$1673,12,FALSE),VLOOKUP($C24,#REF!,12,FALSE)) ->  | K24: =IFERROR(IF(Comparativo!$E$6="Tabela Não Desonerada",VLOOKUP($C24,'Orçamento Base'!$D$11:$S$1673,16,FALSE),VLOOKUP($C24,#REF!,16,FALSE)),0) -> 0 | L24: =IF(AND($D24="COMPOSICAO_PROPRIA",'Orçamento Base'!$N24="-"),"14,18%",IF(AND($D24="MERCADO",'Orçamento Base'!$N24="-"),"15,38%",IF(Comparativo!$E$6="Tabela Não Desonerada",VLOOKUP($C24,'Orçamento Base'!$D$11:$S$1673,11,FALSE),VLOOKUP($C24,#REF!,11,FALSE)))) ->  | M24: =IF(Comparativo!$E$6="Tabela Não Desonerada",Encargos!$F$44,Encargos!$D$44) -> 1.1122
A25: ='Identificação-TCE'!$A$13 -> 1 | B25: =IF(AND(G25<>"",H25>0,I25<>"",J25<>0,K25<>0),COUNT($B$11:B24)+1,"") ->  | C25: =IF('Orçamento Base'!$M24=0,0,'Orçamento Base'!$D24) -> 0 | D25: =IF('Orçamento Base'!$F24=Aux.!$G$11,"CONTRATACAO_PUBLICA",IF(VLOOKUP($C25,'Orçamento Base'!$D$11:$G$2116,3,FALSE)="INDEXADO",VLOOKUP(VLOOKUP($C24,'Orçamento Base'!$D$11:$G$2116,2,FALSE),'Index N_DESON.'!$A$9:$B$604,2),VLOOKUP($C25,'Orçamento Base'!$D$11:$G$2116,3,FALSE))) ->  | E25: =VLOOKUP($C25,'Orçamento Base'!$D$11:$S$1673,2,FALSE) ->  | F25: =Dados!$C$7 -> 2022-04-01 | G25: =VLOOKUP($C25,'Orçamento Base'!$D$11:$S$1673,4,FALSE) ->  | H25: =IFERROR(VLOOKUP($C25,'Orçamento Base'!$D$11:$S$1673,6,FALSE),0) -> 0 | I25: =VLOOKUP($C25,'Orçamento Base'!$D$11:$S$1673,5,FALSE) ->  | J25: =IF(Comparativo!$E$6="Tabela Não Desonerada",VLOOKUP($C25,'Orçamento Base'!$D$11:$S$1673,12,FALSE),VLOOKUP($C25,#REF!,12,FALSE)) ->  | K25: =IFERROR(IF(Comparativo!$E$6="Tabela Não Desonerada",VLOOKUP($C25,'Orçamento Base'!$D$11:$S$1673,16,FALSE),VLOOKUP($C25,#REF!,16,FALSE)),0) -> 0 | L25: =IF(AND($D25="COMPOSICAO_PROPRIA",'Orçamento Base'!$N25="-"),"14,18%",IF(AND($D25="MERCADO",'Orçamento Base'!$N25="-"),"15,38%",IF(Comparativo!$E$6="Tabela Não Desonerada",VLOOKUP($C25,'Orçamento Base'!$D$11:$S$1673,11,FALSE),VLOOKUP($C25,#REF!,11,FALSE)))) ->  | M25: =IF(Comparativo!$E$6="Tabela Não Desonerada",Encargos!$F$44,Encargos!$D$44) -> 1.1122
A26: ='Identificação-TCE'!$A$13 -> 1 | B26: =IF(AND(G26<>"",H26>0,I26<>"",J26<>0,K26<>0),COUNT($B$11:B25)+1,"") ->  | C26: =IF('Orçamento Base'!$M25=0,0,'Orçamento Base'!$D25) -> 0 | D26: =IF('Orçamento Base'!$F25=Aux.!$G$11,"CONTRATACAO_PUBLICA",IF(VLOOKUP($C26,'Orçamento Base'!$D$11:$G$2116,3,FALSE)="INDEXADO",VLOOKUP(VLOOKUP($C25,'Orçamento Base'!$D$11:$G$2116,2,FALSE),'Index N_DESON.'!$A$9:$B$604,2),VLOOKUP($C26,'Orçamento Base'!$D$11:$G$2116,3,FALSE))) ->  | E26: =VLOOKUP($C26,'Orçamento Base'!$D$11:$S$1673,2,FALSE) ->  | F26: =Dados!$C$7 -> 2022-04-01 | G26: =VLOOKUP($C26,'Orçamento Base'!$D$11:$S$1673,4,FALSE) ->  | H26: =IFERROR(VLOOKUP($C26,'Orçamento Base'!$D$11:$S$1673,6,FALSE),0) -> 0 | I26: =VLOOKUP($C26,'Orçamento Base'!$D$11:$S$1673,5,FALSE) ->  | J26: =IF(Comparativo!$E$6="Tabela Não Desonerada",VLOOKUP($C26,'Orçamento Base'!$D$11:$S$1673,12,FALSE),VLOOKUP($C26,#REF!,12,FALSE)) ->  | K26: =IFERROR(IF(Comparativo!$E$6="Tabela Não Desonerada",VLOOKUP($C26,'Orçamento Base'!$D$11:$S$1673,16,FALSE),VLOOKUP($C26,#REF!,16,FALSE)),0) -> 0 | L26: =IF(AND($D26="COMPOSICAO_PROPRIA",'Orçamento Base'!$N26="-"),"14,18%",IF(AND($D26="MERCADO",'Orçamento Base'!$N26="-"),"15,38%",IF(Comparativo!$E$6="Tabela Não Desonerada",VLOOKUP($C26,'Orçamento Base'!$D$11:$S$1673,11,FALSE),VLOOKUP($C26,#REF!,11,FALSE)))) ->  | M26: =IF(Comparativo!$E$6="Tabela Não Desonerada",Encargos!$F$44,Encargos!$D$44) -> 1.1122
A27: ='Identificação-TCE'!$A$13 -> 1 | B27: =IF(AND(G27<>"",H27>0,I27<>"",J27<>0,K27<>0),COUNT($B$11:B26)+1,"") ->  | C27: =IF('Orçamento Base'!$M26=0,0,'Orçamento Base'!$D26) -> 0 | D27: =IF('Orçamento Base'!$F26=Aux.!$G$11,"CONTRATACAO_PUBLICA",IF(VLOOKUP($C27,'Orçamento Base'!$D$11:$G$2116,3,FALSE)="INDEXADO",VLOOKUP(VLOOKUP($C26,'Orçamento Base'!$D$11:$G$2116,2,FALSE),'Index N_DESON.'!$A$9:$B$604,2),VLOOKUP($C27,'Orçamento Base'!$D$11:$G$2116,3,FALSE))) ->  | E27: =VLOOKUP($C27,'Orçamento Base'!$D$11:$S$1673,2,FALSE) ->  | F27: =Dados!$C$7 -> 2022-04-01 | G27: =VLOOKUP($C27,'Orçamento Base'!$D$11:$S$1673,4,FALSE) ->  | H27: =IFERROR(VLOOKUP($C27,'Orçamento Base'!$D$11:$S$1673,6,FALSE),0) -> 0 | I27: =VLOOKUP($C27,'Orçamento Base'!$D$11:$S$1673,5,FALSE) ->  | J27: =IF(Comparativo!$E$6="Tabela Não Desonerada",VLOOKUP($C27,'Orçamento Base'!$D$11:$S$1673,12,FALSE),VLOOKUP($C27,#REF!,12,FALSE)) ->  | K27: =IFERROR(IF(Comparativo!$E$6="Tabela Não Desonerada",VLOOKUP($C27,'Orçamento Base'!$D$11:$S$1673,16,FALSE),VLOOKUP($C27,#REF!,16,FALSE)),0) -> 0 | L27: =IF(AND($D27="COMPOSICAO_PROPRIA",'Orçamento Base'!$N27="-"),"14,18%",IF(AND($D27="MERCADO",'Orçamento Base'!$N27="-"),"15,38%",IF(Comparativo!$E$6="Tabela Não Desonerada",VLOOKUP($C27,'Orçamento Base'!$D$11:$S$1673,11,FALSE),VLOOKUP($C27,#REF!,11,FALSE)))) ->  | M27: =IF(Comparativo!$E$6="Tabela Não Desonerada",Encargos!$F$44,Encargos!$D$44) -> 1.1122
A28: ='Identificação-TCE'!$A$13 -> 1 | B28: =IF(AND(G28<>"",H28>0,I28<>"",J28<>0,K28<>0),COUNT($B$11:B27)+1,"") ->  | C28: =IF('Orçamento Base'!$M27=0,0,'Orçamento Base'!$D27) -> 0 | D28: =IF('Orçamento Base'!$F27=Aux.!$G$11,"CONTRATACAO_PUBLICA",IF(VLOOKUP($C28,'Orçamento Base'!$D$11:$G$2116,3,FALSE)="INDEXADO",VLOOKUP(VLOOKUP($C27,'Orçamento Base'!$D$11:$G$2116,2,FALSE),'Index N_DESON.'!$A$9:$B$604,2),VLOOKUP($C28,'Orçamento Base'!$D$11:$G$2116,3,FALSE))) ->  | E28: =VLOOKUP($C28,'Orçamento Base'!$D$11:$S$1673,2,FALSE) ->  | F28: =Dados!$C$7 -> 2022-04-01 | G28: =VLOOKUP($C28,'Orçamento Base'!$D$11:$S$1673,4,FALSE) ->  | H28: =IFERROR(VLOOKUP($C28,'Orçamento Base'!$D$11:$S$1673,6,FALSE),0) -> 0 | I28: =VLOOKUP($C28,'Orçamento Base'!$D$11:$S$1673,5,FALSE) ->  | J28: =IF(Comparativo!$E$6="Tabela Não Desonerada",VLOOKUP($C28,'Orçamento Base'!$D$11:$S$1673,12,FALSE),VLOOKUP($C28,#REF!,12,FALSE)) ->  | K28: =IFERROR(IF(Comparativo!$E$6="Tabela Não Desonerada",VLOOKUP($C28,'Orçamento Base'!$D$11:$S$1673,16,FALSE),VLOOKUP($C28,#REF!,16,FALSE)),0) -> 0 | L28: =IF(AND($D28="COMPOSICAO_PROPRIA",'Orçamento Base'!$N28="-"),"14,18%",IF(AND($D28="MERCADO",'Orçamento Base'!$N28="-"),"15,38%",IF(Comparativo!$E$6="Tabela Não Desonerada",VLOOKUP($C28,'Orçamento Base'!$D$11:$S$1673,11,FALSE),VLOOKUP($C28,#REF!,11,FALSE)))) ->  | M28: =IF(Comparativo!$E$6="Tabela Não Desonerada",Encargos!$F$44,Encargos!$D$44) -> 1.1122
A29: ='Identificação-TCE'!$A$13 -> 1 | B29: =IF(AND(G29<>"",H29>0,I29<>"",J29<>0,K29<>0),COUNT($B$11:B28)+1,"") ->  | C29: =IF('Orçamento Base'!$M28=0,0,'Orçamento Base'!$D28) -> 0 | D29: =IF('Orçamento Base'!$F28=Aux.!$G$11,"CONTRATACAO_PUBLICA",IF(VLOOKUP($C29,'Orçamento Base'!$D$11:$G$2116,3,FALSE)="INDEXADO",VLOOKUP(VLOOKUP($C28,'Orçamento Base'!$D$11:$G$2116,2,FALSE),'Index N_DESON.'!$A$9:$B$604,2),VLOOKUP($C29,'Orçamento Base'!$D$11:$G$2116,3,FALSE))) ->  | E29: =VLOOKUP($C29,'Orçamento Base'!$D$11:$S$1673,2,FALSE) ->  | F29: =Dados!$C$7 -> 2022-04-01 | G29: =VLOOKUP($C29,'Orçamento Base'!$D$11:$S$1673,4,FALSE) ->  | H29: =IFERROR(VLOOKUP($C29,'Orçamento Base'!$D$11:$S$1673,6,FALSE),0) -> 0 | I29: =VLOOKUP($C29,'Orçamento Base'!$D$11:$S$1673,5,FALSE) ->  | J29: =IF(Comparativo!$E$6="Tabela Não Desonerada",VLOOKUP($C29,'Orçamento Base'!$D$11:$S$1673,12,FALSE),VLOOKUP($C29,#REF!,12,FALSE)) ->  | K29: =IFERROR(IF(Comparativo!$E$6="Tabela Não Desonerada",VLOOKUP($C29,'Orçamento Base'!$D$11:$S$1673,16,FALSE),VLOOKUP($C29,#REF!,16,FALSE)),0) -> 0 | L29: =IF(AND($D29="COMPOSICAO_PROPRIA",'Orçamento Base'!$N29="-"),"14,18%",IF(AND($D29="MERCADO",'Orçamento Base'!$N29="-"),"15,38%",IF(Comparativo!$E$6="Tabela Não Desonerada",VLOOKUP($C29,'Orçamento Base'!$D$11:$S$1673,11,FALSE),VLOOKUP($C29,#REF!,11,FALSE)))) ->  | M29: =IF(Comparativo!$E$6="Tabela Não Desonerada",Encargos!$F$44,Encargos!$D$44) -> 1.1122
A30: ='Identificação-TCE'!$A$13 -> 1 | B30: =IF(AND(G30<>"",H30>0,I30<>"",J30<>0,K30<>0),COUNT($B$11:B29)+1,"") ->  | C30: =IF('Orçamento Base'!$M29=0,0,'Orçamento Base'!$D29) -> 0 | D30: =IF('Orçamento Base'!$F29=Aux.!$G$11,"CONTRATACAO_PUBLICA",IF(VLOOKUP($C30,'Orçamento Base'!$D$11:$G$2116,3,FALSE)="INDEXADO",VLOOKUP(VLOOKUP($C29,'Orçamento Base'!$D$11:$G$2116,2,FALSE),'Index N_DESON.'!$A$9:$B$604,2),VLOOKUP($C30,'Orçamento Base'!$D$11:$G$2116,3,FALSE))) ->  | E30: =VLOOKUP($C30,'Orçamento Base'!$D$11:$S$1673,2,FALSE) ->  | F30: =Dados!$C$7 -> 2022-04-01 | G30: =VLOOKUP($C30,'Orçamento Base'!$D$11:$S$1673,4,FALSE) ->  | H30: =IFERROR(VLOOKUP($C30,'Orçamento Base'!$D$11:$S$1673,6,FALSE),0) -> 0 | I30: =VLOOKUP($C30,'Orçamento Base'!$D$11:$S$1673,5,FALSE) ->  | J30: =IF(Comparativo!$E$6="Tabela Não Desonerada",VLOOKUP($C30,'Orçamento Base'!$D$11:$S$1673,12,FALSE),VLOOKUP($C30,#REF!,12,FALSE)) ->  | K30: =IFERROR(IF(Comparativo!$E$6="Tabela Não Desonerada",VLOOKUP($C30,'Orçamento Base'!$D$11:$S$1673,16,FALSE),VLOOKUP($C30,#REF!,16,FALSE)),0) -> 0 | L30: =IF(AND($D30="COMPOSICAO_PROPRIA",'Orçamento Base'!$N30="-"),"14,18%",IF(AND($D30="MERCADO",'Orçamento Base'!$N30="-"),"15,38%",IF(Comparativo!$E$6="Tabela Não Desonerada",VLOOKUP($C30,'Orçamento Base'!$D$11:$S$1673,11,FALSE),VLOOKUP($C30,#REF!,11,FALSE)))) ->  | M30: =IF(Comparativo!$E$6="Tabela Não Desonerada",Encargos!$F$44,Encargos!$D$44) -> 1.1122
A31: ='Identificação-TCE'!$A$13 -> 1 | B31: =IF(AND(G31<>"",H31>0,I31<>"",J31<>0,K31<>0),COUNT($B$11:B30)+1,"") ->  | C31: =IF('Orçamento Base'!$M30=0,0,'Orçamento Base'!$D30) -> 0 | D31: =IF('Orçamento Base'!$F30=Aux.!$G$11,"CONTRATACAO_PUBLICA",IF(VLOOKUP($C31,'Orçamento Base'!$D$11:$G$2116,3,FALSE)="INDEXADO",VLOOKUP(VLOOKUP($C30,'Orçamento Base'!$D$11:$G$2116,2,FALSE),'Index N_DESON.'!$A$9:$B$604,2),VLOOKUP($C31,'Orçamento Base'!$D$11:$G$2116,3,FALSE))) ->  | E31: =VLOOKUP($C31,'Orçamento Base'!$D$11:$S$1673,2,FALSE) ->  | F31: =Dados!$C$7 -> 2022-04-01 | G31: =VLOOKUP($C31,'Orçamento Base'!$D$11:$S$1673,4,FALSE) ->  | H31: =IFERROR(VLOOKUP($C31,'Orçamento Base'!$D$11:$S$1673,6,FALSE),0) -> 0 | I31: =VLOOKUP($C31,'Orçamento Base'!$D$11:$S$1673,5,FALSE) ->  | J31: =IF(Comparativo!$E$6="Tabela Não Desonerada",VLOOKUP($C31,'Orçamento Base'!$D$11:$S$1673,12,FALSE),VLOOKUP($C31,#REF!,12,FALSE)) ->  | K31: =IFERROR(IF(Comparativo!$E$6="Tabela Não Desonerada",VLOOKUP($C31,'Orçamento Base'!$D$11:$S$1673,16,FALSE),VLOOKUP($C31,#REF!,16,FALSE)),0) -> 0 | L31: =IF(AND($D31="COMPOSICAO_PROPRIA",'Orçamento Base'!$N31="-"),"14,18%",IF(AND($D31="MERCADO",'Orçamento Base'!$N31="-"),"15,38%",IF(Comparativo!$E$6="Tabela Não Desonerada",VLOOKUP($C31,'Orçamento Base'!$D$11:$S$1673,11,FALSE),VLOOKUP($C31,#REF!,11,FALSE)))) ->  | M31: =IF(Comparativo!$E$6="Tabela Não Desonerada",Encargos!$F$44,Encargos!$D$44) -> 1.1122
A32: ='Identificação-TCE'!$A$13 -> 1 | B32: =IF(AND(G32<>"",H32>0,I32<>"",J32<>0,K32<>0),COUNT($B$11:B31)+1,"") ->  | C32: =IF('Orçamento Base'!$M31=0,0,'Orçamento Base'!$D31) -> 0 | D32: =IF('Orçamento Base'!$F31=Aux.!$G$11,"CONTRATACAO_PUBLICA",IF(VLOOKUP($C32,'Orçamento Base'!$D$11:$G$2116,3,FALSE)="INDEXADO",VLOOKUP(VLOOKUP($C31,'Orçamento Base'!$D$11:$G$2116,2,FALSE),'Index N_DESON.'!$A$9:$B$604,2),VLOOKUP($C32,'Orçamento Base'!$D$11:$G$2116,3,FALSE))) ->  | E32: =VLOOKUP($C32,'Orçamento Base'!$D$11:$S$1673,2,FALSE) ->  | F32: =Dados!$C$7 -> 2022-04-01 | G32: =VLOOKUP($C32,'Orçamento Base'!$D$11:$S$1673,4,FALSE) ->  | H32: =IFERROR(VLOOKUP($C32,'Orçamento Base'!$D$11:$S$1673,6,FALSE),0) -> 0 | I32: =VLOOKUP($C32,'Orçamento Base'!$D$11:$S$1673,5,FALSE) ->  | J32: =IF(Comparativo!$E$6="Tabela Não Desonerada",VLOOKUP($C32,'Orçamento Base'!$D$11:$S$1673,12,FALSE),VLOOKUP($C32,#REF!,12,FALSE)) ->  | K32: =IFERROR(IF(Comparativo!$E$6="Tabela Não Desonerada",VLOOKUP($C32,'Orçamento Base'!$D$11:$S$1673,16,FALSE),VLOOKUP($C32,#REF!,16,FALSE)),0) -> 0 | L32: =IF(AND($D32="COMPOSICAO_PROPRIA",'Orçamento Base'!$N32="-"),"14,18%",IF(AND($D32="MERCADO",'Orçamento Base'!$N32="-"),"15,38%",IF(Comparativo!$E$6="Tabela Não Desonerada",VLOOKUP($C32,'Orçamento Base'!$D$11:$S$1673,11,FALSE),VLOOKUP($C32,#REF!,11,FALSE)))) ->  | M32: =IF(Comparativo!$E$6="Tabela Não Desonerada",Encargos!$F$44,Encargos!$D$44) -> 1.1122
A33: ='Identificação-TCE'!$A$13 -> 1 | B33: =IF(AND(G33<>"",H33>0,I33<>"",J33<>0,K33<>0),COUNT($B$11:B32)+1,"") ->  | C33: =IF('Orçamento Base'!$M32=0,0,'Orçamento Base'!$D32) -> 0 | D33: =IF('Orçamento Base'!$F32=Aux.!$G$11,"CONTRATACAO_PUBLICA",IF(VLOOKUP($C33,'Orçamento Base'!$D$11:$G$2116,3,FALSE)="INDEXADO",VLOOKUP(VLOOKUP($C32,'Orçamento Base'!$D$11:$G$2116,2,FALSE),'Index N_DESON.'!$A$9:$B$604,2),VLOOKUP($C33,'Orçamento Base'!$D$11:$G$2116,3,FALSE))) ->  | E33: =VLOOKUP($C33,'Orçamento Base'!$D$11:$S$1673,2,FALSE) ->  | F33: =Dados!$C$7 -> 2022-04-01 | G33: =VLOOKUP($C33,'Orçamento Base'!$D$11:$S$1673,4,FALSE) ->  | H33: =IFERROR(VLOOKUP($C33,'Orçamento Base'!$D$11:$S$1673,6,FALSE),0) -> 0 | I33: =VLOOKUP($C33,'Orçamento Base'!$D$11:$S$1673,5,FALSE) ->  | J33: =IF(Comparativo!$E$6="Tabela Não Desonerada",VLOOKUP($C33,'Orçamento Base'!$D$11:$S$1673,12,FALSE),VLOOKUP($C33,#REF!,12,FALSE)) ->  | K33: =IFERROR(IF(Comparativo!$E$6="Tabela Não Desonerada",VLOOKUP($C33,'Orçamento Base'!$D$11:$S$1673,16,FALSE),VLOOKUP($C33,#REF!,16,FALSE)),0) -> 0 | L33: =IF(AND($D33="COMPOSICAO_PROPRIA",'Orçamento Base'!$N33="-"),"14,18%",IF(AND($D33="MERCADO",'Orçamento Base'!$N33="-"),"15,38%",IF(Comparativo!$E$6="Tabela Não Desonerada",VLOOKUP($C33,'Orçamento Base'!$D$11:$S$1673,11,FALSE),VLOOKUP($C33,#REF!,11,FALSE)))) ->  | M33: =IF(Comparativo!$E$6="Tabela Não Desonerada",Encargos!$F$44,Encargos!$D$44) -> 1.1122
A34: ='Identificação-TCE'!$A$13 -> 1 | B34: =IF(AND(G34<>"",H34>0,I34<>"",J34<>0,K34<>0),COUNT($B$11:B33)+1,"") ->  | C34: =IF('Orçamento Base'!$M33=0,0,'Orçamento Base'!$D33) -> 0 | D34: =IF('Orçamento Base'!$F33=Aux.!$G$11,"CONTRATACAO_PUBLICA",IF(VLOOKUP($C34,'Orçamento Base'!$D$11:$G$2116,3,FALSE)="INDEXADO",VLOOKUP(VLOOKUP($C33,'Orçamento Base'!$D$11:$G$2116,2,FALSE),'Index N_DESON.'!$A$9:$B$604,2),VLOOKUP($C34,'Orçamento Base'!$D$11:$G$2116,3,FALSE))) ->  | E34: =VLOOKUP($C34,'Orçamento Base'!$D$11:$S$1673,2,FALSE) ->  | F34: =Dados!$C$7 -> 2022-04-01 | G34: =VLOOKUP($C34,'Orçamento Base'!$D$11:$S$1673,4,FALSE) ->  | H34: =IFERROR(VLOOKUP($C34,'Orçamento Base'!$D$11:$S$1673,6,FALSE),0) -> 0 | I34: =VLOOKUP($C34,'Orçamento Base'!$D$11:$S$1673,5,FALSE) ->  | J34: =IF(Comparativo!$E$6="Tabela Não Desonerada",VLOOKUP($C34,'Orçamento Base'!$D$11:$S$1673,12,FALSE),VLOOKUP($C34,#REF!,12,FALSE)) ->  | K34: =IFERROR(IF(Comparativo!$E$6="Tabela Não Desonerada",VLOOKUP($C34,'Orçamento Base'!$D$11:$S$1673,16,FALSE),VLOOKUP($C34,#REF!,16,FALSE)),0) -> 0 | L34: =IF(AND($D34="COMPOSICAO_PROPRIA",'Orçamento Base'!$N34="-"),"14,18%",IF(AND($D34="MERCADO",'Orçamento Base'!$N34="-"),"15,38%",IF(Comparativo!$E$6="Tabela Não Desonerada",VLOOKUP($C34,'Orçamento Base'!$D$11:$S$1673,11,FALSE),VLOOKUP($C34,#REF!,11,FALSE)))) ->  | M34: =IF(Comparativo!$E$6="Tabela Não Desonerada",Encargos!$F$44,Encargos!$D$44) -> 1.1122
A35: ='Identificação-TCE'!$A$13 -> 1 | B35: =IF(AND(G35<>"",H35>0,I35<>"",J35<>0,K35<>0),COUNT($B$11:B34)+1,"") ->  | C35: =IF('Orçamento Base'!$M34=0,0,'Orçamento Base'!$D34) -> 0 | D35: =IF('Orçamento Base'!$F34=Aux.!$G$11,"CONTRATACAO_PUBLICA",IF(VLOOKUP($C35,'Orçamento Base'!$D$11:$G$2116,3,FALSE)="INDEXADO",VLOOKUP(VLOOKUP($C34,'Orçamento Base'!$D$11:$G$2116,2,FALSE),'Index N_DESON.'!$A$9:$B$604,2),VLOOKUP($C35,'Orçamento Base'!$D$11:$G$2116,3,FALSE))) ->  | E35: =VLOOKUP($C35,'Orçamento Base'!$D$11:$S$1673,2,FALSE) ->  | F35: =Dados!$C$7 -> 2022-04-01 | G35: =VLOOKUP($C35,'Orçamento Base'!$D$11:$S$1673,4,FALSE) ->  | H35: =IFERROR(VLOOKUP($C35,'Orçamento Base'!$D$11:$S$1673,6,FALSE),0) -> 0 | I35: =VLOOKUP($C35,'Orçamento Base'!$D$11:$S$1673,5,FALSE) ->  | J35: =IF(Comparativo!$E$6="Tabela Não Desonerada",VLOOKUP($C35,'Orçamento Base'!$D$11:$S$1673,12,FALSE),VLOOKUP($C35,#REF!,12,FALSE)) ->  | K35: =IFERROR(IF(Comparativo!$E$6="Tabela Não Desonerada",VLOOKUP($C35,'Orçamento Base'!$D$11:$S$1673,16,FALSE),VLOOKUP($C35,#REF!,16,FALSE)),0) -> 0 | L35: =IF(AND($D35="COMPOSICAO_PROPRIA",'Orçamento Base'!$N35="-"),"14,18%",IF(AND($D35="MERCADO",'Orçamento Base'!$N35="-"),"15,38%",IF(Comparativo!$E$6="Tabela Não Desonerada",VLOOKUP($C35,'Orçamento Base'!$D$11:$S$1673,11,FALSE),VLOOKUP($C35,#REF!,11,FALSE)))) ->  | M35: =IF(Comparativo!$E$6="Tabela Não Desonerada",Encargos!$F$44,Encargos!$D$44) -> 1.1122
A36: ='Identificação-TCE'!$A$13 -> 1 | B36: =IF(AND(G36<>"",H36>0,I36<>"",J36<>0,K36<>0),COUNT($B$11:B35)+1,"") ->  | C36: =IF('Orçamento Base'!$M35=0,0,'Orçamento Base'!$D35) -> 0 | D36: =IF('Orçamento Base'!$F35=Aux.!$G$11,"CONTRATACAO_PUBLICA",IF(VLOOKUP($C36,'Orçamento Base'!$D$11:$G$2116,3,FALSE)="INDEXADO",VLOOKUP(VLOOKUP($C35,'Orçamento Base'!$D$11:$G$2116,2,FALSE),'Index N_DESON.'!$A$9:$B$604,2),VLOOKUP($C36,'Orçamento Base'!$D$11:$G$2116,3,FALSE))) ->  | E36: =VLOOKUP($C36,'Orçamento Base'!$D$11:$S$1673,2,FALSE) ->  | F36: =Dados!$C$7 -> 2022-04-01 | G36: =VLOOKUP($C36,'Orçamento Base'!$D$11:$S$1673,4,FALSE) ->  | H36: =IFERROR(VLOOKUP($C36,'Orçamento Base'!$D$11:$S$1673,6,FALSE),0) -> 0 | I36: =VLOOKUP($C36,'Orçamento Base'!$D$11:$S$1673,5,FALSE) ->  | J36: =IF(Comparativo!$E$6="Tabela Não Desonerada",VLOOKUP($C36,'Orçamento Base'!$D$11:$S$1673,12,FALSE),VLOOKUP($C36,#REF!,12,FALSE)) ->  | K36: =IFERROR(IF(Comparativo!$E$6="Tabela Não Desonerada",VLOOKUP($C36,'Orçamento Base'!$D$11:$S$1673,16,FALSE),VLOOKUP($C36,#REF!,16,FALSE)),0) -> 0 | L36: =IF(AND($D36="COMPOSICAO_PROPRIA",'Orçamento Base'!$N36="-"),"14,18%",IF(AND($D36="MERCADO",'Orçamento Base'!$N36="-"),"15,38%",IF(Comparativo!$E$6="Tabela Não Desonerada",VLOOKUP($C36,'Orçamento Base'!$D$11:$S$1673,11,FALSE),VLOOKUP($C36,#REF!,11,FALSE)))) ->  | M36: =IF(Comparativo!$E$6="Tabela Não Desonerada",Encargos!$F$44,Encargos!$D$44) -> 1.1122
A37: ='Identificação-TCE'!$A$13 -> 1 | B37: =IF(AND(G37<>"",H37>0,I37<>"",J37<>0,K37<>0),COUNT($B$11:B36)+1,"") ->  | C37: =IF('Orçamento Base'!$M36=0,0,'Orçamento Base'!$D36) -> 0 | D37: =IF('Orçamento Base'!$F36=Aux.!$G$11,"CONTRATACAO_PUBLICA",IF(VLOOKUP($C37,'Orçamento Base'!$D$11:$G$2116,3,FALSE)="INDEXADO",VLOOKUP(VLOOKUP($C36,'Orçamento Base'!$D$11:$G$2116,2,FALSE),'Index N_DESON.'!$A$9:$B$604,2),VLOOKUP($C37,'Orçamento Base'!$D$11:$G$2116,3,FALSE))) ->  | E37: =VLOOKUP($C37,'Orçamento Base'!$D$11:$S$1673,2,FALSE) ->  | F37: =Dados!$C$7 -> 2022-04-01 | G37: =VLOOKUP($C37,'Orçamento Base'!$D$11:$S$1673,4,FALSE) ->  | H37: =IFERROR(VLOOKUP($C37,'Orçamento Base'!$D$11:$S$1673,6,FALSE),0) -> 0 | I37: =VLOOKUP($C37,'Orçamento Base'!$D$11:$S$1673,5,FALSE) ->  | J37: =IF(Comparativo!$E$6="Tabela Não Desonerada",VLOOKUP($C37,'Orçamento Base'!$D$11:$S$1673,12,FALSE),VLOOKUP($C37,#REF!,12,FALSE)) ->  | K37: =IFERROR(IF(Comparativo!$E$6="Tabela Não Desonerada",VLOOKUP($C37,'Orçamento Base'!$D$11:$S$1673,16,FALSE),VLOOKUP($C37,#REF!,16,FALSE)),0) -> 0 | L37: =IF(AND($D37="COMPOSICAO_PROPRIA",'Orçamento Base'!$N37="-"),"14,18%",IF(AND($D37="MERCADO",'Orçamento Base'!$N37="-"),"15,38%",IF(Comparativo!$E$6="Tabela Não Desonerada",VLOOKUP($C37,'Orçamento Base'!$D$11:$S$1673,11,FALSE),VLOOKUP($C37,#REF!,11,FALSE)))) ->  | M37: =IF(Comparativo!$E$6="Tabela Não Desonerada",Encargos!$F$44,Encargos!$D$44) -> 1.1122
A38: ='Identificação-TCE'!$A$13 -> 1 | B38: =IF(AND(G38<>"",H38>0,I38<>"",J38<>0,K38<>0),COUNT($B$11:B37)+1,"") ->  | C38: =IF('Orçamento Base'!$M37=0,0,'Orçamento Base'!$D37) -> 0 | D38: =IF('Orçamento Base'!$F37=Aux.!$G$11,"CONTRATACAO_PUBLICA",IF(VLOOKUP($C38,'Orçamento Base'!$D$11:$G$2116,3,FALSE)="INDEXADO",VLOOKUP(VLOOKUP($C37,'Orçamento Base'!$D$11:$G$2116,2,FALSE),'Index N_DESON.'!$A$9:$B$604,2),VLOOKUP($C38,'Orçamento Base'!$D$11:$G$2116,3,FALSE))) ->  | E38: =VLOOKUP($C38,'Orçamento Base'!$D$11:$S$1673,2,FALSE) ->  | F38: =Dados!$C$7 -> 2022-04-01 | G38: =VLOOKUP($C38,'Orçamento Base'!$D$11:$S$1673,4,FALSE) ->  | H38: =IFERROR(VLOOKUP($C38,'Orçamento Base'!$D$11:$S$1673,6,FALSE),0) -> 0 | I38: =VLOOKUP($C38,'Orçamento Base'!$D$11:$S$1673,5,FALSE) ->  | J38: =IF(Comparativo!$E$6="Tabela Não Desonerada",VLOOKUP($C38,'Orçamento Base'!$D$11:$S$1673,12,FALSE),VLOOKUP($C38,#REF!,12,FALSE)) ->  | K38: =IFERROR(IF(Comparativo!$E$6="Tabela Não Desonerada",VLOOKUP($C38,'Orçamento Base'!$D$11:$S$1673,16,FALSE),VLOOKUP($C38,#REF!,16,FALSE)),0) -> 0 | L38: =IF(AND($D38="COMPOSICAO_PROPRIA",'Orçamento Base'!$N38="-"),"14,18%",IF(AND($D38="MERCADO",'Orçamento Base'!$N38="-"),"15,38%",IF(Comparativo!$E$6="Tabela Não Desonerada",VLOOKUP($C38,'Orçamento Base'!$D$11:$S$1673,11,FALSE),VLOOKUP($C38,#REF!,11,FALSE)))) ->  | M38: =IF(Comparativo!$E$6="Tabela Não Desonerada",Encargos!$F$44,Encargos!$D$44) -> 1.1122
A39: ='Identificação-TCE'!$A$13 -> 1 | B39: =IF(AND(G39<>"",H39>0,I39<>"",J39<>0,K39<>0),COUNT($B$11:B38)+1,"") ->  | C39: =IF('Orçamento Base'!$M38=0,0,'Orçamento Base'!$D38) -> 0 | D39: =IF('Orçamento Base'!$F38=Aux.!$G$11,"CONTRATACAO_PUBLICA",IF(VLOOKUP($C39,'Orçamento Base'!$D$11:$G$2116,3,FALSE)="INDEXADO",VLOOKUP(VLOOKUP($C38,'Orçamento Base'!$D$11:$G$2116,2,FALSE),'Index N_DESON.'!$A$9:$B$604,2),VLOOKUP($C39,'Orçamento Base'!$D$11:$G$2116,3,FALSE))) ->  | E39: =VLOOKUP($C39,'Orçamento Base'!$D$11:$S$1673,2,FALSE) ->  | F39: =Dados!$C$7 -> 2022-04-01 | G39: =VLOOKUP($C39,'Orçamento Base'!$D$11:$S$1673,4,FALSE) ->  | H39: =IFERROR(VLOOKUP($C39,'Orçamento Base'!$D$11:$S$1673,6,FALSE),0) -> 0 | I39: =VLOOKUP($C39,'Orçamento Base'!$D$11:$S$1673,5,FALSE) ->  | J39: =IF(Comparativo!$E$6="Tabela Não Desonerada",VLOOKUP($C39,'Orçamento Base'!$D$11:$S$1673,12,FALSE),VLOOKUP($C39,#REF!,12,FALSE)) ->  | K39: =IFERROR(IF(Comparativo!$E$6="Tabela Não Desonerada",VLOOKUP($C39,'Orçamento Base'!$D$11:$S$1673,16,FALSE),VLOOKUP($C39,#REF!,16,FALSE)),0) -> 0 | L39: =IF(AND($D39="COMPOSICAO_PROPRIA",'Orçamento Base'!$N39="-"),"14,18%",IF(AND($D39="MERCADO",'Orçamento Base'!$N39="-"),"15,38%",IF(Comparativo!$E$6="Tabela Não Desonerada",VLOOKUP($C39,'Orçamento Base'!$D$11:$S$1673,11,FALSE),VLOOKUP($C39,#REF!,11,FALSE)))) ->  | M39: =IF(Comparativo!$E$6="Tabela Não Desonerada",Encargos!$F$44,Encargos!$D$44) -> 1.1122
A40: ='Identificação-TCE'!$A$13 -> 1 | B40: =IF(AND(G40<>"",H40>0,I40<>"",J40<>0,K40<>0),COUNT($B$11:B39)+1,"") ->  | C40: =IF('Orçamento Base'!$M39=0,0,'Orçamento Base'!$D39) -> 0 | D40: =IF('Orçamento Base'!$F39=Aux.!$G$11,"CONTRATACAO_PUBLICA",IF(VLOOKUP($C40,'Orçamento Base'!$D$11:$G$2116,3,FALSE)="INDEXADO",VLOOKUP(VLOOKUP($C39,'Orçamento Base'!$D$11:$G$2116,2,FALSE),'Index N_DESON.'!$A$9:$B$604,2),VLOOKUP($C40,'Orçamento Base'!$D$11:$G$2116,3,FALSE))) ->  | E40: =VLOOKUP($C40,'Orçamento Base'!$D$11:$S$1673,2,FALSE) ->  | F40: =Dados!$C$7 -> 2022-04-01 | G40: =VLOOKUP($C40,'Orçamento Base'!$D$11:$S$1673,4,FALSE) ->  | H40: =IFERROR(VLOOKUP($C40,'Orçamento Base'!$D$11:$S$1673,6,FALSE),0) -> 0 | I40: =VLOOKUP($C40,'Orçamento Base'!$D$11:$S$1673,5,FALSE) ->  | J40: =IF(Comparativo!$E$6="Tabela Não Desonerada",VLOOKUP($C40,'Orçamento Base'!$D$11:$S$1673,12,FALSE),VLOOKUP($C40,#REF!,12,FALSE)) ->  | K40: =IFERROR(IF(Comparativo!$E$6="Tabela Não Desonerada",VLOOKUP($C40,'Orçamento Base'!$D$11:$S$1673,16,FALSE),VLOOKUP($C40,#REF!,16,FALSE)),0) -> 0 | L40: =IF(AND($D40="COMPOSICAO_PROPRIA",'Orçamento Base'!$N40="-"),"14,18%",IF(AND($D40="MERCADO",'Orçamento Base'!$N40="-"),"15,38%",IF(Comparativo!$E$6="Tabela Não Desonerada",VLOOKUP($C40,'Orçamento Base'!$D$11:$S$1673,11,FALSE),VLOOKUP($C40,#REF!,11,FALSE)))) ->  | M40: =IF(Comparativo!$E$6="Tabela Não Desonerada",Encargos!$F$44,Encargos!$D$44) -> 1.1122
A41: ='Identificação-TCE'!$A$13 -> 1 | B41: =IF(AND(G41<>"",H41>0,I41<>"",J41<>0,K41<>0),COUNT($B$11:B40)+1,"") ->  | C41: =IF('Orçamento Base'!$M40=0,0,'Orçamento Base'!$D40) -> 0 | D41: =IF('Orçamento Base'!$F40=Aux.!$G$11,"CONTRATACAO_PUBLICA",IF(VLOOKUP($C41,'Orçamento Base'!$D$11:$G$2116,3,FALSE)="INDEXADO",VLOOKUP(VLOOKUP($C40,'Orçamento Base'!$D$11:$G$2116,2,FALSE),'Index N_DESON.'!$A$9:$B$604,2),VLOOKUP($C41,'Orçamento Base'!$D$11:$G$2116,3,FALSE))) ->  | E41: =VLOOKUP($C41,'Orçamento Base'!$D$11:$S$1673,2,FALSE) ->  | F41: =Dados!$C$7 -> 2022-04-01 | G41: =VLOOKUP($C41,'Orçamento Base'!$D$11:$S$1673,4,FALSE) ->  | H41: =IFERROR(VLOOKUP($C41,'Orçamento Base'!$D$11:$S$1673,6,FALSE),0) -> 0 | I41: =VLOOKUP($C41,'Orçamento Base'!$D$11:$S$1673,5,FALSE) ->  | J41: =IF(Comparativo!$E$6="Tabela Não Desonerada",VLOOKUP($C41,'Orçamento Base'!$D$11:$S$1673,12,FALSE),VLOOKUP($C41,#REF!,12,FALSE)) ->  | K41: =IFERROR(IF(Comparativo!$E$6="Tabela Não Desonerada",VLOOKUP($C41,'Orçamento Base'!$D$11:$S$1673,16,FALSE),VLOOKUP($C41,#REF!,16,FALSE)),0) -> 0 | L41: =IF(AND($D41="COMPOSICAO_PROPRIA",'Orçamento Base'!$N41="-"),"14,18%",IF(AND($D41="MERCADO",'Orçamento Base'!$N41="-"),"15,38%",IF(Comparativo!$E$6="Tabela Não Desonerada",VLOOKUP($C41,'Orçamento Base'!$D$11:$S$1673,11,FALSE),VLOOKUP($C41,#REF!,11,FALSE)))) ->  | M41: =IF(Comparativo!$E$6="Tabela Não Desonerada",Encargos!$F$44,Encargos!$D$44) -> 1.1122
A42: ='Identificação-TCE'!$A$13 -> 1 | B42: =IF(AND(G42<>"",H42>0,I42<>"",J42<>0,K42<>0),COUNT($B$11:B41)+1,"") ->  | C42: =IF('Orçamento Base'!$M41=0,0,'Orçamento Base'!$D41) -> 0 | D42: =IF('Orçamento Base'!$F41=Aux.!$G$11,"CONTRATACAO_PUBLICA",IF(VLOOKUP($C42,'Orçamento Base'!$D$11:$G$2116,3,FALSE)="INDEXADO",VLOOKUP(VLOOKUP($C41,'Orçamento Base'!$D$11:$G$2116,2,FALSE),'Index N_DESON.'!$A$9:$B$604,2),VLOOKUP($C42,'Orçamento Base'!$D$11:$G$2116,3,FALSE))) ->  | E42: =VLOOKUP($C42,'Orçamento Base'!$D$11:$S$1673,2,FALSE) ->  | F42: =Dados!$C$7 -> 2022-04-01 | G42: =VLOOKUP($C42,'Orçamento Base'!$D$11:$S$1673,4,FALSE) ->  | H42: =IFERROR(VLOOKUP($C42,'Orçamento Base'!$D$11:$S$1673,6,FALSE),0) -> 0 | I42: =VLOOKUP($C42,'Orçamento Base'!$D$11:$S$1673,5,FALSE) ->  | J42: =IF(Comparativo!$E$6="Tabela Não Desonerada",VLOOKUP($C42,'Orçamento Base'!$D$11:$S$1673,12,FALSE),VLOOKUP($C42,#REF!,12,FALSE)) ->  | K42: =IFERROR(IF(Comparativo!$E$6="Tabela Não Desonerada",VLOOKUP($C42,'Orçamento Base'!$D$11:$S$1673,16,FALSE),VLOOKUP($C42,#REF!,16,FALSE)),0) -> 0 | L42: =IF(AND($D42="COMPOSICAO_PROPRIA",'Orçamento Base'!$N42="-"),"14,18%",IF(AND($D42="MERCADO",'Orçamento Base'!$N42="-"),"15,38%",IF(Comparativo!$E$6="Tabela Não Desonerada",VLOOKUP($C42,'Orçamento Base'!$D$11:$S$1673,11,FALSE),VLOOKUP($C42,#REF!,11,FALSE)))) ->  | M42: =IF(Comparativo!$E$6="Tabela Não Desonerada",Encargos!$F$44,Encargos!$D$44) -> 1.1122
A43: ='Identificação-TCE'!$A$13 -> 1 | B43: =IF(AND(G43<>"",H43>0,I43<>"",J43<>0,K43<>0),COUNT($B$11:B42)+1,"") ->  | C43: =IF('Orçamento Base'!$M42=0,0,'Orçamento Base'!$D42) -> 0 | D43: =IF('Orçamento Base'!$F42=Aux.!$G$11,"CONTRATACAO_PUBLICA",IF(VLOOKUP($C43,'Orçamento Base'!$D$11:$G$2116,3,FALSE)="INDEXADO",VLOOKUP(VLOOKUP($C42,'Orçamento Base'!$D$11:$G$2116,2,FALSE),'Index N_DESON.'!$A$9:$B$604,2),VLOOKUP($C43,'Orçamento Base'!$D$11:$G$2116,3,FALSE))) ->  | E43: =VLOOKUP($C43,'Orçamento Base'!$D$11:$S$1673,2,FALSE) ->  | F43: =Dados!$C$7 -> 2022-04-01 | G43: =VLOOKUP($C43,'Orçamento Base'!$D$11:$S$1673,4,FALSE) ->  | H43: =IFERROR(VLOOKUP($C43,'Orçamento Base'!$D$11:$S$1673,6,FALSE),0) -> 0 | I43: =VLOOKUP($C43,'Orçamento Base'!$D$11:$S$1673,5,FALSE) ->  | J43: =IF(Comparativo!$E$6="Tabela Não Desonerada",VLOOKUP($C43,'Orçamento Base'!$D$11:$S$1673,12,FALSE),VLOOKUP($C43,#REF!,12,FALSE)) ->  | K43: =IFERROR(IF(Comparativo!$E$6="Tabela Não Desonerada",VLOOKUP($C43,'Orçamento Base'!$D$11:$S$1673,16,FALSE),VLOOKUP($C43,#REF!,16,FALSE)),0) -> 0 | L43: =IF(AND($D43="COMPOSICAO_PROPRIA",'Orçamento Base'!$N43="-"),"14,18%",IF(AND($D43="MERCADO",'Orçamento Base'!$N43="-"),"15,38%",IF(Comparativo!$E$6="Tabela Não Desonerada",VLOOKUP($C43,'Orçamento Base'!$D$11:$S$1673,11,FALSE),VLOOKUP($C43,#REF!,11,FALSE)))) ->  | M43: =IF(Comparativo!$E$6="Tabela Não Desonerada",Encargos!$F$44,Encargos!$D$44) -> 1.1122
A44: ='Identificação-TCE'!$A$13 -> 1 | B44: =IF(AND(G44<>"",H44>0,I44<>"",J44<>0,K44<>0),COUNT($B$11:B43)+1,"") ->  | C44: =IF('Orçamento Base'!$M43=0,0,'Orçamento Base'!$D43) -> 0 | D44: =IF('Orçamento Base'!$F43=Aux.!$G$11,"CONTRATACAO_PUBLICA",IF(VLOOKUP($C44,'Orçamento Base'!$D$11:$G$2116,3,FALSE)="INDEXADO",VLOOKUP(VLOOKUP($C43,'Orçamento Base'!$D$11:$G$2116,2,FALSE),'Index N_DESON.'!$A$9:$B$604,2),VLOOKUP($C44,'Orçamento Base'!$D$11:$G$2116,3,FALSE))) ->  | E44: =VLOOKUP($C44,'Orçamento Base'!$D$11:$S$1673,2,FALSE) ->  | F44: =Dados!$C$7 -> 2022-04-01 | G44: =VLOOKUP($C44,'Orçamento Base'!$D$11:$S$1673,4,FALSE) ->  | H44: =IFERROR(VLOOKUP($C44,'Orçamento Base'!$D$11:$S$1673,6,FALSE),0) -> 0 | I44: =VLOOKUP($C44,'Orçamento Base'!$D$11:$S$1673,5,FALSE) ->  | J44: =IF(Comparativo!$E$6="Tabela Não Desonerada",VLOOKUP($C44,'Orçamento Base'!$D$11:$S$1673,12,FALSE),VLOOKUP($C44,#REF!,12,FALSE)) ->  | K44: =IFERROR(IF(Comparativo!$E$6="Tabela Não Desonerada",VLOOKUP($C44,'Orçamento Base'!$D$11:$S$1673,16,FALSE),VLOOKUP($C44,#REF!,16,FALSE)),0) -> 0 | L44: =IF(AND($D44="COMPOSICAO_PROPRIA",'Orçamento Base'!$N44="-"),"14,18%",IF(AND($D44="MERCADO",'Orçamento Base'!$N44="-"),"15,38%",IF(Comparativo!$E$6="Tabela Não Desonerada",VLOOKUP($C44,'Orçamento Base'!$D$11:$S$1673,11,FALSE),VLOOKUP($C44,#REF!,11,FALSE)))) ->  | M44: =IF(Comparativo!$E$6="Tabela Não Desonerada",Encargos!$F$44,Encargos!$D$44) -> 1.1122
A45: ='Identificação-TCE'!$A$13 -> 1 | B45: =IF(AND(G45<>"",H45>0,I45<>"",J45<>0,K45<>0),COUNT($B$11:B44)+1,"") ->  | C45: =IF('Orçamento Base'!$M44=0,0,'Orçamento Base'!$D44) -> 0 | D45: =IF('Orçamento Base'!$F44=Aux.!$G$11,"CONTRATACAO_PUBLICA",IF(VLOOKUP($C45,'Orçamento Base'!$D$11:$G$2116,3,FALSE)="INDEXADO",VLOOKUP(VLOOKUP($C44,'Orçamento Base'!$D$11:$G$2116,2,FALSE),'Index N_DESON.'!$A$9:$B$604,2),VLOOKUP($C45,'Orçamento Base'!$D$11:$G$2116,3,FALSE))) ->  | E45: =VLOOKUP($C45,'Orçamento Base'!$D$11:$S$1673,2,FALSE) ->  | F45: =Dados!$C$7 -> 2022-04-01 | G45: =VLOOKUP($C45,'Orçamento Base'!$D$11:$S$1673,4,FALSE) ->  | H45: =IFERROR(VLOOKUP($C45,'Orçamento Base'!$D$11:$S$1673,6,FALSE),0) -> 0 | I45: =VLOOKUP($C45,'Orçamento Base'!$D$11:$S$1673,5,FALSE) ->  | J45: =IF(Comparativo!$E$6="Tabela Não Desonerada",VLOOKUP($C45,'Orçamento Base'!$D$11:$S$1673,12,FALSE),VLOOKUP($C45,#REF!,12,FALSE)) ->  | K45: =IFERROR(IF(Comparativo!$E$6="Tabela Não Desonerada",VLOOKUP($C45,'Orçamento Base'!$D$11:$S$1673,16,FALSE),VLOOKUP($C45,#REF!,16,FALSE)),0) -> 0 | L45: =IF(AND($D45="COMPOSICAO_PROPRIA",'Orçamento Base'!$N45="-"),"14,18%",IF(AND($D45="MERCADO",'Orçamento Base'!$N45="-"),"15,38%",IF(Comparativo!$E$6="Tabela Não Desonerada",VLOOKUP($C45,'Orçamento Base'!$D$11:$S$1673,11,FALSE),VLOOKUP($C45,#REF!,11,FALSE)))) ->  | M45: =IF(Comparativo!$E$6="Tabela Não Desonerada",Encargos!$F$44,Encargos!$D$44) -> 1.1122
A46: ='Identificação-TCE'!$A$13 -> 1 | B46: =IF(AND(G46<>"",H46>0,I46<>"",J46<>0,K46<>0),COUNT($B$11:B45)+1,"") ->  | C46: =IF('Orçamento Base'!$M45=0,0,'Orçamento Base'!$D45) -> 0 | D46: =IF('Orçamento Base'!$F45=Aux.!$G$11,"CONTRATACAO_PUBLICA",IF(VLOOKUP($C46,'Orçamento Base'!$D$11:$G$2116,3,FALSE)="INDEXADO",VLOOKUP(VLOOKUP($C45,'Orçamento Base'!$D$11:$G$2116,2,FALSE),'Index N_DESON.'!$A$9:$B$604,2),VLOOKUP($C46,'Orçamento Base'!$D$11:$G$2116,3,FALSE))) ->  | E46: =VLOOKUP($C46,'Orçamento Base'!$D$11:$S$1673,2,FALSE) ->  | F46: =Dados!$C$7 -> 2022-04-01 | G46: =VLOOKUP($C46,'Orçamento Base'!$D$11:$S$1673,4,FALSE) ->  | H46: =IFERROR(VLOOKUP($C46,'Orçamento Base'!$D$11:$S$1673,6,FALSE),0) -> 0 | I46: =VLOOKUP($C46,'Orçamento Base'!$D$11:$S$1673,5,FALSE) ->  | J46: =IF(Comparativo!$E$6="Tabela Não Desonerada",VLOOKUP($C46,'Orçamento Base'!$D$11:$S$1673,12,FALSE),VLOOKUP($C46,#REF!,12,FALSE)) ->  | K46: =IFERROR(IF(Comparativo!$E$6="Tabela Não Desonerada",VLOOKUP($C46,'Orçamento Base'!$D$11:$S$1673,16,FALSE),VLOOKUP($C46,#REF!,16,FALSE)),0) -> 0 | L46: =IF(AND($D46="COMPOSICAO_PROPRIA",'Orçamento Base'!$N46="-"),"14,18%",IF(AND($D46="MERCADO",'Orçamento Base'!$N46="-"),"15,38%",IF(Comparativo!$E$6="Tabela Não Desonerada",VLOOKUP($C46,'Orçamento Base'!$D$11:$S$1673,11,FALSE),VLOOKUP($C46,#REF!,11,FALSE)))) ->  | M46: =IF(Comparativo!$E$6="Tabela Não Desonerada",Encargos!$F$44,Encargos!$D$44) -> 1.1122
A47: ='Identificação-TCE'!$A$13 -> 1 | B47: =IF(AND(G47<>"",H47>0,I47<>"",J47<>0,K47<>0),COUNT($B$11:B46)+1,"") ->  | C47: =IF('Orçamento Base'!$M46=0,0,'Orçamento Base'!$D46) -> 0 | D47: =IF('Orçamento Base'!$F46=Aux.!$G$11,"CONTRATACAO_PUBLICA",IF(VLOOKUP($C47,'Orçamento Base'!$D$11:$G$2116,3,FALSE)="INDEXADO",VLOOKUP(VLOOKUP($C46,'Orçamento Base'!$D$11:$G$2116,2,FALSE),'Index N_DESON.'!$A$9:$B$604,2),VLOOKUP($C47,'Orçamento Base'!$D$11:$G$2116,3,FALSE))) ->  | E47: =VLOOKUP($C47,'Orçamento Base'!$D$11:$S$1673,2,FALSE) ->  | F47: =Dados!$C$7 -> 2022-04-01 | G47: =VLOOKUP($C47,'Orçamento Base'!$D$11:$S$1673,4,FALSE) ->  | H47: =IFERROR(VLOOKUP($C47,'Orçamento Base'!$D$11:$S$1673,6,FALSE),0) -> 0 | I47: =VLOOKUP($C47,'Orçamento Base'!$D$11:$S$1673,5,FALSE) ->  | J47: =IF(Comparativo!$E$6="Tabela Não Desonerada",VLOOKUP($C47,'Orçamento Base'!$D$11:$S$1673,12,FALSE),VLOOKUP($C47,#REF!,12,FALSE)) ->  | K47: =IFERROR(IF(Comparativo!$E$6="Tabela Não Desonerada",VLOOKUP($C47,'Orçamento Base'!$D$11:$S$1673,16,FALSE),VLOOKUP($C47,#REF!,16,FALSE)),0) -> 0 | L47: =IF(AND($D47="COMPOSICAO_PROPRIA",'Orçamento Base'!$N47="-"),"14,18%",IF(AND($D47="MERCADO",'Orçamento Base'!$N47="-"),"15,38%",IF(Comparativo!$E$6="Tabela Não Desonerada",VLOOKUP($C47,'Orçamento Base'!$D$11:$S$1673,11,FALSE),VLOOKUP($C47,#REF!,11,FALSE)))) ->  | M47: =IF(Comparativo!$E$6="Tabela Não Desonerada",Encargos!$F$44,Encargos!$D$44) -> 1.1122
A48: ='Identificação-TCE'!$A$13 -> 1 | B48: =IF(AND(G48<>"",H48>0,I48<>"",J48<>0,K48<>0),COUNT($B$11:B47)+1,"") ->  | C48: =IF('Orçamento Base'!$M47=0,0,'Orçamento Base'!$D47) -> 0 | D48: =IF('Orçamento Base'!$F47=Aux.!$G$11,"CONTRATACAO_PUBLICA",IF(VLOOKUP($C48,'Orçamento Base'!$D$11:$G$2116,3,FALSE)="INDEXADO",VLOOKUP(VLOOKUP($C47,'Orçamento Base'!$D$11:$G$2116,2,FALSE),'Index N_DESON.'!$A$9:$B$604,2),VLOOKUP($C48,'Orçamento Base'!$D$11:$G$2116,3,FALSE))) ->  | E48: =VLOOKUP($C48,'Orçamento Base'!$D$11:$S$1673,2,FALSE) ->  | F48: =Dados!$C$7 -> 2022-04-01 | G48: =VLOOKUP($C48,'Orçamento Base'!$D$11:$S$1673,4,FALSE) ->  | H48: =IFERROR(VLOOKUP($C48,'Orçamento Base'!$D$11:$S$1673,6,FALSE),0) -> 0 | I48: =VLOOKUP($C48,'Orçamento Base'!$D$11:$S$1673,5,FALSE) ->  | J48: =IF(Comparativo!$E$6="Tabela Não Desonerada",VLOOKUP($C48,'Orçamento Base'!$D$11:$S$1673,12,FALSE),VLOOKUP($C48,#REF!,12,FALSE)) ->  | K48: =IFERROR(IF(Comparativo!$E$6="Tabela Não Desonerada",VLOOKUP($C48,'Orçamento Base'!$D$11:$S$1673,16,FALSE),VLOOKUP($C48,#REF!,16,FALSE)),0) -> 0 | L48: =IF(AND($D48="COMPOSICAO_PROPRIA",'Orçamento Base'!$N48="-"),"14,18%",IF(AND($D48="MERCADO",'Orçamento Base'!$N48="-"),"15,38%",IF(Comparativo!$E$6="Tabela Não Desonerada",VLOOKUP($C48,'Orçamento Base'!$D$11:$S$1673,11,FALSE),VLOOKUP($C48,#REF!,11,FALSE)))) ->  | M48: =IF(Comparativo!$E$6="Tabela Não Desonerada",Encargos!$F$44,Encargos!$D$44) -> 1.1122
A49: ='Identificação-TCE'!$A$13 -> 1 | B49: =IF(AND(G49<>"",H49>0,I49<>"",J49<>0,K49<>0),COUNT($B$11:B48)+1,"") ->  | C49: =IF('Orçamento Base'!$M48=0,0,'Orçamento Base'!$D48) -> 0 | D49: =IF('Orçamento Base'!$F48=Aux.!$G$11,"CONTRATACAO_PUBLICA",IF(VLOOKUP($C49,'Orçamento Base'!$D$11:$G$2116,3,FALSE)="INDEXADO",VLOOKUP(VLOOKUP($C48,'Orçamento Base'!$D$11:$G$2116,2,FALSE),'Index N_DESON.'!$A$9:$B$604,2),VLOOKUP($C49,'Orçamento Base'!$D$11:$G$2116,3,FALSE))) ->  | E49: =VLOOKUP($C49,'Orçamento Base'!$D$11:$S$1673,2,FALSE) ->  | F49: =Dados!$C$7 -> 2022-04-01 | G49: =VLOOKUP($C49,'Orçamento Base'!$D$11:$S$1673,4,FALSE) ->  | H49: =IFERROR(VLOOKUP($C49,'Orçamento Base'!$D$11:$S$1673,6,FALSE),0) -> 0 | I49: =VLOOKUP($C49,'Orçamento Base'!$D$11:$S$1673,5,FALSE) ->  | J49: =IF(Comparativo!$E$6="Tabela Não Desonerada",VLOOKUP($C49,'Orçamento Base'!$D$11:$S$1673,12,FALSE),VLOOKUP($C49,#REF!,12,FALSE)) ->  | K49: =IFERROR(IF(Comparativo!$E$6="Tabela Não Desonerada",VLOOKUP($C49,'Orçamento Base'!$D$11:$S$1673,16,FALSE),VLOOKUP($C49,#REF!,16,FALSE)),0) -> 0 | L49: =IF(AND($D49="COMPOSICAO_PROPRIA",'Orçamento Base'!$N49="-"),"14,18%",IF(AND($D49="MERCADO",'Orçamento Base'!$N49="-"),"15,38%",IF(Comparativo!$E$6="Tabela Não Desonerada",VLOOKUP($C49,'Orçamento Base'!$D$11:$S$1673,11,FALSE),VLOOKUP($C49,#REF!,11,FALSE)))) ->  | M49: =IF(Comparativo!$E$6="Tabela Não Desonerada",Encargos!$F$44,Encargos!$D$44) -> 1.1122
A50: ='Identificação-TCE'!$A$13 -> 1 | B50: =IF(AND(G50<>"",H50>0,I50<>"",J50<>0,K50<>0),COUNT($B$11:B49)+1,"") ->  | C50: =IF('Orçamento Base'!$M49=0,0,'Orçamento Base'!$D49) -> 0 | D50: =IF('Orçamento Base'!$F49=Aux.!$G$11,"CONTRATACAO_PUBLICA",IF(VLOOKUP($C50,'Orçamento Base'!$D$11:$G$2116,3,FALSE)="INDEXADO",VLOOKUP(VLOOKUP($C49,'Orçamento Base'!$D$11:$G$2116,2,FALSE),'Index N_DESON.'!$A$9:$B$604,2),VLOOKUP($C50,'Orçamento Base'!$D$11:$G$2116,3,FALSE))) ->  | E50: =VLOOKUP($C50,'Orçamento Base'!$D$11:$S$1673,2,FALSE) ->  | F50: =Dados!$C$7 -> 2022-04-01 | G50: =VLOOKUP($C50,'Orçamento Base'!$D$11:$S$1673,4,FALSE) ->  | H50: =IFERROR(VLOOKUP($C50,'Orçamento Base'!$D$11:$S$1673,6,FALSE),0) -> 0 | I50: =VLOOKUP($C50,'Orçamento Base'!$D$11:$S$1673,5,FALSE) ->  | J50: =IF(Comparativo!$E$6="Tabela Não Desonerada",VLOOKUP($C50,'Orçamento Base'!$D$11:$S$1673,12,FALSE),VLOOKUP($C50,#REF!,12,FALSE)) ->  | K50: =IFERROR(IF(Comparativo!$E$6="Tabela Não Desonerada",VLOOKUP($C50,'Orçamento Base'!$D$11:$S$1673,16,FALSE),VLOOKUP($C50,#REF!,16,FALSE)),0) -> 0 | L50: =IF(AND($D50="COMPOSICAO_PROPRIA",'Orçamento Base'!$N50="-"),"14,18%",IF(AND($D50="MERCADO",'Orçamento Base'!$N50="-"),"15,38%",IF(Comparativo!$E$6="Tabela Não Desonerada",VLOOKUP($C50,'Orçamento Base'!$D$11:$S$1673,11,FALSE),VLOOKUP($C50,#REF!,11,FALSE)))) ->  | M50: =IF(Comparativo!$E$6="Tabela Não Desonerada",Encargos!$F$44,Encargos!$D$44) -> 1.1122
A51: ='Identificação-TCE'!$A$13 -> 1 | B51: =IF(AND(G51<>"",H51>0,I51<>"",J51<>0,K51<>0),COUNT($B$11:B50)+1,"") ->  | C51: =IF('Orçamento Base'!$M50=0,0,'Orçamento Base'!$D50) -> 0 | D51: =IF('Orçamento Base'!$F50=Aux.!$G$11,"CONTRATACAO_PUBLICA",IF(VLOOKUP($C51,'Orçamento Base'!$D$11:$G$2116,3,FALSE)="INDEXADO",VLOOKUP(VLOOKUP($C50,'Orçamento Base'!$D$11:$G$2116,2,FALSE),'Index N_DESON.'!$A$9:$B$604,2),VLOOKUP($C51,'Orçamento Base'!$D$11:$G$2116,3,FALSE))) ->  | E51: =VLOOKUP($C51,'Orçamento Base'!$D$11:$S$1673,2,FALSE) ->  | F51: =Dados!$C$7 -> 2022-04-01 | G51: =VLOOKUP($C51,'Orçamento Base'!$D$11:$S$1673,4,FALSE) ->  | H51: =IFERROR(VLOOKUP($C51,'Orçamento Base'!$D$11:$S$1673,6,FALSE),0) -> 0 | I51: =VLOOKUP($C51,'Orçamento Base'!$D$11:$S$1673,5,FALSE) ->  | J51: =IF(Comparativo!$E$6="Tabela Não Desonerada",VLOOKUP($C51,'Orçamento Base'!$D$11:$S$1673,12,FALSE),VLOOKUP($C51,#REF!,12,FALSE)) ->  | K51: =IFERROR(IF(Comparativo!$E$6="Tabela Não Desonerada",VLOOKUP($C51,'Orçamento Base'!$D$11:$S$1673,16,FALSE),VLOOKUP($C51,#REF!,16,FALSE)),0) -> 0 | L51: =IF(AND($D51="COMPOSICAO_PROPRIA",'Orçamento Base'!$N51="-"),"14,18%",IF(AND($D51="MERCADO",'Orçamento Base'!$N51="-"),"15,38%",IF(Comparativo!$E$6="Tabela Não Desonerada",VLOOKUP($C51,'Orçamento Base'!$D$11:$S$1673,11,FALSE),VLOOKUP($C51,#REF!,11,FALSE)))) ->  | M51: =IF(Comparativo!$E$6="Tabela Não Desonerada",Encargos!$F$44,Encargos!$D$44) -> 1.1122
A52: ='Identificação-TCE'!$A$13 -> 1 | B52: =IF(AND(G52<>"",H52>0,I52<>"",J52<>0,K52<>0),COUNT($B$11:B51)+1,"") ->  | C52: =IF('Orçamento Base'!$M51=0,0,'Orçamento Base'!$D51) -> 0 | D52: =IF('Orçamento Base'!$F51=Aux.!$G$11,"CONTRATACAO_PUBLICA",IF(VLOOKUP($C52,'Orçamento Base'!$D$11:$G$2116,3,FALSE)="INDEXADO",VLOOKUP(VLOOKUP($C51,'Orçamento Base'!$D$11:$G$2116,2,FALSE),'Index N_DESON.'!$A$9:$B$604,2),VLOOKUP($C52,'Orçamento Base'!$D$11:$G$2116,3,FALSE))) ->  | E52: =VLOOKUP($C52,'Orçamento Base'!$D$11:$S$1673,2,FALSE) ->  | F52: =Dados!$C$7 -> 2022-04-01 | G52: =VLOOKUP($C52,'Orçamento Base'!$D$11:$S$1673,4,FALSE) ->  | H52: =IFERROR(VLOOKUP($C52,'Orçamento Base'!$D$11:$S$1673,6,FALSE),0) -> 0 | I52: =VLOOKUP($C52,'Orçamento Base'!$D$11:$S$1673,5,FALSE) ->  | J52: =IF(Comparativo!$E$6="Tabela Não Desonerada",VLOOKUP($C52,'Orçamento Base'!$D$11:$S$1673,12,FALSE),VLOOKUP($C52,#REF!,12,FALSE)) ->  | K52: =IFERROR(IF(Comparativo!$E$6="Tabela Não Desonerada",VLOOKUP($C52,'Orçamento Base'!$D$11:$S$1673,16,FALSE),VLOOKUP($C52,#REF!,16,FALSE)),0) -> 0 | L52: =IF(AND($D52="COMPOSICAO_PROPRIA",'Orçamento Base'!$N52="-"),"14,18%",IF(AND($D52="MERCADO",'Orçamento Base'!$N52="-"),"15,38%",IF(Comparativo!$E$6="Tabela Não Desonerada",VLOOKUP($C52,'Orçamento Base'!$D$11:$S$1673,11,FALSE),VLOOKUP($C52,#REF!,11,FALSE)))) ->  | M52: =IF(Comparativo!$E$6="Tabela Não Desonerada",Encargos!$F$44,Encargos!$D$44) -> 1.1122
A53: ='Identificação-TCE'!$A$13 -> 1 | B53: =IF(AND(G53<>"",H53>0,I53<>"",J53<>0,K53<>0),COUNT($B$11:B52)+1,"") ->  | C53: =IF('Orçamento Base'!$M52=0,0,'Orçamento Base'!$D52) -> 0 | D53: =IF('Orçamento Base'!$F52=Aux.!$G$11,"CONTRATACAO_PUBLICA",IF(VLOOKUP($C53,'Orçamento Base'!$D$11:$G$2116,3,FALSE)="INDEXADO",VLOOKUP(VLOOKUP($C52,'Orçamento Base'!$D$11:$G$2116,2,FALSE),'Index N_DESON.'!$A$9:$B$604,2),VLOOKUP($C53,'Orçamento Base'!$D$11:$G$2116,3,FALSE))) ->  | E53: =VLOOKUP($C53,'Orçamento Base'!$D$11:$S$1673,2,FALSE) ->  | F53: =Dados!$C$7 -> 2022-04-01 | G53: =VLOOKUP($C53,'Orçamento Base'!$D$11:$S$1673,4,FALSE) ->  | H53: =IFERROR(VLOOKUP($C53,'Orçamento Base'!$D$11:$S$1673,6,FALSE),0) -> 0 | I53: =VLOOKUP($C53,'Orçamento Base'!$D$11:$S$1673,5,FALSE) ->  | J53: =IF(Comparativo!$E$6="Tabela Não Desonerada",VLOOKUP($C53,'Orçamento Base'!$D$11:$S$1673,12,FALSE),VLOOKUP($C53,#REF!,12,FALSE)) ->  | K53: =IFERROR(IF(Comparativo!$E$6="Tabela Não Desonerada",VLOOKUP($C53,'Orçamento Base'!$D$11:$S$1673,16,FALSE),VLOOKUP($C53,#REF!,16,FALSE)),0) -> 0 | L53: =IF(AND($D53="COMPOSICAO_PROPRIA",'Orçamento Base'!$N53="-"),"14,18%",IF(AND($D53="MERCADO",'Orçamento Base'!$N53="-"),"15,38%",IF(Comparativo!$E$6="Tabela Não Desonerada",VLOOKUP($C53,'Orçamento Base'!$D$11:$S$1673,11,FALSE),VLOOKUP($C53,#REF!,11,FALSE)))) ->  | M53: =IF(Comparativo!$E$6="Tabela Não Desonerada",Encargos!$F$44,Encargos!$D$44) -> 1.1122
A54: ='Identificação-TCE'!$A$13 -> 1 | B54: =IF(AND(G54<>"",H54>0,I54<>"",J54<>0,K54<>0),COUNT($B$11:B53)+1,"") ->  | C54: =IF('Orçamento Base'!$M53=0,0,'Orçamento Base'!$D53) -> 0 | D54: =IF('Orçamento Base'!$F53=Aux.!$G$11,"CONTRATACAO_PUBLICA",IF(VLOOKUP($C54,'Orçamento Base'!$D$11:$G$2116,3,FALSE)="INDEXADO",VLOOKUP(VLOOKUP($C53,'Orçamento Base'!$D$11:$G$2116,2,FALSE),'Index N_DESON.'!$A$9:$B$604,2),VLOOKUP($C54,'Orçamento Base'!$D$11:$G$2116,3,FALSE))) ->  | E54: =VLOOKUP($C54,'Orçamento Base'!$D$11:$S$1673,2,FALSE) ->  | F54: =Dados!$C$7 -> 2022-04-01 | G54: =VLOOKUP($C54,'Orçamento Base'!$D$11:$S$1673,4,FALSE) ->  | H54: =IFERROR(VLOOKUP($C54,'Orçamento Base'!$D$11:$S$1673,6,FALSE),0) -> 0 | I54: =VLOOKUP($C54,'Orçamento Base'!$D$11:$S$1673,5,FALSE) ->  | J54: =IF(Comparativo!$E$6="Tabela Não Desonerada",VLOOKUP($C54,'Orçamento Base'!$D$11:$S$1673,12,FALSE),VLOOKUP($C54,#REF!,12,FALSE)) ->  | K54: =IFERROR(IF(Comparativo!$E$6="Tabela Não Desonerada",VLOOKUP($C54,'Orçamento Base'!$D$11:$S$1673,16,FALSE),VLOOKUP($C54,#REF!,16,FALSE)),0) -> 0 | L54: =IF(AND($D54="COMPOSICAO_PROPRIA",'Orçamento Base'!$N54="-"),"14,18%",IF(AND($D54="MERCADO",'Orçamento Base'!$N54="-"),"15,38%",IF(Comparativo!$E$6="Tabela Não Desonerada",VLOOKUP($C54,'Orçamento Base'!$D$11:$S$1673,11,FALSE),VLOOKUP($C54,#REF!,11,FALSE)))) ->  | M54: =IF(Comparativo!$E$6="Tabela Não Desonerada",Encargos!$F$44,Encargos!$D$44) -> 1.1122
A55: ='Identificação-TCE'!$A$13 -> 1 | B55: =IF(AND(G55<>"",H55>0,I55<>"",J55<>0,K55<>0),COUNT($B$11:B54)+1,"") ->  | C55: =IF('Orçamento Base'!$M54=0,0,'Orçamento Base'!$D54) -> 0 | D55: =IF('Orçamento Base'!$F54=Aux.!$G$11,"CONTRATACAO_PUBLICA",IF(VLOOKUP($C55,'Orçamento Base'!$D$11:$G$2116,3,FALSE)="INDEXADO",VLOOKUP(VLOOKUP($C54,'Orçamento Base'!$D$11:$G$2116,2,FALSE),'Index N_DESON.'!$A$9:$B$604,2),VLOOKUP($C55,'Orçamento Base'!$D$11:$G$2116,3,FALSE))) ->  | E55: =VLOOKUP($C55,'Orçamento Base'!$D$11:$S$1673,2,FALSE) ->  | F55: =Dados!$C$7 -> 2022-04-01 | G55: =VLOOKUP($C55,'Orçamento Base'!$D$11:$S$1673,4,FALSE) ->  | H55: =IFERROR(VLOOKUP($C55,'Orçamento Base'!$D$11:$S$1673,6,FALSE),0) -> 0 | I55: =VLOOKUP($C55,'Orçamento Base'!$D$11:$S$1673,5,FALSE) ->  | J55: =IF(Comparativo!$E$6="Tabela Não Desonerada",VLOOKUP($C55,'Orçamento Base'!$D$11:$S$1673,12,FALSE),VLOOKUP($C55,#REF!,12,FALSE)) ->  | K55: =IFERROR(IF(Comparativo!$E$6="Tabela Não Desonerada",VLOOKUP($C55,'Orçamento Base'!$D$11:$S$1673,16,FALSE),VLOOKUP($C55,#REF!,16,FALSE)),0) -> 0 | L55: =IF(AND($D55="COMPOSICAO_PROPRIA",'Orçamento Base'!$N55="-"),"14,18%",IF(AND($D55="MERCADO",'Orçamento Base'!$N55="-"),"15,38%",IF(Comparativo!$E$6="Tabela Não Desonerada",VLOOKUP($C55,'Orçamento Base'!$D$11:$S$1673,11,FALSE),VLOOKUP($C55,#REF!,11,FALSE)))) ->  | M55: =IF(Comparativo!$E$6="Tabela Não Desonerada",Encargos!$F$44,Encargos!$D$44) -> 1.1122
A56: ='Identificação-TCE'!$A$13 -> 1 | B56: =IF(AND(G56<>"",H56>0,I56<>"",J56<>0,K56<>0),COUNT($B$11:B55)+1,"") ->  | C56: =IF('Orçamento Base'!$M55=0,0,'Orçamento Base'!$D55) -> 0 | D56: =IF('Orçamento Base'!$F55=Aux.!$G$11,"CONTRATACAO_PUBLICA",IF(VLOOKUP($C56,'Orçamento Base'!$D$11:$G$2116,3,FALSE)="INDEXADO",VLOOKUP(VLOOKUP($C55,'Orçamento Base'!$D$11:$G$2116,2,FALSE),'Index N_DESON.'!$A$9:$B$604,2),VLOOKUP($C56,'Orçamento Base'!$D$11:$G$2116,3,FALSE))) ->  | E56: =VLOOKUP($C56,'Orçamento Base'!$D$11:$S$1673,2,FALSE) ->  | F56: =Dados!$C$7 -> 2022-04-01 | G56: =VLOOKUP($C56,'Orçamento Base'!$D$11:$S$1673,4,FALSE) ->  | H56: =IFERROR(VLOOKUP($C56,'Orçamento Base'!$D$11:$S$1673,6,FALSE),0) -> 0 | I56: =VLOOKUP($C56,'Orçamento Base'!$D$11:$S$1673,5,FALSE) ->  | J56: =IF(Comparativo!$E$6="Tabela Não Desonerada",VLOOKUP($C56,'Orçamento Base'!$D$11:$S$1673,12,FALSE),VLOOKUP($C56,#REF!,12,FALSE)) ->  | K56: =IFERROR(IF(Comparativo!$E$6="Tabela Não Desonerada",VLOOKUP($C56,'Orçamento Base'!$D$11:$S$1673,16,FALSE),VLOOKUP($C56,#REF!,16,FALSE)),0) -> 0 | L56: =IF(AND($D56="COMPOSICAO_PROPRIA",'Orçamento Base'!$N56="-"),"14,18%",IF(AND($D56="MERCADO",'Orçamento Base'!$N56="-"),"15,38%",IF(Comparativo!$E$6="Tabela Não Desonerada",VLOOKUP($C56,'Orçamento Base'!$D$11:$S$1673,11,FALSE),VLOOKUP($C56,#REF!,11,FALSE)))) ->  | M56: =IF(Comparativo!$E$6="Tabela Não Desonerada",Encargos!$F$44,Encargos!$D$44) -> 1.1122
A57: ='Identificação-TCE'!$A$13 -> 1 | B57: =IF(AND(G57<>"",H57>0,I57<>"",J57<>0,K57<>0),COUNT($B$11:B56)+1,"") ->  | C57: =IF('Orçamento Base'!$M56=0,0,'Orçamento Base'!$D56) -> 0 | D57: =IF('Orçamento Base'!$F56=Aux.!$G$11,"CONTRATACAO_PUBLICA",IF(VLOOKUP($C57,'Orçamento Base'!$D$11:$G$2116,3,FALSE)="INDEXADO",VLOOKUP(VLOOKUP($C56,'Orçamento Base'!$D$11:$G$2116,2,FALSE),'Index N_DESON.'!$A$9:$B$604,2),VLOOKUP($C57,'Orçamento Base'!$D$11:$G$2116,3,FALSE))) ->  | E57: =VLOOKUP($C57,'Orçamento Base'!$D$11:$S$1673,2,FALSE) ->  | F57: =Dados!$C$7 -> 2022-04-01 | G57: =VLOOKUP($C57,'Orçamento Base'!$D$11:$S$1673,4,FALSE) ->  | H57: =IFERROR(VLOOKUP($C57,'Orçamento Base'!$D$11:$S$1673,6,FALSE),0) -> 0 | I57: =VLOOKUP($C57,'Orçamento Base'!$D$11:$S$1673,5,FALSE) ->  | J57: =IF(Comparativo!$E$6="Tabela Não Desonerada",VLOOKUP($C57,'Orçamento Base'!$D$11:$S$1673,12,FALSE),VLOOKUP($C57,#REF!,12,FALSE)) ->  | K57: =IFERROR(IF(Comparativo!$E$6="Tabela Não Desonerada",VLOOKUP($C57,'Orçamento Base'!$D$11:$S$1673,16,FALSE),VLOOKUP($C57,#REF!,16,FALSE)),0) -> 0 | L57: =IF(AND($D57="COMPOSICAO_PROPRIA",'Orçamento Base'!$N57="-"),"14,18%",IF(AND($D57="MERCADO",'Orçamento Base'!$N57="-"),"15,38%",IF(Comparativo!$E$6="Tabela Não Desonerada",VLOOKUP($C57,'Orçamento Base'!$D$11:$S$1673,11,FALSE),VLOOKUP($C57,#REF!,11,FALSE)))) ->  | M57: =IF(Comparativo!$E$6="Tabela Não Desonerada",Encargos!$F$44,Encargos!$D$44) -> 1.1122
A58: ='Identificação-TCE'!$A$13 -> 1 | B58: =IF(AND(G58<>"",H58>0,I58<>"",J58<>0,K58<>0),COUNT($B$11:B57)+1,"") ->  | C58: =IF('Orçamento Base'!$M57=0,0,'Orçamento Base'!$D57) -> 0 | D58: =IF('Orçamento Base'!$F57=Aux.!$G$11,"CONTRATACAO_PUBLICA",IF(VLOOKUP($C58,'Orçamento Base'!$D$11:$G$2116,3,FALSE)="INDEXADO",VLOOKUP(VLOOKUP($C57,'Orçamento Base'!$D$11:$G$2116,2,FALSE),'Index N_DESON.'!$A$9:$B$604,2),VLOOKUP($C58,'Orçamento Base'!$D$11:$G$2116,3,FALSE))) ->  | E58: =VLOOKUP($C58,'Orçamento Base'!$D$11:$S$1673,2,FALSE) ->  | F58: =Dados!$C$7 -> 2022-04-01 | G58: =VLOOKUP($C58,'Orçamento Base'!$D$11:$S$1673,4,FALSE) ->  | H58: =IFERROR(VLOOKUP($C58,'Orçamento Base'!$D$11:$S$1673,6,FALSE),0) -> 0 | I58: =VLOOKUP($C58,'Orçamento Base'!$D$11:$S$1673,5,FALSE) ->  | J58: =IF(Comparativo!$E$6="Tabela Não Desonerada",VLOOKUP($C58,'Orçamento Base'!$D$11:$S$1673,12,FALSE),VLOOKUP($C58,#REF!,12,FALSE)) ->  | K58: =IFERROR(IF(Comparativo!$E$6="Tabela Não Desonerada",VLOOKUP($C58,'Orçamento Base'!$D$11:$S$1673,16,FALSE),VLOOKUP($C58,#REF!,16,FALSE)),0) -> 0 | L58: =IF(AND($D58="COMPOSICAO_PROPRIA",'Orçamento Base'!$N58="-"),"14,18%",IF(AND($D58="MERCADO",'Orçamento Base'!$N58="-"),"15,38%",IF(Comparativo!$E$6="Tabela Não Desonerada",VLOOKUP($C58,'Orçamento Base'!$D$11:$S$1673,11,FALSE),VLOOKUP($C58,#REF!,11,FALSE)))) ->  | M58: =IF(Comparativo!$E$6="Tabela Não Desonerada",Encargos!$F$44,Encargos!$D$44) -> 1.1122
A59: ='Identificação-TCE'!$A$13 -> 1 | B59: =IF(AND(G59<>"",H59>0,I59<>"",J59<>0,K59<>0),COUNT($B$11:B58)+1,"") ->  | C59: =IF('Orçamento Base'!$M58=0,0,'Orçamento Base'!$D58) -> 0 | D59: =IF('Orçamento Base'!$F58=Aux.!$G$11,"CONTRATACAO_PUBLICA",IF(VLOOKUP($C59,'Orçamento Base'!$D$11:$G$2116,3,FALSE)="INDEXADO",VLOOKUP(VLOOKUP($C58,'Orçamento Base'!$D$11:$G$2116,2,FALSE),'Index N_DESON.'!$A$9:$B$604,2),VLOOKUP($C59,'Orçamento Base'!$D$11:$G$2116,3,FALSE))) ->  | E59: =VLOOKUP($C59,'Orçamento Base'!$D$11:$S$1673,2,FALSE) ->  | F59: =Dados!$C$7 -> 2022-04-01 | G59: =VLOOKUP($C59,'Orçamento Base'!$D$11:$S$1673,4,FALSE) ->  | H59: =IFERROR(VLOOKUP($C59,'Orçamento Base'!$D$11:$S$1673,6,FALSE),0) -> 0 | I59: =VLOOKUP($C59,'Orçamento Base'!$D$11:$S$1673,5,FALSE) ->  | J59: =IF(Comparativo!$E$6="Tabela Não Desonerada",VLOOKUP($C59,'Orçamento Base'!$D$11:$S$1673,12,FALSE),VLOOKUP($C59,#REF!,12,FALSE)) ->  | K59: =IFERROR(IF(Comparativo!$E$6="Tabela Não Desonerada",VLOOKUP($C59,'Orçamento Base'!$D$11:$S$1673,16,FALSE),VLOOKUP($C59,#REF!,16,FALSE)),0) -> 0 | L59: =IF(AND($D59="COMPOSICAO_PROPRIA",'Orçamento Base'!$N59="-"),"14,18%",IF(AND($D59="MERCADO",'Orçamento Base'!$N59="-"),"15,38%",IF(Comparativo!$E$6="Tabela Não Desonerada",VLOOKUP($C59,'Orçamento Base'!$D$11:$S$1673,11,FALSE),VLOOKUP($C59,#REF!,11,FALSE)))) ->  | M59: =IF(Comparativo!$E$6="Tabela Não Desonerada",Encargos!$F$44,Encargos!$D$44) -> 1.1122
A60: ='Identificação-TCE'!$A$13 -> 1 | B60: =IF(AND(G60<>"",H60>0,I60<>"",J60<>0,K60<>0),COUNT($B$11:B59)+1,"") ->  | C60: =IF('Orçamento Base'!$M59=0,0,'Orçamento Base'!$D59) -> 0 | D60: =IF('Orçamento Base'!$F59=Aux.!$G$11,"CONTRATACAO_PUBLICA",IF(VLOOKUP($C60,'Orçamento Base'!$D$11:$G$2116,3,FALSE)="INDEXADO",VLOOKUP(VLOOKUP($C59,'Orçamento Base'!$D$11:$G$2116,2,FALSE),'Index N_DESON.'!$A$9:$B$604,2),VLOOKUP($C60,'Orçamento Base'!$D$11:$G$2116,3,FALSE))) ->  | E60: =VLOOKUP($C60,'Orçamento Base'!$D$11:$S$1673,2,FALSE) ->  | F60: =Dados!$C$7 -> 2022-04-01 | G60: =VLOOKUP($C60,'Orçamento Base'!$D$11:$S$1673,4,FALSE) ->  | H60: =IFERROR(VLOOKUP($C60,'Orçamento Base'!$D$11:$S$1673,6,FALSE),0) -> 0 | I60: =VLOOKUP($C60,'Orçamento Base'!$D$11:$S$1673,5,FALSE) ->  | J60: =IF(Comparativo!$E$6="Tabela Não Desonerada",VLOOKUP($C60,'Orçamento Base'!$D$11:$S$1673,12,FALSE),VLOOKUP($C60,#REF!,12,FALSE)) ->  | K60: =IFERROR(IF(Comparativo!$E$6="Tabela Não Desonerada",VLOOKUP($C60,'Orçamento Base'!$D$11:$S$1673,16,FALSE),VLOOKUP($C60,#REF!,16,FALSE)),0) -> 0 | L60: =IF(AND($D60="COMPOSICAO_PROPRIA",'Orçamento Base'!$N60="-"),"14,18%",IF(AND($D60="MERCADO",'Orçamento Base'!$N60="-"),"15,38%",IF(Comparativo!$E$6="Tabela Não Desonerada",VLOOKUP($C60,'Orçamento Base'!$D$11:$S$1673,11,FALSE),VLOOKUP($C60,#REF!,11,FALSE)))) ->  | M60: =IF(Comparativo!$E$6="Tabela Não Desonerada",Encargos!$F$44,Encargos!$D$44) -> 1.1122
A61: ='Identificação-TCE'!$A$13 -> 1 | B61: =IF(AND(G61<>"",H61>0,I61<>"",J61<>0,K61<>0),COUNT($B$11:B60)+1,"") ->  | C61: =IF('Orçamento Base'!$M60=0,0,'Orçamento Base'!$D60) -> 0 | D61: =IF('Orçamento Base'!$F60=Aux.!$G$11,"CONTRATACAO_PUBLICA",IF(VLOOKUP($C61,'Orçamento Base'!$D$11:$G$2116,3,FALSE)="INDEXADO",VLOOKUP(VLOOKUP($C60,'Orçamento Base'!$D$11:$G$2116,2,FALSE),'Index N_DESON.'!$A$9:$B$604,2),VLOOKUP($C61,'Orçamento Base'!$D$11:$G$2116,3,FALSE))) ->  | E61: =VLOOKUP($C61,'Orçamento Base'!$D$11:$S$1673,2,FALSE) ->  | F61: =Dados!$C$7 -> 2022-04-01 | G61: =VLOOKUP($C61,'Orçamento Base'!$D$11:$S$1673,4,FALSE) ->  | H61: =IFERROR(VLOOKUP($C61,'Orçamento Base'!$D$11:$S$1673,6,FALSE),0) -> 0 | I61: =VLOOKUP($C61,'Orçamento Base'!$D$11:$S$1673,5,FALSE) ->  | J61: =IF(Comparativo!$E$6="Tabela Não Desonerada",VLOOKUP($C61,'Orçamento Base'!$D$11:$S$1673,12,FALSE),VLOOKUP($C61,#REF!,12,FALSE)) ->  | K61: =IFERROR(IF(Comparativo!$E$6="Tabela Não Desonerada",VLOOKUP($C61,'Orçamento Base'!$D$11:$S$1673,16,FALSE),VLOOKUP($C61,#REF!,16,FALSE)),0) -> 0 | L61: =IF(AND($D61="COMPOSICAO_PROPRIA",'Orçamento Base'!$N61="-"),"14,18%",IF(AND($D61="MERCADO",'Orçamento Base'!$N61="-"),"15,38%",IF(Comparativo!$E$6="Tabela Não Desonerada",VLOOKUP($C61,'Orçamento Base'!$D$11:$S$1673,11,FALSE),VLOOKUP($C61,#REF!,11,FALSE)))) ->  | M61: =IF(Comparativo!$E$6="Tabela Não Desonerada",Encargos!$F$44,Encargos!$D$44) -> 1.1122
A62: ='Identificação-TCE'!$A$13 -> 1 | B62: =IF(AND(G62<>"",H62>0,I62<>"",J62<>0,K62<>0),COUNT($B$11:B61)+1,"") ->  | C62: =IF('Orçamento Base'!$M61=0,0,'Orçamento Base'!$D61) -> 0 | D62: =IF('Orçamento Base'!$F61=Aux.!$G$11,"CONTRATACAO_PUBLICA",IF(VLOOKUP($C62,'Orçamento Base'!$D$11:$G$2116,3,FALSE)="INDEXADO",VLOOKUP(VLOOKUP($C61,'Orçamento Base'!$D$11:$G$2116,2,FALSE),'Index N_DESON.'!$A$9:$B$604,2),VLOOKUP($C62,'Orçamento Base'!$D$11:$G$2116,3,FALSE))) ->  | E62: =VLOOKUP($C62,'Orçamento Base'!$D$11:$S$1673,2,FALSE) ->  | F62: =Dados!$C$7 -> 2022-04-01 | G62: =VLOOKUP($C62,'Orçamento Base'!$D$11:$S$1673,4,FALSE) ->  | H62: =IFERROR(VLOOKUP($C62,'Orçamento Base'!$D$11:$S$1673,6,FALSE),0) -> 0 | I62: =VLOOKUP($C62,'Orçamento Base'!$D$11:$S$1673,5,FALSE) ->  | J62: =IF(Comparativo!$E$6="Tabela Não Desonerada",VLOOKUP($C62,'Orçamento Base'!$D$11:$S$1673,12,FALSE),VLOOKUP($C62,#REF!,12,FALSE)) ->  | K62: =IFERROR(IF(Comparativo!$E$6="Tabela Não Desonerada",VLOOKUP($C62,'Orçamento Base'!$D$11:$S$1673,16,FALSE),VLOOKUP($C62,#REF!,16,FALSE)),0) -> 0 | L62: =IF(AND($D62="COMPOSICAO_PROPRIA",'Orçamento Base'!$N62="-"),"14,18%",IF(AND($D62="MERCADO",'Orçamento Base'!$N62="-"),"15,38%",IF(Comparativo!$E$6="Tabela Não Desonerada",VLOOKUP($C62,'Orçamento Base'!$D$11:$S$1673,11,FALSE),VLOOKUP($C62,#REF!,11,FALSE)))) ->  | M62: =IF(Comparativo!$E$6="Tabela Não Desonerada",Encargos!$F$44,Encargos!$D$44) -> 1.1122
A63: ='Identificação-TCE'!$A$13 -> 1 | B63: =IF(AND(G63<>"",H63>0,I63<>"",J63<>0,K63<>0),COUNT($B$11:B62)+1,"") ->  | C63: =IF('Orçamento Base'!$M62=0,0,'Orçamento Base'!$D62) -> 0 | D63: =IF('Orçamento Base'!$F62=Aux.!$G$11,"CONTRATACAO_PUBLICA",IF(VLOOKUP($C63,'Orçamento Base'!$D$11:$G$2116,3,FALSE)="INDEXADO",VLOOKUP(VLOOKUP($C62,'Orçamento Base'!$D$11:$G$2116,2,FALSE),'Index N_DESON.'!$A$9:$B$604,2),VLOOKUP($C63,'Orçamento Base'!$D$11:$G$2116,3,FALSE))) ->  | E63: =VLOOKUP($C63,'Orçamento Base'!$D$11:$S$1673,2,FALSE) ->  | F63: =Dados!$C$7 -> 2022-04-01 | G63: =VLOOKUP($C63,'Orçamento Base'!$D$11:$S$1673,4,FALSE) ->  | H63: =IFERROR(VLOOKUP($C63,'Orçamento Base'!$D$11:$S$1673,6,FALSE),0) -> 0 | I63: =VLOOKUP($C63,'Orçamento Base'!$D$11:$S$1673,5,FALSE) ->  | J63: =IF(Comparativo!$E$6="Tabela Não Desonerada",VLOOKUP($C63,'Orçamento Base'!$D$11:$S$1673,12,FALSE),VLOOKUP($C63,#REF!,12,FALSE)) ->  | K63: =IFERROR(IF(Comparativo!$E$6="Tabela Não Desonerada",VLOOKUP($C63,'Orçamento Base'!$D$11:$S$1673,16,FALSE),VLOOKUP($C63,#REF!,16,FALSE)),0) -> 0 | L63: =IF(AND($D63="COMPOSICAO_PROPRIA",'Orçamento Base'!$N63="-"),"14,18%",IF(AND($D63="MERCADO",'Orçamento Base'!$N63="-"),"15,38%",IF(Comparativo!$E$6="Tabela Não Desonerada",VLOOKUP($C63,'Orçamento Base'!$D$11:$S$1673,11,FALSE),VLOOKUP($C63,#REF!,11,FALSE)))) ->  | M63: =IF(Comparativo!$E$6="Tabela Não Desonerada",Encargos!$F$44,Encargos!$D$44) -> 1.1122
A64: ='Identificação-TCE'!$A$13 -> 1 | B64: =IF(AND(G64<>"",H64>0,I64<>"",J64<>0,K64<>0),COUNT($B$11:B63)+1,"") ->  | C64: =IF('Orçamento Base'!$M63=0,0,'Orçamento Base'!$D63) -> 0 | D64: =IF('Orçamento Base'!$F63=Aux.!$G$11,"CONTRATACAO_PUBLICA",IF(VLOOKUP($C64,'Orçamento Base'!$D$11:$G$2116,3,FALSE)="INDEXADO",VLOOKUP(VLOOKUP($C63,'Orçamento Base'!$D$11:$G$2116,2,FALSE),'Index N_DESON.'!$A$9:$B$604,2),VLOOKUP($C64,'Orçamento Base'!$D$11:$G$2116,3,FALSE))) ->  | E64: =VLOOKUP($C64,'Orçamento Base'!$D$11:$S$1673,2,FALSE) ->  | F64: =Dados!$C$7 -> 2022-04-01 | G64: =VLOOKUP($C64,'Orçamento Base'!$D$11:$S$1673,4,FALSE) ->  | H64: =IFERROR(VLOOKUP($C64,'Orçamento Base'!$D$11:$S$1673,6,FALSE),0) -> 0 | I64: =VLOOKUP($C64,'Orçamento Base'!$D$11:$S$1673,5,FALSE) ->  | J64: =IF(Comparativo!$E$6="Tabela Não Desonerada",VLOOKUP($C64,'Orçamento Base'!$D$11:$S$1673,12,FALSE),VLOOKUP($C64,#REF!,12,FALSE)) ->  | K64: =IFERROR(IF(Comparativo!$E$6="Tabela Não Desonerada",VLOOKUP($C64,'Orçamento Base'!$D$11:$S$1673,16,FALSE),VLOOKUP($C64,#REF!,16,FALSE)),0) -> 0 | L64: =IF(AND($D64="COMPOSICAO_PROPRIA",'Orçamento Base'!$N64="-"),"14,18%",IF(AND($D64="MERCADO",'Orçamento Base'!$N64="-"),"15,38%",IF(Comparativo!$E$6="Tabela Não Desonerada",VLOOKUP($C64,'Orçamento Base'!$D$11:$S$1673,11,FALSE),VLOOKUP($C64,#REF!,11,FALSE)))) ->  | M64: =IF(Comparativo!$E$6="Tabela Não Desonerada",Encargos!$F$44,Encargos!$D$44) -> 1.1122
A65: ='Identificação-TCE'!$A$13 -> 1 | B65: =IF(AND(G65<>"",H65>0,I65<>"",J65<>0,K65<>0),COUNT($B$11:B64)+1,"") ->  | C65: =IF('Orçamento Base'!$M64=0,0,'Orçamento Base'!$D64) -> 0 | D65: =IF('Orçamento Base'!$F64=Aux.!$G$11,"CONTRATACAO_PUBLICA",IF(VLOOKUP($C65,'Orçamento Base'!$D$11:$G$2116,3,FALSE)="INDEXADO",VLOOKUP(VLOOKUP($C64,'Orçamento Base'!$D$11:$G$2116,2,FALSE),'Index N_DESON.'!$A$9:$B$604,2),VLOOKUP($C65,'Orçamento Base'!$D$11:$G$2116,3,FALSE))) ->  | E65: =VLOOKUP($C65,'Orçamento Base'!$D$11:$S$1673,2,FALSE) ->  | F65: =Dados!$C$7 -> 2022-04-01 | G65: =VLOOKUP($C65,'Orçamento Base'!$D$11:$S$1673,4,FALSE) ->  | H65: =IFERROR(VLOOKUP($C65,'Orçamento Base'!$D$11:$S$1673,6,FALSE),0) -> 0 | I65: =VLOOKUP($C65,'Orçamento Base'!$D$11:$S$1673,5,FALSE) ->  | J65: =IF(Comparativo!$E$6="Tabela Não Desonerada",VLOOKUP($C65,'Orçamento Base'!$D$11:$S$1673,12,FALSE),VLOOKUP($C65,#REF!,12,FALSE)) ->  | K65: =IFERROR(IF(Comparativo!$E$6="Tabela Não Desonerada",VLOOKUP($C65,'Orçamento Base'!$D$11:$S$1673,16,FALSE),VLOOKUP($C65,#REF!,16,FALSE)),0) -> 0 | L65: =IF(AND($D65="COMPOSICAO_PROPRIA",'Orçamento Base'!$N65="-"),"14,18%",IF(AND($D65="MERCADO",'Orçamento Base'!$N65="-"),"15,38%",IF(Comparativo!$E$6="Tabela Não Desonerada",VLOOKUP($C65,'Orçamento Base'!$D$11:$S$1673,11,FALSE),VLOOKUP($C65,#REF!,11,FALSE)))) ->  | M65: =IF(Comparativo!$E$6="Tabela Não Desonerada",Encargos!$F$44,Encargos!$D$44) -> 1.1122
A66: ='Identificação-TCE'!$A$13 -> 1 | B66: =IF(AND(G66<>"",H66>0,I66<>"",J66<>0,K66<>0),COUNT($B$11:B65)+1,"") ->  | C66: =IF('Orçamento Base'!$M65=0,0,'Orçamento Base'!$D65) -> 0 | D66: =IF('Orçamento Base'!$F65=Aux.!$G$11,"CONTRATACAO_PUBLICA",IF(VLOOKUP($C66,'Orçamento Base'!$D$11:$G$2116,3,FALSE)="INDEXADO",VLOOKUP(VLOOKUP($C65,'Orçamento Base'!$D$11:$G$2116,2,FALSE),'Index N_DESON.'!$A$9:$B$604,2),VLOOKUP($C66,'Orçamento Base'!$D$11:$G$2116,3,FALSE))) ->  | E66: =VLOOKUP($C66,'Orçamento Base'!$D$11:$S$1673,2,FALSE) ->  | F66: =Dados!$C$7 -> 2022-04-01 | G66: =VLOOKUP($C66,'Orçamento Base'!$D$11:$S$1673,4,FALSE) ->  | H66: =IFERROR(VLOOKUP($C66,'Orçamento Base'!$D$11:$S$1673,6,FALSE),0) -> 0 | I66: =VLOOKUP($C66,'Orçamento Base'!$D$11:$S$1673,5,FALSE) ->  | J66: =IF(Comparativo!$E$6="Tabela Não Desonerada",VLOOKUP($C66,'Orçamento Base'!$D$11:$S$1673,12,FALSE),VLOOKUP($C66,#REF!,12,FALSE)) ->  | K66: =IFERROR(IF(Comparativo!$E$6="Tabela Não Desonerada",VLOOKUP($C66,'Orçamento Base'!$D$11:$S$1673,16,FALSE),VLOOKUP($C66,#REF!,16,FALSE)),0) -> 0 | L66: =IF(AND($D66="COMPOSICAO_PROPRIA",'Orçamento Base'!$N66="-"),"14,18%",IF(AND($D66="MERCADO",'Orçamento Base'!$N66="-"),"15,38%",IF(Comparativo!$E$6="Tabela Não Desonerada",VLOOKUP($C66,'Orçamento Base'!$D$11:$S$1673,11,FALSE),VLOOKUP($C66,#REF!,11,FALSE)))) ->  | M66: =IF(Comparativo!$E$6="Tabela Não Desonerada",Encargos!$F$44,Encargos!$D$44) -> 1.1122
A67: ='Identificação-TCE'!$A$13 -> 1 | B67: =IF(AND(G67<>"",H67>0,I67<>"",J67<>0,K67<>0),COUNT($B$11:B66)+1,"") -> 4 | C67: =IF('Orçamento Base'!$M66=0,0,'Orçamento Base'!$D66) -> 2.1 | D67: =IF('Orçamento Base'!$F66=Aux.!$G$11,"CONTRATACAO_PUBLICA",IF(VLOOKUP($C67,'Orçamento Base'!$D$11:$G$2116,3,FALSE)="INDEXADO",VLOOKUP(VLOOKUP($C66,'Orçamento Base'!$D$11:$G$2116,2,FALSE),'Index N_DESON.'!$A$9:$B$604,2),VLOOKUP($C67,'Orçamento Base'!$D$11:$G$2116,3,FALSE))) -> ORSE | E67: =VLOOKUP($C67,'Orçamento Base'!$D$11:$S$1673,2,FALSE) -> 10390 | F67: =Dados!$C$7 -> 2022-04-01 | G67: =VLOOKUP($C67,'Orçamento Base'!$D$11:$S$1673,4,FALSE) -> ALUGUEL DE BANHEIRO QUÍMICO - COM LIMPEZAS DIÁRIAS | H67: =IFERROR(VLOOKUP($C67,'Orçamento Base'!$D$11:$S$1673,6,FALSE),0) -> 6 | I67: =VLOOKUP($C67,'Orçamento Base'!$D$11:$S$1673,5,FALSE) -> MES | J67: =IF(Comparativo!$E$6="Tabela Não Desonerada",VLOOKUP($C67,'Orçamento Base'!$D$11:$S$1673,12,FALSE),VLOOKUP($C67,#REF!,12,FALSE)) -> 745.19 | K67: =IFERROR(IF(Comparativo!$E$6="Tabela Não Desonerada",VLOOKUP($C67,'Orçamento Base'!$D$11:$S$1673,16,FALSE),VLOOKUP($C67,#REF!,16,FALSE)),0) -> 4471.14 | L67: =IF(AND($D67="COMPOSICAO_PROPRIA",'Orçamento Base'!$N67="-"),"14,18%",IF(AND($D67="MERCADO",'Orçamento Base'!$N67="-"),"15,38%",IF(Comparativo!$E$6="Tabela Não Desonerada",VLOOKUP($C67,'Orçamento Base'!$D$11:$S$1673,11,FALSE),VLOOKUP($C67,#REF!,11,FALSE)))) -> 0.2267 | M67: =IF(Comparativo!$E$6="Tabela Não Desonerada",Encargos!$F$44,Encargos!$D$44) -> 1.1122
A68: ='Identificação-TCE'!$A$13 -> 1 | B68: =IF(AND(G68<>"",H68>0,I68<>"",J68<>0,K68<>0),COUNT($B$11:B67)+1,"") -> 5 | C68: =IF('Orçamento Base'!$M67=0,0,'Orçamento Base'!$D67) -> 2.2 | D68: =IF('Orçamento Base'!$F67=Aux.!$G$11,"CONTRATACAO_PUBLICA",IF(VLOOKUP($C68,'Orçamento Base'!$D$11:$G$2116,3,FALSE)="INDEXADO",VLOOKUP(VLOOKUP($C67,'Orçamento Base'!$D$11:$G$2116,2,FALSE),'Index N_DESON.'!$A$9:$B$604,2),VLOOKUP($C68,'Orçamento Base'!$D$11:$G$2116,3,FALSE))) -> SINAPI | E68: =VLOOKUP($C68,'Orçamento Base'!$D$11:$S$1673,2,FALSE) -> 4813 | F68: =Dados!$C$7 -> 2022-04-01 | G68: =VLOOKUP($C68,'Orçamento Base'!$D$11:$S$1673,4,FALSE) -> PLACA DE OBRA (PARA CONSTRUCAO CIVIL) EM CHAPA GALVANIZADA *N. 22*, ADESIVADA, DE *2,4 X 1,2* M (SEM POSTES PARA FIXACAO) | H68: =IFERROR(VLOOKUP($C68,'Orçamento Base'!$D$11:$S$1673,6,FALSE),0) -> 4 | I68: =VLOOKUP($C68,'Orçamento Base'!$D$11:$S$1673,5,FALSE) -> M2 | J68: =IF(Comparativo!$E$6="Tabela Não Desonerada",VLOOKUP($C68,'Orçamento Base'!$D$11:$S$1673,12,FALSE),VLOOKUP($C68,#REF!,12,FALSE)) -> 276 | K68: =IFERROR(IF(Comparativo!$E$6="Tabela Não Desonerada",VLOOKUP($C68,'Orçamento Base'!$D$11:$S$1673,16,FALSE),VLOOKUP($C68,#REF!,16,FALSE)),0) -> 1104 | L68: =IF(AND($D68="COMPOSICAO_PROPRIA",'Orçamento Base'!$N68="-"),"14,18%",IF(AND($D68="MERCADO",'Orçamento Base'!$N68="-"),"15,38%",IF(Comparativo!$E$6="Tabela Não Desonerada",VLOOKUP($C68,'Orçamento Base'!$D$11:$S$1673,11,FALSE),VLOOKUP($C68,#REF!,11,FALSE)))) -> 0.2267 | M68: =IF(Comparativo!$E$6="Tabela Não Desonerada",Encargos!$F$44,Encargos!$D$44) -> 1.1122
A69: ='Identificação-TCE'!$A$13 -> 1 | B69: =IF(AND(G69<>"",H69>0,I69<>"",J69<>0,K69<>0),COUNT($B$11:B68)+1,"") -> 6 | C69: =IF('Orçamento Base'!$M68=0,0,'Orçamento Base'!$D68) -> 2.3 | D69: =IF('Orçamento Base'!$F68=Aux.!$G$11,"CONTRATACAO_PUBLICA",IF(VLOOKUP($C69,'Orçamento Base'!$D$11:$G$2116,3,FALSE)="INDEXADO",VLOOKUP(VLOOKUP($C68,'Orçamento Base'!$D$11:$G$2116,2,FALSE),'Index N_DESON.'!$A$9:$B$604,2),VLOOKUP($C69,'Orçamento Base'!$D$11:$G$2116,3,FALSE))) -> SINAPI | E69: =VLOOKUP($C69,'Orçamento Base'!$D$11:$S$1673,2,FALSE) -> 93207 | F69: =Dados!$C$7 -> 2022-04-01 | G69: =VLOOKUP($C69,'Orçamento Base'!$D$11:$S$1673,4,FALSE) -> EXECUÇÃO DE ESCRITÓRIO EM CANTEIRO DE OBRA EM CHAPA DE MADEIRA COMPENSADA, NÃO INCLUSO MOBILIÁRIO E EQUIPAMENTOS. AF_02/2016 | H69: =IFERROR(VLOOKUP($C69,'Orçamento Base'!$D$11:$S$1673,6,FALSE),0) -> 6 | I69: =VLOOKUP($C69,'Orçamento Base'!$D$11:$S$1673,5,FALSE) -> M2 | J69: =IF(Comparativo!$E$6="Tabela Não Desonerada",VLOOKUP($C69,'Orçamento Base'!$D$11:$S$1673,12,FALSE),VLOOKUP($C69,#REF!,12,FALSE)) -> 1359.51 | K69: =IFERROR(IF(Comparativo!$E$6="Tabela Não Desonerada",VLOOKUP($C69,'Orçamento Base'!$D$11:$S$1673,16,FALSE),VLOOKUP($C69,#REF!,16,FALSE)),0) -> 8157.06 | L69: =IF(AND($D69="COMPOSICAO_PROPRIA",'Orçamento Base'!$N69="-"),"14,18%",IF(AND($D69="MERCADO",'Orçamento Base'!$N69="-"),"15,38%",IF(Comparativo!$E$6="Tabela Não Desonerada",VLOOKUP($C69,'Orçamento Base'!$D$11:$S$1673,11,FALSE),VLOOKUP($C69,#REF!,11,FALSE)))) -> 0.2267 | M69: =IF(Comparativo!$E$6="Tabela Não Desonerada",Encargos!$F$44,Encargos!$D$44) -> 1.1122
A70: ='Identificação-TCE'!$A$13 -> 1 | B70: =IF(AND(G70<>"",H70>0,I70<>"",J70<>0,K70<>0),COUNT($B$11:B69)+1,"") -> 7 | C70: =IF('Orçamento Base'!$M69=0,0,'Orçamento Base'!$D69) -> 2.4 | D70: =IF('Orçamento Base'!$F69=Aux.!$G$11,"CONTRATACAO_PUBLICA",IF(VLOOKUP($C70,'Orçamento Base'!$D$11:$G$2116,3,FALSE)="INDEXADO",VLOOKUP(VLOOKUP($C69,'Orçamento Base'!$D$11:$G$2116,2,FALSE),'Index N_DESON.'!$A$9:$B$604,2),VLOOKUP($C70,'Orçamento Base'!$D$11:$G$2116,3,FALSE))) -> SINAPI | E70: =VLOOKUP($C70,'Orçamento Base'!$D$11:$S$1673,2,FALSE) -> 98524 | F70: =Dados!$C$7 -> 2022-04-01 | G70: =VLOOKUP($C70,'Orçamento Base'!$D$11:$S$1673,4,FALSE) -> LIMPEZA MANUAL DE VEGETAÇÃO EM TERRENO COM ENXADA.AF_05/2018 | H70: =IFERROR(VLOOKUP($C70,'Orçamento Base'!$D$11:$S$1673,6,FALSE),0) -> 350 | I70: =VLOOKUP($C70,'Orçamento Base'!$D$11:$S$1673,5,FALSE) -> M2 | J70: =IF(Comparativo!$E$6="Tabela Não Desonerada",VLOOKUP($C70,'Orçamento Base'!$D$11:$S$1673,12,FALSE),VLOOKUP($C70,#REF!,12,FALSE)) -> 3.31 | K70: =IFERROR(IF(Comparativo!$E$6="Tabela Não Desonerada",VLOOKUP($C70,'Orçamento Base'!$D$11:$S$1673,16,FALSE),VLOOKUP($C70,#REF!,16,FALSE)),0) -> 1158.5 | L70: =IF(AND($D70="COMPOSICAO_PROPRIA",'Orçamento Base'!$N70="-"),"14,18%",IF(AND($D70="MERCADO",'Orçamento Base'!$N70="-"),"15,38%",IF(Comparativo!$E$6="Tabela Não Desonerada",VLOOKUP($C70,'Orçamento Base'!$D$11:$S$1673,11,FALSE),VLOOKUP($C70,#REF!,11,FALSE)))) -> 0.2267 | M70: =IF(Comparativo!$E$6="Tabela Não Desonerada",Encargos!$F$44,Encargos!$D$44) -> 1.1122
A71: ='Identificação-TCE'!$A$13 -> 1 | B71: =IF(AND(G71<>"",H71>0,I71<>"",J71<>0,K71<>0),COUNT($B$11:B70)+1,"") ->  | C71: =IF('Orçamento Base'!$M70=0,0,'Orçamento Base'!$D70) -> 0 | D71: =IF('Orçamento Base'!$F70=Aux.!$G$11,"CONTRATACAO_PUBLICA",IF(VLOOKUP($C71,'Orçamento Base'!$D$11:$G$2116,3,FALSE)="INDEXADO",VLOOKUP(VLOOKUP($C70,'Orçamento Base'!$D$11:$G$2116,2,FALSE),'Index N_DESON.'!$A$9:$B$604,2),VLOOKUP($C71,'Orçamento Base'!$D$11:$G$2116,3,FALSE))) ->  | E71: =VLOOKUP($C71,'Orçamento Base'!$D$11:$S$1673,2,FALSE) ->  | F71: =Dados!$C$7 -> 2022-04-01 | G71: =VLOOKUP($C71,'Orçamento Base'!$D$11:$S$1673,4,FALSE) ->  | H71: =IFERROR(VLOOKUP($C71,'Orçamento Base'!$D$11:$S$1673,6,FALSE),0) -> 0 | I71: =VLOOKUP($C71,'Orçamento Base'!$D$11:$S$1673,5,FALSE) ->  | J71: =IF(Comparativo!$E$6="Tabela Não Desonerada",VLOOKUP($C71,'Orçamento Base'!$D$11:$S$1673,12,FALSE),VLOOKUP($C71,#REF!,12,FALSE)) ->  | K71: =IFERROR(IF(Comparativo!$E$6="Tabela Não Desonerada",VLOOKUP($C71,'Orçamento Base'!$D$11:$S$1673,16,FALSE),VLOOKUP($C71,#REF!,16,FALSE)),0) -> 0 | L71: =IF(AND($D71="COMPOSICAO_PROPRIA",'Orçamento Base'!$N71="-"),"14,18%",IF(AND($D71="MERCADO",'Orçamento Base'!$N71="-"),"15,38%",IF(Comparativo!$E$6="Tabela Não Desonerada",VLOOKUP($C71,'Orçamento Base'!$D$11:$S$1673,11,FALSE),VLOOKUP($C71,#REF!,11,FALSE)))) ->  | M71: =IF(Comparativo!$E$6="Tabela Não Desonerada",Encargos!$F$44,Encargos!$D$44) -> 1.1122
A72: ='Identificação-TCE'!$A$13 -> 1 | B72: =IF(AND(G72<>"",H72>0,I72<>"",J72<>0,K72<>0),COUNT($B$11:B71)+1,"") ->  | C72: =IF('Orçamento Base'!$M71=0,0,'Orçamento Base'!$D71) -> 0 | D72: =IF('Orçamento Base'!$F71=Aux.!$G$11,"CONTRATACAO_PUBLICA",IF(VLOOKUP($C72,'Orçamento Base'!$D$11:$G$2116,3,FALSE)="INDEXADO",VLOOKUP(VLOOKUP($C71,'Orçamento Base'!$D$11:$G$2116,2,FALSE),'Index N_DESON.'!$A$9:$B$604,2),VLOOKUP($C72,'Orçamento Base'!$D$11:$G$2116,3,FALSE))) ->  | E72: =VLOOKUP($C72,'Orçamento Base'!$D$11:$S$1673,2,FALSE) ->  | F72: =Dados!$C$7 -> 2022-04-01 | G72: =VLOOKUP($C72,'Orçamento Base'!$D$11:$S$1673,4,FALSE) ->  | H72: =IFERROR(VLOOKUP($C72,'Orçamento Base'!$D$11:$S$1673,6,FALSE),0) -> 0 | I72: =VLOOKUP($C72,'Orçamento Base'!$D$11:$S$1673,5,FALSE) ->  | J72: =IF(Comparativo!$E$6="Tabela Não Desonerada",VLOOKUP($C72,'Orçamento Base'!$D$11:$S$1673,12,FALSE),VLOOKUP($C72,#REF!,12,FALSE)) ->  | K72: =IFERROR(IF(Comparativo!$E$6="Tabela Não Desonerada",VLOOKUP($C72,'Orçamento Base'!$D$11:$S$1673,16,FALSE),VLOOKUP($C72,#REF!,16,FALSE)),0) -> 0 | L72: =IF(AND($D72="COMPOSICAO_PROPRIA",'Orçamento Base'!$N72="-"),"14,18%",IF(AND($D72="MERCADO",'Orçamento Base'!$N72="-"),"15,38%",IF(Comparativo!$E$6="Tabela Não Desonerada",VLOOKUP($C72,'Orçamento Base'!$D$11:$S$1673,11,FALSE),VLOOKUP($C72,#REF!,11,FALSE)))) ->  | M72: =IF(Comparativo!$E$6="Tabela Não Desonerada",Encargos!$F$44,Encargos!$D$44) -> 1.1122
A73: ='Identificação-TCE'!$A$13 -> 1 | B73: =IF(AND(G73<>"",H73>0,I73<>"",J73<>0,K73<>0),COUNT($B$11:B72)+1,"") ->  | C73: =IF('Orçamento Base'!$M72=0,0,'Orçamento Base'!$D72) -> 0 | D73: =IF('Orçamento Base'!$F72=Aux.!$G$11,"CONTRATACAO_PUBLICA",IF(VLOOKUP($C73,'Orçamento Base'!$D$11:$G$2116,3,FALSE)="INDEXADO",VLOOKUP(VLOOKUP($C72,'Orçamento Base'!$D$11:$G$2116,2,FALSE),'Index N_DESON.'!$A$9:$B$604,2),VLOOKUP($C73,'Orçamento Base'!$D$11:$G$2116,3,FALSE))) ->  | E73: =VLOOKUP($C73,'Orçamento Base'!$D$11:$S$1673,2,FALSE) ->  | F73: =Dados!$C$7 -> 2022-04-01 | G73: =VLOOKUP($C73,'Orçamento Base'!$D$11:$S$1673,4,FALSE) ->  | H73: =IFERROR(VLOOKUP($C73,'Orçamento Base'!$D$11:$S$1673,6,FALSE),0) -> 0 | I73: =VLOOKUP($C73,'Orçamento Base'!$D$11:$S$1673,5,FALSE) ->  | J73: =IF(Comparativo!$E$6="Tabela Não Desonerada",VLOOKUP($C73,'Orçamento Base'!$D$11:$S$1673,12,FALSE),VLOOKUP($C73,#REF!,12,FALSE)) ->  | K73: =IFERROR(IF(Comparativo!$E$6="Tabela Não Desonerada",VLOOKUP($C73,'Orçamento Base'!$D$11:$S$1673,16,FALSE),VLOOKUP($C73,#REF!,16,FALSE)),0) -> 0 | L73: =IF(AND($D73="COMPOSICAO_PROPRIA",'Orçamento Base'!$N73="-"),"14,18%",IF(AND($D73="MERCADO",'Orçamento Base'!$N73="-"),"15,38%",IF(Comparativo!$E$6="Tabela Não Desonerada",VLOOKUP($C73,'Orçamento Base'!$D$11:$S$1673,11,FALSE),VLOOKUP($C73,#REF!,11,FALSE)))) ->  | M73: =IF(Comparativo!$E$6="Tabela Não Desonerada",Encargos!$F$44,Encargos!$D$44) -> 1.1122
A74: ='Identificação-TCE'!$A$13 -> 1 | B74: =IF(AND(G74<>"",H74>0,I74<>"",J74<>0,K74<>0),COUNT($B$11:B73)+1,"") ->  | C74: =IF('Orçamento Base'!$M73=0,0,'Orçamento Base'!$D73) -> 0 | D74: =IF('Orçamento Base'!$F73=Aux.!$G$11,"CONTRATACAO_PUBLICA",IF(VLOOKUP($C74,'Orçamento Base'!$D$11:$G$2116,3,FALSE)="INDEXADO",VLOOKUP(VLOOKUP($C73,'Orçamento Base'!$D$11:$G$2116,2,FALSE),'Index N_DESON.'!$A$9:$B$604,2),VLOOKUP($C74,'Orçamento Base'!$D$11:$G$2116,3,FALSE))) ->  | E74: =VLOOKUP($C74,'Orçamento Base'!$D$11:$S$1673,2,FALSE) ->  | F74: =Dados!$C$7 -> 2022-04-01 | G74: =VLOOKUP($C74,'Orçamento Base'!$D$11:$S$1673,4,FALSE) ->  | H74: =IFERROR(VLOOKUP($C74,'Orçamento Base'!$D$11:$S$1673,6,FALSE),0) -> 0 | I74: =VLOOKUP($C74,'Orçamento Base'!$D$11:$S$1673,5,FALSE) ->  | J74: =IF(Comparativo!$E$6="Tabela Não Desonerada",VLOOKUP($C74,'Orçamento Base'!$D$11:$S$1673,12,FALSE),VLOOKUP($C74,#REF!,12,FALSE)) ->  | K74: =IFERROR(IF(Comparativo!$E$6="Tabela Não Desonerada",VLOOKUP($C74,'Orçamento Base'!$D$11:$S$1673,16,FALSE),VLOOKUP($C74,#REF!,16,FALSE)),0) -> 0 | L74: =IF(AND($D74="COMPOSICAO_PROPRIA",'Orçamento Base'!$N74="-"),"14,18%",IF(AND($D74="MERCADO",'Orçamento Base'!$N74="-"),"15,38%",IF(Comparativo!$E$6="Tabela Não Desonerada",VLOOKUP($C74,'Orçamento Base'!$D$11:$S$1673,11,FALSE),VLOOKUP($C74,#REF!,11,FALSE)))) ->  | M74: =IF(Comparativo!$E$6="Tabela Não Desonerada",Encargos!$F$44,Encargos!$D$44) -> 1.1122
A75: ='Identificação-TCE'!$A$13 -> 1 | B75: =IF(AND(G75<>"",H75>0,I75<>"",J75<>0,K75<>0),COUNT($B$11:B74)+1,"") ->  | C75: =IF('Orçamento Base'!$M74=0,0,'Orçamento Base'!$D74) -> 0 | D75: =IF('Orçamento Base'!$F74=Aux.!$G$11,"CONTRATACAO_PUBLICA",IF(VLOOKUP($C75,'Orçamento Base'!$D$11:$G$2116,3,FALSE)="INDEXADO",VLOOKUP(VLOOKUP($C74,'Orçamento Base'!$D$11:$G$2116,2,FALSE),'Index N_DESON.'!$A$9:$B$604,2),VLOOKUP($C75,'Orçamento Base'!$D$11:$G$2116,3,FALSE))) ->  | E75: =VLOOKUP($C75,'Orçamento Base'!$D$11:$S$1673,2,FALSE) ->  | F75: =Dados!$C$7 -> 2022-04-01 | G75: =VLOOKUP($C75,'Orçamento Base'!$D$11:$S$1673,4,FALSE) ->  | H75: =IFERROR(VLOOKUP($C75,'Orçamento Base'!$D$11:$S$1673,6,FALSE),0) -> 0 | I75: =VLOOKUP($C75,'Orçamento Base'!$D$11:$S$1673,5,FALSE) ->  | J75: =IF(Comparativo!$E$6="Tabela Não Desonerada",VLOOKUP($C75,'Orçamento Base'!$D$11:$S$1673,12,FALSE),VLOOKUP($C75,#REF!,12,FALSE)) ->  | K75: =IFERROR(IF(Comparativo!$E$6="Tabela Não Desonerada",VLOOKUP($C75,'Orçamento Base'!$D$11:$S$1673,16,FALSE),VLOOKUP($C75,#REF!,16,FALSE)),0) -> 0 | L75: =IF(AND($D75="COMPOSICAO_PROPRIA",'Orçamento Base'!$N75="-"),"14,18%",IF(AND($D75="MERCADO",'Orçamento Base'!$N75="-"),"15,38%",IF(Comparativo!$E$6="Tabela Não Desonerada",VLOOKUP($C75,'Orçamento Base'!$D$11:$S$1673,11,FALSE),VLOOKUP($C75,#REF!,11,FALSE)))) ->  | M75: =IF(Comparativo!$E$6="Tabela Não Desonerada",Encargos!$F$44,Encargos!$D$44) -> 1.1122
A76: ='Identificação-TCE'!$A$13 -> 1 | B76: =IF(AND(G76<>"",H76>0,I76<>"",J76<>0,K76<>0),COUNT($B$11:B75)+1,"") ->  | C76: =IF('Orçamento Base'!$M75=0,0,'Orçamento Base'!$D75) -> 0 | D76: =IF('Orçamento Base'!$F75=Aux.!$G$11,"CONTRATACAO_PUBLICA",IF(VLOOKUP($C76,'Orçamento Base'!$D$11:$G$2116,3,FALSE)="INDEXADO",VLOOKUP(VLOOKUP($C75,'Orçamento Base'!$D$11:$G$2116,2,FALSE),'Index N_DESON.'!$A$9:$B$604,2),VLOOKUP($C76,'Orçamento Base'!$D$11:$G$2116,3,FALSE))) ->  | E76: =VLOOKUP($C76,'Orçamento Base'!$D$11:$S$1673,2,FALSE) ->  | F76: =Dados!$C$7 -> 2022-04-01 | G76: =VLOOKUP($C76,'Orçamento Base'!$D$11:$S$1673,4,FALSE) ->  | H76: =IFERROR(VLOOKUP($C76,'Orçamento Base'!$D$11:$S$1673,6,FALSE),0) -> 0 | I76: =VLOOKUP($C76,'Orçamento Base'!$D$11:$S$1673,5,FALSE) ->  | J76: =IF(Comparativo!$E$6="Tabela Não Desonerada",VLOOKUP($C76,'Orçamento Base'!$D$11:$S$1673,12,FALSE),VLOOKUP($C76,#REF!,12,FALSE)) ->  | K76: =IFERROR(IF(Comparativo!$E$6="Tabela Não Desonerada",VLOOKUP($C76,'Orçamento Base'!$D$11:$S$1673,16,FALSE),VLOOKUP($C76,#REF!,16,FALSE)),0) -> 0 | L76: =IF(AND($D76="COMPOSICAO_PROPRIA",'Orçamento Base'!$N76="-"),"14,18%",IF(AND($D76="MERCADO",'Orçamento Base'!$N76="-"),"15,38%",IF(Comparativo!$E$6="Tabela Não Desonerada",VLOOKUP($C76,'Orçamento Base'!$D$11:$S$1673,11,FALSE),VLOOKUP($C76,#REF!,11,FALSE)))) ->  | M76: =IF(Comparativo!$E$6="Tabela Não Desonerada",Encargos!$F$44,Encargos!$D$44) -> 1.1122
A77: ='Identificação-TCE'!$A$13 -> 1 | B77: =IF(AND(G77<>"",H77>0,I77<>"",J77<>0,K77<>0),COUNT($B$11:B76)+1,"") ->  | C77: =IF('Orçamento Base'!$M76=0,0,'Orçamento Base'!$D76) -> 0 | D77: =IF('Orçamento Base'!$F76=Aux.!$G$11,"CONTRATACAO_PUBLICA",IF(VLOOKUP($C77,'Orçamento Base'!$D$11:$G$2116,3,FALSE)="INDEXADO",VLOOKUP(VLOOKUP($C76,'Orçamento Base'!$D$11:$G$2116,2,FALSE),'Index N_DESON.'!$A$9:$B$604,2),VLOOKUP($C77,'Orçamento Base'!$D$11:$G$2116,3,FALSE))) ->  | E77: =VLOOKUP($C77,'Orçamento Base'!$D$11:$S$1673,2,FALSE) ->  | F77: =Dados!$C$7 -> 2022-04-01 | G77: =VLOOKUP($C77,'Orçamento Base'!$D$11:$S$1673,4,FALSE) ->  | H77: =IFERROR(VLOOKUP($C77,'Orçamento Base'!$D$11:$S$1673,6,FALSE),0) -> 0 | I77: =VLOOKUP($C77,'Orçamento Base'!$D$11:$S$1673,5,FALSE) ->  | J77: =IF(Comparativo!$E$6="Tabela Não Desonerada",VLOOKUP($C77,'Orçamento Base'!$D$11:$S$1673,12,FALSE),VLOOKUP($C77,#REF!,12,FALSE)) ->  | K77: =IFERROR(IF(Comparativo!$E$6="Tabela Não Desonerada",VLOOKUP($C77,'Orçamento Base'!$D$11:$S$1673,16,FALSE),VLOOKUP($C77,#REF!,16,FALSE)),0) -> 0 | L77: =IF(AND($D77="COMPOSICAO_PROPRIA",'Orçamento Base'!$N77="-"),"14,18%",IF(AND($D77="MERCADO",'Orçamento Base'!$N77="-"),"15,38%",IF(Comparativo!$E$6="Tabela Não Desonerada",VLOOKUP($C77,'Orçamento Base'!$D$11:$S$1673,11,FALSE),VLOOKUP($C77,#REF!,11,FALSE)))) ->  | M77: =IF(Comparativo!$E$6="Tabela Não Desonerada",Encargos!$F$44,Encargos!$D$44) -> 1.1122
A78: ='Identificação-TCE'!$A$13 -> 1 | B78: =IF(AND(G78<>"",H78>0,I78<>"",J78<>0,K78<>0),COUNT($B$11:B77)+1,"") ->  | C78: =IF('Orçamento Base'!$M77=0,0,'Orçamento Base'!$D77) -> 0 | D78: =IF('Orçamento Base'!$F77=Aux.!$G$11,"CONTRATACAO_PUBLICA",IF(VLOOKUP($C78,'Orçamento Base'!$D$11:$G$2116,3,FALSE)="INDEXADO",VLOOKUP(VLOOKUP($C77,'Orçamento Base'!$D$11:$G$2116,2,FALSE),'Index N_DESON.'!$A$9:$B$604,2),VLOOKUP($C78,'Orçamento Base'!$D$11:$G$2116,3,FALSE))) ->  | E78: =VLOOKUP($C78,'Orçamento Base'!$D$11:$S$1673,2,FALSE) ->  | F78: =Dados!$C$7 -> 2022-04-01 | G78: =VLOOKUP($C78,'Orçamento Base'!$D$11:$S$1673,4,FALSE) ->  | H78: =IFERROR(VLOOKUP($C78,'Orçamento Base'!$D$11:$S$1673,6,FALSE),0) -> 0 | I78: =VLOOKUP($C78,'Orçamento Base'!$D$11:$S$1673,5,FALSE) ->  | J78: =IF(Comparativo!$E$6="Tabela Não Desonerada",VLOOKUP($C78,'Orçamento Base'!$D$11:$S$1673,12,FALSE),VLOOKUP($C78,#REF!,12,FALSE)) ->  | K78: =IFERROR(IF(Comparativo!$E$6="Tabela Não Desonerada",VLOOKUP($C78,'Orçamento Base'!$D$11:$S$1673,16,FALSE),VLOOKUP($C78,#REF!,16,FALSE)),0) -> 0 | L78: =IF(AND($D78="COMPOSICAO_PROPRIA",'Orçamento Base'!$N78="-"),"14,18%",IF(AND($D78="MERCADO",'Orçamento Base'!$N78="-"),"15,38%",IF(Comparativo!$E$6="Tabela Não Desonerada",VLOOKUP($C78,'Orçamento Base'!$D$11:$S$1673,11,FALSE),VLOOKUP($C78,#REF!,11,FALSE)))) ->  | M78: =IF(Comparativo!$E$6="Tabela Não Desonerada",Encargos!$F$44,Encargos!$D$44) -> 1.1122
A79: ='Identificação-TCE'!$A$13 -> 1 | B79: =IF(AND(G79<>"",H79>0,I79<>"",J79<>0,K79<>0),COUNT($B$11:B78)+1,"") ->  | C79: =IF('Orçamento Base'!$M78=0,0,'Orçamento Base'!$D78) -> 0 | D79: =IF('Orçamento Base'!$F78=Aux.!$G$11,"CONTRATACAO_PUBLICA",IF(VLOOKUP($C79,'Orçamento Base'!$D$11:$G$2116,3,FALSE)="INDEXADO",VLOOKUP(VLOOKUP($C78,'Orçamento Base'!$D$11:$G$2116,2,FALSE),'Index N_DESON.'!$A$9:$B$604,2),VLOOKUP($C79,'Orçamento Base'!$D$11:$G$2116,3,FALSE))) ->  | E79: =VLOOKUP($C79,'Orçamento Base'!$D$11:$S$1673,2,FALSE) ->  | F79: =Dados!$C$7 -> 2022-04-01 | G79: =VLOOKUP($C79,'Orçamento Base'!$D$11:$S$1673,4,FALSE) ->  | H79: =IFERROR(VLOOKUP($C79,'Orçamento Base'!$D$11:$S$1673,6,FALSE),0) -> 0 | I79: =VLOOKUP($C79,'Orçamento Base'!$D$11:$S$1673,5,FALSE) ->  | J79: =IF(Comparativo!$E$6="Tabela Não Desonerada",VLOOKUP($C79,'Orçamento Base'!$D$11:$S$1673,12,FALSE),VLOOKUP($C79,#REF!,12,FALSE)) ->  | K79: =IFERROR(IF(Comparativo!$E$6="Tabela Não Desonerada",VLOOKUP($C79,'Orçamento Base'!$D$11:$S$1673,16,FALSE),VLOOKUP($C79,#REF!,16,FALSE)),0) -> 0 | L79: =IF(AND($D79="COMPOSICAO_PROPRIA",'Orçamento Base'!$N79="-"),"14,18%",IF(AND($D79="MERCADO",'Orçamento Base'!$N79="-"),"15,38%",IF(Comparativo!$E$6="Tabela Não Desonerada",VLOOKUP($C79,'Orçamento Base'!$D$11:$S$1673,11,FALSE),VLOOKUP($C79,#REF!,11,FALSE)))) ->  | M79: =IF(Comparativo!$E$6="Tabela Não Desonerada",Encargos!$F$44,Encargos!$D$44) -> 1.1122
A80: ='Identificação-TCE'!$A$13 -> 1 | B80: =IF(AND(G80<>"",H80>0,I80<>"",J80<>0,K80<>0),COUNT($B$11:B79)+1,"") ->  | C80: =IF('Orçamento Base'!$M79=0,0,'Orçamento Base'!$D79) -> 0 | D80: =IF('Orçamento Base'!$F79=Aux.!$G$11,"CONTRATACAO_PUBLICA",IF(VLOOKUP($C80,'Orçamento Base'!$D$11:$G$2116,3,FALSE)="INDEXADO",VLOOKUP(VLOOKUP($C79,'Orçamento Base'!$D$11:$G$2116,2,FALSE),'Index N_DESON.'!$A$9:$B$604,2),VLOOKUP($C80,'Orçamento Base'!$D$11:$G$2116,3,FALSE))) ->  | E80: =VLOOKUP($C80,'Orçamento Base'!$D$11:$S$1673,2,FALSE) ->  | F80: =Dados!$C$7 -> 2022-04-01 | G80: =VLOOKUP($C80,'Orçamento Base'!$D$11:$S$1673,4,FALSE) ->  | H80: =IFERROR(VLOOKUP($C80,'Orçamento Base'!$D$11:$S$1673,6,FALSE),0) -> 0 | I80: =VLOOKUP($C80,'Orçamento Base'!$D$11:$S$1673,5,FALSE) ->  | J80: =IF(Comparativo!$E$6="Tabela Não Desonerada",VLOOKUP($C80,'Orçamento Base'!$D$11:$S$1673,12,FALSE),VLOOKUP($C80,#REF!,12,FALSE)) ->  | K80: =IFERROR(IF(Comparativo!$E$6="Tabela Não Desonerada",VLOOKUP($C80,'Orçamento Base'!$D$11:$S$1673,16,FALSE),VLOOKUP($C80,#REF!,16,FALSE)),0) -> 0 | L80: =IF(AND($D80="COMPOSICAO_PROPRIA",'Orçamento Base'!$N80="-"),"14,18%",IF(AND($D80="MERCADO",'Orçamento Base'!$N80="-"),"15,38%",IF(Comparativo!$E$6="Tabela Não Desonerada",VLOOKUP($C80,'Orçamento Base'!$D$11:$S$1673,11,FALSE),VLOOKUP($C80,#REF!,11,FALSE)))) ->  | M80: =IF(Comparativo!$E$6="Tabela Não Desonerada",Encargos!$F$44,Encargos!$D$44) -> 1.1122
A81: ='Identificação-TCE'!$A$13 -> 1 | B81: =IF(AND(G81<>"",H81>0,I81<>"",J81<>0,K81<>0),COUNT($B$11:B80)+1,"") ->  | C81: =IF('Orçamento Base'!$M80=0,0,'Orçamento Base'!$D80) -> 0 | D81: =IF('Orçamento Base'!$F80=Aux.!$G$11,"CONTRATACAO_PUBLICA",IF(VLOOKUP($C81,'Orçamento Base'!$D$11:$G$2116,3,FALSE)="INDEXADO",VLOOKUP(VLOOKUP($C80,'Orçamento Base'!$D$11:$G$2116,2,FALSE),'Index N_DESON.'!$A$9:$B$604,2),VLOOKUP($C81,'Orçamento Base'!$D$11:$G$2116,3,FALSE))) ->  | E81: =VLOOKUP($C81,'Orçamento Base'!$D$11:$S$1673,2,FALSE) ->  | F81: =Dados!$C$7 -> 2022-04-01 | G81: =VLOOKUP($C81,'Orçamento Base'!$D$11:$S$1673,4,FALSE) ->  | H81: =IFERROR(VLOOKUP($C81,'Orçamento Base'!$D$11:$S$1673,6,FALSE),0) -> 0 | I81: =VLOOKUP($C81,'Orçamento Base'!$D$11:$S$1673,5,FALSE) ->  | J81: =IF(Comparativo!$E$6="Tabela Não Desonerada",VLOOKUP($C81,'Orçamento Base'!$D$11:$S$1673,12,FALSE),VLOOKUP($C81,#REF!,12,FALSE)) ->  | K81: =IFERROR(IF(Comparativo!$E$6="Tabela Não Desonerada",VLOOKUP($C81,'Orçamento Base'!$D$11:$S$1673,16,FALSE),VLOOKUP($C81,#REF!,16,FALSE)),0) -> 0 | L81: =IF(AND($D81="COMPOSICAO_PROPRIA",'Orçamento Base'!$N81="-"),"14,18%",IF(AND($D81="MERCADO",'Orçamento Base'!$N81="-"),"15,38%",IF(Comparativo!$E$6="Tabela Não Desonerada",VLOOKUP($C81,'Orçamento Base'!$D$11:$S$1673,11,FALSE),VLOOKUP($C81,#REF!,11,FALSE)))) ->  | M81: =IF(Comparativo!$E$6="Tabela Não Desonerada",Encargos!$F$44,Encargos!$D$44) -> 1.1122
A82: ='Identificação-TCE'!$A$13 -> 1 | B82: =IF(AND(G82<>"",H82>0,I82<>"",J82<>0,K82<>0),COUNT($B$11:B81)+1,"") ->  | C82: =IF('Orçamento Base'!$M81=0,0,'Orçamento Base'!$D81) -> 0 | D82: =IF('Orçamento Base'!$F81=Aux.!$G$11,"CONTRATACAO_PUBLICA",IF(VLOOKUP($C82,'Orçamento Base'!$D$11:$G$2116,3,FALSE)="INDEXADO",VLOOKUP(VLOOKUP($C81,'Orçamento Base'!$D$11:$G$2116,2,FALSE),'Index N_DESON.'!$A$9:$B$604,2),VLOOKUP($C82,'Orçamento Base'!$D$11:$G$2116,3,FALSE))) ->  | E82: =VLOOKUP($C82,'Orçamento Base'!$D$11:$S$1673,2,FALSE) ->  | F82: =Dados!$C$7 -> 2022-04-01 | G82: =VLOOKUP($C82,'Orçamento Base'!$D$11:$S$1673,4,FALSE) ->  | H82: =IFERROR(VLOOKUP($C82,'Orçamento Base'!$D$11:$S$1673,6,FALSE),0) -> 0 | I82: =VLOOKUP($C82,'Orçamento Base'!$D$11:$S$1673,5,FALSE) ->  | J82: =IF(Comparativo!$E$6="Tabela Não Desonerada",VLOOKUP($C82,'Orçamento Base'!$D$11:$S$1673,12,FALSE),VLOOKUP($C82,#REF!,12,FALSE)) ->  | K82: =IFERROR(IF(Comparativo!$E$6="Tabela Não Desonerada",VLOOKUP($C82,'Orçamento Base'!$D$11:$S$1673,16,FALSE),VLOOKUP($C82,#REF!,16,FALSE)),0) -> 0 | L82: =IF(AND($D82="COMPOSICAO_PROPRIA",'Orçamento Base'!$N82="-"),"14,18%",IF(AND($D82="MERCADO",'Orçamento Base'!$N82="-"),"15,38%",IF(Comparativo!$E$6="Tabela Não Desonerada",VLOOKUP($C82,'Orçamento Base'!$D$11:$S$1673,11,FALSE),VLOOKUP($C82,#REF!,11,FALSE)))) ->  | M82: =IF(Comparativo!$E$6="Tabela Não Desonerada",Encargos!$F$44,Encargos!$D$44) -> 1.1122
A83: ='Identificação-TCE'!$A$13 -> 1 | B83: =IF(AND(G83<>"",H83>0,I83<>"",J83<>0,K83<>0),COUNT($B$11:B82)+1,"") ->  | C83: =IF('Orçamento Base'!$M82=0,0,'Orçamento Base'!$D82) -> 0 | D83: =IF('Orçamento Base'!$F82=Aux.!$G$11,"CONTRATACAO_PUBLICA",IF(VLOOKUP($C83,'Orçamento Base'!$D$11:$G$2116,3,FALSE)="INDEXADO",VLOOKUP(VLOOKUP($C82,'Orçamento Base'!$D$11:$G$2116,2,FALSE),'Index N_DESON.'!$A$9:$B$604,2),VLOOKUP($C83,'Orçamento Base'!$D$11:$G$2116,3,FALSE))) ->  | E83: =VLOOKUP($C83,'Orçamento Base'!$D$11:$S$1673,2,FALSE) ->  | F83: =Dados!$C$7 -> 2022-04-01 | G83: =VLOOKUP($C83,'Orçamento Base'!$D$11:$S$1673,4,FALSE) ->  | H83: =IFERROR(VLOOKUP($C83,'Orçamento Base'!$D$11:$S$1673,6,FALSE),0) -> 0 | I83: =VLOOKUP($C83,'Orçamento Base'!$D$11:$S$1673,5,FALSE) ->  | J83: =IF(Comparativo!$E$6="Tabela Não Desonerada",VLOOKUP($C83,'Orçamento Base'!$D$11:$S$1673,12,FALSE),VLOOKUP($C83,#REF!,12,FALSE)) ->  | K83: =IFERROR(IF(Comparativo!$E$6="Tabela Não Desonerada",VLOOKUP($C83,'Orçamento Base'!$D$11:$S$1673,16,FALSE),VLOOKUP($C83,#REF!,16,FALSE)),0) -> 0 | L83: =IF(AND($D83="COMPOSICAO_PROPRIA",'Orçamento Base'!$N83="-"),"14,18%",IF(AND($D83="MERCADO",'Orçamento Base'!$N83="-"),"15,38%",IF(Comparativo!$E$6="Tabela Não Desonerada",VLOOKUP($C83,'Orçamento Base'!$D$11:$S$1673,11,FALSE),VLOOKUP($C83,#REF!,11,FALSE)))) ->  | M83: =IF(Comparativo!$E$6="Tabela Não Desonerada",Encargos!$F$44,Encargos!$D$44) -> 1.1122
A84: ='Identificação-TCE'!$A$13 -> 1 | B84: =IF(AND(G84<>"",H84>0,I84<>"",J84<>0,K84<>0),COUNT($B$11:B83)+1,"") ->  | C84: =IF('Orçamento Base'!$M83=0,0,'Orçamento Base'!$D83) -> 0 | D84: =IF('Orçamento Base'!$F83=Aux.!$G$11,"CONTRATACAO_PUBLICA",IF(VLOOKUP($C84,'Orçamento Base'!$D$11:$G$2116,3,FALSE)="INDEXADO",VLOOKUP(VLOOKUP($C83,'Orçamento Base'!$D$11:$G$2116,2,FALSE),'Index N_DESON.'!$A$9:$B$604,2),VLOOKUP($C84,'Orçamento Base'!$D$11:$G$2116,3,FALSE))) ->  | E84: =VLOOKUP($C84,'Orçamento Base'!$D$11:$S$1673,2,FALSE) ->  | F84: =Dados!$C$7 -> 2022-04-01 | G84: =VLOOKUP($C84,'Orçamento Base'!$D$11:$S$1673,4,FALSE) ->  | H84: =IFERROR(VLOOKUP($C84,'Orçamento Base'!$D$11:$S$1673,6,FALSE),0) -> 0 | I84: =VLOOKUP($C84,'Orçamento Base'!$D$11:$S$1673,5,FALSE) ->  | J84: =IF(Comparativo!$E$6="Tabela Não Desonerada",VLOOKUP($C84,'Orçamento Base'!$D$11:$S$1673,12,FALSE),VLOOKUP($C84,#REF!,12,FALSE)) ->  | K84: =IFERROR(IF(Comparativo!$E$6="Tabela Não Desonerada",VLOOKUP($C84,'Orçamento Base'!$D$11:$S$1673,16,FALSE),VLOOKUP($C84,#REF!,16,FALSE)),0) -> 0 | L84: =IF(AND($D84="COMPOSICAO_PROPRIA",'Orçamento Base'!$N84="-"),"14,18%",IF(AND($D84="MERCADO",'Orçamento Base'!$N84="-"),"15,38%",IF(Comparativo!$E$6="Tabela Não Desonerada",VLOOKUP($C84,'Orçamento Base'!$D$11:$S$1673,11,FALSE),VLOOKUP($C84,#REF!,11,FALSE)))) ->  | M84: =IF(Comparativo!$E$6="Tabela Não Desonerada",Encargos!$F$44,Encargos!$D$44) -> 1.1122
A85: ='Identificação-TCE'!$A$13 -> 1 | B85: =IF(AND(G85<>"",H85>0,I85<>"",J85<>0,K85<>0),COUNT($B$11:B84)+1,"") ->  | C85: =IF('Orçamento Base'!$M84=0,0,'Orçamento Base'!$D84) -> 0 | D85: =IF('Orçamento Base'!$F84=Aux.!$G$11,"CONTRATACAO_PUBLICA",IF(VLOOKUP($C85,'Orçamento Base'!$D$11:$G$2116,3,FALSE)="INDEXADO",VLOOKUP(VLOOKUP($C84,'Orçamento Base'!$D$11:$G$2116,2,FALSE),'Index N_DESON.'!$A$9:$B$604,2),VLOOKUP($C85,'Orçamento Base'!$D$11:$G$2116,3,FALSE))) ->  | E85: =VLOOKUP($C85,'Orçamento Base'!$D$11:$S$1673,2,FALSE) ->  | F85: =Dados!$C$7 -> 2022-04-01 | G85: =VLOOKUP($C85,'Orçamento Base'!$D$11:$S$1673,4,FALSE) ->  | H85: =IFERROR(VLOOKUP($C85,'Orçamento Base'!$D$11:$S$1673,6,FALSE),0) -> 0 | I85: =VLOOKUP($C85,'Orçamento Base'!$D$11:$S$1673,5,FALSE) ->  | J85: =IF(Comparativo!$E$6="Tabela Não Desonerada",VLOOKUP($C85,'Orçamento Base'!$D$11:$S$1673,12,FALSE),VLOOKUP($C85,#REF!,12,FALSE)) ->  | K85: =IFERROR(IF(Comparativo!$E$6="Tabela Não Desonerada",VLOOKUP($C85,'Orçamento Base'!$D$11:$S$1673,16,FALSE),VLOOKUP($C85,#REF!,16,FALSE)),0) -> 0 | L85: =IF(AND($D85="COMPOSICAO_PROPRIA",'Orçamento Base'!$N85="-"),"14,18%",IF(AND($D85="MERCADO",'Orçamento Base'!$N85="-"),"15,38%",IF(Comparativo!$E$6="Tabela Não Desonerada",VLOOKUP($C85,'Orçamento Base'!$D$11:$S$1673,11,FALSE),VLOOKUP($C85,#REF!,11,FALSE)))) ->  | M85: =IF(Comparativo!$E$6="Tabela Não Desonerada",Encargos!$F$44,Encargos!$D$44) -> 1.1122
A86: ='Identificação-TCE'!$A$13 -> 1 | B86: =IF(AND(G86<>"",H86>0,I86<>"",J86<>0,K86<>0),COUNT($B$11:B85)+1,"") ->  | C86: =IF('Orçamento Base'!$M85=0,0,'Orçamento Base'!$D85) -> 0 | D86: =IF('Orçamento Base'!$F85=Aux.!$G$11,"CONTRATACAO_PUBLICA",IF(VLOOKUP($C86,'Orçamento Base'!$D$11:$G$2116,3,FALSE)="INDEXADO",VLOOKUP(VLOOKUP($C85,'Orçamento Base'!$D$11:$G$2116,2,FALSE),'Index N_DESON.'!$A$9:$B$604,2),VLOOKUP($C86,'Orçamento Base'!$D$11:$G$2116,3,FALSE))) ->  | E86: =VLOOKUP($C86,'Orçamento Base'!$D$11:$S$1673,2,FALSE) ->  | F86: =Dados!$C$7 -> 2022-04-01 | G86: =VLOOKUP($C86,'Orçamento Base'!$D$11:$S$1673,4,FALSE) ->  | H86: =IFERROR(VLOOKUP($C86,'Orçamento Base'!$D$11:$S$1673,6,FALSE),0) -> 0 | I86: =VLOOKUP($C86,'Orçamento Base'!$D$11:$S$1673,5,FALSE) ->  | J86: =IF(Comparativo!$E$6="Tabela Não Desonerada",VLOOKUP($C86,'Orçamento Base'!$D$11:$S$1673,12,FALSE),VLOOKUP($C86,#REF!,12,FALSE)) ->  | K86: =IFERROR(IF(Comparativo!$E$6="Tabela Não Desonerada",VLOOKUP($C86,'Orçamento Base'!$D$11:$S$1673,16,FALSE),VLOOKUP($C86,#REF!,16,FALSE)),0) -> 0 | L86: =IF(AND($D86="COMPOSICAO_PROPRIA",'Orçamento Base'!$N86="-"),"14,18%",IF(AND($D86="MERCADO",'Orçamento Base'!$N86="-"),"15,38%",IF(Comparativo!$E$6="Tabela Não Desonerada",VLOOKUP($C86,'Orçamento Base'!$D$11:$S$1673,11,FALSE),VLOOKUP($C86,#REF!,11,FALSE)))) ->  | M86: =IF(Comparativo!$E$6="Tabela Não Desonerada",Encargos!$F$44,Encargos!$D$44) -> 1.1122
A87: ='Identificação-TCE'!$A$13 -> 1 | B87: =IF(AND(G87<>"",H87>0,I87<>"",J87<>0,K87<>0),COUNT($B$11:B86)+1,"") ->  | C87: =IF('Orçamento Base'!$M86=0,0,'Orçamento Base'!$D86) -> 0 | D87: =IF('Orçamento Base'!$F86=Aux.!$G$11,"CONTRATACAO_PUBLICA",IF(VLOOKUP($C87,'Orçamento Base'!$D$11:$G$2116,3,FALSE)="INDEXADO",VLOOKUP(VLOOKUP($C86,'Orçamento Base'!$D$11:$G$2116,2,FALSE),'Index N_DESON.'!$A$9:$B$604,2),VLOOKUP($C87,'Orçamento Base'!$D$11:$G$2116,3,FALSE))) ->  | E87: =VLOOKUP($C87,'Orçamento Base'!$D$11:$S$1673,2,FALSE) ->  | F87: =Dados!$C$7 -> 2022-04-01 | G87: =VLOOKUP($C87,'Orçamento Base'!$D$11:$S$1673,4,FALSE) ->  | H87: =IFERROR(VLOOKUP($C87,'Orçamento Base'!$D$11:$S$1673,6,FALSE),0) -> 0 | I87: =VLOOKUP($C87,'Orçamento Base'!$D$11:$S$1673,5,FALSE) ->  | J87: =IF(Comparativo!$E$6="Tabela Não Desonerada",VLOOKUP($C87,'Orçamento Base'!$D$11:$S$1673,12,FALSE),VLOOKUP($C87,#REF!,12,FALSE)) ->  | K87: =IFERROR(IF(Comparativo!$E$6="Tabela Não Desonerada",VLOOKUP($C87,'Orçamento Base'!$D$11:$S$1673,16,FALSE),VLOOKUP($C87,#REF!,16,FALSE)),0) -> 0 | L87: =IF(AND($D87="COMPOSICAO_PROPRIA",'Orçamento Base'!$N87="-"),"14,18%",IF(AND($D87="MERCADO",'Orçamento Base'!$N87="-"),"15,38%",IF(Comparativo!$E$6="Tabela Não Desonerada",VLOOKUP($C87,'Orçamento Base'!$D$11:$S$1673,11,FALSE),VLOOKUP($C87,#REF!,11,FALSE)))) ->  | M87: =IF(Comparativo!$E$6="Tabela Não Desonerada",Encargos!$F$44,Encargos!$D$44) -> 1.1122
A88: ='Identificação-TCE'!$A$13 -> 1 | B88: =IF(AND(G88<>"",H88>0,I88<>"",J88<>0,K88<>0),COUNT($B$11:B87)+1,"") ->  | C88: =IF('Orçamento Base'!$M87=0,0,'Orçamento Base'!$D87) -> 0 | D88: =IF('Orçamento Base'!$F87=Aux.!$G$11,"CONTRATACAO_PUBLICA",IF(VLOOKUP($C88,'Orçamento Base'!$D$11:$G$2116,3,FALSE)="INDEXADO",VLOOKUP(VLOOKUP($C87,'Orçamento Base'!$D$11:$G$2116,2,FALSE),'Index N_DESON.'!$A$9:$B$604,2),VLOOKUP($C88,'Orçamento Base'!$D$11:$G$2116,3,FALSE))) ->  | E88: =VLOOKUP($C88,'Orçamento Base'!$D$11:$S$1673,2,FALSE) ->  | F88: =Dados!$C$7 -> 2022-04-01 | G88: =VLOOKUP($C88,'Orçamento Base'!$D$11:$S$1673,4,FALSE) ->  | H88: =IFERROR(VLOOKUP($C88,'Orçamento Base'!$D$11:$S$1673,6,FALSE),0) -> 0 | I88: =VLOOKUP($C88,'Orçamento Base'!$D$11:$S$1673,5,FALSE) ->  | J88: =IF(Comparativo!$E$6="Tabela Não Desonerada",VLOOKUP($C88,'Orçamento Base'!$D$11:$S$1673,12,FALSE),VLOOKUP($C88,#REF!,12,FALSE)) ->  | K88: =IFERROR(IF(Comparativo!$E$6="Tabela Não Desonerada",VLOOKUP($C88,'Orçamento Base'!$D$11:$S$1673,16,FALSE),VLOOKUP($C88,#REF!,16,FALSE)),0) -> 0 | L88: =IF(AND($D88="COMPOSICAO_PROPRIA",'Orçamento Base'!$N88="-"),"14,18%",IF(AND($D88="MERCADO",'Orçamento Base'!$N88="-"),"15,38%",IF(Comparativo!$E$6="Tabela Não Desonerada",VLOOKUP($C88,'Orçamento Base'!$D$11:$S$1673,11,FALSE),VLOOKUP($C88,#REF!,11,FALSE)))) ->  | M88: =IF(Comparativo!$E$6="Tabela Não Desonerada",Encargos!$F$44,Encargos!$D$44) -> 1.1122
A89: ='Identificação-TCE'!$A$13 -> 1 | B89: =IF(AND(G89<>"",H89>0,I89<>"",J89<>0,K89<>0),COUNT($B$11:B88)+1,"") ->  | C89: =IF('Orçamento Base'!$M88=0,0,'Orçamento Base'!$D88) -> 0 | D89: =IF('Orçamento Base'!$F88=Aux.!$G$11,"CONTRATACAO_PUBLICA",IF(VLOOKUP($C89,'Orçamento Base'!$D$11:$G$2116,3,FALSE)="INDEXADO",VLOOKUP(VLOOKUP($C88,'Orçamento Base'!$D$11:$G$2116,2,FALSE),'Index N_DESON.'!$A$9:$B$604,2),VLOOKUP($C89,'Orçamento Base'!$D$11:$G$2116,3,FALSE))) ->  | E89: =VLOOKUP($C89,'Orçamento Base'!$D$11:$S$1673,2,FALSE) ->  | F89: =Dados!$C$7 -> 2022-04-01 | G89: =VLOOKUP($C89,'Orçamento Base'!$D$11:$S$1673,4,FALSE) ->  | H89: =IFERROR(VLOOKUP($C89,'Orçamento Base'!$D$11:$S$1673,6,FALSE),0) -> 0 | I89: =VLOOKUP($C89,'Orçamento Base'!$D$11:$S$1673,5,FALSE) ->  | J89: =IF(Comparativo!$E$6="Tabela Não Desonerada",VLOOKUP($C89,'Orçamento Base'!$D$11:$S$1673,12,FALSE),VLOOKUP($C89,#REF!,12,FALSE)) ->  | K89: =IFERROR(IF(Comparativo!$E$6="Tabela Não Desonerada",VLOOKUP($C89,'Orçamento Base'!$D$11:$S$1673,16,FALSE),VLOOKUP($C89,#REF!,16,FALSE)),0) -> 0 | L89: =IF(AND($D89="COMPOSICAO_PROPRIA",'Orçamento Base'!$N89="-"),"14,18%",IF(AND($D89="MERCADO",'Orçamento Base'!$N89="-"),"15,38%",IF(Comparativo!$E$6="Tabela Não Desonerada",VLOOKUP($C89,'Orçamento Base'!$D$11:$S$1673,11,FALSE),VLOOKUP($C89,#REF!,11,FALSE)))) ->  | M89: =IF(Comparativo!$E$6="Tabela Não Desonerada",Encargos!$F$44,Encargos!$D$44) -> 1.1122
A90: ='Identificação-TCE'!$A$13 -> 1 | B90: =IF(AND(G90<>"",H90>0,I90<>"",J90<>0,K90<>0),COUNT($B$11:B89)+1,"") ->  | C90: =IF('Orçamento Base'!$M89=0,0,'Orçamento Base'!$D89) -> 0 | D90: =IF('Orçamento Base'!$F89=Aux.!$G$11,"CONTRATACAO_PUBLICA",IF(VLOOKUP($C90,'Orçamento Base'!$D$11:$G$2116,3,FALSE)="INDEXADO",VLOOKUP(VLOOKUP($C89,'Orçamento Base'!$D$11:$G$2116,2,FALSE),'Index N_DESON.'!$A$9:$B$604,2),VLOOKUP($C90,'Orçamento Base'!$D$11:$G$2116,3,FALSE))) ->  | E90: =VLOOKUP($C90,'Orçamento Base'!$D$11:$S$1673,2,FALSE) ->  | F90: =Dados!$C$7 -> 2022-04-01 | G90: =VLOOKUP($C90,'Orçamento Base'!$D$11:$S$1673,4,FALSE) ->  | H90: =IFERROR(VLOOKUP($C90,'Orçamento Base'!$D$11:$S$1673,6,FALSE),0) -> 0 | I90: =VLOOKUP($C90,'Orçamento Base'!$D$11:$S$1673,5,FALSE) ->  | J90: =IF(Comparativo!$E$6="Tabela Não Desonerada",VLOOKUP($C90,'Orçamento Base'!$D$11:$S$1673,12,FALSE),VLOOKUP($C90,#REF!,12,FALSE)) ->  | K90: =IFERROR(IF(Comparativo!$E$6="Tabela Não Desonerada",VLOOKUP($C90,'Orçamento Base'!$D$11:$S$1673,16,FALSE),VLOOKUP($C90,#REF!,16,FALSE)),0) -> 0 | L90: =IF(AND($D90="COMPOSICAO_PROPRIA",'Orçamento Base'!$N90="-"),"14,18%",IF(AND($D90="MERCADO",'Orçamento Base'!$N90="-"),"15,38%",IF(Comparativo!$E$6="Tabela Não Desonerada",VLOOKUP($C90,'Orçamento Base'!$D$11:$S$1673,11,FALSE),VLOOKUP($C90,#REF!,11,FALSE)))) ->  | M90: =IF(Comparativo!$E$6="Tabela Não Desonerada",Encargos!$F$44,Encargos!$D$44) -> 1.1122
A91: ='Identificação-TCE'!$A$13 -> 1 | B91: =IF(AND(G91<>"",H91>0,I91<>"",J91<>0,K91<>0),COUNT($B$11:B90)+1,"") ->  | C91: =IF('Orçamento Base'!$M90=0,0,'Orçamento Base'!$D90) -> 0 | D91: =IF('Orçamento Base'!$F90=Aux.!$G$11,"CONTRATACAO_PUBLICA",IF(VLOOKUP($C91,'Orçamento Base'!$D$11:$G$2116,3,FALSE)="INDEXADO",VLOOKUP(VLOOKUP($C90,'Orçamento Base'!$D$11:$G$2116,2,FALSE),'Index N_DESON.'!$A$9:$B$604,2),VLOOKUP($C91,'Orçamento Base'!$D$11:$G$2116,3,FALSE))) ->  | E91: =VLOOKUP($C91,'Orçamento Base'!$D$11:$S$1673,2,FALSE) ->  | F91: =Dados!$C$7 -> 2022-04-01 | G91: =VLOOKUP($C91,'Orçamento Base'!$D$11:$S$1673,4,FALSE) ->  | H91: =IFERROR(VLOOKUP($C91,'Orçamento Base'!$D$11:$S$1673,6,FALSE),0) -> 0 | I91: =VLOOKUP($C91,'Orçamento Base'!$D$11:$S$1673,5,FALSE) ->  | J91: =IF(Comparativo!$E$6="Tabela Não Desonerada",VLOOKUP($C91,'Orçamento Base'!$D$11:$S$1673,12,FALSE),VLOOKUP($C91,#REF!,12,FALSE)) ->  | K91: =IFERROR(IF(Comparativo!$E$6="Tabela Não Desonerada",VLOOKUP($C91,'Orçamento Base'!$D$11:$S$1673,16,FALSE),VLOOKUP($C91,#REF!,16,FALSE)),0) -> 0 | L91: =IF(AND($D91="COMPOSICAO_PROPRIA",'Orçamento Base'!$N91="-"),"14,18%",IF(AND($D91="MERCADO",'Orçamento Base'!$N91="-"),"15,38%",IF(Comparativo!$E$6="Tabela Não Desonerada",VLOOKUP($C91,'Orçamento Base'!$D$11:$S$1673,11,FALSE),VLOOKUP($C91,#REF!,11,FALSE)))) ->  | M91: =IF(Comparativo!$E$6="Tabela Não Desonerada",Encargos!$F$44,Encargos!$D$44) -> 1.1122
A92: ='Identificação-TCE'!$A$13 -> 1 | B92: =IF(AND(G92<>"",H92>0,I92<>"",J92<>0,K92<>0),COUNT($B$11:B91)+1,"") ->  | C92: =IF('Orçamento Base'!$M91=0,0,'Orçamento Base'!$D91) -> 0 | D92: =IF('Orçamento Base'!$F91=Aux.!$G$11,"CONTRATACAO_PUBLICA",IF(VLOOKUP($C92,'Orçamento Base'!$D$11:$G$2116,3,FALSE)="INDEXADO",VLOOKUP(VLOOKUP($C91,'Orçamento Base'!$D$11:$G$2116,2,FALSE),'Index N_DESON.'!$A$9:$B$604,2),VLOOKUP($C92,'Orçamento Base'!$D$11:$G$2116,3,FALSE))) ->  | E92: =VLOOKUP($C92,'Orçamento Base'!$D$11:$S$1673,2,FALSE) ->  | F92: =Dados!$C$7 -> 2022-04-01 | G92: =VLOOKUP($C92,'Orçamento Base'!$D$11:$S$1673,4,FALSE) ->  | H92: =IFERROR(VLOOKUP($C92,'Orçamento Base'!$D$11:$S$1673,6,FALSE),0) -> 0 | I92: =VLOOKUP($C92,'Orçamento Base'!$D$11:$S$1673,5,FALSE) ->  | J92: =IF(Comparativo!$E$6="Tabela Não Desonerada",VLOOKUP($C92,'Orçamento Base'!$D$11:$S$1673,12,FALSE),VLOOKUP($C92,#REF!,12,FALSE)) ->  | K92: =IFERROR(IF(Comparativo!$E$6="Tabela Não Desonerada",VLOOKUP($C92,'Orçamento Base'!$D$11:$S$1673,16,FALSE),VLOOKUP($C92,#REF!,16,FALSE)),0) -> 0 | L92: =IF(AND($D92="COMPOSICAO_PROPRIA",'Orçamento Base'!$N92="-"),"14,18%",IF(AND($D92="MERCADO",'Orçamento Base'!$N92="-"),"15,38%",IF(Comparativo!$E$6="Tabela Não Desonerada",VLOOKUP($C92,'Orçamento Base'!$D$11:$S$1673,11,FALSE),VLOOKUP($C92,#REF!,11,FALSE)))) ->  | M92: =IF(Comparativo!$E$6="Tabela Não Desonerada",Encargos!$F$44,Encargos!$D$44) -> 1.1122
A93: ='Identificação-TCE'!$A$13 -> 1 | B93: =IF(AND(G93<>"",H93>0,I93<>"",J93<>0,K93<>0),COUNT($B$11:B92)+1,"") ->  | C93: =IF('Orçamento Base'!$M92=0,0,'Orçamento Base'!$D92) -> 0 | D93: =IF('Orçamento Base'!$F92=Aux.!$G$11,"CONTRATACAO_PUBLICA",IF(VLOOKUP($C93,'Orçamento Base'!$D$11:$G$2116,3,FALSE)="INDEXADO",VLOOKUP(VLOOKUP($C92,'Orçamento Base'!$D$11:$G$2116,2,FALSE),'Index N_DESON.'!$A$9:$B$604,2),VLOOKUP($C93,'Orçamento Base'!$D$11:$G$2116,3,FALSE))) ->  | E93: =VLOOKUP($C93,'Orçamento Base'!$D$11:$S$1673,2,FALSE) ->  | F93: =Dados!$C$7 -> 2022-04-01 | G93: =VLOOKUP($C93,'Orçamento Base'!$D$11:$S$1673,4,FALSE) ->  | H93: =IFERROR(VLOOKUP($C93,'Orçamento Base'!$D$11:$S$1673,6,FALSE),0) -> 0 | I93: =VLOOKUP($C93,'Orçamento Base'!$D$11:$S$1673,5,FALSE) ->  | J93: =IF(Comparativo!$E$6="Tabela Não Desonerada",VLOOKUP($C93,'Orçamento Base'!$D$11:$S$1673,12,FALSE),VLOOKUP($C93,#REF!,12,FALSE)) ->  | K93: =IFERROR(IF(Comparativo!$E$6="Tabela Não Desonerada",VLOOKUP($C93,'Orçamento Base'!$D$11:$S$1673,16,FALSE),VLOOKUP($C93,#REF!,16,FALSE)),0) -> 0 | L93: =IF(AND($D93="COMPOSICAO_PROPRIA",'Orçamento Base'!$N93="-"),"14,18%",IF(AND($D93="MERCADO",'Orçamento Base'!$N93="-"),"15,38%",IF(Comparativo!$E$6="Tabela Não Desonerada",VLOOKUP($C93,'Orçamento Base'!$D$11:$S$1673,11,FALSE),VLOOKUP($C93,#REF!,11,FALSE)))) ->  | M93: =IF(Comparativo!$E$6="Tabela Não Desonerada",Encargos!$F$44,Encargos!$D$44) -> 1.1122
A94: ='Identificação-TCE'!$A$13 -> 1 | B94: =IF(AND(G94<>"",H94>0,I94<>"",J94<>0,K94<>0),COUNT($B$11:B93)+1,"") ->  | C94: =IF('Orçamento Base'!$M93=0,0,'Orçamento Base'!$D93) -> 0 | D94: =IF('Orçamento Base'!$F93=Aux.!$G$11,"CONTRATACAO_PUBLICA",IF(VLOOKUP($C94,'Orçamento Base'!$D$11:$G$2116,3,FALSE)="INDEXADO",VLOOKUP(VLOOKUP($C93,'Orçamento Base'!$D$11:$G$2116,2,FALSE),'Index N_DESON.'!$A$9:$B$604,2),VLOOKUP($C94,'Orçamento Base'!$D$11:$G$2116,3,FALSE))) ->  | E94: =VLOOKUP($C94,'Orçamento Base'!$D$11:$S$1673,2,FALSE) ->  | F94: =Dados!$C$7 -> 2022-04-01 | G94: =VLOOKUP($C94,'Orçamento Base'!$D$11:$S$1673,4,FALSE) ->  | H94: =IFERROR(VLOOKUP($C94,'Orçamento Base'!$D$11:$S$1673,6,FALSE),0) -> 0 | I94: =VLOOKUP($C94,'Orçamento Base'!$D$11:$S$1673,5,FALSE) ->  | J94: =IF(Comparativo!$E$6="Tabela Não Desonerada",VLOOKUP($C94,'Orçamento Base'!$D$11:$S$1673,12,FALSE),VLOOKUP($C94,#REF!,12,FALSE)) ->  | K94: =IFERROR(IF(Comparativo!$E$6="Tabela Não Desonerada",VLOOKUP($C94,'Orçamento Base'!$D$11:$S$1673,16,FALSE),VLOOKUP($C94,#REF!,16,FALSE)),0) -> 0 | L94: =IF(AND($D94="COMPOSICAO_PROPRIA",'Orçamento Base'!$N94="-"),"14,18%",IF(AND($D94="MERCADO",'Orçamento Base'!$N94="-"),"15,38%",IF(Comparativo!$E$6="Tabela Não Desonerada",VLOOKUP($C94,'Orçamento Base'!$D$11:$S$1673,11,FALSE),VLOOKUP($C94,#REF!,11,FALSE)))) ->  | M94: =IF(Comparativo!$E$6="Tabela Não Desonerada",Encargos!$F$44,Encargos!$D$44) -> 1.1122
A95: ='Identificação-TCE'!$A$13 -> 1 | B95: =IF(AND(G95<>"",H95>0,I95<>"",J95<>0,K95<>0),COUNT($B$11:B94)+1,"") ->  | C95: =IF('Orçamento Base'!$M94=0,0,'Orçamento Base'!$D94) -> 0 | D95: =IF('Orçamento Base'!$F94=Aux.!$G$11,"CONTRATACAO_PUBLICA",IF(VLOOKUP($C95,'Orçamento Base'!$D$11:$G$2116,3,FALSE)="INDEXADO",VLOOKUP(VLOOKUP($C94,'Orçamento Base'!$D$11:$G$2116,2,FALSE),'Index N_DESON.'!$A$9:$B$604,2),VLOOKUP($C95,'Orçamento Base'!$D$11:$G$2116,3,FALSE))) ->  | E95: =VLOOKUP($C95,'Orçamento Base'!$D$11:$S$1673,2,FALSE) ->  | F95: =Dados!$C$7 -> 2022-04-01 | G95: =VLOOKUP($C95,'Orçamento Base'!$D$11:$S$1673,4,FALSE) ->  | H95: =IFERROR(VLOOKUP($C95,'Orçamento Base'!$D$11:$S$1673,6,FALSE),0) -> 0 | I95: =VLOOKUP($C95,'Orçamento Base'!$D$11:$S$1673,5,FALSE) ->  | J95: =IF(Comparativo!$E$6="Tabela Não Desonerada",VLOOKUP($C95,'Orçamento Base'!$D$11:$S$1673,12,FALSE),VLOOKUP($C95,#REF!,12,FALSE)) ->  | K95: =IFERROR(IF(Comparativo!$E$6="Tabela Não Desonerada",VLOOKUP($C95,'Orçamento Base'!$D$11:$S$1673,16,FALSE),VLOOKUP($C95,#REF!,16,FALSE)),0) -> 0 | L95: =IF(AND($D95="COMPOSICAO_PROPRIA",'Orçamento Base'!$N95="-"),"14,18%",IF(AND($D95="MERCADO",'Orçamento Base'!$N95="-"),"15,38%",IF(Comparativo!$E$6="Tabela Não Desonerada",VLOOKUP($C95,'Orçamento Base'!$D$11:$S$1673,11,FALSE),VLOOKUP($C95,#REF!,11,FALSE)))) ->  | M95: =IF(Comparativo!$E$6="Tabela Não Desonerada",Encargos!$F$44,Encargos!$D$44) -> 1.1122
A96: ='Identificação-TCE'!$A$13 -> 1 | B96: =IF(AND(G96<>"",H96>0,I96<>"",J96<>0,K96<>0),COUNT($B$11:B95)+1,"") ->  | C96: =IF('Orçamento Base'!$M95=0,0,'Orçamento Base'!$D95) -> 0 | D96: =IF('Orçamento Base'!$F95=Aux.!$G$11,"CONTRATACAO_PUBLICA",IF(VLOOKUP($C96,'Orçamento Base'!$D$11:$G$2116,3,FALSE)="INDEXADO",VLOOKUP(VLOOKUP($C95,'Orçamento Base'!$D$11:$G$2116,2,FALSE),'Index N_DESON.'!$A$9:$B$604,2),VLOOKUP($C96,'Orçamento Base'!$D$11:$G$2116,3,FALSE))) ->  | E96: =VLOOKUP($C96,'Orçamento Base'!$D$11:$S$1673,2,FALSE) ->  | F96: =Dados!$C$7 -> 2022-04-01 | G96: =VLOOKUP($C96,'Orçamento Base'!$D$11:$S$1673,4,FALSE) ->  | H96: =IFERROR(VLOOKUP($C96,'Orçamento Base'!$D$11:$S$1673,6,FALSE),0) -> 0 | I96: =VLOOKUP($C96,'Orçamento Base'!$D$11:$S$1673,5,FALSE) ->  | J96: =IF(Comparativo!$E$6="Tabela Não Desonerada",VLOOKUP($C96,'Orçamento Base'!$D$11:$S$1673,12,FALSE),VLOOKUP($C96,#REF!,12,FALSE)) ->  | K96: =IFERROR(IF(Comparativo!$E$6="Tabela Não Desonerada",VLOOKUP($C96,'Orçamento Base'!$D$11:$S$1673,16,FALSE),VLOOKUP($C96,#REF!,16,FALSE)),0) -> 0 | L96: =IF(AND($D96="COMPOSICAO_PROPRIA",'Orçamento Base'!$N96="-"),"14,18%",IF(AND($D96="MERCADO",'Orçamento Base'!$N96="-"),"15,38%",IF(Comparativo!$E$6="Tabela Não Desonerada",VLOOKUP($C96,'Orçamento Base'!$D$11:$S$1673,11,FALSE),VLOOKUP($C96,#REF!,11,FALSE)))) ->  | M96: =IF(Comparativo!$E$6="Tabela Não Desonerada",Encargos!$F$44,Encargos!$D$44) -> 1.1122
A97: ='Identificação-TCE'!$A$13 -> 1 | B97: =IF(AND(G97<>"",H97>0,I97<>"",J97<>0,K97<>0),COUNT($B$11:B96)+1,"") ->  | C97: =IF('Orçamento Base'!$M96=0,0,'Orçamento Base'!$D96) -> 0 | D97: =IF('Orçamento Base'!$F96=Aux.!$G$11,"CONTRATACAO_PUBLICA",IF(VLOOKUP($C97,'Orçamento Base'!$D$11:$G$2116,3,FALSE)="INDEXADO",VLOOKUP(VLOOKUP($C96,'Orçamento Base'!$D$11:$G$2116,2,FALSE),'Index N_DESON.'!$A$9:$B$604,2),VLOOKUP($C97,'Orçamento Base'!$D$11:$G$2116,3,FALSE))) ->  | E97: =VLOOKUP($C97,'Orçamento Base'!$D$11:$S$1673,2,FALSE) ->  | F97: =Dados!$C$7 -> 2022-04-01 | G97: =VLOOKUP($C97,'Orçamento Base'!$D$11:$S$1673,4,FALSE) ->  | H97: =IFERROR(VLOOKUP($C97,'Orçamento Base'!$D$11:$S$1673,6,FALSE),0) -> 0 | I97: =VLOOKUP($C97,'Orçamento Base'!$D$11:$S$1673,5,FALSE) ->  | J97: =IF(Comparativo!$E$6="Tabela Não Desonerada",VLOOKUP($C97,'Orçamento Base'!$D$11:$S$1673,12,FALSE),VLOOKUP($C97,#REF!,12,FALSE)) ->  | K97: =IFERROR(IF(Comparativo!$E$6="Tabela Não Desonerada",VLOOKUP($C97,'Orçamento Base'!$D$11:$S$1673,16,FALSE),VLOOKUP($C97,#REF!,16,FALSE)),0) -> 0 | L97: =IF(AND($D97="COMPOSICAO_PROPRIA",'Orçamento Base'!$N97="-"),"14,18%",IF(AND($D97="MERCADO",'Orçamento Base'!$N97="-"),"15,38%",IF(Comparativo!$E$6="Tabela Não Desonerada",VLOOKUP($C97,'Orçamento Base'!$D$11:$S$1673,11,FALSE),VLOOKUP($C97,#REF!,11,FALSE)))) ->  | M97: =IF(Comparativo!$E$6="Tabela Não Desonerada",Encargos!$F$44,Encargos!$D$44) -> 1.1122
A98: ='Identificação-TCE'!$A$13 -> 1 | B98: =IF(AND(G98<>"",H98>0,I98<>"",J98<>0,K98<>0),COUNT($B$11:B97)+1,"") ->  | C98: =IF('Orçamento Base'!$M97=0,0,'Orçamento Base'!$D97) -> 0 | D98: =IF('Orçamento Base'!$F97=Aux.!$G$11,"CONTRATACAO_PUBLICA",IF(VLOOKUP($C98,'Orçamento Base'!$D$11:$G$2116,3,FALSE)="INDEXADO",VLOOKUP(VLOOKUP($C97,'Orçamento Base'!$D$11:$G$2116,2,FALSE),'Index N_DESON.'!$A$9:$B$604,2),VLOOKUP($C98,'Orçamento Base'!$D$11:$G$2116,3,FALSE))) ->  | E98: =VLOOKUP($C98,'Orçamento Base'!$D$11:$S$1673,2,FALSE) ->  | F98: =Dados!$C$7 -> 2022-04-01 | G98: =VLOOKUP($C98,'Orçamento Base'!$D$11:$S$1673,4,FALSE) ->  | H98: =IFERROR(VLOOKUP($C98,'Orçamento Base'!$D$11:$S$1673,6,FALSE),0) -> 0 | I98: =VLOOKUP($C98,'Orçamento Base'!$D$11:$S$1673,5,FALSE) ->  | J98: =IF(Comparativo!$E$6="Tabela Não Desonerada",VLOOKUP($C98,'Orçamento Base'!$D$11:$S$1673,12,FALSE),VLOOKUP($C98,#REF!,12,FALSE)) ->  | K98: =IFERROR(IF(Comparativo!$E$6="Tabela Não Desonerada",VLOOKUP($C98,'Orçamento Base'!$D$11:$S$1673,16,FALSE),VLOOKUP($C98,#REF!,16,FALSE)),0) -> 0 | L98: =IF(AND($D98="COMPOSICAO_PROPRIA",'Orçamento Base'!$N98="-"),"14,18%",IF(AND($D98="MERCADO",'Orçamento Base'!$N98="-"),"15,38%",IF(Comparativo!$E$6="Tabela Não Desonerada",VLOOKUP($C98,'Orçamento Base'!$D$11:$S$1673,11,FALSE),VLOOKUP($C98,#REF!,11,FALSE)))) ->  | M98: =IF(Comparativo!$E$6="Tabela Não Desonerada",Encargos!$F$44,Encargos!$D$44) -> 1.1122
A99: ='Identificação-TCE'!$A$13 -> 1 | B99: =IF(AND(G99<>"",H99>0,I99<>"",J99<>0,K99<>0),COUNT($B$11:B98)+1,"") ->  | C99: =IF('Orçamento Base'!$M98=0,0,'Orçamento Base'!$D98) -> 0 | D99: =IF('Orçamento Base'!$F98=Aux.!$G$11,"CONTRATACAO_PUBLICA",IF(VLOOKUP($C99,'Orçamento Base'!$D$11:$G$2116,3,FALSE)="INDEXADO",VLOOKUP(VLOOKUP($C98,'Orçamento Base'!$D$11:$G$2116,2,FALSE),'Index N_DESON.'!$A$9:$B$604,2),VLOOKUP($C99,'Orçamento Base'!$D$11:$G$2116,3,FALSE))) ->  | E99: =VLOOKUP($C99,'Orçamento Base'!$D$11:$S$1673,2,FALSE) ->  | F99: =Dados!$C$7 -> 2022-04-01 | G99: =VLOOKUP($C99,'Orçamento Base'!$D$11:$S$1673,4,FALSE) ->  | H99: =IFERROR(VLOOKUP($C99,'Orçamento Base'!$D$11:$S$1673,6,FALSE),0) -> 0 | I99: =VLOOKUP($C99,'Orçamento Base'!$D$11:$S$1673,5,FALSE) ->  | J99: =IF(Comparativo!$E$6="Tabela Não Desonerada",VLOOKUP($C99,'Orçamento Base'!$D$11:$S$1673,12,FALSE),VLOOKUP($C99,#REF!,12,FALSE)) ->  | K99: =IFERROR(IF(Comparativo!$E$6="Tabela Não Desonerada",VLOOKUP($C99,'Orçamento Base'!$D$11:$S$1673,16,FALSE),VLOOKUP($C99,#REF!,16,FALSE)),0) -> 0 | L99: =IF(AND($D99="COMPOSICAO_PROPRIA",'Orçamento Base'!$N99="-"),"14,18%",IF(AND($D99="MERCADO",'Orçamento Base'!$N99="-"),"15,38%",IF(Comparativo!$E$6="Tabela Não Desonerada",VLOOKUP($C99,'Orçamento Base'!$D$11:$S$1673,11,FALSE),VLOOKUP($C99,#REF!,11,FALSE)))) ->  | M99: =IF(Comparativo!$E$6="Tabela Não Desonerada",Encargos!$F$44,Encargos!$D$44) -> 1.1122
A100: ='Identificação-TCE'!$A$13 -> 1 | B100: =IF(AND(G100<>"",H100>0,I100<>"",J100<>0,K100<>0),COUNT($B$11:B99)+1,"") ->  | C100: =IF('Orçamento Base'!$M99=0,0,'Orçamento Base'!$D99) -> 0 | D100: =IF('Orçamento Base'!$F99=Aux.!$G$11,"CONTRATACAO_PUBLICA",IF(VLOOKUP($C100,'Orçamento Base'!$D$11:$G$2116,3,FALSE)="INDEXADO",VLOOKUP(VLOOKUP($C99,'Orçamento Base'!$D$11:$G$2116,2,FALSE),'Index N_DESON.'!$A$9:$B$604,2),VLOOKUP($C100,'Orçamento Base'!$D$11:$G$2116,3,FALSE))) ->  | E100: =VLOOKUP($C100,'Orçamento Base'!$D$11:$S$1673,2,FALSE) ->  | F100: =Dados!$C$7 -> 2022-04-01 | G100: =VLOOKUP($C100,'Orçamento Base'!$D$11:$S$1673,4,FALSE) ->  | H100: =IFERROR(VLOOKUP($C100,'Orçamento Base'!$D$11:$S$1673,6,FALSE),0) -> 0 | I100: =VLOOKUP($C100,'Orçamento Base'!$D$11:$S$1673,5,FALSE) ->  | J100: =IF(Comparativo!$E$6="Tabela Não Desonerada",VLOOKUP($C100,'Orçamento Base'!$D$11:$S$1673,12,FALSE),VLOOKUP($C100,#REF!,12,FALSE)) ->  | K100: =IFERROR(IF(Comparativo!$E$6="Tabela Não Desonerada",VLOOKUP($C100,'Orçamento Base'!$D$11:$S$1673,16,FALSE),VLOOKUP($C100,#REF!,16,FALSE)),0) -> 0 | L100: =IF(AND($D100="COMPOSICAO_PROPRIA",'Orçamento Base'!$N100="-"),"14,18%",IF(AND($D100="MERCADO",'Orçamento Base'!$N100="-"),"15,38%",IF(Comparativo!$E$6="Tabela Não Desonerada",VLOOKUP($C100,'Orçamento Base'!$D$11:$S$1673,11,FALSE),VLOOKUP($C100,#REF!,11,FALSE)))) ->  | M100: =IF(Comparativo!$E$6="Tabela Não Desonerada",Encargos!$F$44,Encargos!$D$44) -> 1.1122
A101: ='Identificação-TCE'!$A$13 -> 1 | B101: =IF(AND(G101<>"",H101>0,I101<>"",J101<>0,K101<>0),COUNT($B$11:B100)+1,"") ->  | C101: =IF('Orçamento Base'!$M100=0,0,'Orçamento Base'!$D100) -> 0 | D101: =IF('Orçamento Base'!$F100=Aux.!$G$11,"CONTRATACAO_PUBLICA",IF(VLOOKUP($C101,'Orçamento Base'!$D$11:$G$2116,3,FALSE)="INDEXADO",VLOOKUP(VLOOKUP($C100,'Orçamento Base'!$D$11:$G$2116,2,FALSE),'Index N_DESON.'!$A$9:$B$604,2),VLOOKUP($C101,'Orçamento Base'!$D$11:$G$2116,3,FALSE))) ->  | E101: =VLOOKUP($C101,'Orçamento Base'!$D$11:$S$1673,2,FALSE) ->  | F101: =Dados!$C$7 -> 2022-04-01 | G101: =VLOOKUP($C101,'Orçamento Base'!$D$11:$S$1673,4,FALSE) ->  | H101: =IFERROR(VLOOKUP($C101,'Orçamento Base'!$D$11:$S$1673,6,FALSE),0) -> 0 | I101: =VLOOKUP($C101,'Orçamento Base'!$D$11:$S$1673,5,FALSE) ->  | J101: =IF(Comparativo!$E$6="Tabela Não Desonerada",VLOOKUP($C101,'Orçamento Base'!$D$11:$S$1673,12,FALSE),VLOOKUP($C101,#REF!,12,FALSE)) ->  | K101: =IFERROR(IF(Comparativo!$E$6="Tabela Não Desonerada",VLOOKUP($C101,'Orçamento Base'!$D$11:$S$1673,16,FALSE),VLOOKUP($C101,#REF!,16,FALSE)),0) -> 0 | L101: =IF(AND($D101="COMPOSICAO_PROPRIA",'Orçamento Base'!$N101="-"),"14,18%",IF(AND($D101="MERCADO",'Orçamento Base'!$N101="-"),"15,38%",IF(Comparativo!$E$6="Tabela Não Desonerada",VLOOKUP($C101,'Orçamento Base'!$D$11:$S$1673,11,FALSE),VLOOKUP($C101,#REF!,11,FALSE)))) ->  | M101: =IF(Comparativo!$E$6="Tabela Não Desonerada",Encargos!$F$44,Encargos!$D$44) -> 1.1122
A102: ='Identificação-TCE'!$A$13 -> 1 | B102: =IF(AND(G102<>"",H102>0,I102<>"",J102<>0,K102<>0),COUNT($B$11:B101)+1,"") ->  | C102: =IF('Orçamento Base'!$M101=0,0,'Orçamento Base'!$D101) -> 0 | D102: =IF('Orçamento Base'!$F101=Aux.!$G$11,"CONTRATACAO_PUBLICA",IF(VLOOKUP($C102,'Orçamento Base'!$D$11:$G$2116,3,FALSE)="INDEXADO",VLOOKUP(VLOOKUP($C101,'Orçamento Base'!$D$11:$G$2116,2,FALSE),'Index N_DESON.'!$A$9:$B$604,2),VLOOKUP($C102,'Orçamento Base'!$D$11:$G$2116,3,FALSE))) ->  | E102: =VLOOKUP($C102,'Orçamento Base'!$D$11:$S$1673,2,FALSE) ->  | F102: =Dados!$C$7 -> 2022-04-01 | G102: =VLOOKUP($C102,'Orçamento Base'!$D$11:$S$1673,4,FALSE) ->  | H102: =IFERROR(VLOOKUP($C102,'Orçamento Base'!$D$11:$S$1673,6,FALSE),0) -> 0 | I102: =VLOOKUP($C102,'Orçamento Base'!$D$11:$S$1673,5,FALSE) ->  | J102: =IF(Comparativo!$E$6="Tabela Não Desonerada",VLOOKUP($C102,'Orçamento Base'!$D$11:$S$1673,12,FALSE),VLOOKUP($C102,#REF!,12,FALSE)) ->  | K102: =IFERROR(IF(Comparativo!$E$6="Tabela Não Desonerada",VLOOKUP($C102,'Orçamento Base'!$D$11:$S$1673,16,FALSE),VLOOKUP($C102,#REF!,16,FALSE)),0) -> 0 | L102: =IF(AND($D102="COMPOSICAO_PROPRIA",'Orçamento Base'!$N102="-"),"14,18%",IF(AND($D102="MERCADO",'Orçamento Base'!$N102="-"),"15,38%",IF(Comparativo!$E$6="Tabela Não Desonerada",VLOOKUP($C102,'Orçamento Base'!$D$11:$S$1673,11,FALSE),VLOOKUP($C102,#REF!,11,FALSE)))) ->  | M102: =IF(Comparativo!$E$6="Tabela Não Desonerada",Encargos!$F$44,Encargos!$D$44) -> 1.1122
A103: ='Identificação-TCE'!$A$13 -> 1 | B103: =IF(AND(G103<>"",H103>0,I103<>"",J103<>0,K103<>0),COUNT($B$11:B102)+1,"") ->  | C103: =IF('Orçamento Base'!$M102=0,0,'Orçamento Base'!$D102) -> 0 | D103: =IF('Orçamento Base'!$F102=Aux.!$G$11,"CONTRATACAO_PUBLICA",IF(VLOOKUP($C103,'Orçamento Base'!$D$11:$G$2116,3,FALSE)="INDEXADO",VLOOKUP(VLOOKUP($C102,'Orçamento Base'!$D$11:$G$2116,2,FALSE),'Index N_DESON.'!$A$9:$B$604,2),VLOOKUP($C103,'Orçamento Base'!$D$11:$G$2116,3,FALSE))) ->  | E103: =VLOOKUP($C103,'Orçamento Base'!$D$11:$S$1673,2,FALSE) ->  | F103: =Dados!$C$7 -> 2022-04-01 | G103: =VLOOKUP($C103,'Orçamento Base'!$D$11:$S$1673,4,FALSE) ->  | H103: =IFERROR(VLOOKUP($C103,'Orçamento Base'!$D$11:$S$1673,6,FALSE),0) -> 0 | I103: =VLOOKUP($C103,'Orçamento Base'!$D$11:$S$1673,5,FALSE) ->  | J103: =IF(Comparativo!$E$6="Tabela Não Desonerada",VLOOKUP($C103,'Orçamento Base'!$D$11:$S$1673,12,FALSE),VLOOKUP($C103,#REF!,12,FALSE)) ->  | K103: =IFERROR(IF(Comparativo!$E$6="Tabela Não Desonerada",VLOOKUP($C103,'Orçamento Base'!$D$11:$S$1673,16,FALSE),VLOOKUP($C103,#REF!,16,FALSE)),0) -> 0 | L103: =IF(AND($D103="COMPOSICAO_PROPRIA",'Orçamento Base'!$N103="-"),"14,18%",IF(AND($D103="MERCADO",'Orçamento Base'!$N103="-"),"15,38%",IF(Comparativo!$E$6="Tabela Não Desonerada",VLOOKUP($C103,'Orçamento Base'!$D$11:$S$1673,11,FALSE),VLOOKUP($C103,#REF!,11,FALSE)))) ->  | M103: =IF(Comparativo!$E$6="Tabela Não Desonerada",Encargos!$F$44,Encargos!$D$44) -> 1.1122
A104: ='Identificação-TCE'!$A$13 -> 1 | B104: =IF(AND(G104<>"",H104>0,I104<>"",J104<>0,K104<>0),COUNT($B$11:B103)+1,"") ->  | C104: =IF('Orçamento Base'!$M103=0,0,'Orçamento Base'!$D103) -> 0 | D104: =IF('Orçamento Base'!$F103=Aux.!$G$11,"CONTRATACAO_PUBLICA",IF(VLOOKUP($C104,'Orçamento Base'!$D$11:$G$2116,3,FALSE)="INDEXADO",VLOOKUP(VLOOKUP($C103,'Orçamento Base'!$D$11:$G$2116,2,FALSE),'Index N_DESON.'!$A$9:$B$604,2),VLOOKUP($C104,'Orçamento Base'!$D$11:$G$2116,3,FALSE))) ->  | E104: =VLOOKUP($C104,'Orçamento Base'!$D$11:$S$1673,2,FALSE) ->  | F104: =Dados!$C$7 -> 2022-04-01 | G104: =VLOOKUP($C104,'Orçamento Base'!$D$11:$S$1673,4,FALSE) ->  | H104: =IFERROR(VLOOKUP($C104,'Orçamento Base'!$D$11:$S$1673,6,FALSE),0) -> 0 | I104: =VLOOKUP($C104,'Orçamento Base'!$D$11:$S$1673,5,FALSE) ->  | J104: =IF(Comparativo!$E$6="Tabela Não Desonerada",VLOOKUP($C104,'Orçamento Base'!$D$11:$S$1673,12,FALSE),VLOOKUP($C104,#REF!,12,FALSE)) ->  | K104: =IFERROR(IF(Comparativo!$E$6="Tabela Não Desonerada",VLOOKUP($C104,'Orçamento Base'!$D$11:$S$1673,16,FALSE),VLOOKUP($C104,#REF!,16,FALSE)),0) -> 0 | L104: =IF(AND($D104="COMPOSICAO_PROPRIA",'Orçamento Base'!$N104="-"),"14,18%",IF(AND($D104="MERCADO",'Orçamento Base'!$N104="-"),"15,38%",IF(Comparativo!$E$6="Tabela Não Desonerada",VLOOKUP($C104,'Orçamento Base'!$D$11:$S$1673,11,FALSE),VLOOKUP($C104,#REF!,11,FALSE)))) ->  | M104: =IF(Comparativo!$E$6="Tabela Não Desonerada",Encargos!$F$44,Encargos!$D$44) -> 1.1122
A105: ='Identificação-TCE'!$A$13 -> 1 | B105: =IF(AND(G105<>"",H105>0,I105<>"",J105<>0,K105<>0),COUNT($B$11:B104)+1,"") ->  | C105: =IF('Orçamento Base'!$M104=0,0,'Orçamento Base'!$D104) -> 0 | D105: =IF('Orçamento Base'!$F104=Aux.!$G$11,"CONTRATACAO_PUBLICA",IF(VLOOKUP($C105,'Orçamento Base'!$D$11:$G$2116,3,FALSE)="INDEXADO",VLOOKUP(VLOOKUP($C104,'Orçamento Base'!$D$11:$G$2116,2,FALSE),'Index N_DESON.'!$A$9:$B$604,2),VLOOKUP($C105,'Orçamento Base'!$D$11:$G$2116,3,FALSE))) ->  | E105: =VLOOKUP($C105,'Orçamento Base'!$D$11:$S$1673,2,FALSE) ->  | F105: =Dados!$C$7 -> 2022-04-01 | G105: =VLOOKUP($C105,'Orçamento Base'!$D$11:$S$1673,4,FALSE) ->  | H105: =IFERROR(VLOOKUP($C105,'Orçamento Base'!$D$11:$S$1673,6,FALSE),0) -> 0 | I105: =VLOOKUP($C105,'Orçamento Base'!$D$11:$S$1673,5,FALSE) ->  | J105: =IF(Comparativo!$E$6="Tabela Não Desonerada",VLOOKUP($C105,'Orçamento Base'!$D$11:$S$1673,12,FALSE),VLOOKUP($C105,#REF!,12,FALSE)) ->  | K105: =IFERROR(IF(Comparativo!$E$6="Tabela Não Desonerada",VLOOKUP($C105,'Orçamento Base'!$D$11:$S$1673,16,FALSE),VLOOKUP($C105,#REF!,16,FALSE)),0) -> 0 | L105: =IF(AND($D105="COMPOSICAO_PROPRIA",'Orçamento Base'!$N105="-"),"14,18%",IF(AND($D105="MERCADO",'Orçamento Base'!$N105="-"),"15,38%",IF(Comparativo!$E$6="Tabela Não Desonerada",VLOOKUP($C105,'Orçamento Base'!$D$11:$S$1673,11,FALSE),VLOOKUP($C105,#REF!,11,FALSE)))) ->  | M105: =IF(Comparativo!$E$6="Tabela Não Desonerada",Encargos!$F$44,Encargos!$D$44) -> 1.1122
A106: ='Identificação-TCE'!$A$13 -> 1 | B106: =IF(AND(G106<>"",H106>0,I106<>"",J106<>0,K106<>0),COUNT($B$11:B105)+1,"") ->  | C106: =IF('Orçamento Base'!$M105=0,0,'Orçamento Base'!$D105) -> 0 | D106: =IF('Orçamento Base'!$F105=Aux.!$G$11,"CONTRATACAO_PUBLICA",IF(VLOOKUP($C106,'Orçamento Base'!$D$11:$G$2116,3,FALSE)="INDEXADO",VLOOKUP(VLOOKUP($C105,'Orçamento Base'!$D$11:$G$2116,2,FALSE),'Index N_DESON.'!$A$9:$B$604,2),VLOOKUP($C106,'Orçamento Base'!$D$11:$G$2116,3,FALSE))) ->  | E106: =VLOOKUP($C106,'Orçamento Base'!$D$11:$S$1673,2,FALSE) ->  | F106: =Dados!$C$7 -> 2022-04-01 | G106: =VLOOKUP($C106,'Orçamento Base'!$D$11:$S$1673,4,FALSE) ->  | H106: =IFERROR(VLOOKUP($C106,'Orçamento Base'!$D$11:$S$1673,6,FALSE),0) -> 0 | I106: =VLOOKUP($C106,'Orçamento Base'!$D$11:$S$1673,5,FALSE) ->  | J106: =IF(Comparativo!$E$6="Tabela Não Desonerada",VLOOKUP($C106,'Orçamento Base'!$D$11:$S$1673,12,FALSE),VLOOKUP($C106,#REF!,12,FALSE)) ->  | K106: =IFERROR(IF(Comparativo!$E$6="Tabela Não Desonerada",VLOOKUP($C106,'Orçamento Base'!$D$11:$S$1673,16,FALSE),VLOOKUP($C106,#REF!,16,FALSE)),0) -> 0 | L106: =IF(AND($D106="COMPOSICAO_PROPRIA",'Orçamento Base'!$N106="-"),"14,18%",IF(AND($D106="MERCADO",'Orçamento Base'!$N106="-"),"15,38%",IF(Comparativo!$E$6="Tabela Não Desonerada",VLOOKUP($C106,'Orçamento Base'!$D$11:$S$1673,11,FALSE),VLOOKUP($C106,#REF!,11,FALSE)))) ->  | M106: =IF(Comparativo!$E$6="Tabela Não Desonerada",Encargos!$F$44,Encargos!$D$44) -> 1.1122
A107: ='Identificação-TCE'!$A$13 -> 1 | B107: =IF(AND(G107<>"",H107>0,I107<>"",J107<>0,K107<>0),COUNT($B$11:B106)+1,"") ->  | C107: =IF('Orçamento Base'!$M106=0,0,'Orçamento Base'!$D106) -> 0 | D107: =IF('Orçamento Base'!$F106=Aux.!$G$11,"CONTRATACAO_PUBLICA",IF(VLOOKUP($C107,'Orçamento Base'!$D$11:$G$2116,3,FALSE)="INDEXADO",VLOOKUP(VLOOKUP($C106,'Orçamento Base'!$D$11:$G$2116,2,FALSE),'Index N_DESON.'!$A$9:$B$604,2),VLOOKUP($C107,'Orçamento Base'!$D$11:$G$2116,3,FALSE))) ->  | E107: =VLOOKUP($C107,'Orçamento Base'!$D$11:$S$1673,2,FALSE) ->  | F107: =Dados!$C$7 -> 2022-04-01 | G107: =VLOOKUP($C107,'Orçamento Base'!$D$11:$S$1673,4,FALSE) ->  | H107: =IFERROR(VLOOKUP($C107,'Orçamento Base'!$D$11:$S$1673,6,FALSE),0) -> 0 | I107: =VLOOKUP($C107,'Orçamento Base'!$D$11:$S$1673,5,FALSE) ->  | J107: =IF(Comparativo!$E$6="Tabela Não Desonerada",VLOOKUP($C107,'Orçamento Base'!$D$11:$S$1673,12,FALSE),VLOOKUP($C107,#REF!,12,FALSE)) ->  | K107: =IFERROR(IF(Comparativo!$E$6="Tabela Não Desonerada",VLOOKUP($C107,'Orçamento Base'!$D$11:$S$1673,16,FALSE),VLOOKUP($C107,#REF!,16,FALSE)),0) -> 0 | L107: =IF(AND($D107="COMPOSICAO_PROPRIA",'Orçamento Base'!$N107="-"),"14,18%",IF(AND($D107="MERCADO",'Orçamento Base'!$N107="-"),"15,38%",IF(Comparativo!$E$6="Tabela Não Desonerada",VLOOKUP($C107,'Orçamento Base'!$D$11:$S$1673,11,FALSE),VLOOKUP($C107,#REF!,11,FALSE)))) ->  | M107: =IF(Comparativo!$E$6="Tabela Não Desonerada",Encargos!$F$44,Encargos!$D$44) -> 1.1122
A108: ='Identificação-TCE'!$A$13 -> 1 | B108: =IF(AND(G108<>"",H108>0,I108<>"",J108<>0,K108<>0),COUNT($B$11:B107)+1,"") ->  | C108: =IF('Orçamento Base'!$M107=0,0,'Orçamento Base'!$D107) -> 0 | D108: =IF('Orçamento Base'!$F107=Aux.!$G$11,"CONTRATACAO_PUBLICA",IF(VLOOKUP($C108,'Orçamento Base'!$D$11:$G$2116,3,FALSE)="INDEXADO",VLOOKUP(VLOOKUP($C107,'Orçamento Base'!$D$11:$G$2116,2,FALSE),'Index N_DESON.'!$A$9:$B$604,2),VLOOKUP($C108,'Orçamento Base'!$D$11:$G$2116,3,FALSE))) ->  | E108: =VLOOKUP($C108,'Orçamento Base'!$D$11:$S$1673,2,FALSE) ->  | F108: =Dados!$C$7 -> 2022-04-01 | G108: =VLOOKUP($C108,'Orçamento Base'!$D$11:$S$1673,4,FALSE) ->  | H108: =IFERROR(VLOOKUP($C108,'Orçamento Base'!$D$11:$S$1673,6,FALSE),0) -> 0 | I108: =VLOOKUP($C108,'Orçamento Base'!$D$11:$S$1673,5,FALSE) ->  | J108: =IF(Comparativo!$E$6="Tabela Não Desonerada",VLOOKUP($C108,'Orçamento Base'!$D$11:$S$1673,12,FALSE),VLOOKUP($C108,#REF!,12,FALSE)) ->  | K108: =IFERROR(IF(Comparativo!$E$6="Tabela Não Desonerada",VLOOKUP($C108,'Orçamento Base'!$D$11:$S$1673,16,FALSE),VLOOKUP($C108,#REF!,16,FALSE)),0) -> 0 | L108: =IF(AND($D108="COMPOSICAO_PROPRIA",'Orçamento Base'!$N108="-"),"14,18%",IF(AND($D108="MERCADO",'Orçamento Base'!$N108="-"),"15,38%",IF(Comparativo!$E$6="Tabela Não Desonerada",VLOOKUP($C108,'Orçamento Base'!$D$11:$S$1673,11,FALSE),VLOOKUP($C108,#REF!,11,FALSE)))) ->  | M108: =IF(Comparativo!$E$6="Tabela Não Desonerada",Encargos!$F$44,Encargos!$D$44) -> 1.1122
A109: ='Identificação-TCE'!$A$13 -> 1 | B109: =IF(AND(G109<>"",H109>0,I109<>"",J109<>0,K109<>0),COUNT($B$11:B108)+1,"") ->  | C109: =IF('Orçamento Base'!$M108=0,0,'Orçamento Base'!$D108) -> 0 | D109: =IF('Orçamento Base'!$F108=Aux.!$G$11,"CONTRATACAO_PUBLICA",IF(VLOOKUP($C109,'Orçamento Base'!$D$11:$G$2116,3,FALSE)="INDEXADO",VLOOKUP(VLOOKUP($C108,'Orçamento Base'!$D$11:$G$2116,2,FALSE),'Index N_DESON.'!$A$9:$B$604,2),VLOOKUP($C109,'Orçamento Base'!$D$11:$G$2116,3,FALSE))) ->  | E109: =VLOOKUP($C109,'Orçamento Base'!$D$11:$S$1673,2,FALSE) ->  | F109: =Dados!$C$7 -> 2022-04-01 | G109: =VLOOKUP($C109,'Orçamento Base'!$D$11:$S$1673,4,FALSE) ->  | H109: =IFERROR(VLOOKUP($C109,'Orçamento Base'!$D$11:$S$1673,6,FALSE),0) -> 0 | I109: =VLOOKUP($C109,'Orçamento Base'!$D$11:$S$1673,5,FALSE) ->  | J109: =IF(Comparativo!$E$6="Tabela Não Desonerada",VLOOKUP($C109,'Orçamento Base'!$D$11:$S$1673,12,FALSE),VLOOKUP($C109,#REF!,12,FALSE)) ->  | K109: =IFERROR(IF(Comparativo!$E$6="Tabela Não Desonerada",VLOOKUP($C109,'Orçamento Base'!$D$11:$S$1673,16,FALSE),VLOOKUP($C109,#REF!,16,FALSE)),0) -> 0 | L109: =IF(AND($D109="COMPOSICAO_PROPRIA",'Orçamento Base'!$N109="-"),"14,18%",IF(AND($D109="MERCADO",'Orçamento Base'!$N109="-"),"15,38%",IF(Comparativo!$E$6="Tabela Não Desonerada",VLOOKUP($C109,'Orçamento Base'!$D$11:$S$1673,11,FALSE),VLOOKUP($C109,#REF!,11,FALSE)))) ->  | M109: =IF(Comparativo!$E$6="Tabela Não Desonerada",Encargos!$F$44,Encargos!$D$44) -> 1.1122
A110: ='Identificação-TCE'!$A$13 -> 1 | B110: =IF(AND(G110<>"",H110>0,I110<>"",J110<>0,K110<>0),COUNT($B$11:B109)+1,"") ->  | C110: =IF('Orçamento Base'!$M109=0,0,'Orçamento Base'!$D109) -> 0 | D110: =IF('Orçamento Base'!$F109=Aux.!$G$11,"CONTRATACAO_PUBLICA",IF(VLOOKUP($C110,'Orçamento Base'!$D$11:$G$2116,3,FALSE)="INDEXADO",VLOOKUP(VLOOKUP($C109,'Orçamento Base'!$D$11:$G$2116,2,FALSE),'Index N_DESON.'!$A$9:$B$604,2),VLOOKUP($C110,'Orçamento Base'!$D$11:$G$2116,3,FALSE))) ->  | E110: =VLOOKUP($C110,'Orçamento Base'!$D$11:$S$1673,2,FALSE) ->  | F110: =Dados!$C$7 -> 2022-04-01 | G110: =VLOOKUP($C110,'Orçamento Base'!$D$11:$S$1673,4,FALSE) ->  | H110: =IFERROR(VLOOKUP($C110,'Orçamento Base'!$D$11:$S$1673,6,FALSE),0) -> 0 | I110: =VLOOKUP($C110,'Orçamento Base'!$D$11:$S$1673,5,FALSE) ->  | J110: =IF(Comparativo!$E$6="Tabela Não Desonerada",VLOOKUP($C110,'Orçamento Base'!$D$11:$S$1673,12,FALSE),VLOOKUP($C110,#REF!,12,FALSE)) ->  | K110: =IFERROR(IF(Comparativo!$E$6="Tabela Não Desonerada",VLOOKUP($C110,'Orçamento Base'!$D$11:$S$1673,16,FALSE),VLOOKUP($C110,#REF!,16,FALSE)),0) -> 0 | L110: =IF(AND($D110="COMPOSICAO_PROPRIA",'Orçamento Base'!$N110="-"),"14,18%",IF(AND($D110="MERCADO",'Orçamento Base'!$N110="-"),"15,38%",IF(Comparativo!$E$6="Tabela Não Desonerada",VLOOKUP($C110,'Orçamento Base'!$D$11:$S$1673,11,FALSE),VLOOKUP($C110,#REF!,11,FALSE)))) ->  | M110: =IF(Comparativo!$E$6="Tabela Não Desonerada",Encargos!$F$44,Encargos!$D$44) -> 1.1122
A111: ='Identificação-TCE'!$A$13 -> 1 | B111: =IF(AND(G111<>"",H111>0,I111<>"",J111<>0,K111<>0),COUNT($B$11:B110)+1,"") ->  | C111: =IF('Orçamento Base'!$M110=0,0,'Orçamento Base'!$D110) -> 0 | D111: =IF('Orçamento Base'!$F110=Aux.!$G$11,"CONTRATACAO_PUBLICA",IF(VLOOKUP($C111,'Orçamento Base'!$D$11:$G$2116,3,FALSE)="INDEXADO",VLOOKUP(VLOOKUP($C110,'Orçamento Base'!$D$11:$G$2116,2,FALSE),'Index N_DESON.'!$A$9:$B$604,2),VLOOKUP($C111,'Orçamento Base'!$D$11:$G$2116,3,FALSE))) ->  | E111: =VLOOKUP($C111,'Orçamento Base'!$D$11:$S$1673,2,FALSE) ->  | F111: =Dados!$C$7 -> 2022-04-01 | G111: =VLOOKUP($C111,'Orçamento Base'!$D$11:$S$1673,4,FALSE) ->  | H111: =IFERROR(VLOOKUP($C111,'Orçamento Base'!$D$11:$S$1673,6,FALSE),0) -> 0 | I111: =VLOOKUP($C111,'Orçamento Base'!$D$11:$S$1673,5,FALSE) ->  | J111: =IF(Comparativo!$E$6="Tabela Não Desonerada",VLOOKUP($C111,'Orçamento Base'!$D$11:$S$1673,12,FALSE),VLOOKUP($C111,#REF!,12,FALSE)) ->  | K111: =IFERROR(IF(Comparativo!$E$6="Tabela Não Desonerada",VLOOKUP($C111,'Orçamento Base'!$D$11:$S$1673,16,FALSE),VLOOKUP($C111,#REF!,16,FALSE)),0) -> 0 | L111: =IF(AND($D111="COMPOSICAO_PROPRIA",'Orçamento Base'!$N111="-"),"14,18%",IF(AND($D111="MERCADO",'Orçamento Base'!$N111="-"),"15,38%",IF(Comparativo!$E$6="Tabela Não Desonerada",VLOOKUP($C111,'Orçamento Base'!$D$11:$S$1673,11,FALSE),VLOOKUP($C111,#REF!,11,FALSE)))) ->  | M111: =IF(Comparativo!$E$6="Tabela Não Desonerada",Encargos!$F$44,Encargos!$D$44) -> 1.1122
A112: ='Identificação-TCE'!$A$13 -> 1 | B112: =IF(AND(G112<>"",H112>0,I112<>"",J112<>0,K112<>0),COUNT($B$11:B111)+1,"") ->  | C112: =IF('Orçamento Base'!$M111=0,0,'Orçamento Base'!$D111) -> 0 | D112: =IF('Orçamento Base'!$F111=Aux.!$G$11,"CONTRATACAO_PUBLICA",IF(VLOOKUP($C112,'Orçamento Base'!$D$11:$G$2116,3,FALSE)="INDEXADO",VLOOKUP(VLOOKUP($C111,'Orçamento Base'!$D$11:$G$2116,2,FALSE),'Index N_DESON.'!$A$9:$B$604,2),VLOOKUP($C112,'Orçamento Base'!$D$11:$G$2116,3,FALSE))) ->  | E112: =VLOOKUP($C112,'Orçamento Base'!$D$11:$S$1673,2,FALSE) ->  | F112: =Dados!$C$7 -> 2022-04-01 | G112: =VLOOKUP($C112,'Orçamento Base'!$D$11:$S$1673,4,FALSE) ->  | H112: =IFERROR(VLOOKUP($C112,'Orçamento Base'!$D$11:$S$1673,6,FALSE),0) -> 0 | I112: =VLOOKUP($C112,'Orçamento Base'!$D$11:$S$1673,5,FALSE) ->  | J112: =IF(Comparativo!$E$6="Tabela Não Desonerada",VLOOKUP($C112,'Orçamento Base'!$D$11:$S$1673,12,FALSE),VLOOKUP($C112,#REF!,12,FALSE)) ->  | K112: =IFERROR(IF(Comparativo!$E$6="Tabela Não Desonerada",VLOOKUP($C112,'Orçamento Base'!$D$11:$S$1673,16,FALSE),VLOOKUP($C112,#REF!,16,FALSE)),0) -> 0 | L112: =IF(AND($D112="COMPOSICAO_PROPRIA",'Orçamento Base'!$N112="-"),"14,18%",IF(AND($D112="MERCADO",'Orçamento Base'!$N112="-"),"15,38%",IF(Comparativo!$E$6="Tabela Não Desonerada",VLOOKUP($C112,'Orçamento Base'!$D$11:$S$1673,11,FALSE),VLOOKUP($C112,#REF!,11,FALSE)))) ->  | M112: =IF(Comparativo!$E$6="Tabela Não Desonerada",Encargos!$F$44,Encargos!$D$44) -> 1.1122
A113: ='Identificação-TCE'!$A$13 -> 1 | B113: =IF(AND(G113<>"",H113>0,I113<>"",J113<>0,K113<>0),COUNT($B$11:B112)+1,"") ->  | C113: =IF('Orçamento Base'!$M112=0,0,'Orçamento Base'!$D112) -> 0 | D113: =IF('Orçamento Base'!$F112=Aux.!$G$11,"CONTRATACAO_PUBLICA",IF(VLOOKUP($C113,'Orçamento Base'!$D$11:$G$2116,3,FALSE)="INDEXADO",VLOOKUP(VLOOKUP($C112,'Orçamento Base'!$D$11:$G$2116,2,FALSE),'Index N_DESON.'!$A$9:$B$604,2),VLOOKUP($C113,'Orçamento Base'!$D$11:$G$2116,3,FALSE))) ->  | E113: =VLOOKUP($C113,'Orçamento Base'!$D$11:$S$1673,2,FALSE) ->  | F113: =Dados!$C$7 -> 2022-04-01 | G113: =VLOOKUP($C113,'Orçamento Base'!$D$11:$S$1673,4,FALSE) ->  | H113: =IFERROR(VLOOKUP($C113,'Orçamento Base'!$D$11:$S$1673,6,FALSE),0) -> 0 | I113: =VLOOKUP($C113,'Orçamento Base'!$D$11:$S$1673,5,FALSE) ->  | J113: =IF(Comparativo!$E$6="Tabela Não Desonerada",VLOOKUP($C113,'Orçamento Base'!$D$11:$S$1673,12,FALSE),VLOOKUP($C113,#REF!,12,FALSE)) ->  | K113: =IFERROR(IF(Comparativo!$E$6="Tabela Não Desonerada",VLOOKUP($C113,'Orçamento Base'!$D$11:$S$1673,16,FALSE),VLOOKUP($C113,#REF!,16,FALSE)),0) -> 0 | L113: =IF(AND($D113="COMPOSICAO_PROPRIA",'Orçamento Base'!$N113="-"),"14,18%",IF(AND($D113="MERCADO",'Orçamento Base'!$N113="-"),"15,38%",IF(Comparativo!$E$6="Tabela Não Desonerada",VLOOKUP($C113,'Orçamento Base'!$D$11:$S$1673,11,FALSE),VLOOKUP($C113,#REF!,11,FALSE)))) ->  | M113: =IF(Comparativo!$E$6="Tabela Não Desonerada",Encargos!$F$44,Encargos!$D$44) -> 1.1122
A114: ='Identificação-TCE'!$A$13 -> 1 | B114: =IF(AND(G114<>"",H114>0,I114<>"",J114<>0,K114<>0),COUNT($B$11:B113)+1,"") ->  | C114: =IF('Orçamento Base'!$M113=0,0,'Orçamento Base'!$D113) -> 0 | D114: =IF('Orçamento Base'!$F113=Aux.!$G$11,"CONTRATACAO_PUBLICA",IF(VLOOKUP($C114,'Orçamento Base'!$D$11:$G$2116,3,FALSE)="INDEXADO",VLOOKUP(VLOOKUP($C113,'Orçamento Base'!$D$11:$G$2116,2,FALSE),'Index N_DESON.'!$A$9:$B$604,2),VLOOKUP($C114,'Orçamento Base'!$D$11:$G$2116,3,FALSE))) ->  | E114: =VLOOKUP($C114,'Orçamento Base'!$D$11:$S$1673,2,FALSE) ->  | F114: =Dados!$C$7 -> 2022-04-01 | G114: =VLOOKUP($C114,'Orçamento Base'!$D$11:$S$1673,4,FALSE) ->  | H114: =IFERROR(VLOOKUP($C114,'Orçamento Base'!$D$11:$S$1673,6,FALSE),0) -> 0 | I114: =VLOOKUP($C114,'Orçamento Base'!$D$11:$S$1673,5,FALSE) ->  | J114: =IF(Comparativo!$E$6="Tabela Não Desonerada",VLOOKUP($C114,'Orçamento Base'!$D$11:$S$1673,12,FALSE),VLOOKUP($C114,#REF!,12,FALSE)) ->  | K114: =IFERROR(IF(Comparativo!$E$6="Tabela Não Desonerada",VLOOKUP($C114,'Orçamento Base'!$D$11:$S$1673,16,FALSE),VLOOKUP($C114,#REF!,16,FALSE)),0) -> 0 | L114: =IF(AND($D114="COMPOSICAO_PROPRIA",'Orçamento Base'!$N114="-"),"14,18%",IF(AND($D114="MERCADO",'Orçamento Base'!$N114="-"),"15,38%",IF(Comparativo!$E$6="Tabela Não Desonerada",VLOOKUP($C114,'Orçamento Base'!$D$11:$S$1673,11,FALSE),VLOOKUP($C114,#REF!,11,FALSE)))) ->  | M114: =IF(Comparativo!$E$6="Tabela Não Desonerada",Encargos!$F$44,Encargos!$D$44) -> 1.1122
A115: ='Identificação-TCE'!$A$13 -> 1 | B115: =IF(AND(G115<>"",H115>0,I115<>"",J115<>0,K115<>0),COUNT($B$11:B114)+1,"") ->  | C115: =IF('Orçamento Base'!$M114=0,0,'Orçamento Base'!$D114) -> 0 | D115: =IF('Orçamento Base'!$F114=Aux.!$G$11,"CONTRATACAO_PUBLICA",IF(VLOOKUP($C115,'Orçamento Base'!$D$11:$G$2116,3,FALSE)="INDEXADO",VLOOKUP(VLOOKUP($C114,'Orçamento Base'!$D$11:$G$2116,2,FALSE),'Index N_DESON.'!$A$9:$B$604,2),VLOOKUP($C115,'Orçamento Base'!$D$11:$G$2116,3,FALSE))) ->  | E115: =VLOOKUP($C115,'Orçamento Base'!$D$11:$S$1673,2,FALSE) ->  | F115: =Dados!$C$7 -> 2022-04-01 | G115: =VLOOKUP($C115,'Orçamento Base'!$D$11:$S$1673,4,FALSE) ->  | H115: =IFERROR(VLOOKUP($C115,'Orçamento Base'!$D$11:$S$1673,6,FALSE),0) -> 0 | I115: =VLOOKUP($C115,'Orçamento Base'!$D$11:$S$1673,5,FALSE) ->  | J115: =IF(Comparativo!$E$6="Tabela Não Desonerada",VLOOKUP($C115,'Orçamento Base'!$D$11:$S$1673,12,FALSE),VLOOKUP($C115,#REF!,12,FALSE)) ->  | K115: =IFERROR(IF(Comparativo!$E$6="Tabela Não Desonerada",VLOOKUP($C115,'Orçamento Base'!$D$11:$S$1673,16,FALSE),VLOOKUP($C115,#REF!,16,FALSE)),0) -> 0 | L115: =IF(AND($D115="COMPOSICAO_PROPRIA",'Orçamento Base'!$N115="-"),"14,18%",IF(AND($D115="MERCADO",'Orçamento Base'!$N115="-"),"15,38%",IF(Comparativo!$E$6="Tabela Não Desonerada",VLOOKUP($C115,'Orçamento Base'!$D$11:$S$1673,11,FALSE),VLOOKUP($C115,#REF!,11,FALSE)))) ->  | M115: =IF(Comparativo!$E$6="Tabela Não Desonerada",Encargos!$F$44,Encargos!$D$44) -> 1.1122
A116: ='Identificação-TCE'!$A$13 -> 1 | B116: =IF(AND(G116<>"",H116>0,I116<>"",J116<>0,K116<>0),COUNT($B$11:B115)+1,"") ->  | C116: =IF('Orçamento Base'!$M115=0,0,'Orçamento Base'!$D115) -> 0 | D116: =IF('Orçamento Base'!$F115=Aux.!$G$11,"CONTRATACAO_PUBLICA",IF(VLOOKUP($C116,'Orçamento Base'!$D$11:$G$2116,3,FALSE)="INDEXADO",VLOOKUP(VLOOKUP($C115,'Orçamento Base'!$D$11:$G$2116,2,FALSE),'Index N_DESON.'!$A$9:$B$604,2),VLOOKUP($C116,'Orçamento Base'!$D$11:$G$2116,3,FALSE))) ->  | E116: =VLOOKUP($C116,'Orçamento Base'!$D$11:$S$1673,2,FALSE) ->  | F116: =Dados!$C$7 -> 2022-04-01 | G116: =VLOOKUP($C116,'Orçamento Base'!$D$11:$S$1673,4,FALSE) ->  | H116: =IFERROR(VLOOKUP($C116,'Orçamento Base'!$D$11:$S$1673,6,FALSE),0) -> 0 | I116: =VLOOKUP($C116,'Orçamento Base'!$D$11:$S$1673,5,FALSE) ->  | J116: =IF(Comparativo!$E$6="Tabela Não Desonerada",VLOOKUP($C116,'Orçamento Base'!$D$11:$S$1673,12,FALSE),VLOOKUP($C116,#REF!,12,FALSE)) ->  | K116: =IFERROR(IF(Comparativo!$E$6="Tabela Não Desonerada",VLOOKUP($C116,'Orçamento Base'!$D$11:$S$1673,16,FALSE),VLOOKUP($C116,#REF!,16,FALSE)),0) -> 0 | L116: =IF(AND($D116="COMPOSICAO_PROPRIA",'Orçamento Base'!$N116="-"),"14,18%",IF(AND($D116="MERCADO",'Orçamento Base'!$N116="-"),"15,38%",IF(Comparativo!$E$6="Tabela Não Desonerada",VLOOKUP($C116,'Orçamento Base'!$D$11:$S$1673,11,FALSE),VLOOKUP($C116,#REF!,11,FALSE)))) ->  | M116: =IF(Comparativo!$E$6="Tabela Não Desonerada",Encargos!$F$44,Encargos!$D$44) -> 1.1122
A117: ='Identificação-TCE'!$A$13 -> 1 | B117: =IF(AND(G117<>"",H117>0,I117<>"",J117<>0,K117<>0),COUNT($B$11:B116)+1,"") ->  | C117: =IF('Orçamento Base'!$M116=0,0,'Orçamento Base'!$D116) -> 0 | D117: =IF('Orçamento Base'!$F116=Aux.!$G$11,"CONTRATACAO_PUBLICA",IF(VLOOKUP($C117,'Orçamento Base'!$D$11:$G$2116,3,FALSE)="INDEXADO",VLOOKUP(VLOOKUP($C116,'Orçamento Base'!$D$11:$G$2116,2,FALSE),'Index N_DESON.'!$A$9:$B$604,2),VLOOKUP($C117,'Orçamento Base'!$D$11:$G$2116,3,FALSE))) ->  | E117: =VLOOKUP($C117,'Orçamento Base'!$D$11:$S$1673,2,FALSE) ->  | F117: =Dados!$C$7 -> 2022-04-01 | G117: =VLOOKUP($C117,'Orçamento Base'!$D$11:$S$1673,4,FALSE) ->  | H117: =IFERROR(VLOOKUP($C117,'Orçamento Base'!$D$11:$S$1673,6,FALSE),0) -> 0 | I117: =VLOOKUP($C117,'Orçamento Base'!$D$11:$S$1673,5,FALSE) ->  | J117: =IF(Comparativo!$E$6="Tabela Não Desonerada",VLOOKUP($C117,'Orçamento Base'!$D$11:$S$1673,12,FALSE),VLOOKUP($C117,#REF!,12,FALSE)) ->  | K117: =IFERROR(IF(Comparativo!$E$6="Tabela Não Desonerada",VLOOKUP($C117,'Orçamento Base'!$D$11:$S$1673,16,FALSE),VLOOKUP($C117,#REF!,16,FALSE)),0) -> 0 | L117: =IF(AND($D117="COMPOSICAO_PROPRIA",'Orçamento Base'!$N117="-"),"14,18%",IF(AND($D117="MERCADO",'Orçamento Base'!$N117="-"),"15,38%",IF(Comparativo!$E$6="Tabela Não Desonerada",VLOOKUP($C117,'Orçamento Base'!$D$11:$S$1673,11,FALSE),VLOOKUP($C117,#REF!,11,FALSE)))) ->  | M117: =IF(Comparativo!$E$6="Tabela Não Desonerada",Encargos!$F$44,Encargos!$D$44) -> 1.1122
A118: ='Identificação-TCE'!$A$13 -> 1 | B118: =IF(AND(G118<>"",H118>0,I118<>"",J118<>0,K118<>0),COUNT($B$11:B117)+1,"") ->  | C118: =IF('Orçamento Base'!$M117=0,0,'Orçamento Base'!$D117) -> 0 | D118: =IF('Orçamento Base'!$F117=Aux.!$G$11,"CONTRATACAO_PUBLICA",IF(VLOOKUP($C118,'Orçamento Base'!$D$11:$G$2116,3,FALSE)="INDEXADO",VLOOKUP(VLOOKUP($C117,'Orçamento Base'!$D$11:$G$2116,2,FALSE),'Index N_DESON.'!$A$9:$B$604,2),VLOOKUP($C118,'Orçamento Base'!$D$11:$G$2116,3,FALSE))) ->  | E118: =VLOOKUP($C118,'Orçamento Base'!$D$11:$S$1673,2,FALSE) ->  | F118: =Dados!$C$7 -> 2022-04-01 | G118: =VLOOKUP($C118,'Orçamento Base'!$D$11:$S$1673,4,FALSE) ->  | H118: =IFERROR(VLOOKUP($C118,'Orçamento Base'!$D$11:$S$1673,6,FALSE),0) -> 0 | I118: =VLOOKUP($C118,'Orçamento Base'!$D$11:$S$1673,5,FALSE) ->  | J118: =IF(Comparativo!$E$6="Tabela Não Desonerada",VLOOKUP($C118,'Orçamento Base'!$D$11:$S$1673,12,FALSE),VLOOKUP($C118,#REF!,12,FALSE)) ->  | K118: =IFERROR(IF(Comparativo!$E$6="Tabela Não Desonerada",VLOOKUP($C118,'Orçamento Base'!$D$11:$S$1673,16,FALSE),VLOOKUP($C118,#REF!,16,FALSE)),0) -> 0 | L118: =IF(AND($D118="COMPOSICAO_PROPRIA",'Orçamento Base'!$N118="-"),"14,18%",IF(AND($D118="MERCADO",'Orçamento Base'!$N118="-"),"15,38%",IF(Comparativo!$E$6="Tabela Não Desonerada",VLOOKUP($C118,'Orçamento Base'!$D$11:$S$1673,11,FALSE),VLOOKUP($C118,#REF!,11,FALSE)))) ->  | M118: =IF(Comparativo!$E$6="Tabela Não Desonerada",Encargos!$F$44,Encargos!$D$44) -> 1.1122
A119: ='Identificação-TCE'!$A$13 -> 1 | B119: =IF(AND(G119<>"",H119>0,I119<>"",J119<>0,K119<>0),COUNT($B$11:B118)+1,"") ->  | C119: =IF('Orçamento Base'!$M118=0,0,'Orçamento Base'!$D118) -> 0 | D119: =IF('Orçamento Base'!$F118=Aux.!$G$11,"CONTRATACAO_PUBLICA",IF(VLOOKUP($C119,'Orçamento Base'!$D$11:$G$2116,3,FALSE)="INDEXADO",VLOOKUP(VLOOKUP($C118,'Orçamento Base'!$D$11:$G$2116,2,FALSE),'Index N_DESON.'!$A$9:$B$604,2),VLOOKUP($C119,'Orçamento Base'!$D$11:$G$2116,3,FALSE))) ->  | E119: =VLOOKUP($C119,'Orçamento Base'!$D$11:$S$1673,2,FALSE) ->  | F119: =Dados!$C$7 -> 2022-04-01 | G119: =VLOOKUP($C119,'Orçamento Base'!$D$11:$S$1673,4,FALSE) ->  | H119: =IFERROR(VLOOKUP($C119,'Orçamento Base'!$D$11:$S$1673,6,FALSE),0) -> 0 | I119: =VLOOKUP($C119,'Orçamento Base'!$D$11:$S$1673,5,FALSE) ->  | J119: =IF(Comparativo!$E$6="Tabela Não Desonerada",VLOOKUP($C119,'Orçamento Base'!$D$11:$S$1673,12,FALSE),VLOOKUP($C119,#REF!,12,FALSE)) ->  | K119: =IFERROR(IF(Comparativo!$E$6="Tabela Não Desonerada",VLOOKUP($C119,'Orçamento Base'!$D$11:$S$1673,16,FALSE),VLOOKUP($C119,#REF!,16,FALSE)),0) -> 0 | L119: =IF(AND($D119="COMPOSICAO_PROPRIA",'Orçamento Base'!$N119="-"),"14,18%",IF(AND($D119="MERCADO",'Orçamento Base'!$N119="-"),"15,38%",IF(Comparativo!$E$6="Tabela Não Desonerada",VLOOKUP($C119,'Orçamento Base'!$D$11:$S$1673,11,FALSE),VLOOKUP($C119,#REF!,11,FALSE)))) ->  | M119: =IF(Comparativo!$E$6="Tabela Não Desonerada",Encargos!$F$44,Encargos!$D$44) -> 1.1122
A120: ='Identificação-TCE'!$A$13 -> 1 | B120: =IF(AND(G120<>"",H120>0,I120<>"",J120<>0,K120<>0),COUNT($B$11:B119)+1,"") ->  | C120: =IF('Orçamento Base'!$M119=0,0,'Orçamento Base'!$D119) -> 0 | D120: =IF('Orçamento Base'!$F119=Aux.!$G$11,"CONTRATACAO_PUBLICA",IF(VLOOKUP($C120,'Orçamento Base'!$D$11:$G$2116,3,FALSE)="INDEXADO",VLOOKUP(VLOOKUP($C119,'Orçamento Base'!$D$11:$G$2116,2,FALSE),'Index N_DESON.'!$A$9:$B$604,2),VLOOKUP($C120,'Orçamento Base'!$D$11:$G$2116,3,FALSE))) ->  | E120: =VLOOKUP($C120,'Orçamento Base'!$D$11:$S$1673,2,FALSE) ->  | F120: =Dados!$C$7 -> 2022-04-01 | G120: =VLOOKUP($C120,'Orçamento Base'!$D$11:$S$1673,4,FALSE) ->  | H120: =IFERROR(VLOOKUP($C120,'Orçamento Base'!$D$11:$S$1673,6,FALSE),0) -> 0 | I120: =VLOOKUP($C120,'Orçamento Base'!$D$11:$S$1673,5,FALSE) ->  | J120: =IF(Comparativo!$E$6="Tabela Não Desonerada",VLOOKUP($C120,'Orçamento Base'!$D$11:$S$1673,12,FALSE),VLOOKUP($C120,#REF!,12,FALSE)) ->  | K120: =IFERROR(IF(Comparativo!$E$6="Tabela Não Desonerada",VLOOKUP($C120,'Orçamento Base'!$D$11:$S$1673,16,FALSE),VLOOKUP($C120,#REF!,16,FALSE)),0) -> 0 | L120: =IF(AND($D120="COMPOSICAO_PROPRIA",'Orçamento Base'!$N120="-"),"14,18%",IF(AND($D120="MERCADO",'Orçamento Base'!$N120="-"),"15,38%",IF(Comparativo!$E$6="Tabela Não Desonerada",VLOOKUP($C120,'Orçamento Base'!$D$11:$S$1673,11,FALSE),VLOOKUP($C120,#REF!,11,FALSE)))) ->  | M120: =IF(Comparativo!$E$6="Tabela Não Desonerada",Encargos!$F$44,Encargos!$D$44) -> 1.1122
A121: ='Identificação-TCE'!$A$13 -> 1 | B121: =IF(AND(G121<>"",H121>0,I121<>"",J121<>0,K121<>0),COUNT($B$11:B120)+1,"") -> 8 | C121: =IF('Orçamento Base'!$M120=0,0,'Orçamento Base'!$D120) -> 3.1 | D121: =IF('Orçamento Base'!$F120=Aux.!$G$11,"CONTRATACAO_PUBLICA",IF(VLOOKUP($C121,'Orçamento Base'!$D$11:$G$2116,3,FALSE)="INDEXADO",VLOOKUP(VLOOKUP($C120,'Orçamento Base'!$D$11:$G$2116,2,FALSE),'Index N_DESON.'!$A$9:$B$604,2),VLOOKUP($C121,'Orçamento Base'!$D$11:$G$2116,3,FALSE))) -> SINAPI | E121: =VLOOKUP($C121,'Orçamento Base'!$D$11:$S$1673,2,FALSE) -> 98458 | F121: =Dados!$C$7 -> 2022-04-01 | G121: =VLOOKUP($C121,'Orçamento Base'!$D$11:$S$1673,4,FALSE) -> TAPUME COM COMPENSADO DE MADEIRA. AF_05/2018 | H121: =IFERROR(VLOOKUP($C121,'Orçamento Base'!$D$11:$S$1673,6,FALSE),0) -> 468.16 | I121: =VLOOKUP($C121,'Orçamento Base'!$D$11:$S$1673,5,FALSE) -> M2 | J121: =IF(Comparativo!$E$6="Tabela Não Desonerada",VLOOKUP($C121,'Orçamento Base'!$D$11:$S$1673,12,FALSE),VLOOKUP($C121,#REF!,12,FALSE)) -> 145.17 | K121: =IFERROR(IF(Comparativo!$E$6="Tabela Não Desonerada",VLOOKUP($C121,'Orçamento Base'!$D$11:$S$1673,16,FALSE),VLOOKUP($C121,#REF!,16,FALSE)),0) -> 67962.79 | L121: =IF(AND($D121="COMPOSICAO_PROPRIA",'Orçamento Base'!$N121="-"),"14,18%",IF(AND($D121="MERCADO",'Orçamento Base'!$N121="-"),"15,38%",IF(Comparativo!$E$6="Tabela Não Desonerada",VLOOKUP($C121,'Orçamento Base'!$D$11:$S$1673,11,FALSE),VLOOKUP($C121,#REF!,11,FALSE)))) -> 0.2267 | M121: =IF(Comparativo!$E$6="Tabela Não Desonerada",Encargos!$F$44,Encargos!$D$44) -> 1.1122
A122: ='Identificação-TCE'!$A$13 -> 1 | B122: =IF(AND(G122<>"",H122>0,I122<>"",J122<>0,K122<>0),COUNT($B$11:B121)+1,"") -> 9 | C122: =IF('Orçamento Base'!$M121=0,0,'Orçamento Base'!$D121) -> 3.2 | D122: =IF('Orçamento Base'!$F121=Aux.!$G$11,"CONTRATACAO_PUBLICA",IF(VLOOKUP($C122,'Orçamento Base'!$D$11:$G$2116,3,FALSE)="INDEXADO",VLOOKUP(VLOOKUP($C121,'Orçamento Base'!$D$11:$G$2116,2,FALSE),'Index N_DESON.'!$A$9:$B$604,2),VLOOKUP($C122,'Orçamento Base'!$D$11:$G$2116,3,FALSE))) -> SINAPI | E122: =VLOOKUP($C122,'Orçamento Base'!$D$11:$S$1673,2,FALSE) -> 10527 | F122: =Dados!$C$7 -> 2022-04-01 | G122: =VLOOKUP($C122,'Orçamento Base'!$D$11:$S$1673,4,FALSE) -> LOCACAO DE ANDAIME METALICO TUBULAR DE ENCAIXE, TIPO DE TORRE, COM LARGURA DE 1 ATE 1,5 M E ALTURA DE *1,00* M (INCLUSO SAPATAS FIXAS OU RODIZIOS) | H122: =IFERROR(VLOOKUP($C122,'Orçamento Base'!$D$11:$S$1673,6,FALSE),0) -> 54 | I122: =VLOOKUP($C122,'Orçamento Base'!$D$11:$S$1673,5,FALSE) -> MXMES | J122: =IF(Comparativo!$E$6="Tabela Não Desonerada",VLOOKUP($C122,'Orçamento Base'!$D$11:$S$1673,12,FALSE),VLOOKUP($C122,#REF!,12,FALSE)) -> 30.66 | K122: =IFERROR(IF(Comparativo!$E$6="Tabela Não Desonerada",VLOOKUP($C122,'Orçamento Base'!$D$11:$S$1673,16,FALSE),VLOOKUP($C122,#REF!,16,FALSE)),0) -> 1655.64 | L122: =IF(AND($D122="COMPOSICAO_PROPRIA",'Orçamento Base'!$N122="-"),"14,18%",IF(AND($D122="MERCADO",'Orçamento Base'!$N122="-"),"15,38%",IF(Comparativo!$E$6="Tabela Não Desonerada",VLOOKUP($C122,'Orçamento Base'!$D$11:$S$1673,11,FALSE),VLOOKUP($C122,#REF!,11,FALSE)))) -> 0.2267 | M122: =IF(Comparativo!$E$6="Tabela Não Desonerada",Encargos!$F$44,Encargos!$D$44) -> 1.1122
A123: ='Identificação-TCE'!$A$13 -> 1 | B123: =IF(AND(G123<>"",H123>0,I123<>"",J123<>0,K123<>0),COUNT($B$11:B122)+1,"") -> 10 | C123: =IF('Orçamento Base'!$M122=0,0,'Orçamento Base'!$D122) -> 3.3 | D123: =IF('Orçamento Base'!$F122=Aux.!$G$11,"CONTRATACAO_PUBLICA",IF(VLOOKUP($C123,'Orçamento Base'!$D$11:$G$2116,3,FALSE)="INDEXADO",VLOOKUP(VLOOKUP($C122,'Orçamento Base'!$D$11:$G$2116,2,FALSE),'Index N_DESON.'!$A$9:$B$604,2),VLOOKUP($C123,'Orçamento Base'!$D$11:$G$2116,3,FALSE))) -> SINAPI | E123: =VLOOKUP($C123,'Orçamento Base'!$D$11:$S$1673,2,FALSE) -> 97064 | F123: =Dados!$C$7 -> 2022-04-01 | G123: =VLOOKUP($C123,'Orçamento Base'!$D$11:$S$1673,4,FALSE) -> MONTAGEM E DESMONTAGEM DE ANDAIME TUBULAR TIPO TORRE (EXCLUSIVE ANDAIME E LIMPEZA). AF_11/2017 | H123: =IFERROR(VLOOKUP($C123,'Orçamento Base'!$D$11:$S$1673,6,FALSE),0) -> 9 | I123: =VLOOKUP($C123,'Orçamento Base'!$D$11:$S$1673,5,FALSE) -> M | J123: =IF(Comparativo!$E$6="Tabela Não Desonerada",VLOOKUP($C123,'Orçamento Base'!$D$11:$S$1673,12,FALSE),VLOOKUP($C123,#REF!,12,FALSE)) -> 21.47 | K123: =IFERROR(IF(Comparativo!$E$6="Tabela Não Desonerada",VLOOKUP($C123,'Orçamento Base'!$D$11:$S$1673,16,FALSE),VLOOKUP($C123,#REF!,16,FALSE)),0) -> 193.23 | L123: =IF(AND($D123="COMPOSICAO_PROPRIA",'Orçamento Base'!$N123="-"),"14,18%",IF(AND($D123="MERCADO",'Orçamento Base'!$N123="-"),"15,38%",IF(Comparativo!$E$6="Tabela Não Desonerada",VLOOKUP($C123,'Orçamento Base'!$D$11:$S$1673,11,FALSE),VLOOKUP($C123,#REF!,11,FALSE)))) -> 0.2267 | M123: =IF(Comparativo!$E$6="Tabela Não Desonerada",Encargos!$F$44,Encargos!$D$44) -> 1.1122
A124: ='Identificação-TCE'!$A$13 -> 1 | B124: =IF(AND(G124<>"",H124>0,I124<>"",J124<>0,K124<>0),COUNT($B$11:B123)+1,"") -> 11 | C124: =IF('Orçamento Base'!$M123=0,0,'Orçamento Base'!$D123) -> 3.4 | D124: =IF('Orçamento Base'!$F123=Aux.!$G$11,"CONTRATACAO_PUBLICA",IF(VLOOKUP($C124,'Orçamento Base'!$D$11:$G$2116,3,FALSE)="INDEXADO",VLOOKUP(VLOOKUP($C123,'Orçamento Base'!$D$11:$G$2116,2,FALSE),'Index N_DESON.'!$A$9:$B$604,2),VLOOKUP($C124,'Orçamento Base'!$D$11:$G$2116,3,FALSE))) -> MERCADO | E124: =VLOOKUP($C124,'Orçamento Base'!$D$11:$S$1673,2,FALSE) -> COT-01 | F124: =Dados!$C$7 -> 2022-04-01 | G124: =VLOOKUP($C124,'Orçamento Base'!$D$11:$S$1673,4,FALSE) -> PLATAFORMA ELEVATÓRIA | H124: =IFERROR(VLOOKUP($C124,'Orçamento Base'!$D$11:$S$1673,6,FALSE),0) -> 2 | I124: =VLOOKUP($C124,'Orçamento Base'!$D$11:$S$1673,5,FALSE) -> MES | J124: =IF(Comparativo!$E$6="Tabela Não Desonerada",VLOOKUP($C124,'Orçamento Base'!$D$11:$S$1673,12,FALSE),VLOOKUP($C124,#REF!,12,FALSE)) -> 12696.34 | K124: =IFERROR(IF(Comparativo!$E$6="Tabela Não Desonerada",VLOOKUP($C124,'Orçamento Base'!$D$11:$S$1673,16,FALSE),VLOOKUP($C124,#REF!,16,FALSE)),0) -> 25392.68 | L124: =IF(AND($D124="COMPOSICAO_PROPRIA",'Orçamento Base'!$N124="-"),"14,18%",IF(AND($D124="MERCADO",'Orçamento Base'!$N124="-"),"15,38%",IF(Comparativo!$E$6="Tabela Não Desonerada",VLOOKUP($C124,'Orçamento Base'!$D$11:$S$1673,11,FALSE),VLOOKUP($C124,#REF!,11,FALSE)))) -> 0.2267 | M124: =IF(Comparativo!$E$6="Tabela Não Desonerada",Encargos!$F$44,Encargos!$D$44) -> 1.1122
A125: ='Identificação-TCE'!$A$13 -> 1 | B125: =IF(AND(G125<>"",H125>0,I125<>"",J125<>0,K125<>0),COUNT($B$11:B124)+1,"") -> 12 | C125: =IF('Orçamento Base'!$M124=0,0,'Orçamento Base'!$D124) -> 3.5 | D125: =IF('Orçamento Base'!$F124=Aux.!$G$11,"CONTRATACAO_PUBLICA",IF(VLOOKUP($C125,'Orçamento Base'!$D$11:$G$2116,3,FALSE)="INDEXADO",VLOOKUP(VLOOKUP($C124,'Orçamento Base'!$D$11:$G$2116,2,FALSE),'Index N_DESON.'!$A$9:$B$604,2),VLOOKUP($C125,'Orçamento Base'!$D$11:$G$2116,3,FALSE))) -> SINAPI | E125: =VLOOKUP($C125,'Orçamento Base'!$D$11:$S$1673,2,FALSE) -> 88297 | F125: =Dados!$C$7 -> 2022-04-01 | G125: =VLOOKUP($C125,'Orçamento Base'!$D$11:$S$1673,4,FALSE) -> OPERADOR DE MÁQUINAS E EQUIPAMENTOS COM ENCARGOS COMPLEMENTARES | H125: =IFERROR(VLOOKUP($C125,'Orçamento Base'!$D$11:$S$1673,6,FALSE),0) -> 352 | I125: =VLOOKUP($C125,'Orçamento Base'!$D$11:$S$1673,5,FALSE) -> H | J125: =IF(Comparativo!$E$6="Tabela Não Desonerada",VLOOKUP($C125,'Orçamento Base'!$D$11:$S$1673,12,FALSE),VLOOKUP($C125,#REF!,12,FALSE)) -> 31.32 | K125: =IFERROR(IF(Comparativo!$E$6="Tabela Não Desonerada",VLOOKUP($C125,'Orçamento Base'!$D$11:$S$1673,16,FALSE),VLOOKUP($C125,#REF!,16,FALSE)),0) -> 11024.64 | L125: =IF(AND($D125="COMPOSICAO_PROPRIA",'Orçamento Base'!$N125="-"),"14,18%",IF(AND($D125="MERCADO",'Orçamento Base'!$N125="-"),"15,38%",IF(Comparativo!$E$6="Tabela Não Desonerada",VLOOKUP($C125,'Orçamento Base'!$D$11:$S$1673,11,FALSE),VLOOKUP($C125,#REF!,11,FALSE)))) -> 0.2267 | M125: =IF(Comparativo!$E$6="Tabela Não Desonerada",Encargos!$F$44,Encargos!$D$44) -> 1.1122
A126: ='Identificação-TCE'!$A$13 -> 1 | B126: =IF(AND(G126<>"",H126>0,I126<>"",J126<>0,K126<>0),COUNT($B$11:B125)+1,"") ->  | C126: =IF('Orçamento Base'!$M125=0,0,'Orçamento Base'!$D125) -> 0 | D126: =IF('Orçamento Base'!$F125=Aux.!$G$11,"CONTRATACAO_PUBLICA",IF(VLOOKUP($C126,'Orçamento Base'!$D$11:$G$2116,3,FALSE)="INDEXADO",VLOOKUP(VLOOKUP($C125,'Orçamento Base'!$D$11:$G$2116,2,FALSE),'Index N_DESON.'!$A$9:$B$604,2),VLOOKUP($C126,'Orçamento Base'!$D$11:$G$2116,3,FALSE))) ->  | E126: =VLOOKUP($C126,'Orçamento Base'!$D$11:$S$1673,2,FALSE) ->  | F126: =Dados!$C$7 -> 2022-04-01 | G126: =VLOOKUP($C126,'Orçamento Base'!$D$11:$S$1673,4,FALSE) ->  | H126: =IFERROR(VLOOKUP($C126,'Orçamento Base'!$D$11:$S$1673,6,FALSE),0) -> 0 | I126: =VLOOKUP($C126,'Orçamento Base'!$D$11:$S$1673,5,FALSE) ->  | J126: =IF(Comparativo!$E$6="Tabela Não Desonerada",VLOOKUP($C126,'Orçamento Base'!$D$11:$S$1673,12,FALSE),VLOOKUP($C126,#REF!,12,FALSE)) ->  | K126: =IFERROR(IF(Comparativo!$E$6="Tabela Não Desonerada",VLOOKUP($C126,'Orçamento Base'!$D$11:$S$1673,16,FALSE),VLOOKUP($C126,#REF!,16,FALSE)),0) -> 0 | L126: =IF(AND($D126="COMPOSICAO_PROPRIA",'Orçamento Base'!$N126="-"),"14,18%",IF(AND($D126="MERCADO",'Orçamento Base'!$N126="-"),"15,38%",IF(Comparativo!$E$6="Tabela Não Desonerada",VLOOKUP($C126,'Orçamento Base'!$D$11:$S$1673,11,FALSE),VLOOKUP($C126,#REF!,11,FALSE)))) ->  | M126: =IF(Comparativo!$E$6="Tabela Não Desonerada",Encargos!$F$44,Encargos!$D$44) -> 1.1122
A127: ='Identificação-TCE'!$A$13 -> 1 | B127: =IF(AND(G127<>"",H127>0,I127<>"",J127<>0,K127<>0),COUNT($B$11:B126)+1,"") ->  | C127: =IF('Orçamento Base'!$M126=0,0,'Orçamento Base'!$D126) -> 0 | D127: =IF('Orçamento Base'!$F126=Aux.!$G$11,"CONTRATACAO_PUBLICA",IF(VLOOKUP($C127,'Orçamento Base'!$D$11:$G$2116,3,FALSE)="INDEXADO",VLOOKUP(VLOOKUP($C126,'Orçamento Base'!$D$11:$G$2116,2,FALSE),'Index N_DESON.'!$A$9:$B$604,2),VLOOKUP($C127,'Orçamento Base'!$D$11:$G$2116,3,FALSE))) ->  | E127: =VLOOKUP($C127,'Orçamento Base'!$D$11:$S$1673,2,FALSE) ->  | F127: =Dados!$C$7 -> 2022-04-01 | G127: =VLOOKUP($C127,'Orçamento Base'!$D$11:$S$1673,4,FALSE) ->  | H127: =IFERROR(VLOOKUP($C127,'Orçamento Base'!$D$11:$S$1673,6,FALSE),0) -> 0 | I127: =VLOOKUP($C127,'Orçamento Base'!$D$11:$S$1673,5,FALSE) ->  | J127: =IF(Comparativo!$E$6="Tabela Não Desonerada",VLOOKUP($C127,'Orçamento Base'!$D$11:$S$1673,12,FALSE),VLOOKUP($C127,#REF!,12,FALSE)) ->  | K127: =IFERROR(IF(Comparativo!$E$6="Tabela Não Desonerada",VLOOKUP($C127,'Orçamento Base'!$D$11:$S$1673,16,FALSE),VLOOKUP($C127,#REF!,16,FALSE)),0) -> 0 | L127: =IF(AND($D127="COMPOSICAO_PROPRIA",'Orçamento Base'!$N127="-"),"14,18%",IF(AND($D127="MERCADO",'Orçamento Base'!$N127="-"),"15,38%",IF(Comparativo!$E$6="Tabela Não Desonerada",VLOOKUP($C127,'Orçamento Base'!$D$11:$S$1673,11,FALSE),VLOOKUP($C127,#REF!,11,FALSE)))) ->  | M127: =IF(Comparativo!$E$6="Tabela Não Desonerada",Encargos!$F$44,Encargos!$D$44) -> 1.1122
A128: ='Identificação-TCE'!$A$13 -> 1 | B128: =IF(AND(G128<>"",H128>0,I128<>"",J128<>0,K128<>0),COUNT($B$11:B127)+1,"") ->  | C128: =IF('Orçamento Base'!$M127=0,0,'Orçamento Base'!$D127) -> 0 | D128: =IF('Orçamento Base'!$F127=Aux.!$G$11,"CONTRATACAO_PUBLICA",IF(VLOOKUP($C128,'Orçamento Base'!$D$11:$G$2116,3,FALSE)="INDEXADO",VLOOKUP(VLOOKUP($C127,'Orçamento Base'!$D$11:$G$2116,2,FALSE),'Index N_DESON.'!$A$9:$B$604,2),VLOOKUP($C128,'Orçamento Base'!$D$11:$G$2116,3,FALSE))) ->  | E128: =VLOOKUP($C128,'Orçamento Base'!$D$11:$S$1673,2,FALSE) ->  | F128: =Dados!$C$7 -> 2022-04-01 | G128: =VLOOKUP($C128,'Orçamento Base'!$D$11:$S$1673,4,FALSE) ->  | H128: =IFERROR(VLOOKUP($C128,'Orçamento Base'!$D$11:$S$1673,6,FALSE),0) -> 0 | I128: =VLOOKUP($C128,'Orçamento Base'!$D$11:$S$1673,5,FALSE) ->  | J128: =IF(Comparativo!$E$6="Tabela Não Desonerada",VLOOKUP($C128,'Orçamento Base'!$D$11:$S$1673,12,FALSE),VLOOKUP($C128,#REF!,12,FALSE)) ->  | K128: =IFERROR(IF(Comparativo!$E$6="Tabela Não Desonerada",VLOOKUP($C128,'Orçamento Base'!$D$11:$S$1673,16,FALSE),VLOOKUP($C128,#REF!,16,FALSE)),0) -> 0 | L128: =IF(AND($D128="COMPOSICAO_PROPRIA",'Orçamento Base'!$N128="-"),"14,18%",IF(AND($D128="MERCADO",'Orçamento Base'!$N128="-"),"15,38%",IF(Comparativo!$E$6="Tabela Não Desonerada",VLOOKUP($C128,'Orçamento Base'!$D$11:$S$1673,11,FALSE),VLOOKUP($C128,#REF!,11,FALSE)))) ->  | M128: =IF(Comparativo!$E$6="Tabela Não Desonerada",Encargos!$F$44,Encargos!$D$44) -> 1.1122
A129: ='Identificação-TCE'!$A$13 -> 1 | B129: =IF(AND(G129<>"",H129>0,I129<>"",J129<>0,K129<>0),COUNT($B$11:B128)+1,"") ->  | C129: =IF('Orçamento Base'!$M128=0,0,'Orçamento Base'!$D128) -> 0 | D129: =IF('Orçamento Base'!$F128=Aux.!$G$11,"CONTRATACAO_PUBLICA",IF(VLOOKUP($C129,'Orçamento Base'!$D$11:$G$2116,3,FALSE)="INDEXADO",VLOOKUP(VLOOKUP($C128,'Orçamento Base'!$D$11:$G$2116,2,FALSE),'Index N_DESON.'!$A$9:$B$604,2),VLOOKUP($C129,'Orçamento Base'!$D$11:$G$2116,3,FALSE))) ->  | E129: =VLOOKUP($C129,'Orçamento Base'!$D$11:$S$1673,2,FALSE) ->  | F129: =Dados!$C$7 -> 2022-04-01 | G129: =VLOOKUP($C129,'Orçamento Base'!$D$11:$S$1673,4,FALSE) ->  | H129: =IFERROR(VLOOKUP($C129,'Orçamento Base'!$D$11:$S$1673,6,FALSE),0) -> 0 | I129: =VLOOKUP($C129,'Orçamento Base'!$D$11:$S$1673,5,FALSE) ->  | J129: =IF(Comparativo!$E$6="Tabela Não Desonerada",VLOOKUP($C129,'Orçamento Base'!$D$11:$S$1673,12,FALSE),VLOOKUP($C129,#REF!,12,FALSE)) ->  | K129: =IFERROR(IF(Comparativo!$E$6="Tabela Não Desonerada",VLOOKUP($C129,'Orçamento Base'!$D$11:$S$1673,16,FALSE),VLOOKUP($C129,#REF!,16,FALSE)),0) -> 0 | L129: =IF(AND($D129="COMPOSICAO_PROPRIA",'Orçamento Base'!$N129="-"),"14,18%",IF(AND($D129="MERCADO",'Orçamento Base'!$N129="-"),"15,38%",IF(Comparativo!$E$6="Tabela Não Desonerada",VLOOKUP($C129,'Orçamento Base'!$D$11:$S$1673,11,FALSE),VLOOKUP($C129,#REF!,11,FALSE)))) ->  | M129: =IF(Comparativo!$E$6="Tabela Não Desonerada",Encargos!$F$44,Encargos!$D$44) -> 1.1122
A130: ='Identificação-TCE'!$A$13 -> 1 | B130: =IF(AND(G130<>"",H130>0,I130<>"",J130<>0,K130<>0),COUNT($B$11:B129)+1,"") ->  | C130: =IF('Orçamento Base'!$M129=0,0,'Orçamento Base'!$D129) -> 0 | D130: =IF('Orçamento Base'!$F129=Aux.!$G$11,"CONTRATACAO_PUBLICA",IF(VLOOKUP($C130,'Orçamento Base'!$D$11:$G$2116,3,FALSE)="INDEXADO",VLOOKUP(VLOOKUP($C129,'Orçamento Base'!$D$11:$G$2116,2,FALSE),'Index N_DESON.'!$A$9:$B$604,2),VLOOKUP($C130,'Orçamento Base'!$D$11:$G$2116,3,FALSE))) ->  | E130: =VLOOKUP($C130,'Orçamento Base'!$D$11:$S$1673,2,FALSE) ->  | F130: =Dados!$C$7 -> 2022-04-01 | G130: =VLOOKUP($C130,'Orçamento Base'!$D$11:$S$1673,4,FALSE) ->  | H130: =IFERROR(VLOOKUP($C130,'Orçamento Base'!$D$11:$S$1673,6,FALSE),0) -> 0 | I130: =VLOOKUP($C130,'Orçamento Base'!$D$11:$S$1673,5,FALSE) ->  | J130: =IF(Comparativo!$E$6="Tabela Não Desonerada",VLOOKUP($C130,'Orçamento Base'!$D$11:$S$1673,12,FALSE),VLOOKUP($C130,#REF!,12,FALSE)) ->  | K130: =IFERROR(IF(Comparativo!$E$6="Tabela Não Desonerada",VLOOKUP($C130,'Orçamento Base'!$D$11:$S$1673,16,FALSE),VLOOKUP($C130,#REF!,16,FALSE)),0) -> 0 | L130: =IF(AND($D130="COMPOSICAO_PROPRIA",'Orçamento Base'!$N130="-"),"14,18%",IF(AND($D130="MERCADO",'Orçamento Base'!$N130="-"),"15,38%",IF(Comparativo!$E$6="Tabela Não Desonerada",VLOOKUP($C130,'Orçamento Base'!$D$11:$S$1673,11,FALSE),VLOOKUP($C130,#REF!,11,FALSE)))) ->  | M130: =IF(Comparativo!$E$6="Tabela Não Desonerada",Encargos!$F$44,Encargos!$D$44) -> 1.1122
A131: ='Identificação-TCE'!$A$13 -> 1 | B131: =IF(AND(G131<>"",H131>0,I131<>"",J131<>0,K131<>0),COUNT($B$11:B130)+1,"") ->  | C131: =IF('Orçamento Base'!$M130=0,0,'Orçamento Base'!$D130) -> 0 | D131: =IF('Orçamento Base'!$F130=Aux.!$G$11,"CONTRATACAO_PUBLICA",IF(VLOOKUP($C131,'Orçamento Base'!$D$11:$G$2116,3,FALSE)="INDEXADO",VLOOKUP(VLOOKUP($C130,'Orçamento Base'!$D$11:$G$2116,2,FALSE),'Index N_DESON.'!$A$9:$B$604,2),VLOOKUP($C131,'Orçamento Base'!$D$11:$G$2116,3,FALSE))) ->  | E131: =VLOOKUP($C131,'Orçamento Base'!$D$11:$S$1673,2,FALSE) ->  | F131: =Dados!$C$7 -> 2022-04-01 | G131: =VLOOKUP($C131,'Orçamento Base'!$D$11:$S$1673,4,FALSE) ->  | H131: =IFERROR(VLOOKUP($C131,'Orçamento Base'!$D$11:$S$1673,6,FALSE),0) -> 0 | I131: =VLOOKUP($C131,'Orçamento Base'!$D$11:$S$1673,5,FALSE) ->  | J131: =IF(Comparativo!$E$6="Tabela Não Desonerada",VLOOKUP($C131,'Orçamento Base'!$D$11:$S$1673,12,FALSE),VLOOKUP($C131,#REF!,12,FALSE)) ->  | K131: =IFERROR(IF(Comparativo!$E$6="Tabela Não Desonerada",VLOOKUP($C131,'Orçamento Base'!$D$11:$S$1673,16,FALSE),VLOOKUP($C131,#REF!,16,FALSE)),0) -> 0 | L131: =IF(AND($D131="COMPOSICAO_PROPRIA",'Orçamento Base'!$N131="-"),"14,18%",IF(AND($D131="MERCADO",'Orçamento Base'!$N131="-"),"15,38%",IF(Comparativo!$E$6="Tabela Não Desonerada",VLOOKUP($C131,'Orçamento Base'!$D$11:$S$1673,11,FALSE),VLOOKUP($C131,#REF!,11,FALSE)))) ->  | M131: =IF(Comparativo!$E$6="Tabela Não Desonerada",Encargos!$F$44,Encargos!$D$44) -> 1.1122
A132: ='Identificação-TCE'!$A$13 -> 1 | B132: =IF(AND(G132<>"",H132>0,I132<>"",J132<>0,K132<>0),COUNT($B$11:B131)+1,"") ->  | C132: =IF('Orçamento Base'!$M131=0,0,'Orçamento Base'!$D131) -> 0 | D132: =IF('Orçamento Base'!$F131=Aux.!$G$11,"CONTRATACAO_PUBLICA",IF(VLOOKUP($C132,'Orçamento Base'!$D$11:$G$2116,3,FALSE)="INDEXADO",VLOOKUP(VLOOKUP($C131,'Orçamento Base'!$D$11:$G$2116,2,FALSE),'Index N_DESON.'!$A$9:$B$604,2),VLOOKUP($C132,'Orçamento Base'!$D$11:$G$2116,3,FALSE))) ->  | E132: =VLOOKUP($C132,'Orçamento Base'!$D$11:$S$1673,2,FALSE) ->  | F132: =Dados!$C$7 -> 2022-04-01 | G132: =VLOOKUP($C132,'Orçamento Base'!$D$11:$S$1673,4,FALSE) ->  | H132: =IFERROR(VLOOKUP($C132,'Orçamento Base'!$D$11:$S$1673,6,FALSE),0) -> 0 | I132: =VLOOKUP($C132,'Orçamento Base'!$D$11:$S$1673,5,FALSE) ->  | J132: =IF(Comparativo!$E$6="Tabela Não Desonerada",VLOOKUP($C132,'Orçamento Base'!$D$11:$S$1673,12,FALSE),VLOOKUP($C132,#REF!,12,FALSE)) ->  | K132: =IFERROR(IF(Comparativo!$E$6="Tabela Não Desonerada",VLOOKUP($C132,'Orçamento Base'!$D$11:$S$1673,16,FALSE),VLOOKUP($C132,#REF!,16,FALSE)),0) -> 0 | L132: =IF(AND($D132="COMPOSICAO_PROPRIA",'Orçamento Base'!$N132="-"),"14,18%",IF(AND($D132="MERCADO",'Orçamento Base'!$N132="-"),"15,38%",IF(Comparativo!$E$6="Tabela Não Desonerada",VLOOKUP($C132,'Orçamento Base'!$D$11:$S$1673,11,FALSE),VLOOKUP($C132,#REF!,11,FALSE)))) ->  | M132: =IF(Comparativo!$E$6="Tabela Não Desonerada",Encargos!$F$44,Encargos!$D$44) -> 1.1122
A133: ='Identificação-TCE'!$A$13 -> 1 | B133: =IF(AND(G133<>"",H133>0,I133<>"",J133<>0,K133<>0),COUNT($B$11:B132)+1,"") ->  | C133: =IF('Orçamento Base'!$M132=0,0,'Orçamento Base'!$D132) -> 0 | D133: =IF('Orçamento Base'!$F132=Aux.!$G$11,"CONTRATACAO_PUBLICA",IF(VLOOKUP($C133,'Orçamento Base'!$D$11:$G$2116,3,FALSE)="INDEXADO",VLOOKUP(VLOOKUP($C132,'Orçamento Base'!$D$11:$G$2116,2,FALSE),'Index N_DESON.'!$A$9:$B$604,2),VLOOKUP($C133,'Orçamento Base'!$D$11:$G$2116,3,FALSE))) ->  | E133: =VLOOKUP($C133,'Orçamento Base'!$D$11:$S$1673,2,FALSE) ->  | F133: =Dados!$C$7 -> 2022-04-01 | G133: =VLOOKUP($C133,'Orçamento Base'!$D$11:$S$1673,4,FALSE) ->  | H133: =IFERROR(VLOOKUP($C133,'Orçamento Base'!$D$11:$S$1673,6,FALSE),0) -> 0 | I133: =VLOOKUP($C133,'Orçamento Base'!$D$11:$S$1673,5,FALSE) ->  | J133: =IF(Comparativo!$E$6="Tabela Não Desonerada",VLOOKUP($C133,'Orçamento Base'!$D$11:$S$1673,12,FALSE),VLOOKUP($C133,#REF!,12,FALSE)) ->  | K133: =IFERROR(IF(Comparativo!$E$6="Tabela Não Desonerada",VLOOKUP($C133,'Orçamento Base'!$D$11:$S$1673,16,FALSE),VLOOKUP($C133,#REF!,16,FALSE)),0) -> 0 | L133: =IF(AND($D133="COMPOSICAO_PROPRIA",'Orçamento Base'!$N133="-"),"14,18%",IF(AND($D133="MERCADO",'Orçamento Base'!$N133="-"),"15,38%",IF(Comparativo!$E$6="Tabela Não Desonerada",VLOOKUP($C133,'Orçamento Base'!$D$11:$S$1673,11,FALSE),VLOOKUP($C133,#REF!,11,FALSE)))) ->  | M133: =IF(Comparativo!$E$6="Tabela Não Desonerada",Encargos!$F$44,Encargos!$D$44) -> 1.1122
A134: ='Identificação-TCE'!$A$13 -> 1 | B134: =IF(AND(G134<>"",H134>0,I134<>"",J134<>0,K134<>0),COUNT($B$11:B133)+1,"") ->  | C134: =IF('Orçamento Base'!$M133=0,0,'Orçamento Base'!$D133) -> 0 | D134: =IF('Orçamento Base'!$F133=Aux.!$G$11,"CONTRATACAO_PUBLICA",IF(VLOOKUP($C134,'Orçamento Base'!$D$11:$G$2116,3,FALSE)="INDEXADO",VLOOKUP(VLOOKUP($C133,'Orçamento Base'!$D$11:$G$2116,2,FALSE),'Index N_DESON.'!$A$9:$B$604,2),VLOOKUP($C134,'Orçamento Base'!$D$11:$G$2116,3,FALSE))) ->  | E134: =VLOOKUP($C134,'Orçamento Base'!$D$11:$S$1673,2,FALSE) ->  | F134: =Dados!$C$7 -> 2022-04-01 | G134: =VLOOKUP($C134,'Orçamento Base'!$D$11:$S$1673,4,FALSE) ->  | H134: =IFERROR(VLOOKUP($C134,'Orçamento Base'!$D$11:$S$1673,6,FALSE),0) -> 0 | I134: =VLOOKUP($C134,'Orçamento Base'!$D$11:$S$1673,5,FALSE) ->  | J134: =IF(Comparativo!$E$6="Tabela Não Desonerada",VLOOKUP($C134,'Orçamento Base'!$D$11:$S$1673,12,FALSE),VLOOKUP($C134,#REF!,12,FALSE)) ->  | K134: =IFERROR(IF(Comparativo!$E$6="Tabela Não Desonerada",VLOOKUP($C134,'Orçamento Base'!$D$11:$S$1673,16,FALSE),VLOOKUP($C134,#REF!,16,FALSE)),0) -> 0 | L134: =IF(AND($D134="COMPOSICAO_PROPRIA",'Orçamento Base'!$N134="-"),"14,18%",IF(AND($D134="MERCADO",'Orçamento Base'!$N134="-"),"15,38%",IF(Comparativo!$E$6="Tabela Não Desonerada",VLOOKUP($C134,'Orçamento Base'!$D$11:$S$1673,11,FALSE),VLOOKUP($C134,#REF!,11,FALSE)))) ->  | M134: =IF(Comparativo!$E$6="Tabela Não Desonerada",Encargos!$F$44,Encargos!$D$44) -> 1.1122
A135: ='Identificação-TCE'!$A$13 -> 1 | B135: =IF(AND(G135<>"",H135>0,I135<>"",J135<>0,K135<>0),COUNT($B$11:B134)+1,"") ->  | C135: =IF('Orçamento Base'!$M134=0,0,'Orçamento Base'!$D134) -> 0 | D135: =IF('Orçamento Base'!$F134=Aux.!$G$11,"CONTRATACAO_PUBLICA",IF(VLOOKUP($C135,'Orçamento Base'!$D$11:$G$2116,3,FALSE)="INDEXADO",VLOOKUP(VLOOKUP($C134,'Orçamento Base'!$D$11:$G$2116,2,FALSE),'Index N_DESON.'!$A$9:$B$604,2),VLOOKUP($C135,'Orçamento Base'!$D$11:$G$2116,3,FALSE))) ->  | E135: =VLOOKUP($C135,'Orçamento Base'!$D$11:$S$1673,2,FALSE) ->  | F135: =Dados!$C$7 -> 2022-04-01 | G135: =VLOOKUP($C135,'Orçamento Base'!$D$11:$S$1673,4,FALSE) ->  | H135: =IFERROR(VLOOKUP($C135,'Orçamento Base'!$D$11:$S$1673,6,FALSE),0) -> 0 | I135: =VLOOKUP($C135,'Orçamento Base'!$D$11:$S$1673,5,FALSE) ->  | J135: =IF(Comparativo!$E$6="Tabela Não Desonerada",VLOOKUP($C135,'Orçamento Base'!$D$11:$S$1673,12,FALSE),VLOOKUP($C135,#REF!,12,FALSE)) ->  | K135: =IFERROR(IF(Comparativo!$E$6="Tabela Não Desonerada",VLOOKUP($C135,'Orçamento Base'!$D$11:$S$1673,16,FALSE),VLOOKUP($C135,#REF!,16,FALSE)),0) -> 0 | L135: =IF(AND($D135="COMPOSICAO_PROPRIA",'Orçamento Base'!$N135="-"),"14,18%",IF(AND($D135="MERCADO",'Orçamento Base'!$N135="-"),"15,38%",IF(Comparativo!$E$6="Tabela Não Desonerada",VLOOKUP($C135,'Orçamento Base'!$D$11:$S$1673,11,FALSE),VLOOKUP($C135,#REF!,11,FALSE)))) ->  | M135: =IF(Comparativo!$E$6="Tabela Não Desonerada",Encargos!$F$44,Encargos!$D$44) -> 1.1122
A136: ='Identificação-TCE'!$A$13 -> 1 | B136: =IF(AND(G136<>"",H136>0,I136<>"",J136<>0,K136<>0),COUNT($B$11:B135)+1,"") ->  | C136: =IF('Orçamento Base'!$M135=0,0,'Orçamento Base'!$D135) -> 0 | D136: =IF('Orçamento Base'!$F135=Aux.!$G$11,"CONTRATACAO_PUBLICA",IF(VLOOKUP($C136,'Orçamento Base'!$D$11:$G$2116,3,FALSE)="INDEXADO",VLOOKUP(VLOOKUP($C135,'Orçamento Base'!$D$11:$G$2116,2,FALSE),'Index N_DESON.'!$A$9:$B$604,2),VLOOKUP($C136,'Orçamento Base'!$D$11:$G$2116,3,FALSE))) ->  | E136: =VLOOKUP($C136,'Orçamento Base'!$D$11:$S$1673,2,FALSE) ->  | F136: =Dados!$C$7 -> 2022-04-01 | G136: =VLOOKUP($C136,'Orçamento Base'!$D$11:$S$1673,4,FALSE) ->  | H136: =IFERROR(VLOOKUP($C136,'Orçamento Base'!$D$11:$S$1673,6,FALSE),0) -> 0 | I136: =VLOOKUP($C136,'Orçamento Base'!$D$11:$S$1673,5,FALSE) ->  | J136: =IF(Comparativo!$E$6="Tabela Não Desonerada",VLOOKUP($C136,'Orçamento Base'!$D$11:$S$1673,12,FALSE),VLOOKUP($C136,#REF!,12,FALSE)) ->  | K136: =IFERROR(IF(Comparativo!$E$6="Tabela Não Desonerada",VLOOKUP($C136,'Orçamento Base'!$D$11:$S$1673,16,FALSE),VLOOKUP($C136,#REF!,16,FALSE)),0) -> 0 | L136: =IF(AND($D136="COMPOSICAO_PROPRIA",'Orçamento Base'!$N136="-"),"14,18%",IF(AND($D136="MERCADO",'Orçamento Base'!$N136="-"),"15,38%",IF(Comparativo!$E$6="Tabela Não Desonerada",VLOOKUP($C136,'Orçamento Base'!$D$11:$S$1673,11,FALSE),VLOOKUP($C136,#REF!,11,FALSE)))) ->  | M136: =IF(Comparativo!$E$6="Tabela Não Desonerada",Encargos!$F$44,Encargos!$D$44) -> 1.1122
A137: ='Identificação-TCE'!$A$13 -> 1 | B137: =IF(AND(G137<>"",H137>0,I137<>"",J137<>0,K137<>0),COUNT($B$11:B136)+1,"") ->  | C137: =IF('Orçamento Base'!$M136=0,0,'Orçamento Base'!$D136) -> 0 | D137: =IF('Orçamento Base'!$F136=Aux.!$G$11,"CONTRATACAO_PUBLICA",IF(VLOOKUP($C137,'Orçamento Base'!$D$11:$G$2116,3,FALSE)="INDEXADO",VLOOKUP(VLOOKUP($C136,'Orçamento Base'!$D$11:$G$2116,2,FALSE),'Index N_DESON.'!$A$9:$B$604,2),VLOOKUP($C137,'Orçamento Base'!$D$11:$G$2116,3,FALSE))) ->  | E137: =VLOOKUP($C137,'Orçamento Base'!$D$11:$S$1673,2,FALSE) ->  | F137: =Dados!$C$7 -> 2022-04-01 | G137: =VLOOKUP($C137,'Orçamento Base'!$D$11:$S$1673,4,FALSE) ->  | H137: =IFERROR(VLOOKUP($C137,'Orçamento Base'!$D$11:$S$1673,6,FALSE),0) -> 0 | I137: =VLOOKUP($C137,'Orçamento Base'!$D$11:$S$1673,5,FALSE) ->  | J137: =IF(Comparativo!$E$6="Tabela Não Desonerada",VLOOKUP($C137,'Orçamento Base'!$D$11:$S$1673,12,FALSE),VLOOKUP($C137,#REF!,12,FALSE)) ->  | K137: =IFERROR(IF(Comparativo!$E$6="Tabela Não Desonerada",VLOOKUP($C137,'Orçamento Base'!$D$11:$S$1673,16,FALSE),VLOOKUP($C137,#REF!,16,FALSE)),0) -> 0 | L137: =IF(AND($D137="COMPOSICAO_PROPRIA",'Orçamento Base'!$N137="-"),"14,18%",IF(AND($D137="MERCADO",'Orçamento Base'!$N137="-"),"15,38%",IF(Comparativo!$E$6="Tabela Não Desonerada",VLOOKUP($C137,'Orçamento Base'!$D$11:$S$1673,11,FALSE),VLOOKUP($C137,#REF!,11,FALSE)))) ->  | M137: =IF(Comparativo!$E$6="Tabela Não Desonerada",Encargos!$F$44,Encargos!$D$44) -> 1.1122
A138: ='Identificação-TCE'!$A$13 -> 1 | B138: =IF(AND(G138<>"",H138>0,I138<>"",J138<>0,K138<>0),COUNT($B$11:B137)+1,"") ->  | C138: =IF('Orçamento Base'!$M137=0,0,'Orçamento Base'!$D137) -> 0 | D138: =IF('Orçamento Base'!$F137=Aux.!$G$11,"CONTRATACAO_PUBLICA",IF(VLOOKUP($C138,'Orçamento Base'!$D$11:$G$2116,3,FALSE)="INDEXADO",VLOOKUP(VLOOKUP($C137,'Orçamento Base'!$D$11:$G$2116,2,FALSE),'Index N_DESON.'!$A$9:$B$604,2),VLOOKUP($C138,'Orçamento Base'!$D$11:$G$2116,3,FALSE))) ->  | E138: =VLOOKUP($C138,'Orçamento Base'!$D$11:$S$1673,2,FALSE) ->  | F138: =Dados!$C$7 -> 2022-04-01 | G138: =VLOOKUP($C138,'Orçamento Base'!$D$11:$S$1673,4,FALSE) ->  | H138: =IFERROR(VLOOKUP($C138,'Orçamento Base'!$D$11:$S$1673,6,FALSE),0) -> 0 | I138: =VLOOKUP($C138,'Orçamento Base'!$D$11:$S$1673,5,FALSE) ->  | J138: =IF(Comparativo!$E$6="Tabela Não Desonerada",VLOOKUP($C138,'Orçamento Base'!$D$11:$S$1673,12,FALSE),VLOOKUP($C138,#REF!,12,FALSE)) ->  | K138: =IFERROR(IF(Comparativo!$E$6="Tabela Não Desonerada",VLOOKUP($C138,'Orçamento Base'!$D$11:$S$1673,16,FALSE),VLOOKUP($C138,#REF!,16,FALSE)),0) -> 0 | L138: =IF(AND($D138="COMPOSICAO_PROPRIA",'Orçamento Base'!$N138="-"),"14,18%",IF(AND($D138="MERCADO",'Orçamento Base'!$N138="-"),"15,38%",IF(Comparativo!$E$6="Tabela Não Desonerada",VLOOKUP($C138,'Orçamento Base'!$D$11:$S$1673,11,FALSE),VLOOKUP($C138,#REF!,11,FALSE)))) ->  | M138: =IF(Comparativo!$E$6="Tabela Não Desonerada",Encargos!$F$44,Encargos!$D$44) -> 1.1122
A139: ='Identificação-TCE'!$A$13 -> 1 | B139: =IF(AND(G139<>"",H139>0,I139<>"",J139<>0,K139<>0),COUNT($B$11:B138)+1,"") ->  | C139: =IF('Orçamento Base'!$M138=0,0,'Orçamento Base'!$D138) -> 0 | D139: =IF('Orçamento Base'!$F138=Aux.!$G$11,"CONTRATACAO_PUBLICA",IF(VLOOKUP($C139,'Orçamento Base'!$D$11:$G$2116,3,FALSE)="INDEXADO",VLOOKUP(VLOOKUP($C138,'Orçamento Base'!$D$11:$G$2116,2,FALSE),'Index N_DESON.'!$A$9:$B$604,2),VLOOKUP($C139,'Orçamento Base'!$D$11:$G$2116,3,FALSE))) ->  | E139: =VLOOKUP($C139,'Orçamento Base'!$D$11:$S$1673,2,FALSE) ->  | F139: =Dados!$C$7 -> 2022-04-01 | G139: =VLOOKUP($C139,'Orçamento Base'!$D$11:$S$1673,4,FALSE) ->  | H139: =IFERROR(VLOOKUP($C139,'Orçamento Base'!$D$11:$S$1673,6,FALSE),0) -> 0 | I139: =VLOOKUP($C139,'Orçamento Base'!$D$11:$S$1673,5,FALSE) ->  | J139: =IF(Comparativo!$E$6="Tabela Não Desonerada",VLOOKUP($C139,'Orçamento Base'!$D$11:$S$1673,12,FALSE),VLOOKUP($C139,#REF!,12,FALSE)) ->  | K139: =IFERROR(IF(Comparativo!$E$6="Tabela Não Desonerada",VLOOKUP($C139,'Orçamento Base'!$D$11:$S$1673,16,FALSE),VLOOKUP($C139,#REF!,16,FALSE)),0) -> 0 | L139: =IF(AND($D139="COMPOSICAO_PROPRIA",'Orçamento Base'!$N139="-"),"14,18%",IF(AND($D139="MERCADO",'Orçamento Base'!$N139="-"),"15,38%",IF(Comparativo!$E$6="Tabela Não Desonerada",VLOOKUP($C139,'Orçamento Base'!$D$11:$S$1673,11,FALSE),VLOOKUP($C139,#REF!,11,FALSE)))) ->  | M139: =IF(Comparativo!$E$6="Tabela Não Desonerada",Encargos!$F$44,Encargos!$D$44) -> 1.1122
A140: ='Identificação-TCE'!$A$13 -> 1 | B140: =IF(AND(G140<>"",H140>0,I140<>"",J140<>0,K140<>0),COUNT($B$11:B139)+1,"") ->  | C140: =IF('Orçamento Base'!$M139=0,0,'Orçamento Base'!$D139) -> 0 | D140: =IF('Orçamento Base'!$F139=Aux.!$G$11,"CONTRATACAO_PUBLICA",IF(VLOOKUP($C140,'Orçamento Base'!$D$11:$G$2116,3,FALSE)="INDEXADO",VLOOKUP(VLOOKUP($C139,'Orçamento Base'!$D$11:$G$2116,2,FALSE),'Index N_DESON.'!$A$9:$B$604,2),VLOOKUP($C140,'Orçamento Base'!$D$11:$G$2116,3,FALSE))) ->  | E140: =VLOOKUP($C140,'Orçamento Base'!$D$11:$S$1673,2,FALSE) ->  | F140: =Dados!$C$7 -> 2022-04-01 | G140: =VLOOKUP($C140,'Orçamento Base'!$D$11:$S$1673,4,FALSE) ->  | H140: =IFERROR(VLOOKUP($C140,'Orçamento Base'!$D$11:$S$1673,6,FALSE),0) -> 0 | I140: =VLOOKUP($C140,'Orçamento Base'!$D$11:$S$1673,5,FALSE) ->  | J140: =IF(Comparativo!$E$6="Tabela Não Desonerada",VLOOKUP($C140,'Orçamento Base'!$D$11:$S$1673,12,FALSE),VLOOKUP($C140,#REF!,12,FALSE)) ->  | K140: =IFERROR(IF(Comparativo!$E$6="Tabela Não Desonerada",VLOOKUP($C140,'Orçamento Base'!$D$11:$S$1673,16,FALSE),VLOOKUP($C140,#REF!,16,FALSE)),0) -> 0 | L140: =IF(AND($D140="COMPOSICAO_PROPRIA",'Orçamento Base'!$N140="-"),"14,18%",IF(AND($D140="MERCADO",'Orçamento Base'!$N140="-"),"15,38%",IF(Comparativo!$E$6="Tabela Não Desonerada",VLOOKUP($C140,'Orçamento Base'!$D$11:$S$1673,11,FALSE),VLOOKUP($C140,#REF!,11,FALSE)))) ->  | M140: =IF(Comparativo!$E$6="Tabela Não Desonerada",Encargos!$F$44,Encargos!$D$44) -> 1.1122
A141: ='Identificação-TCE'!$A$13 -> 1 | B141: =IF(AND(G141<>"",H141>0,I141<>"",J141<>0,K141<>0),COUNT($B$11:B140)+1,"") ->  | C141: =IF('Orçamento Base'!$M140=0,0,'Orçamento Base'!$D140) -> 0 | D141: =IF('Orçamento Base'!$F140=Aux.!$G$11,"CONTRATACAO_PUBLICA",IF(VLOOKUP($C141,'Orçamento Base'!$D$11:$G$2116,3,FALSE)="INDEXADO",VLOOKUP(VLOOKUP($C140,'Orçamento Base'!$D$11:$G$2116,2,FALSE),'Index N_DESON.'!$A$9:$B$604,2),VLOOKUP($C141,'Orçamento Base'!$D$11:$G$2116,3,FALSE))) ->  | E141: =VLOOKUP($C141,'Orçamento Base'!$D$11:$S$1673,2,FALSE) ->  | F141: =Dados!$C$7 -> 2022-04-01 | G141: =VLOOKUP($C141,'Orçamento Base'!$D$11:$S$1673,4,FALSE) ->  | H141: =IFERROR(VLOOKUP($C141,'Orçamento Base'!$D$11:$S$1673,6,FALSE),0) -> 0 | I141: =VLOOKUP($C141,'Orçamento Base'!$D$11:$S$1673,5,FALSE) ->  | J141: =IF(Comparativo!$E$6="Tabela Não Desonerada",VLOOKUP($C141,'Orçamento Base'!$D$11:$S$1673,12,FALSE),VLOOKUP($C141,#REF!,12,FALSE)) ->  | K141: =IFERROR(IF(Comparativo!$E$6="Tabela Não Desonerada",VLOOKUP($C141,'Orçamento Base'!$D$11:$S$1673,16,FALSE),VLOOKUP($C141,#REF!,16,FALSE)),0) -> 0 | L141: =IF(AND($D141="COMPOSICAO_PROPRIA",'Orçamento Base'!$N141="-"),"14,18%",IF(AND($D141="MERCADO",'Orçamento Base'!$N141="-"),"15,38%",IF(Comparativo!$E$6="Tabela Não Desonerada",VLOOKUP($C141,'Orçamento Base'!$D$11:$S$1673,11,FALSE),VLOOKUP($C141,#REF!,11,FALSE)))) ->  | M141: =IF(Comparativo!$E$6="Tabela Não Desonerada",Encargos!$F$44,Encargos!$D$44) -> 1.1122
A142: ='Identificação-TCE'!$A$13 -> 1 | B142: =IF(AND(G142<>"",H142>0,I142<>"",J142<>0,K142<>0),COUNT($B$11:B141)+1,"") ->  | C142: =IF('Orçamento Base'!$M141=0,0,'Orçamento Base'!$D141) -> 0 | D142: =IF('Orçamento Base'!$F141=Aux.!$G$11,"CONTRATACAO_PUBLICA",IF(VLOOKUP($C142,'Orçamento Base'!$D$11:$G$2116,3,FALSE)="INDEXADO",VLOOKUP(VLOOKUP($C141,'Orçamento Base'!$D$11:$G$2116,2,FALSE),'Index N_DESON.'!$A$9:$B$604,2),VLOOKUP($C142,'Orçamento Base'!$D$11:$G$2116,3,FALSE))) ->  | E142: =VLOOKUP($C142,'Orçamento Base'!$D$11:$S$1673,2,FALSE) ->  | F142: =Dados!$C$7 -> 2022-04-01 | G142: =VLOOKUP($C142,'Orçamento Base'!$D$11:$S$1673,4,FALSE) ->  | H142: =IFERROR(VLOOKUP($C142,'Orçamento Base'!$D$11:$S$1673,6,FALSE),0) -> 0 | I142: =VLOOKUP($C142,'Orçamento Base'!$D$11:$S$1673,5,FALSE) ->  | J142: =IF(Comparativo!$E$6="Tabela Não Desonerada",VLOOKUP($C142,'Orçamento Base'!$D$11:$S$1673,12,FALSE),VLOOKUP($C142,#REF!,12,FALSE)) ->  | K142: =IFERROR(IF(Comparativo!$E$6="Tabela Não Desonerada",VLOOKUP($C142,'Orçamento Base'!$D$11:$S$1673,16,FALSE),VLOOKUP($C142,#REF!,16,FALSE)),0) -> 0 | L142: =IF(AND($D142="COMPOSICAO_PROPRIA",'Orçamento Base'!$N142="-"),"14,18%",IF(AND($D142="MERCADO",'Orçamento Base'!$N142="-"),"15,38%",IF(Comparativo!$E$6="Tabela Não Desonerada",VLOOKUP($C142,'Orçamento Base'!$D$11:$S$1673,11,FALSE),VLOOKUP($C142,#REF!,11,FALSE)))) ->  | M142: =IF(Comparativo!$E$6="Tabela Não Desonerada",Encargos!$F$44,Encargos!$D$44) -> 1.1122
A143: ='Identificação-TCE'!$A$13 -> 1 | B143: =IF(AND(G143<>"",H143>0,I143<>"",J143<>0,K143<>0),COUNT($B$11:B142)+1,"") ->  | C143: =IF('Orçamento Base'!$M142=0,0,'Orçamento Base'!$D142) -> 0 | D143: =IF('Orçamento Base'!$F142=Aux.!$G$11,"CONTRATACAO_PUBLICA",IF(VLOOKUP($C143,'Orçamento Base'!$D$11:$G$2116,3,FALSE)="INDEXADO",VLOOKUP(VLOOKUP($C142,'Orçamento Base'!$D$11:$G$2116,2,FALSE),'Index N_DESON.'!$A$9:$B$604,2),VLOOKUP($C143,'Orçamento Base'!$D$11:$G$2116,3,FALSE))) ->  | E143: =VLOOKUP($C143,'Orçamento Base'!$D$11:$S$1673,2,FALSE) ->  | F143: =Dados!$C$7 -> 2022-04-01 | G143: =VLOOKUP($C143,'Orçamento Base'!$D$11:$S$1673,4,FALSE) ->  | H143: =IFERROR(VLOOKUP($C143,'Orçamento Base'!$D$11:$S$1673,6,FALSE),0) -> 0 | I143: =VLOOKUP($C143,'Orçamento Base'!$D$11:$S$1673,5,FALSE) ->  | J143: =IF(Comparativo!$E$6="Tabela Não Desonerada",VLOOKUP($C143,'Orçamento Base'!$D$11:$S$1673,12,FALSE),VLOOKUP($C143,#REF!,12,FALSE)) ->  | K143: =IFERROR(IF(Comparativo!$E$6="Tabela Não Desonerada",VLOOKUP($C143,'Orçamento Base'!$D$11:$S$1673,16,FALSE),VLOOKUP($C143,#REF!,16,FALSE)),0) -> 0 | L143: =IF(AND($D143="COMPOSICAO_PROPRIA",'Orçamento Base'!$N143="-"),"14,18%",IF(AND($D143="MERCADO",'Orçamento Base'!$N143="-"),"15,38%",IF(Comparativo!$E$6="Tabela Não Desonerada",VLOOKUP($C143,'Orçamento Base'!$D$11:$S$1673,11,FALSE),VLOOKUP($C143,#REF!,11,FALSE)))) ->  | M143: =IF(Comparativo!$E$6="Tabela Não Desonerada",Encargos!$F$44,Encargos!$D$44) -> 1.1122
A144: ='Identificação-TCE'!$A$13 -> 1 | B144: =IF(AND(G144<>"",H144>0,I144<>"",J144<>0,K144<>0),COUNT($B$11:B143)+1,"") ->  | C144: =IF('Orçamento Base'!$M143=0,0,'Orçamento Base'!$D143) -> 0 | D144: =IF('Orçamento Base'!$F143=Aux.!$G$11,"CONTRATACAO_PUBLICA",IF(VLOOKUP($C144,'Orçamento Base'!$D$11:$G$2116,3,FALSE)="INDEXADO",VLOOKUP(VLOOKUP($C143,'Orçamento Base'!$D$11:$G$2116,2,FALSE),'Index N_DESON.'!$A$9:$B$604,2),VLOOKUP($C144,'Orçamento Base'!$D$11:$G$2116,3,FALSE))) ->  | E144: =VLOOKUP($C144,'Orçamento Base'!$D$11:$S$1673,2,FALSE) ->  | F144: =Dados!$C$7 -> 2022-04-01 | G144: =VLOOKUP($C144,'Orçamento Base'!$D$11:$S$1673,4,FALSE) ->  | H144: =IFERROR(VLOOKUP($C144,'Orçamento Base'!$D$11:$S$1673,6,FALSE),0) -> 0 | I144: =VLOOKUP($C144,'Orçamento Base'!$D$11:$S$1673,5,FALSE) ->  | J144: =IF(Comparativo!$E$6="Tabela Não Desonerada",VLOOKUP($C144,'Orçamento Base'!$D$11:$S$1673,12,FALSE),VLOOKUP($C144,#REF!,12,FALSE)) ->  | K144: =IFERROR(IF(Comparativo!$E$6="Tabela Não Desonerada",VLOOKUP($C144,'Orçamento Base'!$D$11:$S$1673,16,FALSE),VLOOKUP($C144,#REF!,16,FALSE)),0) -> 0 | L144: =IF(AND($D144="COMPOSICAO_PROPRIA",'Orçamento Base'!$N144="-"),"14,18%",IF(AND($D144="MERCADO",'Orçamento Base'!$N144="-"),"15,38%",IF(Comparativo!$E$6="Tabela Não Desonerada",VLOOKUP($C144,'Orçamento Base'!$D$11:$S$1673,11,FALSE),VLOOKUP($C144,#REF!,11,FALSE)))) ->  | M144: =IF(Comparativo!$E$6="Tabela Não Desonerada",Encargos!$F$44,Encargos!$D$44) -> 1.1122
A145: ='Identificação-TCE'!$A$13 -> 1 | B145: =IF(AND(G145<>"",H145>0,I145<>"",J145<>0,K145<>0),COUNT($B$11:B144)+1,"") ->  | C145: =IF('Orçamento Base'!$M144=0,0,'Orçamento Base'!$D144) -> 0 | D145: =IF('Orçamento Base'!$F144=Aux.!$G$11,"CONTRATACAO_PUBLICA",IF(VLOOKUP($C145,'Orçamento Base'!$D$11:$G$2116,3,FALSE)="INDEXADO",VLOOKUP(VLOOKUP($C144,'Orçamento Base'!$D$11:$G$2116,2,FALSE),'Index N_DESON.'!$A$9:$B$604,2),VLOOKUP($C145,'Orçamento Base'!$D$11:$G$2116,3,FALSE))) ->  | E145: =VLOOKUP($C145,'Orçamento Base'!$D$11:$S$1673,2,FALSE) ->  | F145: =Dados!$C$7 -> 2022-04-01 | G145: =VLOOKUP($C145,'Orçamento Base'!$D$11:$S$1673,4,FALSE) ->  | H145: =IFERROR(VLOOKUP($C145,'Orçamento Base'!$D$11:$S$1673,6,FALSE),0) -> 0 | I145: =VLOOKUP($C145,'Orçamento Base'!$D$11:$S$1673,5,FALSE) ->  | J145: =IF(Comparativo!$E$6="Tabela Não Desonerada",VLOOKUP($C145,'Orçamento Base'!$D$11:$S$1673,12,FALSE),VLOOKUP($C145,#REF!,12,FALSE)) ->  | K145: =IFERROR(IF(Comparativo!$E$6="Tabela Não Desonerada",VLOOKUP($C145,'Orçamento Base'!$D$11:$S$1673,16,FALSE),VLOOKUP($C145,#REF!,16,FALSE)),0) -> 0 | L145: =IF(AND($D145="COMPOSICAO_PROPRIA",'Orçamento Base'!$N145="-"),"14,18%",IF(AND($D145="MERCADO",'Orçamento Base'!$N145="-"),"15,38%",IF(Comparativo!$E$6="Tabela Não Desonerada",VLOOKUP($C145,'Orçamento Base'!$D$11:$S$1673,11,FALSE),VLOOKUP($C145,#REF!,11,FALSE)))) ->  | M145: =IF(Comparativo!$E$6="Tabela Não Desonerada",Encargos!$F$44,Encargos!$D$44) -> 1.1122
A146: ='Identificação-TCE'!$A$13 -> 1 | B146: =IF(AND(G146<>"",H146>0,I146<>"",J146<>0,K146<>0),COUNT($B$11:B145)+1,"") ->  | C146: =IF('Orçamento Base'!$M145=0,0,'Orçamento Base'!$D145) -> 0 | D146: =IF('Orçamento Base'!$F145=Aux.!$G$11,"CONTRATACAO_PUBLICA",IF(VLOOKUP($C146,'Orçamento Base'!$D$11:$G$2116,3,FALSE)="INDEXADO",VLOOKUP(VLOOKUP($C145,'Orçamento Base'!$D$11:$G$2116,2,FALSE),'Index N_DESON.'!$A$9:$B$604,2),VLOOKUP($C146,'Orçamento Base'!$D$11:$G$2116,3,FALSE))) ->  | E146: =VLOOKUP($C146,'Orçamento Base'!$D$11:$S$1673,2,FALSE) ->  | F146: =Dados!$C$7 -> 2022-04-01 | G146: =VLOOKUP($C146,'Orçamento Base'!$D$11:$S$1673,4,FALSE) ->  | H146: =IFERROR(VLOOKUP($C146,'Orçamento Base'!$D$11:$S$1673,6,FALSE),0) -> 0 | I146: =VLOOKUP($C146,'Orçamento Base'!$D$11:$S$1673,5,FALSE) ->  | J146: =IF(Comparativo!$E$6="Tabela Não Desonerada",VLOOKUP($C146,'Orçamento Base'!$D$11:$S$1673,12,FALSE),VLOOKUP($C146,#REF!,12,FALSE)) ->  | K146: =IFERROR(IF(Comparativo!$E$6="Tabela Não Desonerada",VLOOKUP($C146,'Orçamento Base'!$D$11:$S$1673,16,FALSE),VLOOKUP($C146,#REF!,16,FALSE)),0) -> 0 | L146: =IF(AND($D146="COMPOSICAO_PROPRIA",'Orçamento Base'!$N146="-"),"14,18%",IF(AND($D146="MERCADO",'Orçamento Base'!$N146="-"),"15,38%",IF(Comparativo!$E$6="Tabela Não Desonerada",VLOOKUP($C146,'Orçamento Base'!$D$11:$S$1673,11,FALSE),VLOOKUP($C146,#REF!,11,FALSE)))) ->  | M146: =IF(Comparativo!$E$6="Tabela Não Desonerada",Encargos!$F$44,Encargos!$D$44) -> 1.1122
A147: ='Identificação-TCE'!$A$13 -> 1 | B147: =IF(AND(G147<>"",H147>0,I147<>"",J147<>0,K147<>0),COUNT($B$11:B146)+1,"") ->  | C147: =IF('Orçamento Base'!$M146=0,0,'Orçamento Base'!$D146) -> 0 | D147: =IF('Orçamento Base'!$F146=Aux.!$G$11,"CONTRATACAO_PUBLICA",IF(VLOOKUP($C147,'Orçamento Base'!$D$11:$G$2116,3,FALSE)="INDEXADO",VLOOKUP(VLOOKUP($C146,'Orçamento Base'!$D$11:$G$2116,2,FALSE),'Index N_DESON.'!$A$9:$B$604,2),VLOOKUP($C147,'Orçamento Base'!$D$11:$G$2116,3,FALSE))) ->  | E147: =VLOOKUP($C147,'Orçamento Base'!$D$11:$S$1673,2,FALSE) ->  | F147: =Dados!$C$7 -> 2022-04-01 | G147: =VLOOKUP($C147,'Orçamento Base'!$D$11:$S$1673,4,FALSE) ->  | H147: =IFERROR(VLOOKUP($C147,'Orçamento Base'!$D$11:$S$1673,6,FALSE),0) -> 0 | I147: =VLOOKUP($C147,'Orçamento Base'!$D$11:$S$1673,5,FALSE) ->  | J147: =IF(Comparativo!$E$6="Tabela Não Desonerada",VLOOKUP($C147,'Orçamento Base'!$D$11:$S$1673,12,FALSE),VLOOKUP($C147,#REF!,12,FALSE)) ->  | K147: =IFERROR(IF(Comparativo!$E$6="Tabela Não Desonerada",VLOOKUP($C147,'Orçamento Base'!$D$11:$S$1673,16,FALSE),VLOOKUP($C147,#REF!,16,FALSE)),0) -> 0 | L147: =IF(AND($D147="COMPOSICAO_PROPRIA",'Orçamento Base'!$N147="-"),"14,18%",IF(AND($D147="MERCADO",'Orçamento Base'!$N147="-"),"15,38%",IF(Comparativo!$E$6="Tabela Não Desonerada",VLOOKUP($C147,'Orçamento Base'!$D$11:$S$1673,11,FALSE),VLOOKUP($C147,#REF!,11,FALSE)))) ->  | M147: =IF(Comparativo!$E$6="Tabela Não Desonerada",Encargos!$F$44,Encargos!$D$44) -> 1.1122
A148: ='Identificação-TCE'!$A$13 -> 1 | B148: =IF(AND(G148<>"",H148>0,I148<>"",J148<>0,K148<>0),COUNT($B$11:B147)+1,"") ->  | C148: =IF('Orçamento Base'!$M147=0,0,'Orçamento Base'!$D147) -> 0 | D148: =IF('Orçamento Base'!$F147=Aux.!$G$11,"CONTRATACAO_PUBLICA",IF(VLOOKUP($C148,'Orçamento Base'!$D$11:$G$2116,3,FALSE)="INDEXADO",VLOOKUP(VLOOKUP($C147,'Orçamento Base'!$D$11:$G$2116,2,FALSE),'Index N_DESON.'!$A$9:$B$604,2),VLOOKUP($C148,'Orçamento Base'!$D$11:$G$2116,3,FALSE))) ->  | E148: =VLOOKUP($C148,'Orçamento Base'!$D$11:$S$1673,2,FALSE) ->  | F148: =Dados!$C$7 -> 2022-04-01 | G148: =VLOOKUP($C148,'Orçamento Base'!$D$11:$S$1673,4,FALSE) ->  | H148: =IFERROR(VLOOKUP($C148,'Orçamento Base'!$D$11:$S$1673,6,FALSE),0) -> 0 | I148: =VLOOKUP($C148,'Orçamento Base'!$D$11:$S$1673,5,FALSE) ->  | J148: =IF(Comparativo!$E$6="Tabela Não Desonerada",VLOOKUP($C148,'Orçamento Base'!$D$11:$S$1673,12,FALSE),VLOOKUP($C148,#REF!,12,FALSE)) ->  | K148: =IFERROR(IF(Comparativo!$E$6="Tabela Não Desonerada",VLOOKUP($C148,'Orçamento Base'!$D$11:$S$1673,16,FALSE),VLOOKUP($C148,#REF!,16,FALSE)),0) -> 0 | L148: =IF(AND($D148="COMPOSICAO_PROPRIA",'Orçamento Base'!$N148="-"),"14,18%",IF(AND($D148="MERCADO",'Orçamento Base'!$N148="-"),"15,38%",IF(Comparativo!$E$6="Tabela Não Desonerada",VLOOKUP($C148,'Orçamento Base'!$D$11:$S$1673,11,FALSE),VLOOKUP($C148,#REF!,11,FALSE)))) ->  | M148: =IF(Comparativo!$E$6="Tabela Não Desonerada",Encargos!$F$44,Encargos!$D$44) -> 1.1122
A149: ='Identificação-TCE'!$A$13 -> 1 | B149: =IF(AND(G149<>"",H149>0,I149<>"",J149<>0,K149<>0),COUNT($B$11:B148)+1,"") ->  | C149: =IF('Orçamento Base'!$M148=0,0,'Orçamento Base'!$D148) -> 0 | D149: =IF('Orçamento Base'!$F148=Aux.!$G$11,"CONTRATACAO_PUBLICA",IF(VLOOKUP($C149,'Orçamento Base'!$D$11:$G$2116,3,FALSE)="INDEXADO",VLOOKUP(VLOOKUP($C148,'Orçamento Base'!$D$11:$G$2116,2,FALSE),'Index N_DESON.'!$A$9:$B$604,2),VLOOKUP($C149,'Orçamento Base'!$D$11:$G$2116,3,FALSE))) ->  | E149: =VLOOKUP($C149,'Orçamento Base'!$D$11:$S$1673,2,FALSE) ->  | F149: =Dados!$C$7 -> 2022-04-01 | G149: =VLOOKUP($C149,'Orçamento Base'!$D$11:$S$1673,4,FALSE) ->  | H149: =IFERROR(VLOOKUP($C149,'Orçamento Base'!$D$11:$S$1673,6,FALSE),0) -> 0 | I149: =VLOOKUP($C149,'Orçamento Base'!$D$11:$S$1673,5,FALSE) ->  | J149: =IF(Comparativo!$E$6="Tabela Não Desonerada",VLOOKUP($C149,'Orçamento Base'!$D$11:$S$1673,12,FALSE),VLOOKUP($C149,#REF!,12,FALSE)) ->  | K149: =IFERROR(IF(Comparativo!$E$6="Tabela Não Desonerada",VLOOKUP($C149,'Orçamento Base'!$D$11:$S$1673,16,FALSE),VLOOKUP($C149,#REF!,16,FALSE)),0) -> 0 | L149: =IF(AND($D149="COMPOSICAO_PROPRIA",'Orçamento Base'!$N149="-"),"14,18%",IF(AND($D149="MERCADO",'Orçamento Base'!$N149="-"),"15,38%",IF(Comparativo!$E$6="Tabela Não Desonerada",VLOOKUP($C149,'Orçamento Base'!$D$11:$S$1673,11,FALSE),VLOOKUP($C149,#REF!,11,FALSE)))) ->  | M149: =IF(Comparativo!$E$6="Tabela Não Desonerada",Encargos!$F$44,Encargos!$D$44) -> 1.1122
A150: ='Identificação-TCE'!$A$13 -> 1 | B150: =IF(AND(G150<>"",H150>0,I150<>"",J150<>0,K150<>0),COUNT($B$11:B149)+1,"") ->  | C150: =IF('Orçamento Base'!$M149=0,0,'Orçamento Base'!$D149) -> 0 | D150: =IF('Orçamento Base'!$F149=Aux.!$G$11,"CONTRATACAO_PUBLICA",IF(VLOOKUP($C150,'Orçamento Base'!$D$11:$G$2116,3,FALSE)="INDEXADO",VLOOKUP(VLOOKUP($C149,'Orçamento Base'!$D$11:$G$2116,2,FALSE),'Index N_DESON.'!$A$9:$B$604,2),VLOOKUP($C150,'Orçamento Base'!$D$11:$G$2116,3,FALSE))) ->  | E150: =VLOOKUP($C150,'Orçamento Base'!$D$11:$S$1673,2,FALSE) ->  | F150: =Dados!$C$7 -> 2022-04-01 | G150: =VLOOKUP($C150,'Orçamento Base'!$D$11:$S$1673,4,FALSE) ->  | H150: =IFERROR(VLOOKUP($C150,'Orçamento Base'!$D$11:$S$1673,6,FALSE),0) -> 0 | I150: =VLOOKUP($C150,'Orçamento Base'!$D$11:$S$1673,5,FALSE) ->  | J150: =IF(Comparativo!$E$6="Tabela Não Desonerada",VLOOKUP($C150,'Orçamento Base'!$D$11:$S$1673,12,FALSE),VLOOKUP($C150,#REF!,12,FALSE)) ->  | K150: =IFERROR(IF(Comparativo!$E$6="Tabela Não Desonerada",VLOOKUP($C150,'Orçamento Base'!$D$11:$S$1673,16,FALSE),VLOOKUP($C150,#REF!,16,FALSE)),0) -> 0 | L150: =IF(AND($D150="COMPOSICAO_PROPRIA",'Orçamento Base'!$N150="-"),"14,18%",IF(AND($D150="MERCADO",'Orçamento Base'!$N150="-"),"15,38%",IF(Comparativo!$E$6="Tabela Não Desonerada",VLOOKUP($C150,'Orçamento Base'!$D$11:$S$1673,11,FALSE),VLOOKUP($C150,#REF!,11,FALSE)))) ->  | M150: =IF(Comparativo!$E$6="Tabela Não Desonerada",Encargos!$F$44,Encargos!$D$44) -> 1.1122
A151: ='Identificação-TCE'!$A$13 -> 1 | B151: =IF(AND(G151<>"",H151>0,I151<>"",J151<>0,K151<>0),COUNT($B$11:B150)+1,"") ->  | C151: =IF('Orçamento Base'!$M150=0,0,'Orçamento Base'!$D150) -> 0 | D151: =IF('Orçamento Base'!$F150=Aux.!$G$11,"CONTRATACAO_PUBLICA",IF(VLOOKUP($C151,'Orçamento Base'!$D$11:$G$2116,3,FALSE)="INDEXADO",VLOOKUP(VLOOKUP($C150,'Orçamento Base'!$D$11:$G$2116,2,FALSE),'Index N_DESON.'!$A$9:$B$604,2),VLOOKUP($C151,'Orçamento Base'!$D$11:$G$2116,3,FALSE))) ->  | E151: =VLOOKUP($C151,'Orçamento Base'!$D$11:$S$1673,2,FALSE) ->  | F151: =Dados!$C$7 -> 2022-04-01 | G151: =VLOOKUP($C151,'Orçamento Base'!$D$11:$S$1673,4,FALSE) ->  | H151: =IFERROR(VLOOKUP($C151,'Orçamento Base'!$D$11:$S$1673,6,FALSE),0) -> 0 | I151: =VLOOKUP($C151,'Orçamento Base'!$D$11:$S$1673,5,FALSE) ->  | J151: =IF(Comparativo!$E$6="Tabela Não Desonerada",VLOOKUP($C151,'Orçamento Base'!$D$11:$S$1673,12,FALSE),VLOOKUP($C151,#REF!,12,FALSE)) ->  | K151: =IFERROR(IF(Comparativo!$E$6="Tabela Não Desonerada",VLOOKUP($C151,'Orçamento Base'!$D$11:$S$1673,16,FALSE),VLOOKUP($C151,#REF!,16,FALSE)),0) -> 0 | L151: =IF(AND($D151="COMPOSICAO_PROPRIA",'Orçamento Base'!$N151="-"),"14,18%",IF(AND($D151="MERCADO",'Orçamento Base'!$N151="-"),"15,38%",IF(Comparativo!$E$6="Tabela Não Desonerada",VLOOKUP($C151,'Orçamento Base'!$D$11:$S$1673,11,FALSE),VLOOKUP($C151,#REF!,11,FALSE)))) ->  | M151: =IF(Comparativo!$E$6="Tabela Não Desonerada",Encargos!$F$44,Encargos!$D$44) -> 1.1122
A152: ='Identificação-TCE'!$A$13 -> 1 | B152: =IF(AND(G152<>"",H152>0,I152<>"",J152<>0,K152<>0),COUNT($B$11:B151)+1,"") ->  | C152: =IF('Orçamento Base'!$M151=0,0,'Orçamento Base'!$D151) -> 0 | D152: =IF('Orçamento Base'!$F151=Aux.!$G$11,"CONTRATACAO_PUBLICA",IF(VLOOKUP($C152,'Orçamento Base'!$D$11:$G$2116,3,FALSE)="INDEXADO",VLOOKUP(VLOOKUP($C151,'Orçamento Base'!$D$11:$G$2116,2,FALSE),'Index N_DESON.'!$A$9:$B$604,2),VLOOKUP($C152,'Orçamento Base'!$D$11:$G$2116,3,FALSE))) ->  | E152: =VLOOKUP($C152,'Orçamento Base'!$D$11:$S$1673,2,FALSE) ->  | F152: =Dados!$C$7 -> 2022-04-01 | G152: =VLOOKUP($C152,'Orçamento Base'!$D$11:$S$1673,4,FALSE) ->  | H152: =IFERROR(VLOOKUP($C152,'Orçamento Base'!$D$11:$S$1673,6,FALSE),0) -> 0 | I152: =VLOOKUP($C152,'Orçamento Base'!$D$11:$S$1673,5,FALSE) ->  | J152: =IF(Comparativo!$E$6="Tabela Não Desonerada",VLOOKUP($C152,'Orçamento Base'!$D$11:$S$1673,12,FALSE),VLOOKUP($C152,#REF!,12,FALSE)) ->  | K152: =IFERROR(IF(Comparativo!$E$6="Tabela Não Desonerada",VLOOKUP($C152,'Orçamento Base'!$D$11:$S$1673,16,FALSE),VLOOKUP($C152,#REF!,16,FALSE)),0) -> 0 | L152: =IF(AND($D152="COMPOSICAO_PROPRIA",'Orçamento Base'!$N152="-"),"14,18%",IF(AND($D152="MERCADO",'Orçamento Base'!$N152="-"),"15,38%",IF(Comparativo!$E$6="Tabela Não Desonerada",VLOOKUP($C152,'Orçamento Base'!$D$11:$S$1673,11,FALSE),VLOOKUP($C152,#REF!,11,FALSE)))) ->  | M152: =IF(Comparativo!$E$6="Tabela Não Desonerada",Encargos!$F$44,Encargos!$D$44) -> 1.1122
A153: ='Identificação-TCE'!$A$13 -> 1 | B153: =IF(AND(G153<>"",H153>0,I153<>"",J153<>0,K153<>0),COUNT($B$11:B152)+1,"") ->  | C153: =IF('Orçamento Base'!$M152=0,0,'Orçamento Base'!$D152) -> 0 | D153: =IF('Orçamento Base'!$F152=Aux.!$G$11,"CONTRATACAO_PUBLICA",IF(VLOOKUP($C153,'Orçamento Base'!$D$11:$G$2116,3,FALSE)="INDEXADO",VLOOKUP(VLOOKUP($C152,'Orçamento Base'!$D$11:$G$2116,2,FALSE),'Index N_DESON.'!$A$9:$B$604,2),VLOOKUP($C153,'Orçamento Base'!$D$11:$G$2116,3,FALSE))) ->  | E153: =VLOOKUP($C153,'Orçamento Base'!$D$11:$S$1673,2,FALSE) ->  | F153: =Dados!$C$7 -> 2022-04-01 | G153: =VLOOKUP($C153,'Orçamento Base'!$D$11:$S$1673,4,FALSE) ->  | H153: =IFERROR(VLOOKUP($C153,'Orçamento Base'!$D$11:$S$1673,6,FALSE),0) -> 0 | I153: =VLOOKUP($C153,'Orçamento Base'!$D$11:$S$1673,5,FALSE) ->  | J153: =IF(Comparativo!$E$6="Tabela Não Desonerada",VLOOKUP($C153,'Orçamento Base'!$D$11:$S$1673,12,FALSE),VLOOKUP($C153,#REF!,12,FALSE)) ->  | K153: =IFERROR(IF(Comparativo!$E$6="Tabela Não Desonerada",VLOOKUP($C153,'Orçamento Base'!$D$11:$S$1673,16,FALSE),VLOOKUP($C153,#REF!,16,FALSE)),0) -> 0 | L153: =IF(AND($D153="COMPOSICAO_PROPRIA",'Orçamento Base'!$N153="-"),"14,18%",IF(AND($D153="MERCADO",'Orçamento Base'!$N153="-"),"15,38%",IF(Comparativo!$E$6="Tabela Não Desonerada",VLOOKUP($C153,'Orçamento Base'!$D$11:$S$1673,11,FALSE),VLOOKUP($C153,#REF!,11,FALSE)))) ->  | M153: =IF(Comparativo!$E$6="Tabela Não Desonerada",Encargos!$F$44,Encargos!$D$44) -> 1.1122
A154: ='Identificação-TCE'!$A$13 -> 1 | B154: =IF(AND(G154<>"",H154>0,I154<>"",J154<>0,K154<>0),COUNT($B$11:B153)+1,"") ->  | C154: =IF('Orçamento Base'!$M153=0,0,'Orçamento Base'!$D153) -> 0 | D154: =IF('Orçamento Base'!$F153=Aux.!$G$11,"CONTRATACAO_PUBLICA",IF(VLOOKUP($C154,'Orçamento Base'!$D$11:$G$2116,3,FALSE)="INDEXADO",VLOOKUP(VLOOKUP($C153,'Orçamento Base'!$D$11:$G$2116,2,FALSE),'Index N_DESON.'!$A$9:$B$604,2),VLOOKUP($C154,'Orçamento Base'!$D$11:$G$2116,3,FALSE))) ->  | E154: =VLOOKUP($C154,'Orçamento Base'!$D$11:$S$1673,2,FALSE) ->  | F154: =Dados!$C$7 -> 2022-04-01 | G154: =VLOOKUP($C154,'Orçamento Base'!$D$11:$S$1673,4,FALSE) ->  | H154: =IFERROR(VLOOKUP($C154,'Orçamento Base'!$D$11:$S$1673,6,FALSE),0) -> 0 | I154: =VLOOKUP($C154,'Orçamento Base'!$D$11:$S$1673,5,FALSE) ->  | J154: =IF(Comparativo!$E$6="Tabela Não Desonerada",VLOOKUP($C154,'Orçamento Base'!$D$11:$S$1673,12,FALSE),VLOOKUP($C154,#REF!,12,FALSE)) ->  | K154: =IFERROR(IF(Comparativo!$E$6="Tabela Não Desonerada",VLOOKUP($C154,'Orçamento Base'!$D$11:$S$1673,16,FALSE),VLOOKUP($C154,#REF!,16,FALSE)),0) -> 0 | L154: =IF(AND($D154="COMPOSICAO_PROPRIA",'Orçamento Base'!$N154="-"),"14,18%",IF(AND($D154="MERCADO",'Orçamento Base'!$N154="-"),"15,38%",IF(Comparativo!$E$6="Tabela Não Desonerada",VLOOKUP($C154,'Orçamento Base'!$D$11:$S$1673,11,FALSE),VLOOKUP($C154,#REF!,11,FALSE)))) ->  | M154: =IF(Comparativo!$E$6="Tabela Não Desonerada",Encargos!$F$44,Encargos!$D$44) -> 1.1122
A155: ='Identificação-TCE'!$A$13 -> 1 | B155: =IF(AND(G155<>"",H155>0,I155<>"",J155<>0,K155<>0),COUNT($B$11:B154)+1,"") ->  | C155: =IF('Orçamento Base'!$M154=0,0,'Orçamento Base'!$D154) -> 0 | D155: =IF('Orçamento Base'!$F154=Aux.!$G$11,"CONTRATACAO_PUBLICA",IF(VLOOKUP($C155,'Orçamento Base'!$D$11:$G$2116,3,FALSE)="INDEXADO",VLOOKUP(VLOOKUP($C154,'Orçamento Base'!$D$11:$G$2116,2,FALSE),'Index N_DESON.'!$A$9:$B$604,2),VLOOKUP($C155,'Orçamento Base'!$D$11:$G$2116,3,FALSE))) ->  | E155: =VLOOKUP($C155,'Orçamento Base'!$D$11:$S$1673,2,FALSE) ->  | F155: =Dados!$C$7 -> 2022-04-01 | G155: =VLOOKUP($C155,'Orçamento Base'!$D$11:$S$1673,4,FALSE) ->  | H155: =IFERROR(VLOOKUP($C155,'Orçamento Base'!$D$11:$S$1673,6,FALSE),0) -> 0 | I155: =VLOOKUP($C155,'Orçamento Base'!$D$11:$S$1673,5,FALSE) ->  | J155: =IF(Comparativo!$E$6="Tabela Não Desonerada",VLOOKUP($C155,'Orçamento Base'!$D$11:$S$1673,12,FALSE),VLOOKUP($C155,#REF!,12,FALSE)) ->  | K155: =IFERROR(IF(Comparativo!$E$6="Tabela Não Desonerada",VLOOKUP($C155,'Orçamento Base'!$D$11:$S$1673,16,FALSE),VLOOKUP($C155,#REF!,16,FALSE)),0) -> 0 | L155: =IF(AND($D155="COMPOSICAO_PROPRIA",'Orçamento Base'!$N155="-"),"14,18%",IF(AND($D155="MERCADO",'Orçamento Base'!$N155="-"),"15,38%",IF(Comparativo!$E$6="Tabela Não Desonerada",VLOOKUP($C155,'Orçamento Base'!$D$11:$S$1673,11,FALSE),VLOOKUP($C155,#REF!,11,FALSE)))) ->  | M155: =IF(Comparativo!$E$6="Tabela Não Desonerada",Encargos!$F$44,Encargos!$D$44) -> 1.1122
A156: ='Identificação-TCE'!$A$13 -> 1 | B156: =IF(AND(G156<>"",H156>0,I156<>"",J156<>0,K156<>0),COUNT($B$11:B155)+1,"") ->  | C156: =IF('Orçamento Base'!$M155=0,0,'Orçamento Base'!$D155) -> 0 | D156: =IF('Orçamento Base'!$F155=Aux.!$G$11,"CONTRATACAO_PUBLICA",IF(VLOOKUP($C156,'Orçamento Base'!$D$11:$G$2116,3,FALSE)="INDEXADO",VLOOKUP(VLOOKUP($C155,'Orçamento Base'!$D$11:$G$2116,2,FALSE),'Index N_DESON.'!$A$9:$B$604,2),VLOOKUP($C156,'Orçamento Base'!$D$11:$G$2116,3,FALSE))) ->  | E156: =VLOOKUP($C156,'Orçamento Base'!$D$11:$S$1673,2,FALSE) ->  | F156: =Dados!$C$7 -> 2022-04-01 | G156: =VLOOKUP($C156,'Orçamento Base'!$D$11:$S$1673,4,FALSE) ->  | H156: =IFERROR(VLOOKUP($C156,'Orçamento Base'!$D$11:$S$1673,6,FALSE),0) -> 0 | I156: =VLOOKUP($C156,'Orçamento Base'!$D$11:$S$1673,5,FALSE) ->  | J156: =IF(Comparativo!$E$6="Tabela Não Desonerada",VLOOKUP($C156,'Orçamento Base'!$D$11:$S$1673,12,FALSE),VLOOKUP($C156,#REF!,12,FALSE)) ->  | K156: =IFERROR(IF(Comparativo!$E$6="Tabela Não Desonerada",VLOOKUP($C156,'Orçamento Base'!$D$11:$S$1673,16,FALSE),VLOOKUP($C156,#REF!,16,FALSE)),0) -> 0 | L156: =IF(AND($D156="COMPOSICAO_PROPRIA",'Orçamento Base'!$N156="-"),"14,18%",IF(AND($D156="MERCADO",'Orçamento Base'!$N156="-"),"15,38%",IF(Comparativo!$E$6="Tabela Não Desonerada",VLOOKUP($C156,'Orçamento Base'!$D$11:$S$1673,11,FALSE),VLOOKUP($C156,#REF!,11,FALSE)))) ->  | M156: =IF(Comparativo!$E$6="Tabela Não Desonerada",Encargos!$F$44,Encargos!$D$44) -> 1.1122
A157: ='Identificação-TCE'!$A$13 -> 1 | B157: =IF(AND(G157<>"",H157>0,I157<>"",J157<>0,K157<>0),COUNT($B$11:B156)+1,"") ->  | C157: =IF('Orçamento Base'!$M156=0,0,'Orçamento Base'!$D156) -> 0 | D157: =IF('Orçamento Base'!$F156=Aux.!$G$11,"CONTRATACAO_PUBLICA",IF(VLOOKUP($C157,'Orçamento Base'!$D$11:$G$2116,3,FALSE)="INDEXADO",VLOOKUP(VLOOKUP($C156,'Orçamento Base'!$D$11:$G$2116,2,FALSE),'Index N_DESON.'!$A$9:$B$604,2),VLOOKUP($C157,'Orçamento Base'!$D$11:$G$2116,3,FALSE))) ->  | E157: =VLOOKUP($C157,'Orçamento Base'!$D$11:$S$1673,2,FALSE) ->  | F157: =Dados!$C$7 -> 2022-04-01 | G157: =VLOOKUP($C157,'Orçamento Base'!$D$11:$S$1673,4,FALSE) ->  | H157: =IFERROR(VLOOKUP($C157,'Orçamento Base'!$D$11:$S$1673,6,FALSE),0) -> 0 | I157: =VLOOKUP($C157,'Orçamento Base'!$D$11:$S$1673,5,FALSE) ->  | J157: =IF(Comparativo!$E$6="Tabela Não Desonerada",VLOOKUP($C157,'Orçamento Base'!$D$11:$S$1673,12,FALSE),VLOOKUP($C157,#REF!,12,FALSE)) ->  | K157: =IFERROR(IF(Comparativo!$E$6="Tabela Não Desonerada",VLOOKUP($C157,'Orçamento Base'!$D$11:$S$1673,16,FALSE),VLOOKUP($C157,#REF!,16,FALSE)),0) -> 0 | L157: =IF(AND($D157="COMPOSICAO_PROPRIA",'Orçamento Base'!$N157="-"),"14,18%",IF(AND($D157="MERCADO",'Orçamento Base'!$N157="-"),"15,38%",IF(Comparativo!$E$6="Tabela Não Desonerada",VLOOKUP($C157,'Orçamento Base'!$D$11:$S$1673,11,FALSE),VLOOKUP($C157,#REF!,11,FALSE)))) ->  | M157: =IF(Comparativo!$E$6="Tabela Não Desonerada",Encargos!$F$44,Encargos!$D$44) -> 1.1122
A158: ='Identificação-TCE'!$A$13 -> 1 | B158: =IF(AND(G158<>"",H158>0,I158<>"",J158<>0,K158<>0),COUNT($B$11:B157)+1,"") ->  | C158: =IF('Orçamento Base'!$M157=0,0,'Orçamento Base'!$D157) -> 0 | D158: =IF('Orçamento Base'!$F157=Aux.!$G$11,"CONTRATACAO_PUBLICA",IF(VLOOKUP($C158,'Orçamento Base'!$D$11:$G$2116,3,FALSE)="INDEXADO",VLOOKUP(VLOOKUP($C157,'Orçamento Base'!$D$11:$G$2116,2,FALSE),'Index N_DESON.'!$A$9:$B$604,2),VLOOKUP($C158,'Orçamento Base'!$D$11:$G$2116,3,FALSE))) ->  | E158: =VLOOKUP($C158,'Orçamento Base'!$D$11:$S$1673,2,FALSE) ->  | F158: =Dados!$C$7 -> 2022-04-01 | G158: =VLOOKUP($C158,'Orçamento Base'!$D$11:$S$1673,4,FALSE) ->  | H158: =IFERROR(VLOOKUP($C158,'Orçamento Base'!$D$11:$S$1673,6,FALSE),0) -> 0 | I158: =VLOOKUP($C158,'Orçamento Base'!$D$11:$S$1673,5,FALSE) ->  | J158: =IF(Comparativo!$E$6="Tabela Não Desonerada",VLOOKUP($C158,'Orçamento Base'!$D$11:$S$1673,12,FALSE),VLOOKUP($C158,#REF!,12,FALSE)) ->  | K158: =IFERROR(IF(Comparativo!$E$6="Tabela Não Desonerada",VLOOKUP($C158,'Orçamento Base'!$D$11:$S$1673,16,FALSE),VLOOKUP($C158,#REF!,16,FALSE)),0) -> 0 | L158: =IF(AND($D158="COMPOSICAO_PROPRIA",'Orçamento Base'!$N158="-"),"14,18%",IF(AND($D158="MERCADO",'Orçamento Base'!$N158="-"),"15,38%",IF(Comparativo!$E$6="Tabela Não Desonerada",VLOOKUP($C158,'Orçamento Base'!$D$11:$S$1673,11,FALSE),VLOOKUP($C158,#REF!,11,FALSE)))) ->  | M158: =IF(Comparativo!$E$6="Tabela Não Desonerada",Encargos!$F$44,Encargos!$D$44) -> 1.1122
A159: ='Identificação-TCE'!$A$13 -> 1 | B159: =IF(AND(G159<>"",H159>0,I159<>"",J159<>0,K159<>0),COUNT($B$11:B158)+1,"") ->  | C159: =IF('Orçamento Base'!$M158=0,0,'Orçamento Base'!$D158) -> 0 | D159: =IF('Orçamento Base'!$F158=Aux.!$G$11,"CONTRATACAO_PUBLICA",IF(VLOOKUP($C159,'Orçamento Base'!$D$11:$G$2116,3,FALSE)="INDEXADO",VLOOKUP(VLOOKUP($C158,'Orçamento Base'!$D$11:$G$2116,2,FALSE),'Index N_DESON.'!$A$9:$B$604,2),VLOOKUP($C159,'Orçamento Base'!$D$11:$G$2116,3,FALSE))) ->  | E159: =VLOOKUP($C159,'Orçamento Base'!$D$11:$S$1673,2,FALSE) ->  | F159: =Dados!$C$7 -> 2022-04-01 | G159: =VLOOKUP($C159,'Orçamento Base'!$D$11:$S$1673,4,FALSE) ->  | H159: =IFERROR(VLOOKUP($C159,'Orçamento Base'!$D$11:$S$1673,6,FALSE),0) -> 0 | I159: =VLOOKUP($C159,'Orçamento Base'!$D$11:$S$1673,5,FALSE) ->  | J159: =IF(Comparativo!$E$6="Tabela Não Desonerada",VLOOKUP($C159,'Orçamento Base'!$D$11:$S$1673,12,FALSE),VLOOKUP($C159,#REF!,12,FALSE)) ->  | K159: =IFERROR(IF(Comparativo!$E$6="Tabela Não Desonerada",VLOOKUP($C159,'Orçamento Base'!$D$11:$S$1673,16,FALSE),VLOOKUP($C159,#REF!,16,FALSE)),0) -> 0 | L159: =IF(AND($D159="COMPOSICAO_PROPRIA",'Orçamento Base'!$N159="-"),"14,18%",IF(AND($D159="MERCADO",'Orçamento Base'!$N159="-"),"15,38%",IF(Comparativo!$E$6="Tabela Não Desonerada",VLOOKUP($C159,'Orçamento Base'!$D$11:$S$1673,11,FALSE),VLOOKUP($C159,#REF!,11,FALSE)))) ->  | M159: =IF(Comparativo!$E$6="Tabela Não Desonerada",Encargos!$F$44,Encargos!$D$44) -> 1.1122
A160: ='Identificação-TCE'!$A$13 -> 1 | B160: =IF(AND(G160<>"",H160>0,I160<>"",J160<>0,K160<>0),COUNT($B$11:B159)+1,"") ->  | C160: =IF('Orçamento Base'!$M159=0,0,'Orçamento Base'!$D159) -> 0 | D160: =IF('Orçamento Base'!$F159=Aux.!$G$11,"CONTRATACAO_PUBLICA",IF(VLOOKUP($C160,'Orçamento Base'!$D$11:$G$2116,3,FALSE)="INDEXADO",VLOOKUP(VLOOKUP($C159,'Orçamento Base'!$D$11:$G$2116,2,FALSE),'Index N_DESON.'!$A$9:$B$604,2),VLOOKUP($C160,'Orçamento Base'!$D$11:$G$2116,3,FALSE))) ->  | E160: =VLOOKUP($C160,'Orçamento Base'!$D$11:$S$1673,2,FALSE) ->  | F160: =Dados!$C$7 -> 2022-04-01 | G160: =VLOOKUP($C160,'Orçamento Base'!$D$11:$S$1673,4,FALSE) ->  | H160: =IFERROR(VLOOKUP($C160,'Orçamento Base'!$D$11:$S$1673,6,FALSE),0) -> 0 | I160: =VLOOKUP($C160,'Orçamento Base'!$D$11:$S$1673,5,FALSE) ->  | J160: =IF(Comparativo!$E$6="Tabela Não Desonerada",VLOOKUP($C160,'Orçamento Base'!$D$11:$S$1673,12,FALSE),VLOOKUP($C160,#REF!,12,FALSE)) ->  | K160: =IFERROR(IF(Comparativo!$E$6="Tabela Não Desonerada",VLOOKUP($C160,'Orçamento Base'!$D$11:$S$1673,16,FALSE),VLOOKUP($C160,#REF!,16,FALSE)),0) -> 0 | L160: =IF(AND($D160="COMPOSICAO_PROPRIA",'Orçamento Base'!$N160="-"),"14,18%",IF(AND($D160="MERCADO",'Orçamento Base'!$N160="-"),"15,38%",IF(Comparativo!$E$6="Tabela Não Desonerada",VLOOKUP($C160,'Orçamento Base'!$D$11:$S$1673,11,FALSE),VLOOKUP($C160,#REF!,11,FALSE)))) ->  | M160: =IF(Comparativo!$E$6="Tabela Não Desonerada",Encargos!$F$44,Encargos!$D$44) -> 1.1122
A161: ='Identificação-TCE'!$A$13 -> 1 | B161: =IF(AND(G161<>"",H161>0,I161<>"",J161<>0,K161<>0),COUNT($B$11:B160)+1,"") ->  | C161: =IF('Orçamento Base'!$M160=0,0,'Orçamento Base'!$D160) -> 0 | D161: =IF('Orçamento Base'!$F160=Aux.!$G$11,"CONTRATACAO_PUBLICA",IF(VLOOKUP($C161,'Orçamento Base'!$D$11:$G$2116,3,FALSE)="INDEXADO",VLOOKUP(VLOOKUP($C160,'Orçamento Base'!$D$11:$G$2116,2,FALSE),'Index N_DESON.'!$A$9:$B$604,2),VLOOKUP($C161,'Orçamento Base'!$D$11:$G$2116,3,FALSE))) ->  | E161: =VLOOKUP($C161,'Orçamento Base'!$D$11:$S$1673,2,FALSE) ->  | F161: =Dados!$C$7 -> 2022-04-01 | G161: =VLOOKUP($C161,'Orçamento Base'!$D$11:$S$1673,4,FALSE) ->  | H161: =IFERROR(VLOOKUP($C161,'Orçamento Base'!$D$11:$S$1673,6,FALSE),0) -> 0 | I161: =VLOOKUP($C161,'Orçamento Base'!$D$11:$S$1673,5,FALSE) ->  | J161: =IF(Comparativo!$E$6="Tabela Não Desonerada",VLOOKUP($C161,'Orçamento Base'!$D$11:$S$1673,12,FALSE),VLOOKUP($C161,#REF!,12,FALSE)) ->  | K161: =IFERROR(IF(Comparativo!$E$6="Tabela Não Desonerada",VLOOKUP($C161,'Orçamento Base'!$D$11:$S$1673,16,FALSE),VLOOKUP($C161,#REF!,16,FALSE)),0) -> 0 | L161: =IF(AND($D161="COMPOSICAO_PROPRIA",'Orçamento Base'!$N161="-"),"14,18%",IF(AND($D161="MERCADO",'Orçamento Base'!$N161="-"),"15,38%",IF(Comparativo!$E$6="Tabela Não Desonerada",VLOOKUP($C161,'Orçamento Base'!$D$11:$S$1673,11,FALSE),VLOOKUP($C161,#REF!,11,FALSE)))) ->  | M161: =IF(Comparativo!$E$6="Tabela Não Desonerada",Encargos!$F$44,Encargos!$D$44) -> 1.1122
A162: ='Identificação-TCE'!$A$13 -> 1 | B162: =IF(AND(G162<>"",H162>0,I162<>"",J162<>0,K162<>0),COUNT($B$11:B161)+1,"") ->  | C162: =IF('Orçamento Base'!$M161=0,0,'Orçamento Base'!$D161) -> 0 | D162: =IF('Orçamento Base'!$F161=Aux.!$G$11,"CONTRATACAO_PUBLICA",IF(VLOOKUP($C162,'Orçamento Base'!$D$11:$G$2116,3,FALSE)="INDEXADO",VLOOKUP(VLOOKUP($C161,'Orçamento Base'!$D$11:$G$2116,2,FALSE),'Index N_DESON.'!$A$9:$B$604,2),VLOOKUP($C162,'Orçamento Base'!$D$11:$G$2116,3,FALSE))) ->  | E162: =VLOOKUP($C162,'Orçamento Base'!$D$11:$S$1673,2,FALSE) ->  | F162: =Dados!$C$7 -> 2022-04-01 | G162: =VLOOKUP($C162,'Orçamento Base'!$D$11:$S$1673,4,FALSE) ->  | H162: =IFERROR(VLOOKUP($C162,'Orçamento Base'!$D$11:$S$1673,6,FALSE),0) -> 0 | I162: =VLOOKUP($C162,'Orçamento Base'!$D$11:$S$1673,5,FALSE) ->  | J162: =IF(Comparativo!$E$6="Tabela Não Desonerada",VLOOKUP($C162,'Orçamento Base'!$D$11:$S$1673,12,FALSE),VLOOKUP($C162,#REF!,12,FALSE)) ->  | K162: =IFERROR(IF(Comparativo!$E$6="Tabela Não Desonerada",VLOOKUP($C162,'Orçamento Base'!$D$11:$S$1673,16,FALSE),VLOOKUP($C162,#REF!,16,FALSE)),0) -> 0 | L162: =IF(AND($D162="COMPOSICAO_PROPRIA",'Orçamento Base'!$N162="-"),"14,18%",IF(AND($D162="MERCADO",'Orçamento Base'!$N162="-"),"15,38%",IF(Comparativo!$E$6="Tabela Não Desonerada",VLOOKUP($C162,'Orçamento Base'!$D$11:$S$1673,11,FALSE),VLOOKUP($C162,#REF!,11,FALSE)))) ->  | M162: =IF(Comparativo!$E$6="Tabela Não Desonerada",Encargos!$F$44,Encargos!$D$44) -> 1.1122
A163: ='Identificação-TCE'!$A$13 -> 1 | B163: =IF(AND(G163<>"",H163>0,I163<>"",J163<>0,K163<>0),COUNT($B$11:B162)+1,"") ->  | C163: =IF('Orçamento Base'!$M162=0,0,'Orçamento Base'!$D162) -> 0 | D163: =IF('Orçamento Base'!$F162=Aux.!$G$11,"CONTRATACAO_PUBLICA",IF(VLOOKUP($C163,'Orçamento Base'!$D$11:$G$2116,3,FALSE)="INDEXADO",VLOOKUP(VLOOKUP($C162,'Orçamento Base'!$D$11:$G$2116,2,FALSE),'Index N_DESON.'!$A$9:$B$604,2),VLOOKUP($C163,'Orçamento Base'!$D$11:$G$2116,3,FALSE))) ->  | E163: =VLOOKUP($C163,'Orçamento Base'!$D$11:$S$1673,2,FALSE) ->  | F163: =Dados!$C$7 -> 2022-04-01 | G163: =VLOOKUP($C163,'Orçamento Base'!$D$11:$S$1673,4,FALSE) ->  | H163: =IFERROR(VLOOKUP($C163,'Orçamento Base'!$D$11:$S$1673,6,FALSE),0) -> 0 | I163: =VLOOKUP($C163,'Orçamento Base'!$D$11:$S$1673,5,FALSE) ->  | J163: =IF(Comparativo!$E$6="Tabela Não Desonerada",VLOOKUP($C163,'Orçamento Base'!$D$11:$S$1673,12,FALSE),VLOOKUP($C163,#REF!,12,FALSE)) ->  | K163: =IFERROR(IF(Comparativo!$E$6="Tabela Não Desonerada",VLOOKUP($C163,'Orçamento Base'!$D$11:$S$1673,16,FALSE),VLOOKUP($C163,#REF!,16,FALSE)),0) -> 0 | L163: =IF(AND($D163="COMPOSICAO_PROPRIA",'Orçamento Base'!$N163="-"),"14,18%",IF(AND($D163="MERCADO",'Orçamento Base'!$N163="-"),"15,38%",IF(Comparativo!$E$6="Tabela Não Desonerada",VLOOKUP($C163,'Orçamento Base'!$D$11:$S$1673,11,FALSE),VLOOKUP($C163,#REF!,11,FALSE)))) ->  | M163: =IF(Comparativo!$E$6="Tabela Não Desonerada",Encargos!$F$44,Encargos!$D$44) -> 1.1122
A164: ='Identificação-TCE'!$A$13 -> 1 | B164: =IF(AND(G164<>"",H164>0,I164<>"",J164<>0,K164<>0),COUNT($B$11:B163)+1,"") ->  | C164: =IF('Orçamento Base'!$M163=0,0,'Orçamento Base'!$D163) -> 0 | D164: =IF('Orçamento Base'!$F163=Aux.!$G$11,"CONTRATACAO_PUBLICA",IF(VLOOKUP($C164,'Orçamento Base'!$D$11:$G$2116,3,FALSE)="INDEXADO",VLOOKUP(VLOOKUP($C163,'Orçamento Base'!$D$11:$G$2116,2,FALSE),'Index N_DESON.'!$A$9:$B$604,2),VLOOKUP($C164,'Orçamento Base'!$D$11:$G$2116,3,FALSE))) ->  | E164: =VLOOKUP($C164,'Orçamento Base'!$D$11:$S$1673,2,FALSE) ->  | F164: =Dados!$C$7 -> 2022-04-01 | G164: =VLOOKUP($C164,'Orçamento Base'!$D$11:$S$1673,4,FALSE) ->  | H164: =IFERROR(VLOOKUP($C164,'Orçamento Base'!$D$11:$S$1673,6,FALSE),0) -> 0 | I164: =VLOOKUP($C164,'Orçamento Base'!$D$11:$S$1673,5,FALSE) ->  | J164: =IF(Comparativo!$E$6="Tabela Não Desonerada",VLOOKUP($C164,'Orçamento Base'!$D$11:$S$1673,12,FALSE),VLOOKUP($C164,#REF!,12,FALSE)) ->  | K164: =IFERROR(IF(Comparativo!$E$6="Tabela Não Desonerada",VLOOKUP($C164,'Orçamento Base'!$D$11:$S$1673,16,FALSE),VLOOKUP($C164,#REF!,16,FALSE)),0) -> 0 | L164: =IF(AND($D164="COMPOSICAO_PROPRIA",'Orçamento Base'!$N164="-"),"14,18%",IF(AND($D164="MERCADO",'Orçamento Base'!$N164="-"),"15,38%",IF(Comparativo!$E$6="Tabela Não Desonerada",VLOOKUP($C164,'Orçamento Base'!$D$11:$S$1673,11,FALSE),VLOOKUP($C164,#REF!,11,FALSE)))) ->  | M164: =IF(Comparativo!$E$6="Tabela Não Desonerada",Encargos!$F$44,Encargos!$D$44) -> 1.1122
A165: ='Identificação-TCE'!$A$13 -> 1 | B165: =IF(AND(G165<>"",H165>0,I165<>"",J165<>0,K165<>0),COUNT($B$11:B164)+1,"") ->  | C165: =IF('Orçamento Base'!$M164=0,0,'Orçamento Base'!$D164) -> 0 | D165: =IF('Orçamento Base'!$F164=Aux.!$G$11,"CONTRATACAO_PUBLICA",IF(VLOOKUP($C165,'Orçamento Base'!$D$11:$G$2116,3,FALSE)="INDEXADO",VLOOKUP(VLOOKUP($C164,'Orçamento Base'!$D$11:$G$2116,2,FALSE),'Index N_DESON.'!$A$9:$B$604,2),VLOOKUP($C165,'Orçamento Base'!$D$11:$G$2116,3,FALSE))) ->  | E165: =VLOOKUP($C165,'Orçamento Base'!$D$11:$S$1673,2,FALSE) ->  | F165: =Dados!$C$7 -> 2022-04-01 | G165: =VLOOKUP($C165,'Orçamento Base'!$D$11:$S$1673,4,FALSE) ->  | H165: =IFERROR(VLOOKUP($C165,'Orçamento Base'!$D$11:$S$1673,6,FALSE),0) -> 0 | I165: =VLOOKUP($C165,'Orçamento Base'!$D$11:$S$1673,5,FALSE) ->  | J165: =IF(Comparativo!$E$6="Tabela Não Desonerada",VLOOKUP($C165,'Orçamento Base'!$D$11:$S$1673,12,FALSE),VLOOKUP($C165,#REF!,12,FALSE)) ->  | K165: =IFERROR(IF(Comparativo!$E$6="Tabela Não Desonerada",VLOOKUP($C165,'Orçamento Base'!$D$11:$S$1673,16,FALSE),VLOOKUP($C165,#REF!,16,FALSE)),0) -> 0 | L165: =IF(AND($D165="COMPOSICAO_PROPRIA",'Orçamento Base'!$N165="-"),"14,18%",IF(AND($D165="MERCADO",'Orçamento Base'!$N165="-"),"15,38%",IF(Comparativo!$E$6="Tabela Não Desonerada",VLOOKUP($C165,'Orçamento Base'!$D$11:$S$1673,11,FALSE),VLOOKUP($C165,#REF!,11,FALSE)))) ->  | M165: =IF(Comparativo!$E$6="Tabela Não Desonerada",Encargos!$F$44,Encargos!$D$44) -> 1.1122
A166: ='Identificação-TCE'!$A$13 -> 1 | B166: =IF(AND(G166<>"",H166>0,I166<>"",J166<>0,K166<>0),COUNT($B$11:B165)+1,"") ->  | C166: =IF('Orçamento Base'!$M165=0,0,'Orçamento Base'!$D165) -> 0 | D166: =IF('Orçamento Base'!$F165=Aux.!$G$11,"CONTRATACAO_PUBLICA",IF(VLOOKUP($C166,'Orçamento Base'!$D$11:$G$2116,3,FALSE)="INDEXADO",VLOOKUP(VLOOKUP($C165,'Orçamento Base'!$D$11:$G$2116,2,FALSE),'Index N_DESON.'!$A$9:$B$604,2),VLOOKUP($C166,'Orçamento Base'!$D$11:$G$2116,3,FALSE))) ->  | E166: =VLOOKUP($C166,'Orçamento Base'!$D$11:$S$1673,2,FALSE) ->  | F166: =Dados!$C$7 -> 2022-04-01 | G166: =VLOOKUP($C166,'Orçamento Base'!$D$11:$S$1673,4,FALSE) ->  | H166: =IFERROR(VLOOKUP($C166,'Orçamento Base'!$D$11:$S$1673,6,FALSE),0) -> 0 | I166: =VLOOKUP($C166,'Orçamento Base'!$D$11:$S$1673,5,FALSE) ->  | J166: =IF(Comparativo!$E$6="Tabela Não Desonerada",VLOOKUP($C166,'Orçamento Base'!$D$11:$S$1673,12,FALSE),VLOOKUP($C166,#REF!,12,FALSE)) ->  | K166: =IFERROR(IF(Comparativo!$E$6="Tabela Não Desonerada",VLOOKUP($C166,'Orçamento Base'!$D$11:$S$1673,16,FALSE),VLOOKUP($C166,#REF!,16,FALSE)),0) -> 0 | L166: =IF(AND($D166="COMPOSICAO_PROPRIA",'Orçamento Base'!$N166="-"),"14,18%",IF(AND($D166="MERCADO",'Orçamento Base'!$N166="-"),"15,38%",IF(Comparativo!$E$6="Tabela Não Desonerada",VLOOKUP($C166,'Orçamento Base'!$D$11:$S$1673,11,FALSE),VLOOKUP($C166,#REF!,11,FALSE)))) ->  | M166: =IF(Comparativo!$E$6="Tabela Não Desonerada",Encargos!$F$44,Encargos!$D$44) -> 1.1122
A167: ='Identificação-TCE'!$A$13 -> 1 | B167: =IF(AND(G167<>"",H167>0,I167<>"",J167<>0,K167<>0),COUNT($B$11:B166)+1,"") ->  | C167: =IF('Orçamento Base'!$M166=0,0,'Orçamento Base'!$D166) -> 0 | D167: =IF('Orçamento Base'!$F166=Aux.!$G$11,"CONTRATACAO_PUBLICA",IF(VLOOKUP($C167,'Orçamento Base'!$D$11:$G$2116,3,FALSE)="INDEXADO",VLOOKUP(VLOOKUP($C166,'Orçamento Base'!$D$11:$G$2116,2,FALSE),'Index N_DESON.'!$A$9:$B$604,2),VLOOKUP($C167,'Orçamento Base'!$D$11:$G$2116,3,FALSE))) ->  | E167: =VLOOKUP($C167,'Orçamento Base'!$D$11:$S$1673,2,FALSE) ->  | F167: =Dados!$C$7 -> 2022-04-01 | G167: =VLOOKUP($C167,'Orçamento Base'!$D$11:$S$1673,4,FALSE) ->  | H167: =IFERROR(VLOOKUP($C167,'Orçamento Base'!$D$11:$S$1673,6,FALSE),0) -> 0 | I167: =VLOOKUP($C167,'Orçamento Base'!$D$11:$S$1673,5,FALSE) ->  | J167: =IF(Comparativo!$E$6="Tabela Não Desonerada",VLOOKUP($C167,'Orçamento Base'!$D$11:$S$1673,12,FALSE),VLOOKUP($C167,#REF!,12,FALSE)) ->  | K167: =IFERROR(IF(Comparativo!$E$6="Tabela Não Desonerada",VLOOKUP($C167,'Orçamento Base'!$D$11:$S$1673,16,FALSE),VLOOKUP($C167,#REF!,16,FALSE)),0) -> 0 | L167: =IF(AND($D167="COMPOSICAO_PROPRIA",'Orçamento Base'!$N167="-"),"14,18%",IF(AND($D167="MERCADO",'Orçamento Base'!$N167="-"),"15,38%",IF(Comparativo!$E$6="Tabela Não Desonerada",VLOOKUP($C167,'Orçamento Base'!$D$11:$S$1673,11,FALSE),VLOOKUP($C167,#REF!,11,FALSE)))) ->  | M167: =IF(Comparativo!$E$6="Tabela Não Desonerada",Encargos!$F$44,Encargos!$D$44) -> 1.1122
A168: ='Identificação-TCE'!$A$13 -> 1 | B168: =IF(AND(G168<>"",H168>0,I168<>"",J168<>0,K168<>0),COUNT($B$11:B167)+1,"") ->  | C168: =IF('Orçamento Base'!$M167=0,0,'Orçamento Base'!$D167) -> 0 | D168: =IF('Orçamento Base'!$F167=Aux.!$G$11,"CONTRATACAO_PUBLICA",IF(VLOOKUP($C168,'Orçamento Base'!$D$11:$G$2116,3,FALSE)="INDEXADO",VLOOKUP(VLOOKUP($C167,'Orçamento Base'!$D$11:$G$2116,2,FALSE),'Index N_DESON.'!$A$9:$B$604,2),VLOOKUP($C168,'Orçamento Base'!$D$11:$G$2116,3,FALSE))) ->  | E168: =VLOOKUP($C168,'Orçamento Base'!$D$11:$S$1673,2,FALSE) ->  | F168: =Dados!$C$7 -> 2022-04-01 | G168: =VLOOKUP($C168,'Orçamento Base'!$D$11:$S$1673,4,FALSE) ->  | H168: =IFERROR(VLOOKUP($C168,'Orçamento Base'!$D$11:$S$1673,6,FALSE),0) -> 0 | I168: =VLOOKUP($C168,'Orçamento Base'!$D$11:$S$1673,5,FALSE) ->  | J168: =IF(Comparativo!$E$6="Tabela Não Desonerada",VLOOKUP($C168,'Orçamento Base'!$D$11:$S$1673,12,FALSE),VLOOKUP($C168,#REF!,12,FALSE)) ->  | K168: =IFERROR(IF(Comparativo!$E$6="Tabela Não Desonerada",VLOOKUP($C168,'Orçamento Base'!$D$11:$S$1673,16,FALSE),VLOOKUP($C168,#REF!,16,FALSE)),0) -> 0 | L168: =IF(AND($D168="COMPOSICAO_PROPRIA",'Orçamento Base'!$N168="-"),"14,18%",IF(AND($D168="MERCADO",'Orçamento Base'!$N168="-"),"15,38%",IF(Comparativo!$E$6="Tabela Não Desonerada",VLOOKUP($C168,'Orçamento Base'!$D$11:$S$1673,11,FALSE),VLOOKUP($C168,#REF!,11,FALSE)))) ->  | M168: =IF(Comparativo!$E$6="Tabela Não Desonerada",Encargos!$F$44,Encargos!$D$44) -> 1.1122
A169: ='Identificação-TCE'!$A$13 -> 1 | B169: =IF(AND(G169<>"",H169>0,I169<>"",J169<>0,K169<>0),COUNT($B$11:B168)+1,"") ->  | C169: =IF('Orçamento Base'!$M168=0,0,'Orçamento Base'!$D168) -> 0 | D169: =IF('Orçamento Base'!$F168=Aux.!$G$11,"CONTRATACAO_PUBLICA",IF(VLOOKUP($C169,'Orçamento Base'!$D$11:$G$2116,3,FALSE)="INDEXADO",VLOOKUP(VLOOKUP($C168,'Orçamento Base'!$D$11:$G$2116,2,FALSE),'Index N_DESON.'!$A$9:$B$604,2),VLOOKUP($C169,'Orçamento Base'!$D$11:$G$2116,3,FALSE))) ->  | E169: =VLOOKUP($C169,'Orçamento Base'!$D$11:$S$1673,2,FALSE) ->  | F169: =Dados!$C$7 -> 2022-04-01 | G169: =VLOOKUP($C169,'Orçamento Base'!$D$11:$S$1673,4,FALSE) ->  | H169: =IFERROR(VLOOKUP($C169,'Orçamento Base'!$D$11:$S$1673,6,FALSE),0) -> 0 | I169: =VLOOKUP($C169,'Orçamento Base'!$D$11:$S$1673,5,FALSE) ->  | J169: =IF(Comparativo!$E$6="Tabela Não Desonerada",VLOOKUP($C169,'Orçamento Base'!$D$11:$S$1673,12,FALSE),VLOOKUP($C169,#REF!,12,FALSE)) ->  | K169: =IFERROR(IF(Comparativo!$E$6="Tabela Não Desonerada",VLOOKUP($C169,'Orçamento Base'!$D$11:$S$1673,16,FALSE),VLOOKUP($C169,#REF!,16,FALSE)),0) -> 0 | L169: =IF(AND($D169="COMPOSICAO_PROPRIA",'Orçamento Base'!$N169="-"),"14,18%",IF(AND($D169="MERCADO",'Orçamento Base'!$N169="-"),"15,38%",IF(Comparativo!$E$6="Tabela Não Desonerada",VLOOKUP($C169,'Orçamento Base'!$D$11:$S$1673,11,FALSE),VLOOKUP($C169,#REF!,11,FALSE)))) ->  | M169: =IF(Comparativo!$E$6="Tabela Não Desonerada",Encargos!$F$44,Encargos!$D$44) -> 1.1122
A170: ='Identificação-TCE'!$A$13 -> 1 | B170: =IF(AND(G170<>"",H170>0,I170<>"",J170<>0,K170<>0),COUNT($B$11:B169)+1,"") ->  | C170: =IF('Orçamento Base'!$M169=0,0,'Orçamento Base'!$D169) -> 0 | D170: =IF('Orçamento Base'!$F169=Aux.!$G$11,"CONTRATACAO_PUBLICA",IF(VLOOKUP($C170,'Orçamento Base'!$D$11:$G$2116,3,FALSE)="INDEXADO",VLOOKUP(VLOOKUP($C169,'Orçamento Base'!$D$11:$G$2116,2,FALSE),'Index N_DESON.'!$A$9:$B$604,2),VLOOKUP($C170,'Orçamento Base'!$D$11:$G$2116,3,FALSE))) ->  | E170: =VLOOKUP($C170,'Orçamento Base'!$D$11:$S$1673,2,FALSE) ->  | F170: =Dados!$C$7 -> 2022-04-01 | G170: =VLOOKUP($C170,'Orçamento Base'!$D$11:$S$1673,4,FALSE) ->  | H170: =IFERROR(VLOOKUP($C170,'Orçamento Base'!$D$11:$S$1673,6,FALSE),0) -> 0 | I170: =VLOOKUP($C170,'Orçamento Base'!$D$11:$S$1673,5,FALSE) ->  | J170: =IF(Comparativo!$E$6="Tabela Não Desonerada",VLOOKUP($C170,'Orçamento Base'!$D$11:$S$1673,12,FALSE),VLOOKUP($C170,#REF!,12,FALSE)) ->  | K170: =IFERROR(IF(Comparativo!$E$6="Tabela Não Desonerada",VLOOKUP($C170,'Orçamento Base'!$D$11:$S$1673,16,FALSE),VLOOKUP($C170,#REF!,16,FALSE)),0) -> 0 | L170: =IF(AND($D170="COMPOSICAO_PROPRIA",'Orçamento Base'!$N170="-"),"14,18%",IF(AND($D170="MERCADO",'Orçamento Base'!$N170="-"),"15,38%",IF(Comparativo!$E$6="Tabela Não Desonerada",VLOOKUP($C170,'Orçamento Base'!$D$11:$S$1673,11,FALSE),VLOOKUP($C170,#REF!,11,FALSE)))) ->  | M170: =IF(Comparativo!$E$6="Tabela Não Desonerada",Encargos!$F$44,Encargos!$D$44) -> 1.1122
A171: ='Identificação-TCE'!$A$13 -> 1 | B171: =IF(AND(G171<>"",H171>0,I171<>"",J171<>0,K171<>0),COUNT($B$11:B170)+1,"") ->  | C171: =IF('Orçamento Base'!$M170=0,0,'Orçamento Base'!$D170) -> 0 | D171: =IF('Orçamento Base'!$F170=Aux.!$G$11,"CONTRATACAO_PUBLICA",IF(VLOOKUP($C171,'Orçamento Base'!$D$11:$G$2116,3,FALSE)="INDEXADO",VLOOKUP(VLOOKUP($C170,'Orçamento Base'!$D$11:$G$2116,2,FALSE),'Index N_DESON.'!$A$9:$B$604,2),VLOOKUP($C171,'Orçamento Base'!$D$11:$G$2116,3,FALSE))) ->  | E171: =VLOOKUP($C171,'Orçamento Base'!$D$11:$S$1673,2,FALSE) ->  | F171: =Dados!$C$7 -> 2022-04-01 | G171: =VLOOKUP($C171,'Orçamento Base'!$D$11:$S$1673,4,FALSE) ->  | H171: =IFERROR(VLOOKUP($C171,'Orçamento Base'!$D$11:$S$1673,6,FALSE),0) -> 0 | I171: =VLOOKUP($C171,'Orçamento Base'!$D$11:$S$1673,5,FALSE) ->  | J171: =IF(Comparativo!$E$6="Tabela Não Desonerada",VLOOKUP($C171,'Orçamento Base'!$D$11:$S$1673,12,FALSE),VLOOKUP($C171,#REF!,12,FALSE)) ->  | K171: =IFERROR(IF(Comparativo!$E$6="Tabela Não Desonerada",VLOOKUP($C171,'Orçamento Base'!$D$11:$S$1673,16,FALSE),VLOOKUP($C171,#REF!,16,FALSE)),0) -> 0 | L171: =IF(AND($D171="COMPOSICAO_PROPRIA",'Orçamento Base'!$N171="-"),"14,18%",IF(AND($D171="MERCADO",'Orçamento Base'!$N171="-"),"15,38%",IF(Comparativo!$E$6="Tabela Não Desonerada",VLOOKUP($C171,'Orçamento Base'!$D$11:$S$1673,11,FALSE),VLOOKUP($C171,#REF!,11,FALSE)))) ->  | M171: =IF(Comparativo!$E$6="Tabela Não Desonerada",Encargos!$F$44,Encargos!$D$44) -> 1.1122
A172: ='Identificação-TCE'!$A$13 -> 1 | B172: =IF(AND(G172<>"",H172>0,I172<>"",J172<>0,K172<>0),COUNT($B$11:B171)+1,"") ->  | C172: =IF('Orçamento Base'!$M171=0,0,'Orçamento Base'!$D171) -> 0 | D172: =IF('Orçamento Base'!$F171=Aux.!$G$11,"CONTRATACAO_PUBLICA",IF(VLOOKUP($C172,'Orçamento Base'!$D$11:$G$2116,3,FALSE)="INDEXADO",VLOOKUP(VLOOKUP($C171,'Orçamento Base'!$D$11:$G$2116,2,FALSE),'Index N_DESON.'!$A$9:$B$604,2),VLOOKUP($C172,'Orçamento Base'!$D$11:$G$2116,3,FALSE))) ->  | E172: =VLOOKUP($C172,'Orçamento Base'!$D$11:$S$1673,2,FALSE) ->  | F172: =Dados!$C$7 -> 2022-04-01 | G172: =VLOOKUP($C172,'Orçamento Base'!$D$11:$S$1673,4,FALSE) ->  | H172: =IFERROR(VLOOKUP($C172,'Orçamento Base'!$D$11:$S$1673,6,FALSE),0) -> 0 | I172: =VLOOKUP($C172,'Orçamento Base'!$D$11:$S$1673,5,FALSE) ->  | J172: =IF(Comparativo!$E$6="Tabela Não Desonerada",VLOOKUP($C172,'Orçamento Base'!$D$11:$S$1673,12,FALSE),VLOOKUP($C172,#REF!,12,FALSE)) ->  | K172: =IFERROR(IF(Comparativo!$E$6="Tabela Não Desonerada",VLOOKUP($C172,'Orçamento Base'!$D$11:$S$1673,16,FALSE),VLOOKUP($C172,#REF!,16,FALSE)),0) -> 0 | L172: =IF(AND($D172="COMPOSICAO_PROPRIA",'Orçamento Base'!$N172="-"),"14,18%",IF(AND($D172="MERCADO",'Orçamento Base'!$N172="-"),"15,38%",IF(Comparativo!$E$6="Tabela Não Desonerada",VLOOKUP($C172,'Orçamento Base'!$D$11:$S$1673,11,FALSE),VLOOKUP($C172,#REF!,11,FALSE)))) ->  | M172: =IF(Comparativo!$E$6="Tabela Não Desonerada",Encargos!$F$44,Encargos!$D$44) -> 1.1122
A173: ='Identificação-TCE'!$A$13 -> 1 | B173: =IF(AND(G173<>"",H173>0,I173<>"",J173<>0,K173<>0),COUNT($B$11:B172)+1,"") ->  | C173: =IF('Orçamento Base'!$M172=0,0,'Orçamento Base'!$D172) -> 0 | D173: =IF('Orçamento Base'!$F172=Aux.!$G$11,"CONTRATACAO_PUBLICA",IF(VLOOKUP($C173,'Orçamento Base'!$D$11:$G$2116,3,FALSE)="INDEXADO",VLOOKUP(VLOOKUP($C172,'Orçamento Base'!$D$11:$G$2116,2,FALSE),'Index N_DESON.'!$A$9:$B$604,2),VLOOKUP($C173,'Orçamento Base'!$D$11:$G$2116,3,FALSE))) ->  | E173: =VLOOKUP($C173,'Orçamento Base'!$D$11:$S$1673,2,FALSE) ->  | F173: =Dados!$C$7 -> 2022-04-01 | G173: =VLOOKUP($C173,'Orçamento Base'!$D$11:$S$1673,4,FALSE) ->  | H173: =IFERROR(VLOOKUP($C173,'Orçamento Base'!$D$11:$S$1673,6,FALSE),0) -> 0 | I173: =VLOOKUP($C173,'Orçamento Base'!$D$11:$S$1673,5,FALSE) ->  | J173: =IF(Comparativo!$E$6="Tabela Não Desonerada",VLOOKUP($C173,'Orçamento Base'!$D$11:$S$1673,12,FALSE),VLOOKUP($C173,#REF!,12,FALSE)) ->  | K173: =IFERROR(IF(Comparativo!$E$6="Tabela Não Desonerada",VLOOKUP($C173,'Orçamento Base'!$D$11:$S$1673,16,FALSE),VLOOKUP($C173,#REF!,16,FALSE)),0) -> 0 | L173: =IF(AND($D173="COMPOSICAO_PROPRIA",'Orçamento Base'!$N173="-"),"14,18%",IF(AND($D173="MERCADO",'Orçamento Base'!$N173="-"),"15,38%",IF(Comparativo!$E$6="Tabela Não Desonerada",VLOOKUP($C173,'Orçamento Base'!$D$11:$S$1673,11,FALSE),VLOOKUP($C173,#REF!,11,FALSE)))) ->  | M173: =IF(Comparativo!$E$6="Tabela Não Desonerada",Encargos!$F$44,Encargos!$D$44) -> 1.1122
A174: ='Identificação-TCE'!$A$13 -> 1 | B174: =IF(AND(G174<>"",H174>0,I174<>"",J174<>0,K174<>0),COUNT($B$11:B173)+1,"") ->  | C174: =IF('Orçamento Base'!$M173=0,0,'Orçamento Base'!$D173) -> 0 | D174: =IF('Orçamento Base'!$F173=Aux.!$G$11,"CONTRATACAO_PUBLICA",IF(VLOOKUP($C174,'Orçamento Base'!$D$11:$G$2116,3,FALSE)="INDEXADO",VLOOKUP(VLOOKUP($C173,'Orçamento Base'!$D$11:$G$2116,2,FALSE),'Index N_DESON.'!$A$9:$B$604,2),VLOOKUP($C174,'Orçamento Base'!$D$11:$G$2116,3,FALSE))) ->  | E174: =VLOOKUP($C174,'Orçamento Base'!$D$11:$S$1673,2,FALSE) ->  | F174: =Dados!$C$7 -> 2022-04-01 | G174: =VLOOKUP($C174,'Orçamento Base'!$D$11:$S$1673,4,FALSE) ->  | H174: =IFERROR(VLOOKUP($C174,'Orçamento Base'!$D$11:$S$1673,6,FALSE),0) -> 0 | I174: =VLOOKUP($C174,'Orçamento Base'!$D$11:$S$1673,5,FALSE) ->  | J174: =IF(Comparativo!$E$6="Tabela Não Desonerada",VLOOKUP($C174,'Orçamento Base'!$D$11:$S$1673,12,FALSE),VLOOKUP($C174,#REF!,12,FALSE)) ->  | K174: =IFERROR(IF(Comparativo!$E$6="Tabela Não Desonerada",VLOOKUP($C174,'Orçamento Base'!$D$11:$S$1673,16,FALSE),VLOOKUP($C174,#REF!,16,FALSE)),0) -> 0 | L174: =IF(AND($D174="COMPOSICAO_PROPRIA",'Orçamento Base'!$N174="-"),"14,18%",IF(AND($D174="MERCADO",'Orçamento Base'!$N174="-"),"15,38%",IF(Comparativo!$E$6="Tabela Não Desonerada",VLOOKUP($C174,'Orçamento Base'!$D$11:$S$1673,11,FALSE),VLOOKUP($C174,#REF!,11,FALSE)))) ->  | M174: =IF(Comparativo!$E$6="Tabela Não Desonerada",Encargos!$F$44,Encargos!$D$44) -> 1.1122
A175: ='Identificação-TCE'!$A$13 -> 1 | B175: =IF(AND(G175<>"",H175>0,I175<>"",J175<>0,K175<>0),COUNT($B$11:B174)+1,"") -> 13 | C175: =IF('Orçamento Base'!$M174=0,0,'Orçamento Base'!$D174) -> 4.1 | D175: =IF('Orçamento Base'!$F174=Aux.!$G$11,"CONTRATACAO_PUBLICA",IF(VLOOKUP($C175,'Orçamento Base'!$D$11:$G$2116,3,FALSE)="INDEXADO",VLOOKUP(VLOOKUP($C174,'Orçamento Base'!$D$11:$G$2116,2,FALSE),'Index N_DESON.'!$A$9:$B$604,2),VLOOKUP($C175,'Orçamento Base'!$D$11:$G$2116,3,FALSE))) -> SINAPI | E175: =VLOOKUP($C175,'Orçamento Base'!$D$11:$S$1673,2,FALSE) -> 100716 | F175: =Dados!$C$7 -> 2022-04-01 | G175: =VLOOKUP($C175,'Orçamento Base'!$D$11:$S$1673,4,FALSE) -> JATEAMENTO ABRASIVO COM GRANALHA DE AÇO EM PERFIL METÁLICO EM FÁBRICA. AF_01/2020 | H175: =IFERROR(VLOOKUP($C175,'Orçamento Base'!$D$11:$S$1673,6,FALSE),0) -> 250 | I175: =VLOOKUP($C175,'Orçamento Base'!$D$11:$S$1673,5,FALSE) -> M2 | J175: =IF(Comparativo!$E$6="Tabela Não Desonerada",VLOOKUP($C175,'Orçamento Base'!$D$11:$S$1673,12,FALSE),VLOOKUP($C175,#REF!,12,FALSE)) -> 33.16 | K175: =IFERROR(IF(Comparativo!$E$6="Tabela Não Desonerada",VLOOKUP($C175,'Orçamento Base'!$D$11:$S$1673,16,FALSE),VLOOKUP($C175,#REF!,16,FALSE)),0) -> 8290 | L175: =IF(AND($D175="COMPOSICAO_PROPRIA",'Orçamento Base'!$N175="-"),"14,18%",IF(AND($D175="MERCADO",'Orçamento Base'!$N175="-"),"15,38%",IF(Comparativo!$E$6="Tabela Não Desonerada",VLOOKUP($C175,'Orçamento Base'!$D$11:$S$1673,11,FALSE),VLOOKUP($C175,#REF!,11,FALSE)))) -> 0.2267 | M175: =IF(Comparativo!$E$6="Tabela Não Desonerada",Encargos!$F$44,Encargos!$D$44) -> 1.1122
A176: ='Identificação-TCE'!$A$13 -> 1 | B176: =IF(AND(G176<>"",H176>0,I176<>"",J176<>0,K176<>0),COUNT($B$11:B175)+1,"") -> 14 | C176: =IF('Orçamento Base'!$M175=0,0,'Orçamento Base'!$D175) -> 4.2 | D176: =IF('Orçamento Base'!$F175=Aux.!$G$11,"CONTRATACAO_PUBLICA",IF(VLOOKUP($C176,'Orçamento Base'!$D$11:$G$2116,3,FALSE)="INDEXADO",VLOOKUP(VLOOKUP($C175,'Orçamento Base'!$D$11:$G$2116,2,FALSE),'Index N_DESON.'!$A$9:$B$604,2),VLOOKUP($C176,'Orçamento Base'!$D$11:$G$2116,3,FALSE))) -> SINAPI | E176: =VLOOKUP($C176,'Orçamento Base'!$D$11:$S$1673,2,FALSE) -> 100717 | F176: =Dados!$C$7 -> 2022-04-01 | G176: =VLOOKUP($C176,'Orçamento Base'!$D$11:$S$1673,4,FALSE) -> LIXAMENTO MANUAL EM SUPERFÍCIES METÁLICAS EM OBRA. AF_01/2020 | H176: =IFERROR(VLOOKUP($C176,'Orçamento Base'!$D$11:$S$1673,6,FALSE),0) -> 250 | I176: =VLOOKUP($C176,'Orçamento Base'!$D$11:$S$1673,5,FALSE) -> M2 | J176: =IF(Comparativo!$E$6="Tabela Não Desonerada",VLOOKUP($C176,'Orçamento Base'!$D$11:$S$1673,12,FALSE),VLOOKUP($C176,#REF!,12,FALSE)) -> 10.27 | K176: =IFERROR(IF(Comparativo!$E$6="Tabela Não Desonerada",VLOOKUP($C176,'Orçamento Base'!$D$11:$S$1673,16,FALSE),VLOOKUP($C176,#REF!,16,FALSE)),0) -> 2567.5 | L176: =IF(AND($D176="COMPOSICAO_PROPRIA",'Orçamento Base'!$N176="-"),"14,18%",IF(AND($D176="MERCADO",'Orçamento Base'!$N176="-"),"15,38%",IF(Comparativo!$E$6="Tabela Não Desonerada",VLOOKUP($C176,'Orçamento Base'!$D$11:$S$1673,11,FALSE),VLOOKUP($C176,#REF!,11,FALSE)))) -> 0.2267 | M176: =IF(Comparativo!$E$6="Tabela Não Desonerada",Encargos!$F$44,Encargos!$D$44) -> 1.1122
A177: ='Identificação-TCE'!$A$13 -> 1 | B177: =IF(AND(G177<>"",H177>0,I177<>"",J177<>0,K177<>0),COUNT($B$11:B176)+1,"") -> 15 | C177: =IF('Orçamento Base'!$M176=0,0,'Orçamento Base'!$D176) -> 4.3 | D177: =IF('Orçamento Base'!$F176=Aux.!$G$11,"CONTRATACAO_PUBLICA",IF(VLOOKUP($C177,'Orçamento Base'!$D$11:$G$2116,3,FALSE)="INDEXADO",VLOOKUP(VLOOKUP($C176,'Orçamento Base'!$D$11:$G$2116,2,FALSE),'Index N_DESON.'!$A$9:$B$604,2),VLOOKUP($C177,'Orçamento Base'!$D$11:$G$2116,3,FALSE))) -> SINAPI | E177: =VLOOKUP($C177,'Orçamento Base'!$D$11:$S$1673,2,FALSE) -> 100721 | F177: =Dados!$C$7 -> 2022-04-01 | G177: =VLOOKUP($C177,'Orçamento Base'!$D$11:$S$1673,4,FALSE) -> PINTURA COM TINTA ALQUÍDICA DE FUNDO (TIPO ZARCÃO) PULVERIZADA SOBRE SUPERFÍCIES METÁLICAS (EXCETO PERFIL) EXECUTADO EM OBRA (POR DEMÃO). AF_01/2020_P | H177: =IFERROR(VLOOKUP($C177,'Orçamento Base'!$D$11:$S$1673,6,FALSE),0) -> 250 | I177: =VLOOKUP($C177,'Orçamento Base'!$D$11:$S$1673,5,FALSE) -> M2 | J177: =IF(Comparativo!$E$6="Tabela Não Desonerada",VLOOKUP($C177,'Orçamento Base'!$D$11:$S$1673,12,FALSE),VLOOKUP($C177,#REF!,12,FALSE)) -> 26.41 | K177: =IFERROR(IF(Comparativo!$E$6="Tabela Não Desonerada",VLOOKUP($C177,'Orçamento Base'!$D$11:$S$1673,16,FALSE),VLOOKUP($C177,#REF!,16,FALSE)),0) -> 6602.5 | L177: =IF(AND($D177="COMPOSICAO_PROPRIA",'Orçamento Base'!$N177="-"),"14,18%",IF(AND($D177="MERCADO",'Orçamento Base'!$N177="-"),"15,38%",IF(Comparativo!$E$6="Tabela Não Desonerada",VLOOKUP($C177,'Orçamento Base'!$D$11:$S$1673,11,FALSE),VLOOKUP($C177,#REF!,11,FALSE)))) -> 0.2267 | M177: =IF(Comparativo!$E$6="Tabela Não Desonerada",Encargos!$F$44,Encargos!$D$44) -> 1.1122
A178: ='Identificação-TCE'!$A$13 -> 1 | B178: =IF(AND(G178<>"",H178>0,I178<>"",J178<>0,K178<>0),COUNT($B$11:B177)+1,"") -> 16 | C178: =IF('Orçamento Base'!$M177=0,0,'Orçamento Base'!$D177) -> 4.4 | D178: =IF('Orçamento Base'!$F177=Aux.!$G$11,"CONTRATACAO_PUBLICA",IF(VLOOKUP($C178,'Orçamento Base'!$D$11:$G$2116,3,FALSE)="INDEXADO",VLOOKUP(VLOOKUP($C177,'Orçamento Base'!$D$11:$G$2116,2,FALSE),'Index N_DESON.'!$A$9:$B$604,2),VLOOKUP($C178,'Orçamento Base'!$D$11:$G$2116,3,FALSE))) -> SINAPI | E178: =VLOOKUP($C178,'Orçamento Base'!$D$11:$S$1673,2,FALSE) -> 97647 | F178: =Dados!$C$7 -> 2022-04-01 | G178: =VLOOKUP($C178,'Orçamento Base'!$D$11:$S$1673,4,FALSE) -> REMOÇÃO DE TELHAS, DE FIBROCIMENTO, METÁLICA E CERÂMICA, DE FORMA MANUAL, SEM REAPROVEITAMENTO. AF_12/2017 | H178: =IFERROR(VLOOKUP($C178,'Orçamento Base'!$D$11:$S$1673,6,FALSE),0) -> 1770 | I178: =VLOOKUP($C178,'Orçamento Base'!$D$11:$S$1673,5,FALSE) -> M2 | J178: =IF(Comparativo!$E$6="Tabela Não Desonerada",VLOOKUP($C178,'Orçamento Base'!$D$11:$S$1673,12,FALSE),VLOOKUP($C178,#REF!,12,FALSE)) -> 3.58 | K178: =IFERROR(IF(Comparativo!$E$6="Tabela Não Desonerada",VLOOKUP($C178,'Orçamento Base'!$D$11:$S$1673,16,FALSE),VLOOKUP($C178,#REF!,16,FALSE)),0) -> 6336.6 | L178: =IF(AND($D178="COMPOSICAO_PROPRIA",'Orçamento Base'!$N178="-"),"14,18%",IF(AND($D178="MERCADO",'Orçamento Base'!$N178="-"),"15,38%",IF(Comparativo!$E$6="Tabela Não Desonerada",VLOOKUP($C178,'Orçamento Base'!$D$11:$S$1673,11,FALSE),VLOOKUP($C178,#REF!,11,FALSE)))) -> 0.2267 | M178: =IF(Comparativo!$E$6="Tabela Não Desonerada",Encargos!$F$44,Encargos!$D$44) -> 1.1122
A179: ='Identificação-TCE'!$A$13 -> 1 | B179: =IF(AND(G179<>"",H179>0,I179<>"",J179<>0,K179<>0),COUNT($B$11:B178)+1,"") -> 17 | C179: =IF('Orçamento Base'!$M178=0,0,'Orçamento Base'!$D178) -> 4.5 | D179: =IF('Orçamento Base'!$F178=Aux.!$G$11,"CONTRATACAO_PUBLICA",IF(VLOOKUP($C179,'Orçamento Base'!$D$11:$G$2116,3,FALSE)="INDEXADO",VLOOKUP(VLOOKUP($C178,'Orçamento Base'!$D$11:$G$2116,2,FALSE),'Index N_DESON.'!$A$9:$B$604,2),VLOOKUP($C179,'Orçamento Base'!$D$11:$G$2116,3,FALSE))) -> SINAPI | E179: =VLOOKUP($C179,'Orçamento Base'!$D$11:$S$1673,2,FALSE) -> 94216 | F179: =Dados!$C$7 -> 2022-04-01 | G179: =VLOOKUP($C179,'Orçamento Base'!$D$11:$S$1673,4,FALSE) -> TELHAMENTO COM TELHA METÁLICA TERMOACÚSTICA E = 30 MM, COM ATÉ 2 ÁGUAS, INCLUSO IÇAMENTO. AF_07/2019 | H179: =IFERROR(VLOOKUP($C179,'Orçamento Base'!$D$11:$S$1673,6,FALSE),0) -> 1400 | I179: =VLOOKUP($C179,'Orçamento Base'!$D$11:$S$1673,5,FALSE) -> M2 | J179: =IF(Comparativo!$E$6="Tabela Não Desonerada",VLOOKUP($C179,'Orçamento Base'!$D$11:$S$1673,12,FALSE),VLOOKUP($C179,#REF!,12,FALSE)) -> 302.79 | K179: =IFERROR(IF(Comparativo!$E$6="Tabela Não Desonerada",VLOOKUP($C179,'Orçamento Base'!$D$11:$S$1673,16,FALSE),VLOOKUP($C179,#REF!,16,FALSE)),0) -> 423906 | L179: =IF(AND($D179="COMPOSICAO_PROPRIA",'Orçamento Base'!$N179="-"),"14,18%",IF(AND($D179="MERCADO",'Orçamento Base'!$N179="-"),"15,38%",IF(Comparativo!$E$6="Tabela Não Desonerada",VLOOKUP($C179,'Orçamento Base'!$D$11:$S$1673,11,FALSE),VLOOKUP($C179,#REF!,11,FALSE)))) -> 0.2267 | M179: =IF(Comparativo!$E$6="Tabela Não Desonerada",Encargos!$F$44,Encargos!$D$44) -> 1.1122
A180: ='Identificação-TCE'!$A$13 -> 1 | B180: =IF(AND(G180<>"",H180>0,I180<>"",J180<>0,K180<>0),COUNT($B$11:B179)+1,"") -> 18 | C180: =IF('Orçamento Base'!$M179=0,0,'Orçamento Base'!$D179) -> 4.6 | D180: =IF('Orçamento Base'!$F179=Aux.!$G$11,"CONTRATACAO_PUBLICA",IF(VLOOKUP($C180,'Orçamento Base'!$D$11:$G$2116,3,FALSE)="INDEXADO",VLOOKUP(VLOOKUP($C179,'Orçamento Base'!$D$11:$G$2116,2,FALSE),'Index N_DESON.'!$A$9:$B$604,2),VLOOKUP($C180,'Orçamento Base'!$D$11:$G$2116,3,FALSE))) -> SINAPI | E180: =VLOOKUP($C180,'Orçamento Base'!$D$11:$S$1673,2,FALSE) -> 94449 | F180: =Dados!$C$7 -> 2022-04-01 | G180: =VLOOKUP($C180,'Orçamento Base'!$D$11:$S$1673,4,FALSE) -> TELHAMENTO COM TELHA ONDULADA DE FIBRA DE VIDRO E = 0,6 MM, PARA TELHADO COM INCLINAÇÃO MAIOR QUE 10°, COM ATÉ 2 ÁGUAS, INCLUSO IÇAMENTO. AF_07/2019 | H180: =IFERROR(VLOOKUP($C180,'Orçamento Base'!$D$11:$S$1673,6,FALSE),0) -> 370 | I180: =VLOOKUP($C180,'Orçamento Base'!$D$11:$S$1673,5,FALSE) -> M2 | J180: =IF(Comparativo!$E$6="Tabela Não Desonerada",VLOOKUP($C180,'Orçamento Base'!$D$11:$S$1673,12,FALSE),VLOOKUP($C180,#REF!,12,FALSE)) -> 65.11 | K180: =IFERROR(IF(Comparativo!$E$6="Tabela Não Desonerada",VLOOKUP($C180,'Orçamento Base'!$D$11:$S$1673,16,FALSE),VLOOKUP($C180,#REF!,16,FALSE)),0) -> 24090.7 | L180: =IF(AND($D180="COMPOSICAO_PROPRIA",'Orçamento Base'!$N180="-"),"14,18%",IF(AND($D180="MERCADO",'Orçamento Base'!$N180="-"),"15,38%",IF(Comparativo!$E$6="Tabela Não Desonerada",VLOOKUP($C180,'Orçamento Base'!$D$11:$S$1673,11,FALSE),VLOOKUP($C180,#REF!,11,FALSE)))) -> 0.2267 | M180: =IF(Comparativo!$E$6="Tabela Não Desonerada",Encargos!$F$44,Encargos!$D$44) -> 1.1122
A181: ='Identificação-TCE'!$A$13 -> 1 | B181: =IF(AND(G181<>"",H181>0,I181<>"",J181<>0,K181<>0),COUNT($B$11:B180)+1,"") -> 19 | C181: =IF('Orçamento Base'!$M180=0,0,'Orçamento Base'!$D180) -> 4.7 | D181: =IF('Orçamento Base'!$F180=Aux.!$G$11,"CONTRATACAO_PUBLICA",IF(VLOOKUP($C181,'Orçamento Base'!$D$11:$G$2116,3,FALSE)="INDEXADO",VLOOKUP(VLOOKUP($C180,'Orçamento Base'!$D$11:$G$2116,2,FALSE),'Index N_DESON.'!$A$9:$B$604,2),VLOOKUP($C181,'Orçamento Base'!$D$11:$G$2116,3,FALSE))) -> SINAPI | E181: =VLOOKUP($C181,'Orçamento Base'!$D$11:$S$1673,2,FALSE) -> 102505 | F181: =Dados!$C$7 -> 2022-04-01 | G181: =VLOOKUP($C181,'Orçamento Base'!$D$11:$S$1673,4,FALSE) -> PINTURA DE DEMARCAÇÃO DE QUADRA POLIESPORTIVA COM BORRACHA CLORADA, E = 5 CM, APLICAÇÃO MANUAL. AF_05/2021 | H181: =IFERROR(VLOOKUP($C181,'Orçamento Base'!$D$11:$S$1673,6,FALSE),0) -> 975 | I181: =VLOOKUP($C181,'Orçamento Base'!$D$11:$S$1673,5,FALSE) -> M | J181: =IF(Comparativo!$E$6="Tabela Não Desonerada",VLOOKUP($C181,'Orçamento Base'!$D$11:$S$1673,12,FALSE),VLOOKUP($C181,#REF!,12,FALSE)) -> 10.54 | K181: =IFERROR(IF(Comparativo!$E$6="Tabela Não Desonerada",VLOOKUP($C181,'Orçamento Base'!$D$11:$S$1673,16,FALSE),VLOOKUP($C181,#REF!,16,FALSE)),0) -> 10276.5 | L181: =IF(AND($D181="COMPOSICAO_PROPRIA",'Orçamento Base'!$N181="-"),"14,18%",IF(AND($D181="MERCADO",'Orçamento Base'!$N181="-"),"15,38%",IF(Comparativo!$E$6="Tabela Não Desonerada",VLOOKUP($C181,'Orçamento Base'!$D$11:$S$1673,11,FALSE),VLOOKUP($C181,#REF!,11,FALSE)))) -> 0.2267 | M181: =IF(Comparativo!$E$6="Tabela Não Desonerada",Encargos!$F$44,Encargos!$D$44) -> 1.1122
A182: ='Identificação-TCE'!$A$13 -> 1 | B182: =IF(AND(G182<>"",H182>0,I182<>"",J182<>0,K182<>0),COUNT($B$11:B181)+1,"") -> 20 | C182: =IF('Orçamento Base'!$M181=0,0,'Orçamento Base'!$D181) -> 4.8 | D182: =IF('Orçamento Base'!$F181=Aux.!$G$11,"CONTRATACAO_PUBLICA",IF(VLOOKUP($C182,'Orçamento Base'!$D$11:$G$2116,3,FALSE)="INDEXADO",VLOOKUP(VLOOKUP($C181,'Orçamento Base'!$D$11:$G$2116,2,FALSE),'Index N_DESON.'!$A$9:$B$604,2),VLOOKUP($C182,'Orçamento Base'!$D$11:$G$2116,3,FALSE))) -> CCU | E182: =VLOOKUP($C182,'Orçamento Base'!$D$11:$S$1673,2,FALSE) -> CCU-08 | F182: =Dados!$C$7 -> 2022-04-01 | G182: =VLOOKUP($C182,'Orçamento Base'!$D$11:$S$1673,4,FALSE) -> BEBEDOURO COM VÁLVULA ANTI-VANDALISMO | H182: =IFERROR(VLOOKUP($C182,'Orçamento Base'!$D$11:$S$1673,6,FALSE),0) -> 5 | I182: =VLOOKUP($C182,'Orçamento Base'!$D$11:$S$1673,5,FALSE) -> UN | J182: =IF(Comparativo!$E$6="Tabela Não Desonerada",VLOOKUP($C182,'Orçamento Base'!$D$11:$S$1673,12,FALSE),VLOOKUP($C182,#REF!,12,FALSE)) -> 2553.9 | K182: =IFERROR(IF(Comparativo!$E$6="Tabela Não Desonerada",VLOOKUP($C182,'Orçamento Base'!$D$11:$S$1673,16,FALSE),VLOOKUP($C182,#REF!,16,FALSE)),0) -> 12769.5 | L182: =IF(AND($D182="COMPOSICAO_PROPRIA",'Orçamento Base'!$N182="-"),"14,18%",IF(AND($D182="MERCADO",'Orçamento Base'!$N182="-"),"15,38%",IF(Comparativo!$E$6="Tabela Não Desonerada",VLOOKUP($C182,'Orçamento Base'!$D$11:$S$1673,11,FALSE),VLOOKUP($C182,#REF!,11,FALSE)))) -> 0.2267 | M182: =IF(Comparativo!$E$6="Tabela Não Desonerada",Encargos!$F$44,Encargos!$D$44) -> 1.1122
A183: ='Identificação-TCE'!$A$13 -> 1 | B183: =IF(AND(G183<>"",H183>0,I183<>"",J183<>0,K183<>0),COUNT($B$11:B182)+1,"") -> 21 | C183: =IF('Orçamento Base'!$M182=0,0,'Orçamento Base'!$D182) -> 4.9 | D183: =IF('Orçamento Base'!$F182=Aux.!$G$11,"CONTRATACAO_PUBLICA",IF(VLOOKUP($C183,'Orçamento Base'!$D$11:$G$2116,3,FALSE)="INDEXADO",VLOOKUP(VLOOKUP($C182,'Orçamento Base'!$D$11:$G$2116,2,FALSE),'Index N_DESON.'!$A$9:$B$604,2),VLOOKUP($C183,'Orçamento Base'!$D$11:$G$2116,3,FALSE))) -> CCU | E183: =VLOOKUP($C183,'Orçamento Base'!$D$11:$S$1673,2,FALSE) -> CCU-01 | F183: =Dados!$C$7 -> 2022-04-01 | G183: =VLOOKUP($C183,'Orçamento Base'!$D$11:$S$1673,4,FALSE) -> LIXAMENTO DE PAREDES PARA PINTURA | H183: =IFERROR(VLOOKUP($C183,'Orçamento Base'!$D$11:$S$1673,6,FALSE),0) -> 3700 | I183: =VLOOKUP($C183,'Orçamento Base'!$D$11:$S$1673,5,FALSE) -> M2 | J183: =IF(Comparativo!$E$6="Tabela Não Desonerada",VLOOKUP($C183,'Orçamento Base'!$D$11:$S$1673,12,FALSE),VLOOKUP($C183,#REF!,12,FALSE)) -> 3.79 | K183: =IFERROR(IF(Comparativo!$E$6="Tabela Não Desonerada",VLOOKUP($C183,'Orçamento Base'!$D$11:$S$1673,16,FALSE),VLOOKUP($C183,#REF!,16,FALSE)),0) -> 14023 | L183: =IF(AND($D183="COMPOSICAO_PROPRIA",'Orçamento Base'!$N183="-"),"14,18%",IF(AND($D183="MERCADO",'Orçamento Base'!$N183="-"),"15,38%",IF(Comparativo!$E$6="Tabela Não Desonerada",VLOOKUP($C183,'Orçamento Base'!$D$11:$S$1673,11,FALSE),VLOOKUP($C183,#REF!,11,FALSE)))) -> 0.2267 | M183: =IF(Comparativo!$E$6="Tabela Não Desonerada",Encargos!$F$44,Encargos!$D$44) -> 1.1122
A184: ='Identificação-TCE'!$A$13 -> 1 | B184: =IF(AND(G184<>"",H184>0,I184<>"",J184<>0,K184<>0),COUNT($B$11:B183)+1,"") -> 22 | C184: =IF('Orçamento Base'!$M183=0,0,'Orçamento Base'!$D183) -> 4.10 | D184: =IF('Orçamento Base'!$F183=Aux.!$G$11,"CONTRATACAO_PUBLICA",IF(VLOOKUP($C184,'Orçamento Base'!$D$11:$G$2116,3,FALSE)="INDEXADO",VLOOKUP(VLOOKUP($C183,'Orçamento Base'!$D$11:$G$2116,2,FALSE),'Index N_DESON.'!$A$9:$B$604,2),VLOOKUP($C184,'Orçamento Base'!$D$11:$G$2116,3,FALSE))) -> SINAPI | E184: =VLOOKUP($C184,'Orçamento Base'!$D$11:$S$1673,2,FALSE) -> 88485 | F184: =Dados!$C$7 -> 2022-04-01 | G184: =VLOOKUP($C184,'Orçamento Base'!$D$11:$S$1673,4,FALSE) -> APLICAÇÃO DE FUNDO SELADOR ACRÍLICO EM PAREDES, UMA DEMÃO. AF_06/2014 | H184: =IFERROR(VLOOKUP($C184,'Orçamento Base'!$D$11:$S$1673,6,FALSE),0) -> 3700 | I184: =VLOOKUP($C184,'Orçamento Base'!$D$11:$S$1673,5,FALSE) -> M2 | J184: =IF(Comparativo!$E$6="Tabela Não Desonerada",VLOOKUP($C184,'Orçamento Base'!$D$11:$S$1673,12,FALSE),VLOOKUP($C184,#REF!,12,FALSE)) -> 2.93 | K184: =IFERROR(IF(Comparativo!$E$6="Tabela Não Desonerada",VLOOKUP($C184,'Orçamento Base'!$D$11:$S$1673,16,FALSE),VLOOKUP($C184,#REF!,16,FALSE)),0) -> 10841 | L184: =IF(AND($D184="COMPOSICAO_PROPRIA",'Orçamento Base'!$N184="-"),"14,18%",IF(AND($D184="MERCADO",'Orçamento Base'!$N184="-"),"15,38%",IF(Comparativo!$E$6="Tabela Não Desonerada",VLOOKUP($C184,'Orçamento Base'!$D$11:$S$1673,11,FALSE),VLOOKUP($C184,#REF!,11,FALSE)))) -> 0.2267 | M184: =IF(Comparativo!$E$6="Tabela Não Desonerada",Encargos!$F$44,Encargos!$D$44) -> 1.1122
A185: ='Identificação-TCE'!$A$13 -> 1 | B185: =IF(AND(G185<>"",H185>0,I185<>"",J185<>0,K185<>0),COUNT($B$11:B184)+1,"") -> 23 | C185: =IF('Orçamento Base'!$M184=0,0,'Orçamento Base'!$D184) -> 4.11 | D185: =IF('Orçamento Base'!$F184=Aux.!$G$11,"CONTRATACAO_PUBLICA",IF(VLOOKUP($C185,'Orçamento Base'!$D$11:$G$2116,3,FALSE)="INDEXADO",VLOOKUP(VLOOKUP($C184,'Orçamento Base'!$D$11:$G$2116,2,FALSE),'Index N_DESON.'!$A$9:$B$604,2),VLOOKUP($C185,'Orçamento Base'!$D$11:$G$2116,3,FALSE))) -> SINAPI | E185: =VLOOKUP($C185,'Orçamento Base'!$D$11:$S$1673,2,FALSE) -> 88489 | F185: =Dados!$C$7 -> 2022-04-01 | G185: =VLOOKUP($C185,'Orçamento Base'!$D$11:$S$1673,4,FALSE) -> APLICAÇÃO MANUAL DE PINTURA COM TINTA LÁTEX ACRÍLICA EM PAREDES, DUAS DEMÃOS. AF_06/2014 | H185: =IFERROR(VLOOKUP($C185,'Orçamento Base'!$D$11:$S$1673,6,FALSE),0) -> 3700 | I185: =VLOOKUP($C185,'Orçamento Base'!$D$11:$S$1673,5,FALSE) -> M2 | J185: =IF(Comparativo!$E$6="Tabela Não Desonerada",VLOOKUP($C185,'Orçamento Base'!$D$11:$S$1673,12,FALSE),VLOOKUP($C185,#REF!,12,FALSE)) -> 18.14 | K185: =IFERROR(IF(Comparativo!$E$6="Tabela Não Desonerada",VLOOKUP($C185,'Orçamento Base'!$D$11:$S$1673,16,FALSE),VLOOKUP($C185,#REF!,16,FALSE)),0) -> 67118 | L185: =IF(AND($D185="COMPOSICAO_PROPRIA",'Orçamento Base'!$N185="-"),"14,18%",IF(AND($D185="MERCADO",'Orçamento Base'!$N185="-"),"15,38%",IF(Comparativo!$E$6="Tabela Não Desonerada",VLOOKUP($C185,'Orçamento Base'!$D$11:$S$1673,11,FALSE),VLOOKUP($C185,#REF!,11,FALSE)))) -> 0.2267 | M185: =IF(Comparativo!$E$6="Tabela Não Desonerada",Encargos!$F$44,Encargos!$D$44) -> 1.1122
A186: ='Identificação-TCE'!$A$13 -> 1 | B186: =IF(AND(G186<>"",H186>0,I186<>"",J186<>0,K186<>0),COUNT($B$11:B185)+1,"") -> 24 | C186: =IF('Orçamento Base'!$M185=0,0,'Orçamento Base'!$D185) -> 4.12 | D186: =IF('Orçamento Base'!$F185=Aux.!$G$11,"CONTRATACAO_PUBLICA",IF(VLOOKUP($C186,'Orçamento Base'!$D$11:$G$2116,3,FALSE)="INDEXADO",VLOOKUP(VLOOKUP($C185,'Orçamento Base'!$D$11:$G$2116,2,FALSE),'Index N_DESON.'!$A$9:$B$604,2),VLOOKUP($C186,'Orçamento Base'!$D$11:$G$2116,3,FALSE))) -> SINAPI | E186: =VLOOKUP($C186,'Orçamento Base'!$D$11:$S$1673,2,FALSE) -> 100717 | F186: =Dados!$C$7 -> 2022-04-01 | G186: =VLOOKUP($C186,'Orçamento Base'!$D$11:$S$1673,4,FALSE) -> LIXAMENTO MANUAL EM SUPERFÍCIES METÁLICAS EM OBRA. AF_01/2020 | H186: =IFERROR(VLOOKUP($C186,'Orçamento Base'!$D$11:$S$1673,6,FALSE),0) -> 250 | I186: =VLOOKUP($C186,'Orçamento Base'!$D$11:$S$1673,5,FALSE) -> M2 | J186: =IF(Comparativo!$E$6="Tabela Não Desonerada",VLOOKUP($C186,'Orçamento Base'!$D$11:$S$1673,12,FALSE),VLOOKUP($C186,#REF!,12,FALSE)) -> 10.27 | K186: =IFERROR(IF(Comparativo!$E$6="Tabela Não Desonerada",VLOOKUP($C186,'Orçamento Base'!$D$11:$S$1673,16,FALSE),VLOOKUP($C186,#REF!,16,FALSE)),0) -> 2567.5 | L186: =IF(AND($D186="COMPOSICAO_PROPRIA",'Orçamento Base'!$N186="-"),"14,18%",IF(AND($D186="MERCADO",'Orçamento Base'!$N186="-"),"15,38%",IF(Comparativo!$E$6="Tabela Não Desonerada",VLOOKUP($C186,'Orçamento Base'!$D$11:$S$1673,11,FALSE),VLOOKUP($C186,#REF!,11,FALSE)))) -> 0.2267 | M186: =IF(Comparativo!$E$6="Tabela Não Desonerada",Encargos!$F$44,Encargos!$D$44) -> 1.1122
A187: ='Identificação-TCE'!$A$13 -> 1 | B187: =IF(AND(G187<>"",H187>0,I187<>"",J187<>0,K187<>0),COUNT($B$11:B186)+1,"") -> 25 | C187: =IF('Orçamento Base'!$M186=0,0,'Orçamento Base'!$D186) -> 4.13 | D187: =IF('Orçamento Base'!$F186=Aux.!$G$11,"CONTRATACAO_PUBLICA",IF(VLOOKUP($C187,'Orçamento Base'!$D$11:$G$2116,3,FALSE)="INDEXADO",VLOOKUP(VLOOKUP($C186,'Orçamento Base'!$D$11:$G$2116,2,FALSE),'Index N_DESON.'!$A$9:$B$604,2),VLOOKUP($C187,'Orçamento Base'!$D$11:$G$2116,3,FALSE))) -> SINAPI | E187: =VLOOKUP($C187,'Orçamento Base'!$D$11:$S$1673,2,FALSE) -> 100725 | F187: =Dados!$C$7 -> 2022-04-01 | G187: =VLOOKUP($C187,'Orçamento Base'!$D$11:$S$1673,4,FALSE) -> PINTURA COM TINTA ALQUÍDICA DE FUNDO E ACABAMENTO (ESMALTE SINTÉTICO GRAFITE) PULVERIZADA SOBRE SUPERFÍCIES METÁLICAS (EXCETO PERFIL) EXECUTADO EM OBRA (POR DEMÃO). AF_01/2020_P | H187: =IFERROR(VLOOKUP($C187,'Orçamento Base'!$D$11:$S$1673,6,FALSE),0) -> 250 | I187: =VLOOKUP($C187,'Orçamento Base'!$D$11:$S$1673,5,FALSE) -> M2 | J187: =IF(Comparativo!$E$6="Tabela Não Desonerada",VLOOKUP($C187,'Orçamento Base'!$D$11:$S$1673,12,FALSE),VLOOKUP($C187,#REF!,12,FALSE)) -> 26.69 | K187: =IFERROR(IF(Comparativo!$E$6="Tabela Não Desonerada",VLOOKUP($C187,'Orçamento Base'!$D$11:$S$1673,16,FALSE),VLOOKUP($C187,#REF!,16,FALSE)),0) -> 6672.5 | L187: =IF(AND($D187="COMPOSICAO_PROPRIA",'Orçamento Base'!$N187="-"),"14,18%",IF(AND($D187="MERCADO",'Orçamento Base'!$N187="-"),"15,38%",IF(Comparativo!$E$6="Tabela Não Desonerada",VLOOKUP($C187,'Orçamento Base'!$D$11:$S$1673,11,FALSE),VLOOKUP($C187,#REF!,11,FALSE)))) -> 0.2267 | M187: =IF(Comparativo!$E$6="Tabela Não Desonerada",Encargos!$F$44,Encargos!$D$44) -> 1.1122
A188: ='Identificação-TCE'!$A$13 -> 1 | B188: =IF(AND(G188<>"",H188>0,I188<>"",J188<>0,K188<>0),COUNT($B$11:B187)+1,"") -> 26 | C188: =IF('Orçamento Base'!$M187=0,0,'Orçamento Base'!$D187) -> 4.14 | D188: =IF('Orçamento Base'!$F187=Aux.!$G$11,"CONTRATACAO_PUBLICA",IF(VLOOKUP($C188,'Orçamento Base'!$D$11:$G$2116,3,FALSE)="INDEXADO",VLOOKUP(VLOOKUP($C187,'Orçamento Base'!$D$11:$G$2116,2,FALSE),'Index N_DESON.'!$A$9:$B$604,2),VLOOKUP($C188,'Orçamento Base'!$D$11:$G$2116,3,FALSE))) -> SINAPI | E188: =VLOOKUP($C188,'Orçamento Base'!$D$11:$S$1673,2,FALSE) -> 102488 | F188: =Dados!$C$7 -> 2022-04-01 | G188: =VLOOKUP($C188,'Orçamento Base'!$D$11:$S$1673,4,FALSE) -> PREPARO DO PISO CIMENTADO PARA PINTURA - LIXAMENTO E LIMPEZA. AF_05/2021 | H188: =IFERROR(VLOOKUP($C188,'Orçamento Base'!$D$11:$S$1673,6,FALSE),0) -> 185.77 | I188: =VLOOKUP($C188,'Orçamento Base'!$D$11:$S$1673,5,FALSE) -> M2 | J188: =IF(Comparativo!$E$6="Tabela Não Desonerada",VLOOKUP($C188,'Orçamento Base'!$D$11:$S$1673,12,FALSE),VLOOKUP($C188,#REF!,12,FALSE)) -> 3.68 | K188: =IFERROR(IF(Comparativo!$E$6="Tabela Não Desonerada",VLOOKUP($C188,'Orçamento Base'!$D$11:$S$1673,16,FALSE),VLOOKUP($C188,#REF!,16,FALSE)),0) -> 683.63 | L188: =IF(AND($D188="COMPOSICAO_PROPRIA",'Orçamento Base'!$N188="-"),"14,18%",IF(AND($D188="MERCADO",'Orçamento Base'!$N188="-"),"15,38%",IF(Comparativo!$E$6="Tabela Não Desonerada",VLOOKUP($C188,'Orçamento Base'!$D$11:$S$1673,11,FALSE),VLOOKUP($C188,#REF!,11,FALSE)))) -> 0.2267 | M188: =IF(Comparativo!$E$6="Tabela Não Desonerada",Encargos!$F$44,Encargos!$D$44) -> 1.1122
A189: ='Identificação-TCE'!$A$13 -> 1 | B189: =IF(AND(G189<>"",H189>0,I189<>"",J189<>0,K189<>0),COUNT($B$11:B188)+1,"") -> 27 | C189: =IF('Orçamento Base'!$M188=0,0,'Orçamento Base'!$D188) -> 4.15 | D189: =IF('Orçamento Base'!$F188=Aux.!$G$11,"CONTRATACAO_PUBLICA",IF(VLOOKUP($C189,'Orçamento Base'!$D$11:$G$2116,3,FALSE)="INDEXADO",VLOOKUP(VLOOKUP($C188,'Orçamento Base'!$D$11:$G$2116,2,FALSE),'Index N_DESON.'!$A$9:$B$604,2),VLOOKUP($C189,'Orçamento Base'!$D$11:$G$2116,3,FALSE))) -> CCU | E189: =VLOOKUP($C189,'Orçamento Base'!$D$11:$S$1673,2,FALSE) -> CCU-02 | F189: =Dados!$C$7 -> 2022-04-01 | G189: =VLOOKUP($C189,'Orçamento Base'!$D$11:$S$1673,4,FALSE) -> PINTURA DE ARQUIBANCADAS | H189: =IFERROR(VLOOKUP($C189,'Orçamento Base'!$D$11:$S$1673,6,FALSE),0) -> 185.77 | I189: =VLOOKUP($C189,'Orçamento Base'!$D$11:$S$1673,5,FALSE) -> M2 | J189: =IF(Comparativo!$E$6="Tabela Não Desonerada",VLOOKUP($C189,'Orçamento Base'!$D$11:$S$1673,12,FALSE),VLOOKUP($C189,#REF!,12,FALSE)) -> 25.44 | K189: =IFERROR(IF(Comparativo!$E$6="Tabela Não Desonerada",VLOOKUP($C189,'Orçamento Base'!$D$11:$S$1673,16,FALSE),VLOOKUP($C189,#REF!,16,FALSE)),0) -> 4725.99 | L189: =IF(AND($D189="COMPOSICAO_PROPRIA",'Orçamento Base'!$N189="-"),"14,18%",IF(AND($D189="MERCADO",'Orçamento Base'!$N189="-"),"15,38%",IF(Comparativo!$E$6="Tabela Não Desonerada",VLOOKUP($C189,'Orçamento Base'!$D$11:$S$1673,11,FALSE),VLOOKUP($C189,#REF!,11,FALSE)))) -> 0.2267 | M189: =IF(Comparativo!$E$6="Tabela Não Desonerada",Encargos!$F$44,Encargos!$D$44) -> 1.1122
A190: ='Identificação-TCE'!$A$13 -> 1 | B190: =IF(AND(G190<>"",H190>0,I190<>"",J190<>0,K190<>0),COUNT($B$11:B189)+1,"") ->  | C190: =IF('Orçamento Base'!$M189=0,0,'Orçamento Base'!$D189) -> 0 | D190: =IF('Orçamento Base'!$F189=Aux.!$G$11,"CONTRATACAO_PUBLICA",IF(VLOOKUP($C190,'Orçamento Base'!$D$11:$G$2116,3,FALSE)="INDEXADO",VLOOKUP(VLOOKUP($C189,'Orçamento Base'!$D$11:$G$2116,2,FALSE),'Index N_DESON.'!$A$9:$B$604,2),VLOOKUP($C190,'Orçamento Base'!$D$11:$G$2116,3,FALSE))) ->  | E190: =VLOOKUP($C190,'Orçamento Base'!$D$11:$S$1673,2,FALSE) ->  | F190: =Dados!$C$7 -> 2022-04-01 | G190: =VLOOKUP($C190,'Orçamento Base'!$D$11:$S$1673,4,FALSE) ->  | H190: =IFERROR(VLOOKUP($C190,'Orçamento Base'!$D$11:$S$1673,6,FALSE),0) -> 0 | I190: =VLOOKUP($C190,'Orçamento Base'!$D$11:$S$1673,5,FALSE) ->  | J190: =IF(Comparativo!$E$6="Tabela Não Desonerada",VLOOKUP($C190,'Orçamento Base'!$D$11:$S$1673,12,FALSE),VLOOKUP($C190,#REF!,12,FALSE)) ->  | K190: =IFERROR(IF(Comparativo!$E$6="Tabela Não Desonerada",VLOOKUP($C190,'Orçamento Base'!$D$11:$S$1673,16,FALSE),VLOOKUP($C190,#REF!,16,FALSE)),0) -> 0 | L190: =IF(AND($D190="COMPOSICAO_PROPRIA",'Orçamento Base'!$N190="-"),"14,18%",IF(AND($D190="MERCADO",'Orçamento Base'!$N190="-"),"15,38%",IF(Comparativo!$E$6="Tabela Não Desonerada",VLOOKUP($C190,'Orçamento Base'!$D$11:$S$1673,11,FALSE),VLOOKUP($C190,#REF!,11,FALSE)))) ->  | M190: =IF(Comparativo!$E$6="Tabela Não Desonerada",Encargos!$F$44,Encargos!$D$44) -> 1.1122
A191: ='Identificação-TCE'!$A$13 -> 1 | B191: =IF(AND(G191<>"",H191>0,I191<>"",J191<>0,K191<>0),COUNT($B$11:B190)+1,"") ->  | C191: =IF('Orçamento Base'!$M190=0,0,'Orçamento Base'!$D190) -> 0 | D191: =IF('Orçamento Base'!$F190=Aux.!$G$11,"CONTRATACAO_PUBLICA",IF(VLOOKUP($C191,'Orçamento Base'!$D$11:$G$2116,3,FALSE)="INDEXADO",VLOOKUP(VLOOKUP($C190,'Orçamento Base'!$D$11:$G$2116,2,FALSE),'Index N_DESON.'!$A$9:$B$604,2),VLOOKUP($C191,'Orçamento Base'!$D$11:$G$2116,3,FALSE))) ->  | E191: =VLOOKUP($C191,'Orçamento Base'!$D$11:$S$1673,2,FALSE) ->  | F191: =Dados!$C$7 -> 2022-04-01 | G191: =VLOOKUP($C191,'Orçamento Base'!$D$11:$S$1673,4,FALSE) ->  | H191: =IFERROR(VLOOKUP($C191,'Orçamento Base'!$D$11:$S$1673,6,FALSE),0) -> 0 | I191: =VLOOKUP($C191,'Orçamento Base'!$D$11:$S$1673,5,FALSE) ->  | J191: =IF(Comparativo!$E$6="Tabela Não Desonerada",VLOOKUP($C191,'Orçamento Base'!$D$11:$S$1673,12,FALSE),VLOOKUP($C191,#REF!,12,FALSE)) ->  | K191: =IFERROR(IF(Comparativo!$E$6="Tabela Não Desonerada",VLOOKUP($C191,'Orçamento Base'!$D$11:$S$1673,16,FALSE),VLOOKUP($C191,#REF!,16,FALSE)),0) -> 0 | L191: =IF(AND($D191="COMPOSICAO_PROPRIA",'Orçamento Base'!$N191="-"),"14,18%",IF(AND($D191="MERCADO",'Orçamento Base'!$N191="-"),"15,38%",IF(Comparativo!$E$6="Tabela Não Desonerada",VLOOKUP($C191,'Orçamento Base'!$D$11:$S$1673,11,FALSE),VLOOKUP($C191,#REF!,11,FALSE)))) ->  | M191: =IF(Comparativo!$E$6="Tabela Não Desonerada",Encargos!$F$44,Encargos!$D$44) -> 1.1122
A192: ='Identificação-TCE'!$A$13 -> 1 | B192: =IF(AND(G192<>"",H192>0,I192<>"",J192<>0,K192<>0),COUNT($B$11:B191)+1,"") ->  | C192: =IF('Orçamento Base'!$M191=0,0,'Orçamento Base'!$D191) -> 0 | D192: =IF('Orçamento Base'!$F191=Aux.!$G$11,"CONTRATACAO_PUBLICA",IF(VLOOKUP($C192,'Orçamento Base'!$D$11:$G$2116,3,FALSE)="INDEXADO",VLOOKUP(VLOOKUP($C191,'Orçamento Base'!$D$11:$G$2116,2,FALSE),'Index N_DESON.'!$A$9:$B$604,2),VLOOKUP($C192,'Orçamento Base'!$D$11:$G$2116,3,FALSE))) ->  | E192: =VLOOKUP($C192,'Orçamento Base'!$D$11:$S$1673,2,FALSE) ->  | F192: =Dados!$C$7 -> 2022-04-01 | G192: =VLOOKUP($C192,'Orçamento Base'!$D$11:$S$1673,4,FALSE) ->  | H192: =IFERROR(VLOOKUP($C192,'Orçamento Base'!$D$11:$S$1673,6,FALSE),0) -> 0 | I192: =VLOOKUP($C192,'Orçamento Base'!$D$11:$S$1673,5,FALSE) ->  | J192: =IF(Comparativo!$E$6="Tabela Não Desonerada",VLOOKUP($C192,'Orçamento Base'!$D$11:$S$1673,12,FALSE),VLOOKUP($C192,#REF!,12,FALSE)) ->  | K192: =IFERROR(IF(Comparativo!$E$6="Tabela Não Desonerada",VLOOKUP($C192,'Orçamento Base'!$D$11:$S$1673,16,FALSE),VLOOKUP($C192,#REF!,16,FALSE)),0) -> 0 | L192: =IF(AND($D192="COMPOSICAO_PROPRIA",'Orçamento Base'!$N192="-"),"14,18%",IF(AND($D192="MERCADO",'Orçamento Base'!$N192="-"),"15,38%",IF(Comparativo!$E$6="Tabela Não Desonerada",VLOOKUP($C192,'Orçamento Base'!$D$11:$S$1673,11,FALSE),VLOOKUP($C192,#REF!,11,FALSE)))) ->  | M192: =IF(Comparativo!$E$6="Tabela Não Desonerada",Encargos!$F$44,Encargos!$D$44) -> 1.1122
A193: ='Identificação-TCE'!$A$13 -> 1 | B193: =IF(AND(G193<>"",H193>0,I193<>"",J193<>0,K193<>0),COUNT($B$11:B192)+1,"") ->  | C193: =IF('Orçamento Base'!$M192=0,0,'Orçamento Base'!$D192) -> 0 | D193: =IF('Orçamento Base'!$F192=Aux.!$G$11,"CONTRATACAO_PUBLICA",IF(VLOOKUP($C193,'Orçamento Base'!$D$11:$G$2116,3,FALSE)="INDEXADO",VLOOKUP(VLOOKUP($C192,'Orçamento Base'!$D$11:$G$2116,2,FALSE),'Index N_DESON.'!$A$9:$B$604,2),VLOOKUP($C193,'Orçamento Base'!$D$11:$G$2116,3,FALSE))) ->  | E193: =VLOOKUP($C193,'Orçamento Base'!$D$11:$S$1673,2,FALSE) ->  | F193: =Dados!$C$7 -> 2022-04-01 | G193: =VLOOKUP($C193,'Orçamento Base'!$D$11:$S$1673,4,FALSE) ->  | H193: =IFERROR(VLOOKUP($C193,'Orçamento Base'!$D$11:$S$1673,6,FALSE),0) -> 0 | I193: =VLOOKUP($C193,'Orçamento Base'!$D$11:$S$1673,5,FALSE) ->  | J193: =IF(Comparativo!$E$6="Tabela Não Desonerada",VLOOKUP($C193,'Orçamento Base'!$D$11:$S$1673,12,FALSE),VLOOKUP($C193,#REF!,12,FALSE)) ->  | K193: =IFERROR(IF(Comparativo!$E$6="Tabela Não Desonerada",VLOOKUP($C193,'Orçamento Base'!$D$11:$S$1673,16,FALSE),VLOOKUP($C193,#REF!,16,FALSE)),0) -> 0 | L193: =IF(AND($D193="COMPOSICAO_PROPRIA",'Orçamento Base'!$N193="-"),"14,18%",IF(AND($D193="MERCADO",'Orçamento Base'!$N193="-"),"15,38%",IF(Comparativo!$E$6="Tabela Não Desonerada",VLOOKUP($C193,'Orçamento Base'!$D$11:$S$1673,11,FALSE),VLOOKUP($C193,#REF!,11,FALSE)))) ->  | M193: =IF(Comparativo!$E$6="Tabela Não Desonerada",Encargos!$F$44,Encargos!$D$44) -> 1.1122
A194: ='Identificação-TCE'!$A$13 -> 1 | B194: =IF(AND(G194<>"",H194>0,I194<>"",J194<>0,K194<>0),COUNT($B$11:B193)+1,"") ->  | C194: =IF('Orçamento Base'!$M193=0,0,'Orçamento Base'!$D193) -> 0 | D194: =IF('Orçamento Base'!$F193=Aux.!$G$11,"CONTRATACAO_PUBLICA",IF(VLOOKUP($C194,'Orçamento Base'!$D$11:$G$2116,3,FALSE)="INDEXADO",VLOOKUP(VLOOKUP($C193,'Orçamento Base'!$D$11:$G$2116,2,FALSE),'Index N_DESON.'!$A$9:$B$604,2),VLOOKUP($C194,'Orçamento Base'!$D$11:$G$2116,3,FALSE))) ->  | E194: =VLOOKUP($C194,'Orçamento Base'!$D$11:$S$1673,2,FALSE) ->  | F194: =Dados!$C$7 -> 2022-04-01 | G194: =VLOOKUP($C194,'Orçamento Base'!$D$11:$S$1673,4,FALSE) ->  | H194: =IFERROR(VLOOKUP($C194,'Orçamento Base'!$D$11:$S$1673,6,FALSE),0) -> 0 | I194: =VLOOKUP($C194,'Orçamento Base'!$D$11:$S$1673,5,FALSE) ->  | J194: =IF(Comparativo!$E$6="Tabela Não Desonerada",VLOOKUP($C194,'Orçamento Base'!$D$11:$S$1673,12,FALSE),VLOOKUP($C194,#REF!,12,FALSE)) ->  | K194: =IFERROR(IF(Comparativo!$E$6="Tabela Não Desonerada",VLOOKUP($C194,'Orçamento Base'!$D$11:$S$1673,16,FALSE),VLOOKUP($C194,#REF!,16,FALSE)),0) -> 0 | L194: =IF(AND($D194="COMPOSICAO_PROPRIA",'Orçamento Base'!$N194="-"),"14,18%",IF(AND($D194="MERCADO",'Orçamento Base'!$N194="-"),"15,38%",IF(Comparativo!$E$6="Tabela Não Desonerada",VLOOKUP($C194,'Orçamento Base'!$D$11:$S$1673,11,FALSE),VLOOKUP($C194,#REF!,11,FALSE)))) ->  | M194: =IF(Comparativo!$E$6="Tabela Não Desonerada",Encargos!$F$44,Encargos!$D$44) -> 1.1122
A195: ='Identificação-TCE'!$A$13 -> 1 | B195: =IF(AND(G195<>"",H195>0,I195<>"",J195<>0,K195<>0),COUNT($B$11:B194)+1,"") ->  | C195: =IF('Orçamento Base'!$M194=0,0,'Orçamento Base'!$D194) -> 0 | D195: =IF('Orçamento Base'!$F194=Aux.!$G$11,"CONTRATACAO_PUBLICA",IF(VLOOKUP($C195,'Orçamento Base'!$D$11:$G$2116,3,FALSE)="INDEXADO",VLOOKUP(VLOOKUP($C194,'Orçamento Base'!$D$11:$G$2116,2,FALSE),'Index N_DESON.'!$A$9:$B$604,2),VLOOKUP($C195,'Orçamento Base'!$D$11:$G$2116,3,FALSE))) ->  | E195: =VLOOKUP($C195,'Orçamento Base'!$D$11:$S$1673,2,FALSE) ->  | F195: =Dados!$C$7 -> 2022-04-01 | G195: =VLOOKUP($C195,'Orçamento Base'!$D$11:$S$1673,4,FALSE) ->  | H195: =IFERROR(VLOOKUP($C195,'Orçamento Base'!$D$11:$S$1673,6,FALSE),0) -> 0 | I195: =VLOOKUP($C195,'Orçamento Base'!$D$11:$S$1673,5,FALSE) ->  | J195: =IF(Comparativo!$E$6="Tabela Não Desonerada",VLOOKUP($C195,'Orçamento Base'!$D$11:$S$1673,12,FALSE),VLOOKUP($C195,#REF!,12,FALSE)) ->  | K195: =IFERROR(IF(Comparativo!$E$6="Tabela Não Desonerada",VLOOKUP($C195,'Orçamento Base'!$D$11:$S$1673,16,FALSE),VLOOKUP($C195,#REF!,16,FALSE)),0) -> 0 | L195: =IF(AND($D195="COMPOSICAO_PROPRIA",'Orçamento Base'!$N195="-"),"14,18%",IF(AND($D195="MERCADO",'Orçamento Base'!$N195="-"),"15,38%",IF(Comparativo!$E$6="Tabela Não Desonerada",VLOOKUP($C195,'Orçamento Base'!$D$11:$S$1673,11,FALSE),VLOOKUP($C195,#REF!,11,FALSE)))) ->  | M195: =IF(Comparativo!$E$6="Tabela Não Desonerada",Encargos!$F$44,Encargos!$D$44) -> 1.1122
A196: ='Identificação-TCE'!$A$13 -> 1 | B196: =IF(AND(G196<>"",H196>0,I196<>"",J196<>0,K196<>0),COUNT($B$11:B195)+1,"") ->  | C196: =IF('Orçamento Base'!$M195=0,0,'Orçamento Base'!$D195) -> 0 | D196: =IF('Orçamento Base'!$F195=Aux.!$G$11,"CONTRATACAO_PUBLICA",IF(VLOOKUP($C196,'Orçamento Base'!$D$11:$G$2116,3,FALSE)="INDEXADO",VLOOKUP(VLOOKUP($C195,'Orçamento Base'!$D$11:$G$2116,2,FALSE),'Index N_DESON.'!$A$9:$B$604,2),VLOOKUP($C196,'Orçamento Base'!$D$11:$G$2116,3,FALSE))) ->  | E196: =VLOOKUP($C196,'Orçamento Base'!$D$11:$S$1673,2,FALSE) ->  | F196: =Dados!$C$7 -> 2022-04-01 | G196: =VLOOKUP($C196,'Orçamento Base'!$D$11:$S$1673,4,FALSE) ->  | H196: =IFERROR(VLOOKUP($C196,'Orçamento Base'!$D$11:$S$1673,6,FALSE),0) -> 0 | I196: =VLOOKUP($C196,'Orçamento Base'!$D$11:$S$1673,5,FALSE) ->  | J196: =IF(Comparativo!$E$6="Tabela Não Desonerada",VLOOKUP($C196,'Orçamento Base'!$D$11:$S$1673,12,FALSE),VLOOKUP($C196,#REF!,12,FALSE)) ->  | K196: =IFERROR(IF(Comparativo!$E$6="Tabela Não Desonerada",VLOOKUP($C196,'Orçamento Base'!$D$11:$S$1673,16,FALSE),VLOOKUP($C196,#REF!,16,FALSE)),0) -> 0 | L196: =IF(AND($D196="COMPOSICAO_PROPRIA",'Orçamento Base'!$N196="-"),"14,18%",IF(AND($D196="MERCADO",'Orçamento Base'!$N196="-"),"15,38%",IF(Comparativo!$E$6="Tabela Não Desonerada",VLOOKUP($C196,'Orçamento Base'!$D$11:$S$1673,11,FALSE),VLOOKUP($C196,#REF!,11,FALSE)))) ->  | M196: =IF(Comparativo!$E$6="Tabela Não Desonerada",Encargos!$F$44,Encargos!$D$44) -> 1.1122
A197: ='Identificação-TCE'!$A$13 -> 1 | B197: =IF(AND(G197<>"",H197>0,I197<>"",J197<>0,K197<>0),COUNT($B$11:B196)+1,"") ->  | C197: =IF('Orçamento Base'!$M196=0,0,'Orçamento Base'!$D196) -> 0 | D197: =IF('Orçamento Base'!$F196=Aux.!$G$11,"CONTRATACAO_PUBLICA",IF(VLOOKUP($C197,'Orçamento Base'!$D$11:$G$2116,3,FALSE)="INDEXADO",VLOOKUP(VLOOKUP($C196,'Orçamento Base'!$D$11:$G$2116,2,FALSE),'Index N_DESON.'!$A$9:$B$604,2),VLOOKUP($C197,'Orçamento Base'!$D$11:$G$2116,3,FALSE))) ->  | E197: =VLOOKUP($C197,'Orçamento Base'!$D$11:$S$1673,2,FALSE) ->  | F197: =Dados!$C$7 -> 2022-04-01 | G197: =VLOOKUP($C197,'Orçamento Base'!$D$11:$S$1673,4,FALSE) ->  | H197: =IFERROR(VLOOKUP($C197,'Orçamento Base'!$D$11:$S$1673,6,FALSE),0) -> 0 | I197: =VLOOKUP($C197,'Orçamento Base'!$D$11:$S$1673,5,FALSE) ->  | J197: =IF(Comparativo!$E$6="Tabela Não Desonerada",VLOOKUP($C197,'Orçamento Base'!$D$11:$S$1673,12,FALSE),VLOOKUP($C197,#REF!,12,FALSE)) ->  | K197: =IFERROR(IF(Comparativo!$E$6="Tabela Não Desonerada",VLOOKUP($C197,'Orçamento Base'!$D$11:$S$1673,16,FALSE),VLOOKUP($C197,#REF!,16,FALSE)),0) -> 0 | L197: =IF(AND($D197="COMPOSICAO_PROPRIA",'Orçamento Base'!$N197="-"),"14,18%",IF(AND($D197="MERCADO",'Orçamento Base'!$N197="-"),"15,38%",IF(Comparativo!$E$6="Tabela Não Desonerada",VLOOKUP($C197,'Orçamento Base'!$D$11:$S$1673,11,FALSE),VLOOKUP($C197,#REF!,11,FALSE)))) ->  | M197: =IF(Comparativo!$E$6="Tabela Não Desonerada",Encargos!$F$44,Encargos!$D$44) -> 1.1122
A198: ='Identificação-TCE'!$A$13 -> 1 | B198: =IF(AND(G198<>"",H198>0,I198<>"",J198<>0,K198<>0),COUNT($B$11:B197)+1,"") ->  | C198: =IF('Orçamento Base'!$M197=0,0,'Orçamento Base'!$D197) -> 0 | D198: =IF('Orçamento Base'!$F197=Aux.!$G$11,"CONTRATACAO_PUBLICA",IF(VLOOKUP($C198,'Orçamento Base'!$D$11:$G$2116,3,FALSE)="INDEXADO",VLOOKUP(VLOOKUP($C197,'Orçamento Base'!$D$11:$G$2116,2,FALSE),'Index N_DESON.'!$A$9:$B$604,2),VLOOKUP($C198,'Orçamento Base'!$D$11:$G$2116,3,FALSE))) ->  | E198: =VLOOKUP($C198,'Orçamento Base'!$D$11:$S$1673,2,FALSE) ->  | F198: =Dados!$C$7 -> 2022-04-01 | G198: =VLOOKUP($C198,'Orçamento Base'!$D$11:$S$1673,4,FALSE) ->  | H198: =IFERROR(VLOOKUP($C198,'Orçamento Base'!$D$11:$S$1673,6,FALSE),0) -> 0 | I198: =VLOOKUP($C198,'Orçamento Base'!$D$11:$S$1673,5,FALSE) ->  | J198: =IF(Comparativo!$E$6="Tabela Não Desonerada",VLOOKUP($C198,'Orçamento Base'!$D$11:$S$1673,12,FALSE),VLOOKUP($C198,#REF!,12,FALSE)) ->  | K198: =IFERROR(IF(Comparativo!$E$6="Tabela Não Desonerada",VLOOKUP($C198,'Orçamento Base'!$D$11:$S$1673,16,FALSE),VLOOKUP($C198,#REF!,16,FALSE)),0) -> 0 | L198: =IF(AND($D198="COMPOSICAO_PROPRIA",'Orçamento Base'!$N198="-"),"14,18%",IF(AND($D198="MERCADO",'Orçamento Base'!$N198="-"),"15,38%",IF(Comparativo!$E$6="Tabela Não Desonerada",VLOOKUP($C198,'Orçamento Base'!$D$11:$S$1673,11,FALSE),VLOOKUP($C198,#REF!,11,FALSE)))) ->  | M198: =IF(Comparativo!$E$6="Tabela Não Desonerada",Encargos!$F$44,Encargos!$D$44) -> 1.1122
A199: ='Identificação-TCE'!$A$13 -> 1 | B199: =IF(AND(G199<>"",H199>0,I199<>"",J199<>0,K199<>0),COUNT($B$11:B198)+1,"") ->  | C199: =IF('Orçamento Base'!$M198=0,0,'Orçamento Base'!$D198) -> 0 | D199: =IF('Orçamento Base'!$F198=Aux.!$G$11,"CONTRATACAO_PUBLICA",IF(VLOOKUP($C199,'Orçamento Base'!$D$11:$G$2116,3,FALSE)="INDEXADO",VLOOKUP(VLOOKUP($C198,'Orçamento Base'!$D$11:$G$2116,2,FALSE),'Index N_DESON.'!$A$9:$B$604,2),VLOOKUP($C199,'Orçamento Base'!$D$11:$G$2116,3,FALSE))) ->  | E199: =VLOOKUP($C199,'Orçamento Base'!$D$11:$S$1673,2,FALSE) ->  | F199: =Dados!$C$7 -> 2022-04-01 | G199: =VLOOKUP($C199,'Orçamento Base'!$D$11:$S$1673,4,FALSE) ->  | H199: =IFERROR(VLOOKUP($C199,'Orçamento Base'!$D$11:$S$1673,6,FALSE),0) -> 0 | I199: =VLOOKUP($C199,'Orçamento Base'!$D$11:$S$1673,5,FALSE) ->  | J199: =IF(Comparativo!$E$6="Tabela Não Desonerada",VLOOKUP($C199,'Orçamento Base'!$D$11:$S$1673,12,FALSE),VLOOKUP($C199,#REF!,12,FALSE)) ->  | K199: =IFERROR(IF(Comparativo!$E$6="Tabela Não Desonerada",VLOOKUP($C199,'Orçamento Base'!$D$11:$S$1673,16,FALSE),VLOOKUP($C199,#REF!,16,FALSE)),0) -> 0 | L199: =IF(AND($D199="COMPOSICAO_PROPRIA",'Orçamento Base'!$N199="-"),"14,18%",IF(AND($D199="MERCADO",'Orçamento Base'!$N199="-"),"15,38%",IF(Comparativo!$E$6="Tabela Não Desonerada",VLOOKUP($C199,'Orçamento Base'!$D$11:$S$1673,11,FALSE),VLOOKUP($C199,#REF!,11,FALSE)))) ->  | M199: =IF(Comparativo!$E$6="Tabela Não Desonerada",Encargos!$F$44,Encargos!$D$44) -> 1.1122
A200: ='Identificação-TCE'!$A$13 -> 1 | B200: =IF(AND(G200<>"",H200>0,I200<>"",J200<>0,K200<>0),COUNT($B$11:B199)+1,"") ->  | C200: =IF('Orçamento Base'!$M199=0,0,'Orçamento Base'!$D199) -> 0 | D200: =IF('Orçamento Base'!$F199=Aux.!$G$11,"CONTRATACAO_PUBLICA",IF(VLOOKUP($C200,'Orçamento Base'!$D$11:$G$2116,3,FALSE)="INDEXADO",VLOOKUP(VLOOKUP($C199,'Orçamento Base'!$D$11:$G$2116,2,FALSE),'Index N_DESON.'!$A$9:$B$604,2),VLOOKUP($C200,'Orçamento Base'!$D$11:$G$2116,3,FALSE))) ->  | E200: =VLOOKUP($C200,'Orçamento Base'!$D$11:$S$1673,2,FALSE) ->  | F200: =Dados!$C$7 -> 2022-04-01 | G200: =VLOOKUP($C200,'Orçamento Base'!$D$11:$S$1673,4,FALSE) ->  | H200: =IFERROR(VLOOKUP($C200,'Orçamento Base'!$D$11:$S$1673,6,FALSE),0) -> 0 | I200: =VLOOKUP($C200,'Orçamento Base'!$D$11:$S$1673,5,FALSE) ->  | J200: =IF(Comparativo!$E$6="Tabela Não Desonerada",VLOOKUP($C200,'Orçamento Base'!$D$11:$S$1673,12,FALSE),VLOOKUP($C200,#REF!,12,FALSE)) ->  | K200: =IFERROR(IF(Comparativo!$E$6="Tabela Não Desonerada",VLOOKUP($C200,'Orçamento Base'!$D$11:$S$1673,16,FALSE),VLOOKUP($C200,#REF!,16,FALSE)),0) -> 0 | L200: =IF(AND($D200="COMPOSICAO_PROPRIA",'Orçamento Base'!$N200="-"),"14,18%",IF(AND($D200="MERCADO",'Orçamento Base'!$N200="-"),"15,38%",IF(Comparativo!$E$6="Tabela Não Desonerada",VLOOKUP($C200,'Orçamento Base'!$D$11:$S$1673,11,FALSE),VLOOKUP($C200,#REF!,11,FALSE)))) ->  | M200: =IF(Comparativo!$E$6="Tabela Não Desonerada",Encargos!$F$44,Encargos!$D$44) -> 1.1122
A201: ='Identificação-TCE'!$A$13 -> 1 | B201: =IF(AND(G201<>"",H201>0,I201<>"",J201<>0,K201<>0),COUNT($B$11:B200)+1,"") ->  | C201: =IF('Orçamento Base'!$M200=0,0,'Orçamento Base'!$D200) -> 0 | D201: =IF('Orçamento Base'!$F200=Aux.!$G$11,"CONTRATACAO_PUBLICA",IF(VLOOKUP($C201,'Orçamento Base'!$D$11:$G$2116,3,FALSE)="INDEXADO",VLOOKUP(VLOOKUP($C200,'Orçamento Base'!$D$11:$G$2116,2,FALSE),'Index N_DESON.'!$A$9:$B$604,2),VLOOKUP($C201,'Orçamento Base'!$D$11:$G$2116,3,FALSE))) ->  | E201: =VLOOKUP($C201,'Orçamento Base'!$D$11:$S$1673,2,FALSE) ->  | F201: =Dados!$C$7 -> 2022-04-01 | G201: =VLOOKUP($C201,'Orçamento Base'!$D$11:$S$1673,4,FALSE) ->  | H201: =IFERROR(VLOOKUP($C201,'Orçamento Base'!$D$11:$S$1673,6,FALSE),0) -> 0 | I201: =VLOOKUP($C201,'Orçamento Base'!$D$11:$S$1673,5,FALSE) ->  | J201: =IF(Comparativo!$E$6="Tabela Não Desonerada",VLOOKUP($C201,'Orçamento Base'!$D$11:$S$1673,12,FALSE),VLOOKUP($C201,#REF!,12,FALSE)) ->  | K201: =IFERROR(IF(Comparativo!$E$6="Tabela Não Desonerada",VLOOKUP($C201,'Orçamento Base'!$D$11:$S$1673,16,FALSE),VLOOKUP($C201,#REF!,16,FALSE)),0) -> 0 | L201: =IF(AND($D201="COMPOSICAO_PROPRIA",'Orçamento Base'!$N201="-"),"14,18%",IF(AND($D201="MERCADO",'Orçamento Base'!$N201="-"),"15,38%",IF(Comparativo!$E$6="Tabela Não Desonerada",VLOOKUP($C201,'Orçamento Base'!$D$11:$S$1673,11,FALSE),VLOOKUP($C201,#REF!,11,FALSE)))) ->  | M201: =IF(Comparativo!$E$6="Tabela Não Desonerada",Encargos!$F$44,Encargos!$D$44) -> 1.1122
... 1486 more rows

Sheet Proposta-TCE (hidden)
A1: PROPOSTA
A2: Modalidade | E2: N° | G2: Ano
A3: Descrição do Objeto | C3: =Dados!C5 -> Reforma CECORES
A4: Licitante | G4: CNPJ*
A5: Tipo de Objeto
A6: Preço Total Proposto | C6: =SUM(H12:H1148) -> 1399036.02
A7: Atenção! Se existirem itens sem preço proposto, deixe a célula do preço unitário proposto em branco.
A8: Para incluir itens da proposta, selecione as células A13 a K13 e arraste para baixo, de acordo com o número de itens cadastrado na planilha Orçamento-base.
A9: *Campos de preenchimento obrigatório | F9: **Obrigatório só para Obras e Serviços de Engenharia
A10: Nº do lote | B10: Nº Ordem | C10: Nº Item | D10: Descrição do item | E10: Proposta | O10: Equipamento | Q10: Mão de Obra | S10: Material
E11: Qtd. | F11: Unid. | G11: Preço unitário (R$)* | H11: Preço Total (R$) | I11: % BDI** | J11: % Encargos Sociais** | K11: Percentual de Desconto | L11: Pr. Unit. Material | M11: Pr. Unit. Mão de obra | N11: Pr. Unit. Equipamento | O11: Preço total | P11: Preço unit. | Q11: Preço total | R11: Preço unit. | S11: Preço total | T11: Preço unit.
A12: 1 | B12: ='Orçamento-TCE'!B12 -> 1 | C12: ='Orçamento-TCE'!C12 -> 1.1 | D12: ='Orçamento-TCE'!G12 -> ENGENHEIRO CIVIL DE OBRA SENIOR COM ENCARGOS COMPLEMENTARES | E12: ='Orçamento-TCE'!H12 -> 184 | F12: ='Orçamento-TCE'!I12 -> H | G12: =IF(Comparativo!$E$6="Tabela Não Desonerada",VLOOKUP($C12,'Orçamento Base'!$D$11:$S$1673,12,FALSE),VLOOKUP($C12,#REF!,12,FALSE)) -> 191.4 | H12: =IFERROR(IF(Comparativo!$E$6="Tabela Não Desonerada",VLOOKUP($C12,'Orçamento Base'!$D$11:$S$1673,16,FALSE),VLOOKUP($C12,#REF!,16,FALSE)),0) -> 35217.6 | I12: =IF(Comparativo!$E$6="Tabela Não Desonerada",VLOOKUP($C12,'Orçamento Base'!$D$11:$S$1673,11,FALSE),VLOOKUP($C12,#REF!,11,FALSE)) -> 0.2267 | J12: =IF(Comparativo!$E$6="Tabela Não Desonerada",Encargos!$F$44,Encargos!$D$44) -> 1.1122 | L12: =T12 -> 1.89 | M12: =R12 -> 189.51 | N12: =P12 -> 0 | O12: =IF(Comparativo!$E$6="Tabela Não Desonerada",VLOOKUP($C12,'Orçamento Base'!$D$11:$S$1673,13,FALSE),VLOOKUP($C12,#REF!,13,FALSE)) -> 0 | P12: =O12/E12 -> 0 | Q12: =IF(Comparativo!$E$6="Tabela Não Desonerada",VLOOKUP($C12,'Orçamento Base'!$D$11:$S$1673,14,FALSE),VLOOKUP($C12,#REF!,14,FALSE)) -> 34869.84 | R12: =Q12/E12 -> 189.51 | S12: =IF(Comparativo!$E$6="Tabela Não Desonerada",VLOOKUP($C12,'Orçamento Base'!$D$11:$S$1673,15,FALSE),VLOOKUP($C12,#REF!,15,FALSE)) -> 347.76 | T12: =S12/E12 -> 1.89
A13: 1 | B13: ='Orçamento-TCE'!B13 -> 2 | C13: ='Orçamento-TCE'!C13 -> 1.2 | D13: ='Orçamento-TCE'!G13 -> ENCARREGADO GERAL COM ENCARGOS COMPLEMENTARES | E13: ='Orçamento-TCE'!H13 -> 792 | F13: ='Orçamento-TCE'!I13 -> H | G13: =IF(Comparativo!$E$6="Tabela Não Desonerada",VLOOKUP($C13,'Orçamento Base'!$D$12:$S$1673,12,FALSE),VLOOKUP($C13,#REF!,12,FALSE)) -> 60.07 | H13: =IFERROR(IF(Comparativo!$E$6="Tabela Não Desonerada",VLOOKUP($C13,'Orçamento Base'!$D$12:$S$1673,16,FALSE),VLOOKUP($C13,#REF!,16,FALSE)),0) -> 47575.44 | I13: =IF(Comparativo!$E$6="Tabela Não Desonerada",VLOOKUP($C13,'Orçamento Base'!$D$12:$S$1673,11,FALSE),VLOOKUP($C13,#REF!,11,FALSE)) -> 0.2267 | J13: =IF(Comparativo!$E$6="Tabela Não Desonerada",Encargos!$F$44,Encargos!$D$44) -> 1.1122 | L13: =T13 -> 2.52 | M13: =R13 -> 57.55 | N13: =P13 -> 0 | O13: =IF(Comparativo!$E$6="Tabela Não Desonerada",VLOOKUP($C13,'Orçamento Base'!$D$12:$S$1673,13,FALSE),VLOOKUP($C13,#REF!,13,FALSE)) -> 0 | P13: =O13/E13 -> 0 | Q13: =IF(Comparativo!$E$6="Tabela Não Desonerada",VLOOKUP($C13,'Orçamento Base'!$D$12:$S$1673,14,FALSE),VLOOKUP($C13,#REF!,14,FALSE)) -> 45579.6 | R13: =Q13/E13 -> 57.55 | S13: =IF(Comparativo!$E$6="Tabela Não Desonerada",VLOOKUP($C13,'Orçamento Base'!$D$12:$S$1673,15,FALSE),VLOOKUP($C13,#REF!,15,FALSE)) -> 1995.84 | T13: =S13/E13 -> 2.52
A14: 1 | B14: ='Orçamento-TCE'!B14 -> 3 | C14: ='Orçamento-TCE'!C14 -> 1.3 | D14: ='Orçamento-TCE'!G14 -> TÉCNICO EM SEGURANÇA DO TRABALHO COM ENCARGOS COMPLEMENTARES | E14: ='Orçamento-TCE'!H14 -> 90 | F14: ='Orçamento-TCE'!I14 -> H | G14: =IF(Comparativo!$E$6="Tabela Não Desonerada",VLOOKUP($C14,'Orçamento Base'!$D$12:$S$1673,12,FALSE),VLOOKUP($C14,#REF!,12,FALSE)) -> 41.86 | H14: =IFERROR(IF(Comparativo!$E$6="Tabela Não Desonerada",VLOOKUP($C14,'Orçamento Base'!$D$12:$S$1673,16,FALSE),VLOOKUP($C14,#REF!,16,FALSE)),0) -> 3767.4 | I14: =IF(Comparativo!$E$6="Tabela Não Desonerada",VLOOKUP($C14,'Orçamento Base'!$D$12:$S$1673,11,FALSE),VLOOKUP($C14,#REF!,11,FALSE)) -> 0.2267 | J14: =IF(Comparativo!$E$6="Tabela Não Desonerada",Encargos!$F$44,Encargos!$D$44) -> 1.1122 | L14: 1.97 | M14: 39.89 | N14: 0 | O14: =IF(Comparativo!$E$6="Tabela Não Desonerada",VLOOKUP($C14,'Orçamento Base'!$D$12:$S$1673,13,FALSE),VLOOKUP($C14,#REF!,13,FALSE)) -> 0 | P14: 0 | Q14: =IF(Comparativo!$E$6="Tabela Não Desonerada",VLOOKUP($C14,'Orçamento Base'!$D$12:$S$1673,14,FALSE),VLOOKUP($C14,#REF!,14,FALSE)) -> 3590.1 | R14: 39.89 | S14: =IF(Comparativo!$E$6="Tabela Não Desonerada",VLOOKUP($C14,'Orçamento Base'!$D$12:$S$1673,15,FALSE),VLOOKUP($C14,#REF!,15,FALSE)) -> 177.3 | T14: 1.97
A15: 1 | B15: ='Orçamento-TCE'!B15 ->  | C15: ='Orçamento-TCE'!C15 -> 0 | D15: ='Orçamento-TCE'!G15 ->  | E15: ='Orçamento-TCE'!H15 -> 0 | F15: ='Orçamento-TCE'!I15 ->  | G15: =IF(Comparativo!$E$6="Tabela Não Desonerada",VLOOKUP($C15,'Orçamento Base'!$D$12:$S$1673,12,FALSE),VLOOKUP($C15,#REF!,12,FALSE)) ->  | H15: =IFERROR(IF(Comparativo!$E$6="Tabela Não Desonerada",VLOOKUP($C15,'Orçamento Base'!$D$12:$S$1673,16,FALSE),VLOOKUP($C15,#REF!,16,FALSE)),0) -> 0 | I15: =IF(Comparativo!$E$6="Tabela Não Desonerada",VLOOKUP($C15,'Orçamento Base'!$D$12:$S$1673,11,FALSE),VLOOKUP($C15,#REF!,11,FALSE)) ->  | J15: =IF(Comparativo!$E$6="Tabela Não Desonerada",Encargos!$F$44,Encargos!$D$44) -> 1.1122 | O15: =IF(Comparativo!$E$6="Tabela Não Desonerada",VLOOKUP($C15,'Orçamento Base'!$D$12:$S$1673,13,FALSE),VLOOKUP($C15,#REF!,13,FALSE)) ->  | Q15: =IF(Comparativo!$E$6="Tabela Não Desonerada",VLOOKUP($C15,'Orçamento Base'!$D$12:$S$1673,14,FALSE),VLOOKUP($C15,#REF!,14,FALSE)) ->  | S15: =IF(Comparativo!$E$6="Tabela Não Desonerada",VLOOKUP($C15,'Orçamento Base'!$D$12:$S$1673,15,FALSE),VLOOKUP($C15,#REF!,15,FALSE)) -> 
A16: 1 | B16: ='Orçamento-TCE'!B16 ->  | C16: ='Orçamento-TCE'!C16 -> 0 | D16: ='Orçamento-TCE'!G16 ->  | E16: ='Orçamento-TCE'!H16 -> 0 | F16: ='Orçamento-TCE'!I16 ->  | G16: =IF(Comparativo!$E$6="Tabela Não Desonerada",VLOOKUP($C16,'Orçamento Base'!$D$12:$S$1673,12,FALSE),VLOOKUP($C16,#REF!,12,FALSE)) ->  | H16: =IFERROR(IF(Comparativo!$E$6="Tabela Não Desonerada",VLOOKUP($C16,'Orçamento Base'!$D$12:$S$1673,16,FALSE),VLOOKUP($C16,#REF!,16,FALSE)),0) -> 0 | I16: =IF(Comparativo!$E$6="Tabela Não Desonerada",VLOOKUP($C16,'Orçamento Base'!$D$12:$S$1673,11,FALSE),VLOOKUP($C16,#REF!,11,FALSE)) ->  | J16: =IF(Comparativo!$E$6="Tabela Não Desonerada",Encargos!$F$44,Encargos!$D$44) -> 1.1122 | O16: =IF(Comparativo!$E$6="Tabela Não Desonerada",VLOOKUP($C16,'Orçamento Base'!$D$12:$S$1673,13,FALSE),VLOOKUP($C16,#REF!,13,FALSE)) ->  | Q16: =IF(Comparativo!$E$6="Tabela Não Desonerada",VLOOKUP($C16,'Orçamento Base'!$D$12:$S$1673,14,FALSE),VLOOKUP($C16,#REF!,14,FALSE)) ->  | S16: =IF(Comparativo!$E$6="Tabela Não Desonerada",VLOOKUP($C16,'Orçamento Base'!$D$12:$S$1673,15,FALSE),VLOOKUP($C16,#REF!,15,FALSE)) -> 
A17: 1 | B17: ='Orçamento-TCE'!B17 ->  | C17: ='Orçamento-TCE'!C17 -> 0 | D17: ='Orçamento-TCE'!G17 ->  | E17: ='Orçamento-TCE'!H17 -> 0 | F17: ='Orçamento-TCE'!I17 ->  | G17: =IF(Comparativo!$E$6="Tabela Não Desonerada",VLOOKUP($C17,'Orçamento Base'!$D$12:$S$1673,12,FALSE),VLOOKUP($C17,#REF!,12,FALSE)) ->  | H17: =IFERROR(IF(Comparativo!$E$6="Tabela Não Desonerada",VLOOKUP($C17,'Orçamento Base'!$D$12:$S$1673,16,FALSE),VLOOKUP($C17,#REF!,16,FALSE)),0) -> 0 | I17: =IF(Comparativo!$E$6="Tabela Não Desonerada",VLOOKUP($C17,'Orçamento Base'!$D$12:$S$1673,11,FALSE),VLOOKUP($C17,#REF!,11,FALSE)) ->  | J17: =IF(Comparativo!$E$6="Tabela Não Desonerada",Encargos!$F$44,Encargos!$D$44) -> 1.1122 | O17: =IF(Comparativo!$E$6="Tabela Não Desonerada",VLOOKUP($C17,'Orçamento Base'!$D$12:$S$1673,13,FALSE),VLOOKUP($C17,#REF!,13,FALSE)) ->  | Q17: =IF(Comparativo!$E$6="Tabela Não Desonerada",VLOOKUP($C17,'Orçamento Base'!$D$12:$S$1673,14,FALSE),VLOOKUP($C17,#REF!,14,FALSE)) ->  | S17: =IF(Comparativo!$E$6="Tabela Não Desonerada",VLOOKUP($C17,'Orçamento Base'!$D$12:$S$1673,15,FALSE),VLOOKUP($C17,#REF!,15,FALSE)) -> 
A18: 1 | B18: ='Orçamento-TCE'!B18 ->  | C18: ='Orçamento-TCE'!C18 -> 0 | D18: ='Orçamento-TCE'!G18 ->  | E18: ='Orçamento-TCE'!H18 -> 0 | F18: ='Orçamento-TCE'!I18 ->  | G18: =IF(Comparativo!$E$6="Tabela Não Desonerada",VLOOKUP($C18,'Orçamento Base'!$D$12:$S$1673,12,FALSE),VLOOKUP($C18,#REF!,12,FALSE)) ->  | H18: =IFERROR(IF(Comparativo!$E$6="Tabela Não Desonerada",VLOOKUP($C18,'Orçamento Base'!$D$12:$S$1673,16,FALSE),VLOOKUP($C18,#REF!,16,FALSE)),0) -> 0 | I18: =IF(Comparativo!$E$6="Tabela Não Desonerada",VLOOKUP($C18,'Orçamento Base'!$D$12:$S$1673,11,FALSE),VLOOKUP($C18,#REF!,11,FALSE)) ->  | J18: =IF(Comparativo!$E$6="Tabela Não Desonerada",Encargos!$F$44,Encargos!$D$44) -> 1.1122 | O18: =IF(Comparativo!$E$6="Tabela Não Desonerada",VLOOKUP($C18,'Orçamento Base'!$D$12:$S$1673,13,FALSE),VLOOKUP($C18,#REF!,13,FALSE)) ->  | Q18: =IF(Comparativo!$E$6="Tabela Não Desonerada",VLOOKUP($C18,'Orçamento Base'!$D$12:$S$1673,14,FALSE),VLOOKUP($C18,#REF!,14,FALSE)) ->  | S18: =IF(Comparativo!$E$6="Tabela Não Desonerada",VLOOKUP($C18,'Orçamento Base'!$D$12:$S$1673,15,FALSE),VLOOKUP($C18,#REF!,15,FALSE)) -> 
A19: 1 | B19: ='Orçamento-TCE'!B19 ->  | C19: ='Orçamento-TCE'!C19 -> 0 | D19: ='Orçamento-TCE'!G19 ->  | E19: ='Orçamento-TCE'!H19 -> 0 | F19: ='Orçamento-TCE'!I19 ->  | G19: =IF(Comparativo!$E$6="Tabela Não Desonerada",VLOOKUP($C19,'Orçamento Base'!$D$12:$S$1673,12,FALSE),VLOOKUP($C19,#REF!,12,FALSE)) ->  | H19: =IFERROR(IF(Comparativo!$E$6="Tabela Não Desonerada",VLOOKUP($C19,'Orçamento Base'!$D$12:$S$1673,16,FALSE),VLOOKUP($C19,#REF!,16,FALSE)),0) -> 0 | I19: =IF(Comparativo!$E$6="Tabela Não Desonerada",VLOOKUP($C19,'Orçamento Base'!$D$12:$S$1673,11,FALSE),VLOOKUP($C19,#REF!,11,FALSE)) ->  | J19: =IF(Comparativo!$E$6="Tabela Não Desonerada",Encargos!$F$44,Encargos!$D$44) -> 1.1122 | O19: =IF(Comparativo!$E$6="Tabela Não Desonerada",VLOOKUP($C19,'Orçamento Base'!$D$12:$S$1673,13,FALSE),VLOOKUP($C19,#REF!,13,FALSE)) ->  | Q19: =IF(Comparativo!$E$6="Tabela Não Desonerada",VLOOKUP($C19,'Orçamento Base'!$D$12:$S$1673,14,FALSE),VLOOKUP($C19,#REF!,14,FALSE)) ->  | S19: =IF(Comparativo!$E$6="Tabela Não Desonerada",VLOOKUP($C19,'Orçamento Base'!$D$12:$S$1673,15,FALSE),VLOOKUP($C19,#REF!,15,FALSE)) -> 
A20: 1 | B20: ='Orçamento-TCE'!B20 ->  | C20: ='Orçamento-TCE'!C20 -> 0 | D20: ='Orçamento-TCE'!G20 ->  | E20: ='Orçamento-TCE'!H20 -> 0 | F20: ='Orçamento-TCE'!I20 ->  | G20: =IF(Comparativo!$E$6="Tabela Não Desonerada",VLOOKUP($C20,'Orçamento Base'!$D$12:$S$1673,12,FALSE),VLOOKUP($C20,#REF!,12,FALSE)) ->  | H20: =IFERROR(IF(Comparativo!$E$6="Tabela Não Desonerada",VLOOKUP($C20,'Orçamento Base'!$D$12:$S$1673,16,FALSE),VLOOKUP($C20,#REF!,16,FALSE)),0) -> 0 | I20: =IF(Comparativo!$E$6="Tabela Não Desonerada",VLOOKUP($C20,'Orçamento Base'!$D$12:$S$1673,11,FALSE),VLOOKUP($C20,#REF!,11,FALSE)) ->  | J20: =IF(Comparativo!$E$6="Tabela Não Desonerada",Encargos!$F$44,Encargos!$D$44) -> 1.1122 | O20: =IF(Comparativo!$E$6="Tabela Não Desonerada",VLOOKUP($C20,'Orçamento Base'!$D$12:$S$1673,13,FALSE),VLOOKUP($C20,#REF!,13,FALSE)) ->  | Q20: =IF(Comparativo!$E$6="Tabela Não Desonerada",VLOOKUP($C20,'Orçamento Base'!$D$12:$S$1673,14,FALSE),VLOOKUP($C20,#REF!,14,FALSE)) ->  | S20: =IF(Comparativo!$E$6="Tabela Não Desonerada",VLOOKUP($C20,'Orçamento Base'!$D$12:$S$1673,15,FALSE),VLOOKUP($C20,#REF!,15,FALSE)) -> 
A21: 1 | B21: ='Orçamento-TCE'!B21 ->  | C21: ='Orçamento-TCE'!C21 -> 0 | D21: ='Orçamento-TCE'!G21 ->  | E21: ='Orçamento-TCE'!H21 -> 0 | F21: ='Orçamento-TCE'!I21 ->  | G21: =IF(Comparativo!$E$6="Tabela Não Desonerada",VLOOKUP($C21,'Orçamento Base'!$D$12:$S$1673,12,FALSE),VLOOKUP($C21,#REF!,12,FALSE)) ->  | H21: =IFERROR(IF(Comparativo!$E$6="Tabela Não Desonerada",VLOOKUP($C21,'Orçamento Base'!$D$12:$S$1673,16,FALSE),VLOOKUP($C21,#REF!,16,FALSE)),0) -> 0 | I21: =IF(Comparativo!$E$6="Tabela Não Desonerada",VLOOKUP($C21,'Orçamento Base'!$D$12:$S$1673,11,FALSE),VLOOKUP($C21,#REF!,11,FALSE)) ->  | J21: =IF(Comparativo!$E$6="Tabela Não Desonerada",Encargos!$F$44,Encargos!$D$44) -> 1.1122 | O21: =IF(Comparativo!$E$6="Tabela Não Desonerada",VLOOKUP($C21,'Orçamento Base'!$D$12:$S$1673,13,FALSE),VLOOKUP($C21,#REF!,13,FALSE)) ->  | Q21: =IF(Comparativo!$E$6="Tabela Não Desonerada",VLOOKUP($C21,'Orçamento Base'!$D$12:$S$1673,14,FALSE),VLOOKUP($C21,#REF!,14,FALSE)) ->  | S21: =IF(Comparativo!$E$6="Tabela Não Desonerada",VLOOKUP($C21,'Orçamento Base'!$D$12:$S$1673,15,FALSE),VLOOKUP($C21,#REF!,15,FALSE)) -> 
A22: 1 | B22: ='Orçamento-TCE'!B22 ->  | C22: ='Orçamento-TCE'!C22 -> 0 | D22: ='Orçamento-TCE'!G22 ->  | E22: ='Orçamento-TCE'!H22 -> 0 | F22: ='Orçamento-TCE'!I22 ->  | G22: =IF(Comparativo!$E$6="Tabela Não Desonerada",VLOOKUP($C22,'Orçamento Base'!$D$12:$S$1673,12,FALSE),VLOOKUP($C22,#REF!,12,FALSE)) ->  | H22: =IFERROR(IF(Comparativo!$E$6="Tabela Não Desonerada",VLOOKUP($C22,'Orçamento Base'!$D$12:$S$1673,16,FALSE),VLOOKUP($C22,#REF!,16,FALSE)),0) -> 0 | I22: =IF(Comparativo!$E$6="Tabela Não Desonerada",VLOOKUP($C22,'Orçamento Base'!$D$12:$S$1673,11,FALSE),VLOOKUP($C22,#REF!,11,FALSE)) ->  | J22: =IF(Comparativo!$E$6="Tabela Não Desonerada",Encargos!$F$44,Encargos!$D$44) -> 1.1122 | O22: =IF(Comparativo!$E$6="Tabela Não Desonerada",VLOOKUP($C22,'Orçamento Base'!$D$12:$S$1673,13,FALSE),VLOOKUP($C22,#REF!,13,FALSE)) ->  | Q22: =IF(Comparativo!$E$6="Tabela Não Desonerada",VLOOKUP($C22,'Orçamento Base'!$D$12:$S$1673,14,FALSE),VLOOKUP($C22,#REF!,14,FALSE)) ->  | S22: =IF(Comparativo!$E$6="Tabela Não Desonerada",VLOOKUP($C22,'Orçamento Base'!$D$12:$S$1673,15,FALSE),VLOOKUP($C22,#REF!,15,FALSE)) -> 
A23: 1 | B23: ='Orçamento-TCE'!B23 ->  | C23: ='Orçamento-TCE'!C23 -> 0 | D23: ='Orçamento-TCE'!G23 ->  | E23: ='Orçamento-TCE'!H23 -> 0 | F23: ='Orçamento-TCE'!I23 ->  | G23: =IF(Comparativo!$E$6="Tabela Não Desonerada",VLOOKUP($C23,'Orçamento Base'!$D$12:$S$1673,12,FALSE),VLOOKUP($C23,#REF!,12,FALSE)) ->  | H23: =IFERROR(IF(Comparativo!$E$6="Tabela Não Desonerada",VLOOKUP($C23,'Orçamento Base'!$D$12:$S$1673,16,FALSE),VLOOKUP($C23,#REF!,16,FALSE)),0) -> 0 | I23: =IF(Comparativo!$E$6="Tabela Não Desonerada",VLOOKUP($C23,'Orçamento Base'!$D$12:$S$1673,11,FALSE),VLOOKUP($C23,#REF!,11,FALSE)) ->  | J23: =IF(Comparativo!$E$6="Tabela Não Desonerada",Encargos!$F$44,Encargos!$D$44) -> 1.1122 | O23: =IF(Comparativo!$E$6="Tabela Não Desonerada",VLOOKUP($C23,'Orçamento Base'!$D$12:$S$1673,13,FALSE),VLOOKUP($C23,#REF!,13,FALSE)) ->  | Q23: =IF(Comparativo!$E$6="Tabela Não Desonerada",VLOOKUP($C23,'Orçamento Base'!$D$12:$S$1673,14,FALSE),VLOOKUP($C23,#REF!,14,FALSE)) ->  | S23: =IF(Comparativo!$E$6="Tabela Não Desonerada",VLOOKUP($C23,'Orçamento Base'!$D$12:$S$1673,15,FALSE),VLOOKUP($C23,#REF!,15,FALSE)) -> 
